Workbook

Sheet Career
B1: Career | H1: Pre 2015 (for Website) | O1: 2024 | T1: 2023 | Y1: 2022 | AD1: 2021 | AI1: 2020 | AN1: 2019 | AS1: 2018 | AX1: 2017 | BC1: 2016 | BH1: 2015 | BM1: 2014 | BR1: 2013 | BW1: Pre 2013 | BZ1: 2012 | CE1: Pre 2012 | CH1: 2011 | CM1: 2010 | CR1: 2009 | CW1: 2008 | DB1: 2007 | DG1: 2006 | DK1: 2005 | DO1: 2004 | DS1: 2003 | DW1: 2002 | EA1: Pre 2002
A2: Name | B2: AB | C2: H | D2: HR | E2: AVG | F2: Yrs | G2: First Yr | H2: Yrs | I2: AB | J2: H | K2: HR | L2: AVG | M2: Year Start | N2: Jackets | O2: AB | P2: R | Q2: H | R2: HR | S2: AVG | T2: AB | U2: R | V2: H | W2: HR | X2: AVG | Y2: AB | Z2: R | AA2: H | AB2: HR | AC2: AVG | AD2: AB | AE2: R | AF2: H | AG2: HR | AH2: AVG | AI2: AB | AJ2: R | AK2: H | AL2: HR | AM2: AVG | AN2: AB | AO2: R | AP2: H | AQ2: HR | AR2: AVG | AS2: AB | AT2: R | AU2: H | AV2: HR | AW2: AVG | AX2: AB | AY2: R | AZ2: H | BA2: HR | BB2: AVG | BC2: AB | BD2: R | BE2: H | BF2: HR | BG2: AVG | BH2: AB | BI2: R | BJ2: H | BK2: HR | BL2: AVG | BM2: AB | BN2: R | BO2: H | BP2: HR | BQ2: AVG | BR2: AB | BS2: R | BT2: H | BU2: HR | BV2: AVG | BW2: AB | BX2: H | BY2: HR | BZ2: AB | CA2: R | CB2: H | CC2: HR | CD2: AVG | CE2: AB | CF2: H | CG2: HR | CH2: AB | CI2: R | CJ2: H | CK2: HR | CL2: AVG | CM2: AB | CN2: R | CO2: H | CP2: HR | CQ2: AVG | CR2: AB | CS2: R | CT2: H | CU2: HR | CV2: AVG | CW2: AB | CX2: R | CY2: H | CZ2: HR | DA2: AVG | DB2: AB | DC2: R | DD2: H | DE2: HR | DF2: AVG | DG2: AB | DH2: H | DI2: HR | DJ2: AVG | DK2: AB | DL2: H | DM2: HR | DN2: AVG | DO2: AB | DP2: H | DQ2: HR | DR2: AVG | DS2: AB | DT2: H | DU2: HR | DV2: AVG | DW2: AB | DX2: H | DY2: HR | DZ2: AVG | EA2: AB | EB2: H | EC2: HR | ED2: AVG | EE2: Yrs
A3: Cody Whiteside | B3: =SUM(O3,T3,Y3,AD3,AI3,AN3,AS3,AX3,BC3,BH3,BM3,BR3,BZ3,CH3,CM3,CR3,CW3,DB3,DG3,DK3,DO3,DS3,DW3,EA3) -> 635 | C3: =SUM(Q3,V3,AA3,AF3,AK3,AP3,AU3,AZ3,BE3,BJ3,BO3,BT3,CB3,CJ3,CO3,CT3,CY3,DD3,DH3,DL3,DP3,DT3,DX3,EB3) -> 481 | D3: =SUM(R3,W3,AB3,AG3,AL3,AQ3,AV3,BA3,BF3,BK3,BP3,BU3,CC3,CK3,CP3,CU3,CZ3,DE3,DI3,DM3,DQ3,DU3,DY3,EC3) -> 261 | E3: =IF(B3=0,0,C3/B3) -> 0.757480315 | F3: =IF(O3>0,1,0)+IF(T3>0,1,0)+IF(Y3>0,1,0)+IF(AD3>0,1,0)+IF(AI3>0,1,0)+IF(AN3>0,1,0)+IF(AS3>0,1,0)+IF(AX3>0,1,0)+IF(BC3>0,1,0)+IF(BH3>0,1,0)+IF(BM3>0,1,0)+IF(BR3>0,1,0)+IF(BZ3>0,1,0)+IF(CH3>0,1,0)+IF(CM3>0,1,0)+IF(CR3>0,1,0)+IF(CW3>0,1,0)+IF(DB3>0,1,0)+IF(DG3>0,1,0)+IF(DK3>0,1,0)+IF(DO3>0,1,0)+IF(DS3>0,1,0)+IF(DW3>0,1,0)+EE3 -> 8 | G3: 2017 | O3: =IFERROR(VLOOKUP($A3,'2024'!$A$2:$M$220,6,FALSE),0) -> 83 | P3: =IFERROR(VLOOKUP($A3,'2024'!$A$2:$M$220,7,FALSE),0) -> 58 | Q3: =IFERROR(VLOOKUP($A3,'2024'!$A$2:$M$220,8,FALSE),0) -> 59 | R3: =IFERROR(VLOOKUP($A3,'2024'!$A$2:$M$220,11,FALSE),0) -> 37 | S3: =IFERROR(VLOOKUP($A3,'2024'!$A$2:$M$220,13,FALSE),0) -> 0.711 | T3: =IFERROR(VLOOKUP($A3,'2023'!$A$2:$M$170,6,FALSE),0) -> 84 | U3: =IFERROR(VLOOKUP($A3,'2023'!$A$2:$M$170,7,FALSE),0) -> 47 | V3: =IFERROR(VLOOKUP($A3,'2023'!$A$2:$M$170,8,FALSE),0) -> 57 | W3: =IFERROR(VLOOKUP($A3,'2023'!$A$2:$M$170,11,FALSE),0) -> 26 | X3: =IFERROR(VLOOKUP($A3,'2023'!$A$2:$M$170,13,FALSE),0) -> 0.679 | Y3: =IFERROR(VLOOKUP($A3,'2022'!$B$2:$K$174,3,FALSE),0) -> 89 | Z3: =IFERROR(VLOOKUP($A3,'2022'!$B$2:$K$174,4,FALSE),0) -> 59 | AA3: =IFERROR(VLOOKUP($A3,'2022'!$B$2:$K$174,5,FALSE),0) -> 65 | AB3: =IFERROR(VLOOKUP($A3,'2022'!$B$2:$K$174,8,FALSE),0) -> 27 | AC3: =IFERROR(VLOOKUP($A3,'2022'!$B$2:$K$174,10,FALSE),0) -> 0.73 | AD3: =IFERROR(VLOOKUP($A3,'2021'!$B$2:$K$174,3,FALSE),0) -> 85 | AE3: =IFERROR(VLOOKUP($A3,'2021'!$B$2:$K$174,4,FALSE),0) -> 58 | AF3: =IFERROR(VLOOKUP($A3,'2021'!$B$2:$K$174,5,FALSE),0) -> 66 | AG3: =IFERROR(VLOOKUP($A3,'2021'!$B$2:$K$174,8,FALSE),0) -> 37 | AH3: =IFERROR(VLOOKUP($A3,'2021'!$B$2:$K$174,10,FALSE),0) -> 0.776 | AI3: =IFERROR(VLOOKUP($A3,'2020'!$B$2:$K$170,3,FALSE),0) -> 77 | AJ3: =IFERROR(VLOOKUP($A3,'2020'!$B$2:$K$170,4,FALSE),0) -> 69 | AK3: =IFERROR(VLOOKUP($A3,'2020'!$B$2:$K$170,5,FALSE),0) -> 68 | AL3: =IFERROR(VLOOKUP($A3,'2020'!$B$2:$K$170,8,FALSE),0) -> 42 | AM3: =IFERROR(VLOOKUP($A3,'2020'!$B$2:$K$170,10,FALSE),0) -> 0.883 | AN3: =IFERROR(VLOOKUP($A3,'2019'!$B$2:$K$170,3,FALSE),0) -> 79 | AO3: =IFERROR(VLOOKUP($A3,'2019'!$B$2:$K$170,4,FALSE),0) -> 59 | AP3: =IFERROR(VLOOKUP($A3,'2019'!$B$2:$K$170,5,FALSE),0) -> 59 | AQ3: =IFERROR(VLOOKUP($A3,'2019'!$B$2:$K$170,8,FALSE),0) -> 32 | AR3: =IFERROR(VLOOKUP($A3,'2019'!$B$2:$K$170,10,FALSE),0) -> 0.747 | AS3: =IFERROR(VLOOKUP($A3,'2018'!$B$2:$K$170,3,FALSE),0) -> 82 | AT3: =IFERROR(VLOOKUP($A3,'2018'!$B$2:$K$170,4,FALSE),0) -> 67 | AU3: =IFERROR(VLOOKUP($A3,'2018'!$B$2:$K$170,5,FALSE),0) -> 65 | AV3: =IFERROR(VLOOKUP($A3,'2018'!$B$2:$K$170,8,FALSE),0) -> 39 | AW3: =IFERROR(VLOOKUP($A3,'2018'!$B$2:$K$170,10,FALSE),0) -> 0.793 | AX3: =IFERROR(VLOOKUP($A3,'2017'!$B$2:$J$163,2,FALSE),0) -> 56 | AY3: =IFERROR(VLOOKUP($A3,'2017'!$B$2:$J$163,3,FALSE),0) -> 34 | AZ3: =IFERROR(VLOOKUP($A3,'2017'!$B$2:$J$163,4,FALSE),0) -> 42 | BA3: =IFERROR(VLOOKUP($A3,'2017'!$B$2:$J$163,7,FALSE),0) -> 21 | BB3: =IFERROR(VLOOKUP($A3,'2017'!$B$2:$J$163,9,FALSE),0) -> 0.75 | BC3: =IFERROR(VLOOKUP($A3,'2016'!$B$2:$K$165,3,FALSE),0) -> 0 | BD3: =IFERROR(VLOOKUP($A3,'2016'!$B$2:$K$165,4,FALSE),0) -> 0 | BE3: =IFERROR(VLOOKUP($A3,'2016'!$B$2:$K$165,5,FALSE),0) -> 0 | BF3: =IFERROR(VLOOKUP($A3,'2016'!$B$2:$K$165,8,FALSE),0) -> 0 | BG3: =IFERROR(VLOOKUP($A3,'2016'!$B$2:$K$165,10,FALSE),0) -> 0 | BH3: =IFERROR(VLOOKUP($A3,'2015'!$B$2:$K$165,3,FALSE),0) -> 0 | BI3: =IFERROR(VLOOKUP($A3,'2015'!$B$2:$K$165,4,FALSE),0) -> 0 | BJ3: =IFERROR(VLOOKUP($A3,'2015'!$B$2:$K$165,5,FALSE),0) -> 0 | BK3: =IFERROR(VLOOKUP($A3,'2015'!$B$2:$K$165,8,FALSE),0) -> 0 | BL3: =IFERROR(VLOOKUP($A3,'2015'!$B$2:$K$165,10,FALSE),0) -> 0 | BM3: =IFERROR(VLOOKUP($A3,'2014'!$B$2:$K$157,3,FALSE),0) -> 0 | BN3: =IFERROR(VLOOKUP($A3,'2014'!$B$2:$K$157,4,FALSE),0) -> 0 | BO3: =IFERROR(VLOOKUP($A3,'2014'!$B$2:$K$157,5,FALSE),0) -> 0 | BP3: =IFERROR(VLOOKUP($A3,'2014'!$B$2:$K$157,8,FALSE),0) -> 0 | BQ3: =IFERROR(VLOOKUP($A3,'2014'!$B$2:$K$157,10,FALSE),0) -> 0 | BR3: =IFERROR(VLOOKUP($A3,'2013'!$D$4:$I$249,2,FALSE),0) -> 0 | BS3: =IFERROR(VLOOKUP($A3,'2013'!$D$4:$I$249,3,FALSE),0) -> 0 | BT3: =IFERROR(VLOOKUP($A3,'2013'!$D$4:$I$249,4,FALSE),0) -> 0 | BU3: =IFERROR(VLOOKUP($A3,'2013'!$D$4:$I$249,5,FALSE),0) -> 0 | BV3: =IFERROR(VLOOKUP($A3,'2013'!$D$4:$I$249,6,FALSE),0) -> 0 | BW3: =IFERROR(VLOOKUP($A3,'2012'!$D$3:$O$172,2,FALSE),0) -> 0 | BX3: =IFERROR(VLOOKUP($A3,'2012'!$D$3:$O$172,3,FALSE),0) -> 0 | BY3: =IFERROR(VLOOKUP($A3,'2012'!$D$3:$O$172,4,FALSE),0) -> 0 | BZ3: =IFERROR(VLOOKUP($A3,'2012'!$D$3:$O$172,5,FALSE),0) -> 0 | CA3: =IFERROR(VLOOKUP($A3,'2012'!$D$3:$O$172,6,FALSE),0) -> 0 | CB3: =IFERROR(VLOOKUP($A3,'2012'!$D$3:$O$172,7,FALSE),0) -> 0 | CC3: =IFERROR(VLOOKUP($A3,'2012'!$D$3:$O$172,8,FALSE),0) -> 0 | CD3: =IFERROR(VLOOKUP($A3,'2012'!$D$3:$O$172,9,FALSE),0) -> 0 | CH3: =IFERROR(VLOOKUP($A3,'2011'!$D$4:$I$251,2,FALSE),0) -> 0 | CI3: =IFERROR(VLOOKUP($A3,'2011'!$D$4:$I$251,3,FALSE),0) -> 0 | CJ3: =IFERROR(VLOOKUP($A3,'2011'!$D$4:$I$251,4,FALSE),0) -> 0 | CK3: =IFERROR(VLOOKUP($A3,'2011'!$D$4:$I$251,5,FALSE),0) -> 0 | CL3: =IFERROR(VLOOKUP($A3,'2011'!$D$4:$I$251,6,FALSE),0) -> 0 | CM3: =IFERROR(VLOOKUP($A3,'2010'!$C$3:$H$234,2,FALSE),0) -> 0 | CN3: =IFERROR(VLOOKUP($A3,'2010'!$C$3:$H$234,3,FALSE),0) -> 0 | CO3: =IFERROR(VLOOKUP($A3,'2010'!$C$3:$H$234,4,FALSE),0) -> 0 | CP3: =IFERROR(VLOOKUP($A3,'2010'!$C$3:$H$234,5,FALSE),0) -> 0 | CQ3: =IFERROR(VLOOKUP($A3,'2010'!$C$3:$H$234,6,FALSE),0) -> 0 | CR3: =IFERROR(VLOOKUP($A3,'2009'!$C$3:$H$242,2,FALSE),0) -> 0 | CS3: =IFERROR(VLOOKUP($A3,'2009'!$C$3:$H$242,3,FALSE),0) -> 0 | CT3: =IFERROR(VLOOKUP($A3,'2009'!$C$3:$H$242,4,FALSE),0) -> 0 | CU3: =IFERROR(VLOOKUP($A3,'2009'!$C$3:$H$242,5,FALSE),0) -> 0 | CV3: =IFERROR(VLOOKUP($A3,'2009'!$C$3:$H$242,6,FALSE),0) -> 0 | CW3: =IFERROR(VLOOKUP($A3,'2008'!$C$3:$H$229,2,FALSE),0) -> 0 | CX3: =IFERROR(VLOOKUP($A3,'2008'!$C$3:$H$229,3,FALSE),0) -> 0 | CY3: =IFERROR(VLOOKUP($A3,'2008'!$C$3:$H$229,4,FALSE),0) -> 0 | CZ3: =IFERROR(VLOOKUP($A3,'2008'!$C$3:$H$229,5,FALSE),0) -> 0 | DA3: =IFERROR(VLOOKUP($A3,'2008'!$C$3:$H$229,6,FALSE),0) -> 0 | DB3: =IFERROR(VLOOKUP($A3,'2007'!$C$3:$M$238,7,FALSE),0) -> 0 | DC3: =IFERROR(VLOOKUP($A3,'2007'!$C$3:$M$238,8,FALSE),0) -> 0 | DD3: =IFERROR(VLOOKUP($A3,'2007'!$C$3:$M$238,9,FALSE),0) -> 0 | DE3: =IFERROR(VLOOKUP($A3,'2007'!$C$3:$M$238,10,FALSE),0) -> 0 | DF3: =IFERROR(VLOOKUP($A3,'2007'!$C$3:$M$238,11,FALSE),0) -> 0 | DG3: =IFERROR(VLOOKUP($A3,'2006'!$A$2:$F$200,2,FALSE),0) -> 0 | DH3: =IFERROR(VLOOKUP($A3,'2006'!$A$2:$F$200,4,FALSE),0) -> 0 | DI3: =IFERROR(VLOOKUP($A3,'2006'!$A$2:$F$200,5,FALSE),0) -> 0 | DJ3: =IFERROR(VLOOKUP($A3,'2006'!$A$2:$F$200,6,FALSE),0) -> 0 | DK3: =IFERROR(VLOOKUP($A3,'2005'!$C$3:$M$205,8,FALSE),0) -> 0 | DL3: =IFERROR(VLOOKUP($A3,'2005'!$C$3:$M$205,9,FALSE),0) -> 0 | DM3: =IFERROR(VLOOKUP($A3,'2005'!$C$3:$M$205,10,FALSE),0) -> 0 | DN3: =IFERROR(VLOOKUP($A3,'2005'!$C$3:$M$205,11,FALSE),0) -> 0 | DO3: =IFERROR(VLOOKUP($A3,'2004'!$C$3:$M$213,8,FALSE),0) -> 0 | DP3: =IFERROR(VLOOKUP($A3,'2004'!$C$3:$M$213,9,FALSE),0) -> 0 | DQ3: =IFERROR(VLOOKUP($A3,'2004'!$C$3:$M$213,10,FALSE),0) -> 0 | DR3: =IFERROR(VLOOKUP($A3,'2004'!$C$3:$M$213,11,FALSE),0) -> 0 | DS3: =IFERROR(VLOOKUP($A3,'2003'!$C$3:$Q$214,12,FALSE),0) -> 0 | DT3: =IFERROR(VLOOKUP($A3,'2003'!$C$3:$Q$214,13,FALSE),0) -> 0 | DU3: =IFERROR(VLOOKUP($A3,'2003'!$C$3:$Q$214,14,FALSE),0) -> 0 | DV3: =IFERROR(VLOOKUP($A3,'2003'!$C$3:$Q$214,15,FALSE),0) -> 0 | DW3: =IFERROR(VLOOKUP($A3,'2002'!$D$3:$R$214,12,FALSE),0) -> 0 | DX3: =IFERROR(VLOOKUP($A3,'2002'!$D$3:$R$214,13,FALSE),0) -> 0 | DY3: =IFERROR(VLOOKUP($A3,'2002'!$D$3:$R$214,14,FALSE),0) -> 0 | DZ3: =IFERROR(VLOOKUP($A3,'2002'!$D$3:$R$214,15,FALSE),0) -> 0 | EA3: =IFERROR(VLOOKUP($A3,'Pre 2002'!$C$3:$CK$382,84,FALSE),0) -> 0 | EB3: =IFERROR(VLOOKUP($A3,'Pre 2002'!$C$3:$CK$382,85,FALSE),0) -> 0 | EC3: =IFERROR(VLOOKUP($A3,'Pre 2002'!$C$3:$CK$382,86,FALSE),0) -> 0 | ED3: =IFERROR(VLOOKUP($A3,'Pre 2002'!$C$3:$CK$382,87,FALSE),0) -> 0 | EE3: =IFERROR(VLOOKUP(A3,'Pre 2002'!$C$3:$CG$382,83,FALSE),0) -> 0
A4: Dwayne Smith | B4: =SUM(O4,T4,Y4,AD4,AI4,AN4,AS4,AX4,BC4,BH4,BM4,BR4,BZ4,CH4,CM4,CR4,CW4,DB4,DG4,DK4,DO4,DS4,DW4,EA4) -> 1945 | C4: =SUM(Q4,V4,AA4,AF4,AK4,AP4,AU4,AZ4,BE4,BJ4,BO4,BT4,CB4,CJ4,CO4,CT4,CY4,DD4,DH4,DL4,DP4,DT4,DX4,EB4) -> 1223 | D4: =SUM(R4,W4,AB4,AG4,AL4,AQ4,AV4,BA4,BF4,BK4,BP4,BU4,CC4,CK4,CP4,CU4,CZ4,DE4,DI4,DM4,DQ4,DU4,DY4,EC4) -> 208 | E4: =IF(B4=0,0,C4/B4) -> 0.6287917738 | F4: =IF(O4>0,1,0)+IF(T4>0,1,0)+IF(Y4>0,1,0)+IF(AD4>0,1,0)+IF(AI4>0,1,0)+IF(AN4>0,1,0)+IF(AS4>0,1,0)+IF(AX4>0,1,0)+IF(BC4>0,1,0)+IF(BH4>0,1,0)+IF(BM4>0,1,0)+IF(BR4>0,1,0)+IF(BZ4>0,1,0)+IF(CH4>0,1,0)+IF(CM4>0,1,0)+IF(CR4>0,1,0)+IF(CW4>0,1,0)+IF(DB4>0,1,0)+IF(DG4>0,1,0)+IF(DK4>0,1,0)+IF(DO4>0,1,0)+IF(DS4>0,1,0)+IF(DW4>0,1,0)+EE4 -> 31 | G4: 1988 | H4: =IF(BM4>0,1,0)+IF(BR4>0,1,0)+IF(BZ4>0,1,0)+IF(CH4>0,1,0)+IF(CM4>0,1,0)+IF(CR4>0,1,0)+IF(CW4>0,1,0)+IF(DB4>0,1,0)+IF(DG4>0,1,0)+IF(DK4>0,1,0)+IF(DO4>0,1,0)+IF(DS4>0,1,0)+IF(DW4>0,1,0)+EE4 -> 27 | I4: =SUM(BM4,BR4,BZ4,CH4,CM4,CR4,CW4,DB4,DG4,DK4,DO4,DS4,DW4,EA4) -> 1745 | J4: =SUM(BO4,BT4,CB4,CJ4,CO4,CT4,CY4,DD4,DH4,DL4,DP4,DT4,DX4,EB4) -> 1119 | K4: =SUM(BP4,BU4,CC4,CK4,CP4,CU4,CZ4,DE4,DI4,DM4,DQ4,DU4,DY4,EC4) -> 201 | L4: =IF(I4=0,0,J4/I4) -> 0.641260745 | M4: 88 | N4: 2 | O4: =IFERROR(VLOOKUP($A4,'2024'!$A$2:$M$220,6,FALSE),0) -> 0 | P4: =IFERROR(VLOOKUP($A4,'2024'!$A$2:$M$220,7,FALSE),0) -> 0 | Q4: =IFERROR(VLOOKUP($A4,'2024'!$A$2:$M$220,8,FALSE),0) -> 0 | R4: =IFERROR(VLOOKUP($A4,'2024'!$A$2:$M$220,11,FALSE),0) -> 0 | S4: =IFERROR(VLOOKUP($A4,'2024'!$A$2:$M$220,13,FALSE),0) -> 0 | T4: =IFERROR(VLOOKUP($A4,'2023'!$A$2:$M$170,6,FALSE),0) -> 0 | U4: =IFERROR(VLOOKUP($A4,'2023'!$A$2:$M$170,7,FALSE),0) -> 0 | V4: =IFERROR(VLOOKUP($A4,'2023'!$A$2:$M$170,8,FALSE),0) -> 0 | W4: =IFERROR(VLOOKUP($A4,'2023'!$A$2:$M$170,11,FALSE),0) -> 0 | X4: =IFERROR(VLOOKUP($A4,'2023'!$A$2:$M$170,13,FALSE),0) -> 0 | Y4: =IFERROR(VLOOKUP($A4,'2022'!$B$2:$K$174,3,FALSE),0) -> 0 | Z4: =IFERROR(VLOOKUP($A4,'2022'!$B$2:$K$174,4,FALSE),0) -> 0 | AA4: =IFERROR(VLOOKUP($A4,'2022'!$B$2:$K$174,5,FALSE),0) -> 0 | AB4: =IFERROR(VLOOKUP($A4,'2022'!$B$2:$K$174,8,FALSE),0) -> 0 | AC4: =IFERROR(VLOOKUP($A4,'2022'!$B$2:$K$174,10,FALSE),0) -> 0 | AD4: =IFERROR(VLOOKUP($A4,'2021'!$B$2:$K$174,3,FALSE),0) -> 0 | AE4: =IFERROR(VLOOKUP($A4,'2021'!$B$2:$K$174,4,FALSE),0) -> 0 | AF4: =IFERROR(VLOOKUP($A4,'2021'!$B$2:$K$174,5,FALSE),0) -> 0 | AG4: =IFERROR(VLOOKUP($A4,'2021'!$B$2:$K$174,8,FALSE),0) -> 0 | AH4: =IFERROR(VLOOKUP($A4,'2021'!$B$2:$K$174,10,FALSE),0) -> 0 | AI4: =IFERROR(VLOOKUP($A4,'2020'!$B$2:$K$170,3,FALSE),0) -> 0 | AJ4: =IFERROR(VLOOKUP($A4,'2020'!$B$2:$K$170,4,FALSE),0) -> 0 | AK4: =IFERROR(VLOOKUP($A4,'2020'!$B$2:$K$170,5,FALSE),0) -> 0 | AL4: =IFERROR(VLOOKUP($A4,'2020'!$B$2:$K$170,8,FALSE),0) -> 0 | AM4: =IFERROR(VLOOKUP($A4,'2020'!$B$2:$K$170,10,FALSE),0) -> 0 | AN4: =IFERROR(VLOOKUP($A4,'2019'!$B$2:$K$170,3,FALSE),0) -> 19 | AO4: =IFERROR(VLOOKUP($A4,'2019'!$B$2:$K$170,4,FALSE),0) -> 2 | AP4: =IFERROR(VLOOKUP($A4,'2019'!$B$2:$K$170,5,FALSE),0) -> 8 | AQ4: =IFERROR(VLOOKUP($A4,'2019'!$B$2:$K$170,8,FALSE),0) -> 0 | AR4: =IFERROR(VLOOKUP($A4,'2019'!$B$2:$K$170,10,FALSE),0) -> 0.421 | AS4: =IFERROR(VLOOKUP($A4,'2018'!$B$2:$K$170,3,FALSE),0) -> 0 | AT4: =IFERROR(VLOOKUP($A4,'2018'!$B$2:$K$170,4,FALSE),0) -> 0 | AU4: =IFERROR(VLOOKUP($A4,'2018'!$B$2:$K$170,5,FALSE),0) -> 0 | AV4: =IFERROR(VLOOKUP($A4,'2018'!$B$2:$K$170,8,FALSE),0) -> 0 | AW4: =IFERROR(VLOOKUP($A4,'2018'!$B$2:$K$170,10,FALSE),0) -> 0 | AX4: =IFERROR(VLOOKUP($A4,'2017'!$B$2:$J$163,2,FALSE),0) -> 53 | AY4: =IFERROR(VLOOKUP($A4,'2017'!$B$2:$J$163,3,FALSE),0) -> 14 | AZ4: =IFERROR(VLOOKUP($A4,'2017'!$B$2:$J$163,4,FALSE),0) -> 21 | BA4: =IFERROR(VLOOKUP($A4,'2017'!$B$2:$J$163,7,FALSE),0) -> 2 | BB4: =IFERROR(VLOOKUP($A4,'2017'!$B$2:$J$163,9,FALSE),0) -> 0.3962264151 | BC4: =IFERROR(VLOOKUP($A4,'2016'!$B$2:$K$165,3,FALSE),0) -> 69 | BD4: =IFERROR(VLOOKUP($A4,'2016'!$B$2:$K$165,4,FALSE),0) -> 33 | BE4: =IFERROR(VLOOKUP($A4,'2016'!$B$2:$K$165,5,FALSE),0) -> 37 | BF4: =IFERROR(VLOOKUP($A4,'2016'!$B$2:$K$165,8,FALSE),0) -> 1 | BG4: =IFERROR(VLOOKUP($A4,'2016'!$B$2:$K$165,10,FALSE),0) -> 0.536 | BH4: =IFERROR(VLOOKUP($A4,'2015'!$B$2:$K$165,3,FALSE),0) -> 59 | BI4: =IFERROR(VLOOKUP($A4,'2015'!$B$2:$K$165,4,FALSE),0) -> 26 | BJ4: =IFERROR(VLOOKUP($A4,'2015'!$B$2:$K$165,5,FALSE),0) -> 38 | BK4: =IFERROR(VLOOKUP($A4,'2015'!$B$2:$K$165,8,FALSE),0) -> 4 | BL4: =IFERROR(VLOOKUP($A4,'2015'!$B$2:$K$165,10,FALSE),0) -> 0.6440677966 | BM4: =IFERROR(VLOOKUP($A4,'2014'!$B$2:$K$157,3,FALSE),0) -> 69 | BN4: =IFERROR(VLOOKUP($A4,'2014'!$B$2:$K$157,4,FALSE),0) -> 38 | BO4: =IFERROR(VLOOKUP($A4,'2014'!$B$2:$K$157,5,FALSE),0) -> 44 | BP4: =IFERROR(VLOOKUP($A4,'2014'!$B$2:$K$157,8,FALSE),0) -> 5 | BQ4: =IFERROR(VLOOKUP($A4,'2014'!$B$2:$K$157,10,FALSE),0) -> 0.6376811594 | BR4: =IFERROR(VLOOKUP($A4,'2013'!$D$4:$I$249,2,FALSE),0) -> 70 | BS4: =IFERROR(VLOOKUP($A4,'2013'!$D$4:$I$249,3,FALSE),0) -> 32 | BT4: =IFERROR(VLOOKUP($A4,'2013'!$D$4:$I$249,4,FALSE),0) -> 38 | BU4: =IFERROR(VLOOKUP($A4,'2013'!$D$4:$I$249,5,FALSE),0) -> 2 | BV4: =IFERROR(VLOOKUP($A4,'2013'!$D$4:$I$249,6,FALSE),0) -> 0.5428571429 | BW4: =IFERROR(VLOOKUP($A4,'2012'!$D$3:$O$172,2,FALSE),0) -> 1611 | BX4: =IFERROR(VLOOKUP($A4,'2012'!$D$3:$O$172,3,FALSE),0) -> 1036 | BY4: =IFERROR(VLOOKUP($A4,'2012'!$D$3:$O$172,4,FALSE),0) -> 194 | BZ4: =IFERROR(VLOOKUP($A4,'2012'!$D$3:$O$172,5,FALSE),0) -> 73 | CA4: =IFERROR(VLOOKUP($A4,'2012'!$D$3:$O$172,6,FALSE),0) -> 39 | CB4: =IFERROR(VLOOKUP($A4,'2012'!$D$3:$O$172,7,FALSE),0) -> 48 | CC4: =IFERROR(VLOOKUP($A4,'2012'!$D$3:$O$172,8,FALSE),0) -> 4 | CD4: =IFERROR(VLOOKUP($A4,'2012'!$D$3:$O$172,9,FALSE),0) -> 0.6575342466 | CE4: =IFERROR(VLOOKUP($A4,'2012'!$D$3:$O$172,10,FALSE),0) -> 1538 | CF4: =IFERROR(VLOOKUP($A4,'2012'!$D$3:$O$172,11,FALSE),0) -> 988 | CG4: =IFERROR(VLOOKUP($A4,'2012'!$D$3:$O$172,12,FALSE),0) -> 190 | CH4: =IFERROR(VLOOKUP($A4,'2011'!$D$4:$I$251,2,FALSE),0) -> 54 | CI4: =IFERROR(VLOOKUP($A4,'2011'!$D$4:$I$251,3,FALSE),0) -> 32 | CJ4: =IFERROR(VLOOKUP($A4,'2011'!$D$4:$I$251,4,FALSE),0) -> 36 | CK4: =IFERROR(VLOOKUP($A4,'2011'!$D$4:$I$251,5,FALSE),0) -> 3 | CL4: =IFERROR(VLOOKUP($A4,'2011'!$D$4:$I$251,6,FALSE),0) -> 0.6666666667 | CM4: =IFERROR(VLOOKUP($A4,'2010'!$C$3:$H$234,2,FALSE),0) -> 62 | CN4: =IFERROR(VLOOKUP($A4,'2010'!$C$3:$H$234,3,FALSE),0) -> 31 | CO4: =IFERROR(VLOOKUP($A4,'2010'!$C$3:$H$234,4,FALSE),0) -> 42 | CP4: =IFERROR(VLOOKUP($A4,'2010'!$C$3:$H$234,5,FALSE),0) -> 5 | CQ4: =IFERROR(VLOOKUP($A4,'2010'!$C$3:$H$234,6,FALSE),0) -> 0.6774193548 | CR4: =IFERROR(VLOOKUP($A4,'2009'!$C$3:$H$242,2,FALSE),0) -> 77 | CS4: =IFERROR(VLOOKUP($A4,'2009'!$C$3:$H$242,3,FALSE),0) -> 48 | CT4: =IFERROR(VLOOKUP($A4,'2009'!$C$3:$H$242,4,FALSE),0) -> 56 | CU4: =IFERROR(VLOOKUP($A4,'2009'!$C$3:$H$242,5,FALSE),0) -> 9 | CV4: =IFERROR(VLOOKUP($A4,'2009'!$C$3:$H$242,6,FALSE),0) -> 0.7272727273 | CW4: =IFERROR(VLOOKUP($A4,'2008'!$C$3:$H$229,2,FALSE),0) -> 58 | CX4: =IFERROR(VLOOKUP($A4,'2008'!$C$3:$H$229,3,FALSE),0) -> 43 | CY4: =IFERROR(VLOOKUP($A4,'2008'!$C$3:$H$229,4,FALSE),0) -> 42 | CZ4: =IFERROR(VLOOKUP($A4,'2008'!$C$3:$H$229,5,FALSE),0) -> 13 | DA4: =IFERROR(VLOOKUP($A4,'2008'!$C$3:$H$229,6,FALSE),0) -> 0.724137931 | DB4: =IFERROR(VLOOKUP($A4,'2007'!$C$3:$M$238,7,FALSE),0) -> 72 | DC4: =IFERROR(VLOOKUP($A4,'2007'!$C$3:$M$238,8,FALSE),0) -> 45 | DD4: =IFERROR(VLOOKUP($A4,'2007'!$C$3:$M$238,9,FALSE),0) -> 47 | DE4: =IFERROR(VLOOKUP($A4,'2007'!$C$3:$M$238,10,FALSE),0) -> 10 | DF4: =IFERROR(VLOOKUP($A4,'2007'!$C$3:$M$238,11,FALSE),0) -> 0.6527777778 | DG4: =IFERROR(VLOOKUP($A4,'2006'!$A$2:$F$200,2,FALSE),0) -> 61 | DH4: =IFERROR(VLOOKUP($A4,'2006'!$A$2:$F$200,4,FALSE),0) -> 38 | DI4: =IFERROR(VLOOKUP($A4,'2006'!$A$2:$F$200,5,FALSE),0) -> 10 | DJ4: =IFERROR(VLOOKUP($A4,'2006'!$A$2:$F$200,6,FALSE),0) -> 0.6229508197 | DK4: =IFERROR(VLOOKUP($A4,'2005'!$C$3:$M$205,8,FALSE),0) -> 77 | DL4: =IFERROR(VLOOKUP($A4,'2005'!$C$3:$M$205,9,FALSE),0) -> 58 | DM4: =IFERROR(VLOOKUP($A4,'2005'!$C$3:$M$205,10,FALSE),0) -> 12 | DN4: =IFERROR(VLOOKUP($A4,'2005'!$C$3:$M$205,11,FALSE),0) -> 0.7532467532 | DO4: =IFERROR(VLOOKUP($A4,'2004'!$C$3:$M$213,8,FALSE),0) -> 60 | DP4: =IFERROR(VLOOKUP($A4,'2004'!$C$3:$M$213,9,FALSE),0) -> 36 | DQ4: =IFERROR(VLOOKUP($A4,'2004'!$C$3:$M$213,10,FALSE),0) -> 5 | DR4: =IFERROR(VLOOKUP($A4,'2004'!$C$3:$M$213,11,FALSE),0) -> 0.6 | DS4: =IFERROR(VLOOKUP($A4,'2003'!$C$3:$Q$214,12,FALSE),0) -> 62 | DT4: =IFERROR(VLOOKUP($A4,'2003'!$C$3:$Q$214,13,FALSE),0) -> 39 | DU4: =IFERROR(VLOOKUP($A4,'2003'!$C$3:$Q$214,14,FALSE),0) -> 10 | DV4: =IFERROR(VLOOKUP($A4,'2003'!$C$3:$Q$214,15,FALSE),0) -> 0.6290322581 | DW4: =IFERROR(VLOOKUP($A4,'2002'!$D$3:$R$214,12,FALSE),0) -> 57 | DX4: =IFERROR(VLOOKUP($A4,'2002'!$D$3:$R$214,13,FALSE),0) -> 42 | DY4: =IFERROR(VLOOKUP($A4,'2002'!$D$3:$R$214,14,FALSE),0) -> 3 | DZ4: =IFERROR(VLOOKUP($A4,'2002'!$D$3:$R$214,15,FALSE),0) -> 0.7368421053 | EA4: =IFERROR(VLOOKUP($A4,'Pre 2002'!$C$3:$CK$382,84,FALSE),0) -> 893 | EB4: =IFERROR(VLOOKUP($A4,'Pre 2002'!$C$3:$CK$382,85,FALSE),0) -> 553 | EC4: =IFERROR(VLOOKUP($A4,'Pre 2002'!$C$3:$CK$382,86,FALSE),0) -> 110 | ED4: =IFERROR(VLOOKUP($A4,'Pre 2002'!$C$3:$CK$382,87,FALSE),0) -> 0.6192609183 | EE4: =IFERROR(VLOOKUP(A4,'Pre 2002'!$C$3:$CG$382,83,FALSE),0) -> 14
A5: Matt Moulder | B5: =SUM(O5,T5,Y5,AD5,AI5,AN5,AS5,AX5,BC5,BH5,BM5,BR5,BZ5,CH5,CM5,CR5,CW5,DB5,DG5,DK5,DO5,DS5,DW5,EA5) -> 1301 | C5: =SUM(Q5,V5,AA5,AF5,AK5,AP5,AU5,AZ5,BE5,BJ5,BO5,BT5,CB5,CJ5,CO5,CT5,CY5,DD5,DH5,DL5,DP5,DT5,DX5,EB5) -> 906 | D5: =SUM(R5,W5,AB5,AG5,AL5,AQ5,AV5,BA5,BF5,BK5,BP5,BU5,CC5,CK5,CP5,CU5,CZ5,DE5,DI5,DM5,DQ5,DU5,DY5,EC5) -> 204 | E5: =IF(B5=0,0,C5/B5) -> 0.6963873943 | F5: =IF(O5>0,1,0)+IF(T5>0,1,0)+IF(Y5>0,1,0)+IF(AD5>0,1,0)+IF(AI5>0,1,0)+IF(AN5>0,1,0)+IF(AS5>0,1,0)+IF(AX5>0,1,0)+IF(BC5>0,1,0)+IF(BH5>0,1,0)+IF(BM5>0,1,0)+IF(BR5>0,1,0)+IF(BZ5>0,1,0)+IF(CH5>0,1,0)+IF(CM5>0,1,0)+IF(CR5>0,1,0)+IF(CW5>0,1,0)+IF(DB5>0,1,0)+IF(DG5>0,1,0)+IF(DK5>0,1,0)+IF(DO5>0,1,0)+IF(DS5>0,1,0)+IF(DW5>0,1,0)+EE5 -> 20 | G5: 2002 | H5: =IF(BM5>0,1,0)+IF(BR5>0,1,0)+IF(BZ5>0,1,0)+IF(CH5>0,1,0)+IF(CM5>0,1,0)+IF(CR5>0,1,0)+IF(CW5>0,1,0)+IF(DB5>0,1,0)+IF(DG5>0,1,0)+IF(DK5>0,1,0)+IF(DO5>0,1,0)+IF(DS5>0,1,0)+IF(DW5>0,1,0)+EE5 -> 13 | I5: =SUM(BM5,BR5,BZ5,CH5,CM5,CR5,CW5,DB5,DG5,DK5,DO5,DS5,DW5,EA5) -> 893 | J5: =SUM(BO5,BT5,CB5,CJ5,CO5,CT5,CY5,DD5,DH5,DL5,DP5,DT5,DX5,EB5) -> 649 | K5: =SUM(BP5,BU5,CC5,CK5,CP5,CU5,CZ5,DE5,DI5,DM5,DQ5,DU5,DY5,EC5) -> 170 | L5: =IF(I5=0,0,J5/I5) -> 0.7267637178 | M5: 02 | N5: 0 | O5: =IFERROR(VLOOKUP($A5,'2024'!$A$2:$M$220,6,FALSE),0) -> 0 | P5: =IFERROR(VLOOKUP($A5,'2024'!$A$2:$M$220,7,FALSE),0) -> 0 | Q5: =IFERROR(VLOOKUP($A5,'2024'!$A$2:$M$220,8,FALSE),0) -> 0 | R5: =IFERROR(VLOOKUP($A5,'2024'!$A$2:$M$220,11,FALSE),0) -> 0 | S5: =IFERROR(VLOOKUP($A5,'2024'!$A$2:$M$220,13,FALSE),0) -> 0 | T5: =IFERROR(VLOOKUP($A5,'2023'!$A$2:$M$170,6,FALSE),0) -> 0 | U5: =IFERROR(VLOOKUP($A5,'2023'!$A$2:$M$170,7,FALSE),0) -> 0 | V5: =IFERROR(VLOOKUP($A5,'2023'!$A$2:$M$170,8,FALSE),0) -> 0 | W5: =IFERROR(VLOOKUP($A5,'2023'!$A$2:$M$170,11,FALSE),0) -> 0 | X5: =IFERROR(VLOOKUP($A5,'2023'!$A$2:$M$170,13,FALSE),0) -> 0 | Y5: =IFERROR(VLOOKUP($A5,'2022'!$B$2:$K$174,3,FALSE),0) -> 0 | Z5: =IFERROR(VLOOKUP($A5,'2022'!$B$2:$K$174,4,FALSE),0) -> 0 | AA5: =IFERROR(VLOOKUP($A5,'2022'!$B$2:$K$174,5,FALSE),0) -> 0 | AB5: =IFERROR(VLOOKUP($A5,'2022'!$B$2:$K$174,8,FALSE),0) -> 0 | AC5: =IFERROR(VLOOKUP($A5,'2022'!$B$2:$K$174,10,FALSE),0) -> 0 | AD5: =IFERROR(VLOOKUP($A5,'2021'!$B$2:$K$174,3,FALSE),0) -> 24 | AE5: =IFERROR(VLOOKUP($A5,'2021'!$B$2:$K$174,4,FALSE),0) -> 3 | AF5: =IFERROR(VLOOKUP($A5,'2021'!$B$2:$K$174,5,FALSE),0) -> 8 | AG5: =IFERROR(VLOOKUP($A5,'2021'!$B$2:$K$174,8,FALSE),0) -> 0 | AH5: =IFERROR(VLOOKUP($A5,'2021'!$B$2:$K$174,10,FALSE),0) -> 0.333 | AI5: =IFERROR(VLOOKUP($A5,'2020'!$B$2:$K$170,3,FALSE),0) -> 69 | AJ5: =IFERROR(VLOOKUP($A5,'2020'!$B$2:$K$170,4,FALSE),0) -> 25 | AK5: =IFERROR(VLOOKUP($A5,'2020'!$B$2:$K$170,5,FALSE),0) -> 39 | AL5: =IFERROR(VLOOKUP($A5,'2020'!$B$2:$K$170,8,FALSE),0) -> 2 | AM5: =IFERROR(VLOOKUP($A5,'2020'!$B$2:$K$170,10,FALSE),0) -> 0.565 | AN5: =IFERROR(VLOOKUP($A5,'2019'!$B$2:$K$170,3,FALSE),0) -> 59 | AO5: =IFERROR(VLOOKUP($A5,'2019'!$B$2:$K$170,4,FALSE),0) -> 23 | AP5: =IFERROR(VLOOKUP($A5,'2019'!$B$2:$K$170,5,FALSE),0) -> 33 | AQ5: =IFERROR(VLOOKUP($A5,'2019'!$B$2:$K$170,8,FALSE),0) -> 4 | AR5: =IFERROR(VLOOKUP($A5,'2019'!$B$2:$K$170,10,FALSE),0) -> 0.559 | AS5: =IFERROR(VLOOKUP($A5,'2018'!$B$2:$K$170,3,FALSE),0) -> 65 | AT5: =IFERROR(VLOOKUP($A5,'2018'!$B$2:$K$170,4,FALSE),0) -> 31 | AU5: =IFERROR(VLOOKUP($A5,'2018'!$B$2:$K$170,5,FALSE),0) -> 48 | AV5: =IFERROR(VLOOKUP($A5,'2018'!$B$2:$K$170,8,FALSE),0) -> 5 | AW5: =IFERROR(VLOOKUP($A5,'2018'!$B$2:$K$170,10,FALSE),0) -> 0.738 | AX5: =IFERROR(VLOOKUP($A5,'2017'!$B$2:$J$163,2,FALSE),0) -> 60 | AY5: =IFERROR(VLOOKUP($A5,'2017'!$B$2:$J$163,3,FALSE),0) -> 30 | AZ5: =IFERROR(VLOOKUP($A5,'2017'!$B$2:$J$163,4,FALSE),0) -> 37 | BA5: =IFERROR(VLOOKUP($A5,'2017'!$B$2:$J$163,7,FALSE),0) -> 8 | BB5: =IFERROR(VLOOKUP($A5,'2017'!$B$2:$J$163,9,FALSE),0) -> 0.6166666667 | BC5: =IFERROR(VLOOKUP($A5,'2016'!$B$2:$K$165,3,FALSE),0) -> 69 | BD5: =IFERROR(VLOOKUP($A5,'2016'!$B$2:$K$165,4,FALSE),0) -> 30 | BE5: =IFERROR(VLOOKUP($A5,'2016'!$B$2:$K$165,5,FALSE),0) -> 48 | BF5: =IFERROR(VLOOKUP($A5,'2016'!$B$2:$K$165,8,FALSE),0) -> 9 | BG5: =IFERROR(VLOOKUP($A5,'2016'!$B$2:$K$165,10,FALSE),0) -> 0.696 | BH5: =IFERROR(VLOOKUP($A5,'2015'!$B$2:$K$165,3,FALSE),0) -> 62 | BI5: =IFERROR(VLOOKUP($A5,'2015'!$B$2:$K$165,4,FALSE),0) -> 27 | BJ5: =IFERROR(VLOOKUP($A5,'2015'!$B$2:$K$165,5,FALSE),0) -> 44 | BK5: =IFERROR(VLOOKUP($A5,'2015'!$B$2:$K$165,8,FALSE),0) -> 6 | BL5: =IFERROR(VLOOKUP($A5,'2015'!$B$2:$K$165,10,FALSE),0) -> 0.7096774194 | BM5: =IFERROR(VLOOKUP($A5,'2014'!$B$2:$K$157,3,FALSE),0) -> 89 | BN5: =IFERROR(VLOOKUP($A5,'2014'!$B$2:$K$157,4,FALSE),0) -> 51 | BO5: =IFERROR(VLOOKUP($A5,'2014'!$B$2:$K$157,5,FALSE),0) -> 67 | BP5: =IFERROR(VLOOKUP($A5,'2014'!$B$2:$K$157,8,FALSE),0) -> 15 | BQ5: =IFERROR(VLOOKUP($A5,'2014'!$B$2:$K$157,10,FALSE),0) -> 0.7528089888 | BR5: =IFERROR(VLOOKUP($A5,'2013'!$D$4:$I$249,2,FALSE),0) -> 79 | BS5: =IFERROR(VLOOKUP($A5,'2013'!$D$4:$I$249,3,FALSE),0) -> 44 | BT5: =IFERROR(VLOOKUP($A5,'2013'!$D$4:$I$249,4,FALSE),0) -> 55 | BU5: =IFERROR(VLOOKUP($A5,'2013'!$D$4:$I$249,5,FALSE),0) -> 16 | BV5: =IFERROR(VLOOKUP($A5,'2013'!$D$4:$I$249,6,FALSE),0) -> 0.6962025316 | BW5: =IFERROR(VLOOKUP($A5,'2012'!$D$3:$O$172,2,FALSE),0) -> 725 | BX5: =IFERROR(VLOOKUP($A5,'2012'!$D$3:$O$172,3,FALSE),0) -> 527 | BY5: =IFERROR(VLOOKUP($A5,'2012'!$D$3:$O$172,4,FALSE),0) -> 139 | BZ5: =IFERROR(VLOOKUP($A5,'2012'!$D$3:$O$172,5,FALSE),0) -> 64 | CA5: =IFERROR(VLOOKUP($A5,'2012'!$D$3:$O$172,6,FALSE),0) -> 42 | CB5: =IFERROR(VLOOKUP($A5,'2012'!$D$3:$O$172,7,FALSE),0) -> 51 | CC5: =IFERROR(VLOOKUP($A5,'2012'!$D$3:$O$172,8,FALSE),0) -> 14 | CD5: =IFERROR(VLOOKUP($A5,'2012'!$D$3:$O$172,9,FALSE),0) -> 0.796875 | CE5: =IFERROR(VLOOKUP($A5,'2012'!$D$3:$O$172,10,FALSE),0) -> 661 | CF5: =IFERROR(VLOOKUP($A5,'2012'!$D$3:$O$172,11,FALSE),0) -> 476 | CG5: =IFERROR(VLOOKUP($A5,'2012'!$D$3:$O$172,12,FALSE),0) -> 125 | CH5: =IFERROR(VLOOKUP($A5,'2011'!$D$4:$I$251,2,FALSE),0) -> 91 | CI5: =IFERROR(VLOOKUP($A5,'2011'!$D$4:$I$251,3,FALSE),0) -> 57 | CJ5: =IFERROR(VLOOKUP($A5,'2011'!$D$4:$I$251,4,FALSE),0) -> 65 | CK5: =IFERROR(VLOOKUP($A5,'2011'!$D$4:$I$251,5,FALSE),0) -> 14 | CL5: =IFERROR(VLOOKUP($A5,'2011'!$D$4:$I$251,6,FALSE),0) -> 0.7142857143 | CM5: =IFERROR(VLOOKUP($A5,'2010'!$C$3:$H$234,2,FALSE),0) -> 0 | CN5: =IFERROR(VLOOKUP($A5,'2010'!$C$3:$H$234,3,FALSE),0) -> 0 | CO5: =IFERROR(VLOOKUP($A5,'2010'!$C$3:$H$234,4,FALSE),0) -> 0 | CP5: =IFERROR(VLOOKUP($A5,'2010'!$C$3:$H$234,5,FALSE),0) -> 0 | CQ5: =IFERROR(VLOOKUP($A5,'2010'!$C$3:$H$234,6,FALSE),0) -> 0 | CR5: =IFERROR(VLOOKUP($A5,'2009'!$C$3:$H$242,2,FALSE),0) -> 70 | CS5: =IFERROR(VLOOKUP($A5,'2009'!$C$3:$H$242,3,FALSE),0) -> 47 | CT5: =IFERROR(VLOOKUP($A5,'2009'!$C$3:$H$242,4,FALSE),0) -> 44 | CU5: =IFERROR(VLOOKUP($A5,'2009'!$C$3:$H$242,5,FALSE),0) -> 15 | CV5: =IFERROR(VLOOKUP($A5,'2009'!$C$3:$H$242,6,FALSE),0) -> 0.6285714286 | CW5: =IFERROR(VLOOKUP($A5,'2008'!$C$3:$H$229,2,FALSE),0) -> 64 | CX5: =IFERROR(VLOOKUP($A5,'2008'!$C$3:$H$229,3,FALSE),0) -> 52 | CY5: =IFERROR(VLOOKUP($A5,'2008'!$C$3:$H$229,4,FALSE),0) -> 46 | CZ5: =IFERROR(VLOOKUP($A5,'2008'!$C$3:$H$229,5,FALSE),0) -> 12 | DA5: =IFERROR(VLOOKUP($A5,'2008'!$C$3:$H$229,6,FALSE),0) -> 0.71875 | DB5: =IFERROR(VLOOKUP($A5,'2007'!$C$3:$M$238,7,FALSE),0) -> 74 | DC5: =IFERROR(VLOOKUP($A5,'2007'!$C$3:$M$238,8,FALSE),0) -> 51 | DD5: =IFERROR(VLOOKUP($A5,'2007'!$C$3:$M$238,9,FALSE),0) -> 49 | DE5: =IFERROR(VLOOKUP($A5,'2007'!$C$3:$M$238,10,FALSE),0) -> 7 | DF5: =IFERROR(VLOOKUP($A5,'2007'!$C$3:$M$238,11,FALSE),0) -> 0.6621621622 | DG5: =IFERROR(VLOOKUP($A5,'2006'!$A$2:$F$200,2,FALSE),0) -> 87 | DH5: =IFERROR(VLOOKUP($A5,'2006'!$A$2:$F$200,4,FALSE),0) -> 66 | DI5: =IFERROR(VLOOKUP($A5,'2006'!$A$2:$F$200,5,FALSE),0) -> 16 | DJ5: =IFERROR(VLOOKUP($A5,'2006'!$A$2:$F$200,6,FALSE),0) -> 0.7586206897 | DK5: =IFERROR(VLOOKUP($A5,'2005'!$C$3:$M$205,8,FALSE),0) -> 66 | DL5: =IFERROR(VLOOKUP($A5,'2005'!$C$3:$M$205,9,FALSE),0) -> 55 | DM5: =IFERROR(VLOOKUP($A5,'2005'!$C$3:$M$205,10,FALSE),0) -> 23 | DN5: =IFERROR(VLOOKUP($A5,'2005'!$C$3:$M$205,11,FALSE),0) -> 0.8333333333 | DO5: =IFERROR(VLOOKUP($A5,'2004'!$C$3:$M$213,8,FALSE),0) -> 62 | DP5: =IFERROR(VLOOKUP($A5,'2004'!$C$3:$M$213,9,FALSE),0) -> 45 | DQ5: =IFERROR(VLOOKUP($A5,'2004'!$C$3:$M$213,10,FALSE),0) -> 6 | DR5: =IFERROR(VLOOKUP($A5,'2004'!$C$3:$M$213,11,FALSE),0) -> 0.7258064516 | DS5: =IFERROR(VLOOKUP($A5,'2003'!$C$3:$Q$214,12,FALSE),0) -> 73 | DT5: =IFERROR(VLOOKUP($A5,'2003'!$C$3:$Q$214,13,FALSE),0) -> 57 | DU5: =IFERROR(VLOOKUP($A5,'2003'!$C$3:$Q$214,14,FALSE),0) -> 19 | DV5: =IFERROR(VLOOKUP($A5,'2003'!$C$3:$Q$214,15,FALSE),0) -> 0.7808219178 | DW5: =IFERROR(VLOOKUP($A5,'2002'!$D$3:$R$214,12,FALSE),0) -> 70 | DX5: =IFERROR(VLOOKUP($A5,'2002'!$D$3:$R$214,13,FALSE),0) -> 47 | DY5: =IFERROR(VLOOKUP($A5,'2002'!$D$3:$R$214,14,FALSE),0) -> 13 | DZ5: =IFERROR(VLOOKUP($A5,'2002'!$D$3:$R$214,15,FALSE),0) -> 0.6714285714 | EA5: =IFERROR(VLOOKUP($A5,'Pre 2002'!$C$3:$CK$382,84,FALSE),0) -> 4 | EB5: =IFERROR(VLOOKUP($A5,'Pre 2002'!$C$3:$CK$382,85,FALSE),0) -> 2 | EC5: =IFERROR(VLOOKUP($A5,'Pre 2002'!$C$3:$CK$382,86,FALSE),0) -> 0 | ED5: =IFERROR(VLOOKUP($A5,'Pre 2002'!$C$3:$CK$382,87,FALSE),0) -> 0.5 | EE5: =IFERROR(VLOOKUP(A5,'Pre 2002'!$C$3:$CG$382,83,FALSE),0) -> 1
A6: Jason Ford | B6: =SUM(O6,T6,Y6,AD6,AI6,AN6,AS6,AX6,BC6,BH6,BM6,BR6,BZ6,CH6,CM6,CR6,CW6,DB6,DG6,DK6,DO6,DS6,DW6,EA6) -> 785 | C6: =SUM(Q6,V6,AA6,AF6,AK6,AP6,AU6,AZ6,BE6,BJ6,BO6,BT6,CB6,CJ6,CO6,CT6,CY6,DD6,DH6,DL6,DP6,DT6,DX6,EB6) -> 622 | D6: =SUM(R6,W6,AB6,AG6,AL6,AQ6,AV6,BA6,BF6,BK6,BP6,BU6,CC6,CK6,CP6,CU6,CZ6,DE6,DI6,DM6,DQ6,DU6,DY6,EC6) -> 202 | E6: =IF(B6=0,0,C6/B6) -> 0.7923566879 | F6: =IF(O6>0,1,0)+IF(T6>0,1,0)+IF(Y6>0,1,0)+IF(AD6>0,1,0)+IF(AI6>0,1,0)+IF(AN6>0,1,0)+IF(AS6>0,1,0)+IF(AX6>0,1,0)+IF(BC6>0,1,0)+IF(BH6>0,1,0)+IF(BM6>0,1,0)+IF(BR6>0,1,0)+IF(BZ6>0,1,0)+IF(CH6>0,1,0)+IF(CM6>0,1,0)+IF(CR6>0,1,0)+IF(CW6>0,1,0)+IF(DB6>0,1,0)+IF(DG6>0,1,0)+IF(DK6>0,1,0)+IF(DO6>0,1,0)+IF(DS6>0,1,0)+IF(DW6>0,1,0)+EE6 -> 11 | G6: 2014 | H6: =IF(BM6>0,1,0)+IF(BR6>0,1,0)+IF(BZ6>0,1,0)+IF(CH6>0,1,0)+IF(CM6>0,1,0)+IF(CR6>0,1,0)+IF(CW6>0,1,0)+IF(DB6>0,1,0)+IF(DG6>0,1,0)+IF(DK6>0,1,0)+IF(DO6>0,1,0)+IF(DS6>0,1,0)+IF(DW6>0,1,0)+EE6 -> 1 | I6: =SUM(BM6,BR6,BZ6,CH6,CM6,CR6,CW6,DB6,DG6,DK6,DO6,DS6,DW6,EA6) -> 72 | J6: =SUM(BO6,BT6,CB6,CJ6,CO6,CT6,CY6,DD6,DH6,DL6,DP6,DT6,DX6,EB6) -> 50 | K6: =SUM(BP6,BU6,CC6,CK6,CP6,CU6,CZ6,DE6,DI6,DM6,DQ6,DU6,DY6,EC6) -> 15 | L6: =IF(I6=0,0,J6/I6) -> 0.6944444444 | M6: 14 | N6: 0 | O6: =IFERROR(VLOOKUP($A6,'2024'!$A$2:$M$220,6,FALSE),0) -> 55 | P6: =IFERROR(VLOOKUP($A6,'2024'!$A$2:$M$220,7,FALSE),0) -> 45 | Q6: =IFERROR(VLOOKUP($A6,'2024'!$A$2:$M$220,8,FALSE),0) -> 41 | R6: =IFERROR(VLOOKUP($A6,'2024'!$A$2:$M$220,11,FALSE),0) -> 17 | S6: =IFERROR(VLOOKUP($A6,'2024'!$A$2:$M$220,13,FALSE),0) -> 0.745 | T6: =IFERROR(VLOOKUP($A6,'2023'!$A$2:$M$170,6,FALSE),0) -> 70 | U6: =IFERROR(VLOOKUP($A6,'2023'!$A$2:$M$170,7,FALSE),0) -> 49 | V6: =IFERROR(VLOOKUP($A6,'2023'!$A$2:$M$170,8,FALSE),0) -> 60 | W6: =IFERROR(VLOOKUP($A6,'2023'!$A$2:$M$170,11,FALSE),0) -> 17 | X6: =IFERROR(VLOOKUP($A6,'2023'!$A$2:$M$170,13,FALSE),0) -> 0.857 | Y6: =IFERROR(VLOOKUP($A6,'2022'!$B$2:$K$174,3,FALSE),0) -> 69 | Z6: =IFERROR(VLOOKUP($A6,'2022'!$B$2:$K$174,4,FALSE),0) -> 53 | AA6: =IFERROR(VLOOKUP($A6,'2022'!$B$2:$K$174,5,FALSE),0) -> 51 | AB6: =IFERROR(VLOOKUP($A6,'2022'!$B$2:$K$174,8,FALSE),0) -> 12 | AC6: =IFERROR(VLOOKUP($A6,'2022'!$B$2:$K$174,10,FALSE),0) -> 0.739 | AD6: =IFERROR(VLOOKUP($A6,'2021'!$B$2:$K$174,3,FALSE),0) -> 64 | AE6: =IFERROR(VLOOKUP($A6,'2021'!$B$2:$K$174,4,FALSE),0) -> 52 | AF6: =IFERROR(VLOOKUP($A6,'2021'!$B$2:$K$174,5,FALSE),0) -> 51 | AG6: =IFERROR(VLOOKUP($A6,'2021'!$B$2:$K$174,8,FALSE),0) -> 21 | AH6: =IFERROR(VLOOKUP($A6,'2021'!$B$2:$K$174,10,FALSE),0) -> 0.797 | AI6: =IFERROR(VLOOKUP($A6,'2020'!$B$2:$K$170,3,FALSE),0) -> 79 | AJ6: =IFERROR(VLOOKUP($A6,'2020'!$B$2:$K$170,4,FALSE),0) -> 72 | AK6: =IFERROR(VLOOKUP($A6,'2020'!$B$2:$K$170,5,FALSE),0) -> 66 | AL6: =IFERROR(VLOOKUP($A6,'2020'!$B$2:$K$170,8,FALSE),0) -> 25 | AM6: =IFERROR(VLOOKUP($A6,'2020'!$B$2:$K$170,10,FALSE),0) -> 0.835 | AN6: =IFERROR(VLOOKUP($A6,'2019'!$B$2:$K$170,3,FALSE),0) -> 77 | AO6: =IFERROR(VLOOKUP($A6,'2019'!$B$2:$K$170,4,FALSE),0) -> 51 | AP6: =IFERROR(VLOOKUP($A6,'2019'!$B$2:$K$170,5,FALSE),0) -> 65 | AQ6: =IFERROR(VLOOKUP($A6,'2019'!$B$2:$K$170,8,FALSE),0) -> 17 | AR6: =IFERROR(VLOOKUP($A6,'2019'!$B$2:$K$170,10,FALSE),0) -> 0.844 | AS6: =IFERROR(VLOOKUP($A6,'2018'!$B$2:$K$170,3,FALSE),0) -> 76 | AT6: =IFERROR(VLOOKUP($A6,'2018'!$B$2:$K$170,4,FALSE),0) -> 59 | AU6: =IFERROR(VLOOKUP($A6,'2018'!$B$2:$K$170,5,FALSE),0) -> 64 | AV6: =IFERROR(VLOOKUP($A6,'2018'!$B$2:$K$170,8,FALSE),0) -> 19 | AW6: =IFERROR(VLOOKUP($A6,'2018'!$B$2:$K$170,10,FALSE),0) -> 0.842 | AX6: =IFERROR(VLOOKUP($A6,'2017'!$B$2:$J$163,2,FALSE),0) -> 76 | AY6: =IFERROR(VLOOKUP($A6,'2017'!$B$2:$J$163,3,FALSE),0) -> 53 | AZ6: =IFERROR(VLOOKUP($A6,'2017'!$B$2:$J$163,4,FALSE),0) -> 59 | BA6: =IFERROR(VLOOKUP($A6,'2017'!$B$2:$J$163,7,FALSE),0) -> 19 | BB6: =IFERROR(VLOOKUP($A6,'2017'!$B$2:$J$163,9,FALSE),0) -> 0.7763157895 | BC6: =IFERROR(VLOOKUP($A6,'2016'!$B$2:$K$165,3,FALSE),0) -> 80 | BD6: =IFERROR(VLOOKUP($A6,'2016'!$B$2:$K$165,4,FALSE),0) -> 61 | BE6: =IFERROR(VLOOKUP($A6,'2016'!$B$2:$K$165,5,FALSE),0) -> 64 | BF6: =IFERROR(VLOOKUP($A6,'2016'!$B$2:$K$165,8,FALSE),0) -> 21 | BG6: =IFERROR(VLOOKUP($A6,'2016'!$B$2:$K$165,10,FALSE),0) -> 0.8 | BH6: =IFERROR(VLOOKUP($A6,'2015'!$B$2:$K$165,3,FALSE),0) -> 67 | BI6: =IFERROR(VLOOKUP($A6,'2015'!$B$2:$K$165,4,FALSE),0) -> 57 | BJ6: =IFERROR(VLOOKUP($A6,'2015'!$B$2:$K$165,5,FALSE),0) -> 51 | BK6: =IFERROR(VLOOKUP($A6,'2015'!$B$2:$K$165,8,FALSE),0) -> 19 | BL6: =IFERROR(VLOOKUP($A6,'2015'!$B$2:$K$165,10,FALSE),0) -> 0.7611940299 | BM6: =IFERROR(VLOOKUP($A6,'2014'!$B$2:$K$157,3,FALSE),0) -> 72 | BN6: =IFERROR(VLOOKUP($A6,'2014'!$B$2:$K$157,4,FALSE),0) -> 46 | BO6: =IFERROR(VLOOKUP($A6,'2014'!$B$2:$K$157,5,FALSE),0) -> 50 | BP6: =IFERROR(VLOOKUP($A6,'2014'!$B$2:$K$157,8,FALSE),0) -> 15 | BQ6: =IFERROR(VLOOKUP($A6,'2014'!$B$2:$K$157,10,FALSE),0) -> 0.6944444444 | BR6: =IFERROR(VLOOKUP($A6,'2013'!$D$4:$I$249,2,FALSE),0) -> 0 | BS6: =IFERROR(VLOOKUP($A6,'2013'!$D$4:$I$249,3,FALSE),0) -> 0 | BT6: =IFERROR(VLOOKUP($A6,'2013'!$D$4:$I$249,4,FALSE),0) -> 0 | BU6: =IFERROR(VLOOKUP($A6,'2013'!$D$4:$I$249,5,FALSE),0) -> 0 | BV6: =IFERROR(VLOOKUP($A6,'2013'!$D$4:$I$249,6,FALSE),0) -> 0 | BW6: =IFERROR(VLOOKUP($A6,'2012'!$D$3:$O$172,2,FALSE),0) -> 0 | BX6: =IFERROR(VLOOKUP($A6,'2012'!$D$3:$O$172,3,FALSE),0) -> 0 | BY6: =IFERROR(VLOOKUP($A6,'2012'!$D$3:$O$172,4,FALSE),0) -> 0 | BZ6: =IFERROR(VLOOKUP($A6,'2012'!$D$3:$O$172,5,FALSE),0) -> 0 | CA6: =IFERROR(VLOOKUP($A6,'2012'!$D$3:$O$172,6,FALSE),0) -> 0 | CB6: =IFERROR(VLOOKUP($A6,'2012'!$D$3:$O$172,7,FALSE),0) -> 0 | CC6: =IFERROR(VLOOKUP($A6,'2012'!$D$3:$O$172,8,FALSE),0) -> 0 | CD6: =IFERROR(VLOOKUP($A6,'2012'!$D$3:$O$172,9,FALSE),0) -> 0 | CE6: =IFERROR(VLOOKUP($A6,'2012'!$D$3:$O$172,10,FALSE),0) -> 0 | CF6: =IFERROR(VLOOKUP($A6,'2012'!$D$3:$O$172,11,FALSE),0) -> 0 | CG6: =IFERROR(VLOOKUP($A6,'2012'!$D$3:$O$172,12,FALSE),0) -> 0 | CH6: =IFERROR(VLOOKUP($A6,'2011'!$D$4:$I$251,2,FALSE),0) -> 0 | CI6: =IFERROR(VLOOKUP($A6,'2011'!$D$4:$I$251,3,FALSE),0) -> 0 | CJ6: =IFERROR(VLOOKUP($A6,'2011'!$D$4:$I$251,4,FALSE),0) -> 0 | CK6: =IFERROR(VLOOKUP($A6,'2011'!$D$4:$I$251,5,FALSE),0) -> 0 | CL6: =IFERROR(VLOOKUP($A6,'2011'!$D$4:$I$251,6,FALSE),0) -> 0 | CM6: =IFERROR(VLOOKUP($A6,'2010'!$C$3:$H$234,2,FALSE),0) -> 0 | CN6: =IFERROR(VLOOKUP($A6,'2010'!$C$3:$H$234,3,FALSE),0) -> 0 | CO6: =IFERROR(VLOOKUP($A6,'2010'!$C$3:$H$234,4,FALSE),0) -> 0 | CP6: =IFERROR(VLOOKUP($A6,'2010'!$C$3:$H$234,5,FALSE),0) -> 0 | CQ6: =IFERROR(VLOOKUP($A6,'2010'!$C$3:$H$234,6,FALSE),0) -> 0 | CR6: =IFERROR(VLOOKUP($A6,'2009'!$C$3:$H$242,2,FALSE),0) -> 0 | CS6: =IFERROR(VLOOKUP($A6,'2009'!$C$3:$H$242,3,FALSE),0) -> 0 | CT6: =IFERROR(VLOOKUP($A6,'2009'!$C$3:$H$242,4,FALSE),0) -> 0 | CU6: =IFERROR(VLOOKUP($A6,'2009'!$C$3:$H$242,5,FALSE),0) -> 0 | CV6: =IFERROR(VLOOKUP($A6,'2009'!$C$3:$H$242,6,FALSE),0) -> 0 | CW6: =IFERROR(VLOOKUP($A6,'2008'!$C$3:$H$229,2,FALSE),0) -> 0 | CX6: =IFERROR(VLOOKUP($A6,'2008'!$C$3:$H$229,3,FALSE),0) -> 0 | CY6: =IFERROR(VLOOKUP($A6,'2008'!$C$3:$H$229,4,FALSE),0) -> 0 | CZ6: =IFERROR(VLOOKUP($A6,'2008'!$C$3:$H$229,5,FALSE),0) -> 0 | DA6: =IFERROR(VLOOKUP($A6,'2008'!$C$3:$H$229,6,FALSE),0) -> 0 | DB6: =IFERROR(VLOOKUP($A6,'2007'!$C$3:$M$238,7,FALSE),0) -> 0 | DC6: =IFERROR(VLOOKUP($A6,'2007'!$C$3:$M$238,8,FALSE),0) -> 0 | DD6: =IFERROR(VLOOKUP($A6,'2007'!$C$3:$M$238,9,FALSE),0) -> 0 | DE6: =IFERROR(VLOOKUP($A6,'2007'!$C$3:$M$238,10,FALSE),0) -> 0 | DF6: =IFERROR(VLOOKUP($A6,'2007'!$C$3:$M$238,11,FALSE),0) -> 0 | DG6: =IFERROR(VLOOKUP($A6,'2006'!$A$2:$F$200,2,FALSE),0) -> 0 | DH6: =IFERROR(VLOOKUP($A6,'2006'!$A$2:$F$200,4,FALSE),0) -> 0 | DI6: =IFERROR(VLOOKUP($A6,'2006'!$A$2:$F$200,5,FALSE),0) -> 0 | DJ6: =IFERROR(VLOOKUP($A6,'2006'!$A$2:$F$200,6,FALSE),0) -> 0 | DK6: =IFERROR(VLOOKUP($A6,'2005'!$C$3:$M$205,8,FALSE),0) -> 0 | DL6: =IFERROR(VLOOKUP($A6,'2005'!$C$3:$M$205,9,FALSE),0) -> 0 | DM6: =IFERROR(VLOOKUP($A6,'2005'!$C$3:$M$205,10,FALSE),0) -> 0 | DN6: =IFERROR(VLOOKUP($A6,'2005'!$C$3:$M$205,11,FALSE),0) -> 0 | DO6: =IFERROR(VLOOKUP($A6,'2004'!$C$3:$M$213,8,FALSE),0) -> 0 | DP6: =IFERROR(VLOOKUP($A6,'2004'!$C$3:$M$213,9,FALSE),0) -> 0 | DQ6: =IFERROR(VLOOKUP($A6,'2004'!$C$3:$M$213,10,FALSE),0) -> 0 | DR6: =IFERROR(VLOOKUP($A6,'2004'!$C$3:$M$213,11,FALSE),0) -> 0 | DS6: =IFERROR(VLOOKUP($A6,'2003'!$C$3:$Q$214,12,FALSE),0) -> 0 | DT6: =IFERROR(VLOOKUP($A6,'2003'!$C$3:$Q$214,13,FALSE),0) -> 0 | DU6: =IFERROR(VLOOKUP($A6,'2003'!$C$3:$Q$214,14,FALSE),0) -> 0 | DV6: =IFERROR(VLOOKUP($A6,'2003'!$C$3:$Q$214,15,FALSE),0) -> 0 | DW6: =IFERROR(VLOOKUP($A6,'2002'!$D$3:$R$214,12,FALSE),0) -> 0 | DX6: =IFERROR(VLOOKUP($A6,'2002'!$D$3:$R$214,13,FALSE),0) -> 0 | DY6: =IFERROR(VLOOKUP($A6,'2002'!$D$3:$R$214,14,FALSE),0) -> 0 | DZ6: =IFERROR(VLOOKUP($A6,'2002'!$D$3:$R$214,15,FALSE),0) -> 0 | EA6: =IFERROR(VLOOKUP($A6,'Pre 2002'!$C$3:$CK$382,84,FALSE),0) -> 0 | EB6: =IFERROR(VLOOKUP($A6,'Pre 2002'!$C$3:$CK$382,85,FALSE),0) -> 0 | EC6: =IFERROR(VLOOKUP($A6,'Pre 2002'!$C$3:$CK$382,86,FALSE),0) -> 0 | ED6: =IFERROR(VLOOKUP($A6,'Pre 2002'!$C$3:$CK$382,87,FALSE),0) -> 0 | EE6: =IFERROR(VLOOKUP(A6,'Pre 2002'!$C$3:$CG$382,83,FALSE),0) -> 0
A7: Bobby Sanchez | B7: =SUM(O7,T7,Y7,AD7,AI7,AN7,AS7,AX7,BC7,BH7,BM7,BR7,BZ7,CH7,CM7,CR7,CW7,DB7,DG7,DK7,DO7,DS7,DW7,EA7) -> 1660 | C7: =SUM(Q7,V7,AA7,AF7,AK7,AP7,AU7,AZ7,BE7,BJ7,BO7,BT7,CB7,CJ7,CO7,CT7,CY7,DD7,DH7,DL7,DP7,DT7,DX7,EB7) -> 1067 | D7: =SUM(R7,W7,AB7,AG7,AL7,AQ7,AV7,BA7,BF7,BK7,BP7,BU7,CC7,CK7,CP7,CU7,CZ7,DE7,DI7,DM7,DQ7,DU7,DY7,EC7) -> 202 | E7: =IF(B7=0,0,C7/B7) -> 0.6427710843 | F7: =IF(O7>0,1,0)+IF(T7>0,1,0)+IF(Y7>0,1,0)+IF(AD7>0,1,0)+IF(AI7>0,1,0)+IF(AN7>0,1,0)+IF(AS7>0,1,0)+IF(AX7>0,1,0)+IF(BC7>0,1,0)+IF(BH7>0,1,0)+IF(BM7>0,1,0)+IF(BR7>0,1,0)+IF(BZ7>0,1,0)+IF(CH7>0,1,0)+IF(CM7>0,1,0)+IF(CR7>0,1,0)+IF(CW7>0,1,0)+IF(DB7>0,1,0)+IF(DG7>0,1,0)+IF(DK7>0,1,0)+IF(DO7>0,1,0)+IF(DS7>0,1,0)+IF(DW7>0,1,0)+EE7 -> 25 | G7: 1999 | H7: =IF(BM7>0,1,0)+IF(BR7>0,1,0)+IF(BZ7>0,1,0)+IF(CH7>0,1,0)+IF(CM7>0,1,0)+IF(CR7>0,1,0)+IF(CW7>0,1,0)+IF(DB7>0,1,0)+IF(DG7>0,1,0)+IF(DK7>0,1,0)+IF(DO7>0,1,0)+IF(DS7>0,1,0)+IF(DW7>0,1,0)+EE7 -> 16 | I7: =SUM(BM7,BR7,BZ7,CH7,CM7,CR7,CW7,DB7,DG7,DK7,DO7,DS7,DW7,EA7) -> 1083 | J7: =SUM(BO7,BT7,CB7,CJ7,CO7,CT7,CY7,DD7,DH7,DL7,DP7,DT7,DX7,EB7) -> 725 | K7: =SUM(BP7,BU7,CC7,CK7,CP7,CU7,CZ7,DE7,DI7,DM7,DQ7,DU7,DY7,EC7) -> 161 | L7: =IF(I7=0,0,J7/I7) -> 0.6694367498 | M7: 99 | N7: 5 | O7: =IFERROR(VLOOKUP($A7,'2024'!$A$2:$M$220,6,FALSE),0) -> 0 | P7: =IFERROR(VLOOKUP($A7,'2024'!$A$2:$M$220,7,FALSE),0) -> 0 | Q7: =IFERROR(VLOOKUP($A7,'2024'!$A$2:$M$220,8,FALSE),0) -> 0 | R7: =IFERROR(VLOOKUP($A7,'2024'!$A$2:$M$220,11,FALSE),0) -> 0 | S7: =IFERROR(VLOOKUP($A7,'2024'!$A$2:$M$220,13,FALSE),0) -> 0 | T7: =IFERROR(VLOOKUP($A7,'2023'!$A$2:$M$170,6,FALSE),0) -> 77 | U7: =IFERROR(VLOOKUP($A7,'2023'!$A$2:$M$170,7,FALSE),0) -> 31 | V7: =IFERROR(VLOOKUP($A7,'2023'!$A$2:$M$170,8,FALSE),0) -> 48 | W7: =IFERROR(VLOOKUP($A7,'2023'!$A$2:$M$170,11,FALSE),0) -> 0 | X7: =IFERROR(VLOOKUP($A7,'2023'!$A$2:$M$170,13,FALSE),0) -> 0.623 | Y7: =IFERROR(VLOOKUP($A7,'2022'!$B$2:$K$174,3,FALSE),0) -> 87 | Z7: =IFERROR(VLOOKUP($A7,'2022'!$B$2:$K$174,4,FALSE),0) -> 46 | AA7: =IFERROR(VLOOKUP($A7,'2022'!$B$2:$K$174,5,FALSE),0) -> 56 | AB7: =IFERROR(VLOOKUP($A7,'2022'!$B$2:$K$174,8,FALSE),0) -> 3 | AC7: =IFERROR(VLOOKUP($A7,'2022'!$B$2:$K$174,10,FALSE),0) -> 0.644 | AD7: =IFERROR(VLOOKUP($A7,'2021'!$B$2:$K$174,3,FALSE),0) -> 49 | AE7: =IFERROR(VLOOKUP($A7,'2021'!$B$2:$K$174,4,FALSE),0) -> 14 | AF7: =IFERROR(VLOOKUP($A7,'2021'!$B$2:$K$174,5,FALSE),0) -> 28 | AG7: =IFERROR(VLOOKUP($A7,'2021'!$B$2:$K$174,8,FALSE),0) -> 1 | AH7: =IFERROR(VLOOKUP($A7,'2021'!$B$2:$K$174,10,FALSE),0) -> 0.571 | AI7: =IFERROR(VLOOKUP($A7,'2020'!$B$2:$K$170,3,FALSE),0) -> 79 | AJ7: =IFERROR(VLOOKUP($A7,'2020'!$B$2:$K$170,4,FALSE),0) -> 29 | AK7: =IFERROR(VLOOKUP($A7,'2020'!$B$2:$K$170,5,FALSE),0) -> 50 | AL7: =IFERROR(VLOOKUP($A7,'2020'!$B$2:$K$170,8,FALSE),0) -> 7 | AM7: =IFERROR(VLOOKUP($A7,'2020'!$B$2:$K$170,10,FALSE),0) -> 0.633 | AN7: =IFERROR(VLOOKUP($A7,'2019'!$B$2:$K$170,3,FALSE),0) -> 76 | AO7: =IFERROR(VLOOKUP($A7,'2019'!$B$2:$K$170,4,FALSE),0) -> 25 | AP7: =IFERROR(VLOOKUP($A7,'2019'!$B$2:$K$170,5,FALSE),0) -> 35 | AQ7: =IFERROR(VLOOKUP($A7,'2019'!$B$2:$K$170,8,FALSE),0) -> 9 | AR7: =IFERROR(VLOOKUP($A7,'2019'!$B$2:$K$170,10,FALSE),0) -> 0.461 | AS7: =IFERROR(VLOOKUP($A7,'2018'!$B$2:$K$170,3,FALSE),0) -> 11 | AT7: =IFERROR(VLOOKUP($A7,'2018'!$B$2:$K$170,4,FALSE),0) -> 5 | AU7: =IFERROR(VLOOKUP($A7,'2018'!$B$2:$K$170,5,FALSE),0) -> 7 | AV7: =IFERROR(VLOOKUP($A7,'2018'!$B$2:$K$170,8,FALSE),0) -> 0 | AW7: =IFERROR(VLOOKUP($A7,'2018'!$B$2:$K$170,10,FALSE),0) -> 0.636 | AX7: =IFERROR(VLOOKUP($A7,'2017'!$B$2:$J$163,2,FALSE),0) -> 41 | AY7: =IFERROR(VLOOKUP($A7,'2017'!$B$2:$J$163,3,FALSE),0) -> 15 | AZ7: =IFERROR(VLOOKUP($A7,'2017'!$B$2:$J$163,4,FALSE),0) -> 24 | BA7: =IFERROR(VLOOKUP($A7,'2017'!$B$2:$J$163,7,FALSE),0) -> 4 | BB7: =IFERROR(VLOOKUP($A7,'2017'!$B$2:$J$163,9,FALSE),0) -> 0.5853658537 | BC7: =IFERROR(VLOOKUP($A7,'2016'!$B$2:$K$165,3,FALSE),0) -> 77 | BD7: =IFERROR(VLOOKUP($A7,'2016'!$B$2:$K$165,4,FALSE),0) -> 39 | BE7: =IFERROR(VLOOKUP($A7,'2016'!$B$2:$K$165,5,FALSE),0) -> 47 | BF7: =IFERROR(VLOOKUP($A7,'2016'!$B$2:$K$165,8,FALSE),0) -> 11 | BG7: =IFERROR(VLOOKUP($A7,'2016'!$B$2:$K$165,10,FALSE),0) -> 0.61 | BH7: =IFERROR(VLOOKUP($A7,'2015'!$B$2:$K$165,3,FALSE),0) -> 80 | BI7: =IFERROR(VLOOKUP($A7,'2015'!$B$2:$K$165,4,FALSE),0) -> 29 | BJ7: =IFERROR(VLOOKUP($A7,'2015'!$B$2:$K$165,5,FALSE),0) -> 47 | BK7: =IFERROR(VLOOKUP($A7,'2015'!$B$2:$K$165,8,FALSE),0) -> 6 | BL7: =IFERROR(VLOOKUP($A7,'2015'!$B$2:$K$165,10,FALSE),0) -> 0.5875 | BM7: =IFERROR(VLOOKUP($A7,'2014'!$B$2:$K$157,3,FALSE),0) -> 61 | BN7: =IFERROR(VLOOKUP($A7,'2014'!$B$2:$K$157,4,FALSE),0) -> 25 | BO7: =IFERROR(VLOOKUP($A7,'2014'!$B$2:$K$157,5,FALSE),0) -> 38 | BP7: =IFERROR(VLOOKUP($A7,'2014'!$B$2:$K$157,8,FALSE),0) -> 9 | BQ7: =IFERROR(VLOOKUP($A7,'2014'!$B$2:$K$157,10,FALSE),0) -> 0.6229508197 | BR7: =IFERROR(VLOOKUP($A7,'2013'!$D$4:$I$249,2,FALSE),0) -> 43 | BS7: =IFERROR(VLOOKUP($A7,'2013'!$D$4:$I$249,3,FALSE),0) -> 36 | BT7: =IFERROR(VLOOKUP($A7,'2013'!$D$4:$I$249,4,FALSE),0) -> 34 | BU7: =IFERROR(VLOOKUP($A7,'2013'!$D$4:$I$249,5,FALSE),0) -> 11 | BV7: =IFERROR(VLOOKUP($A7,'2013'!$D$4:$I$249,6,FALSE),0) -> 0.7906976744 | BW7: =IFERROR(VLOOKUP($A7,'2012'!$D$3:$O$172,2,FALSE),0) -> 979 | BX7: =IFERROR(VLOOKUP($A7,'2012'!$D$3:$O$172,3,FALSE),0) -> 653 | BY7: =IFERROR(VLOOKUP($A7,'2012'!$D$3:$O$172,4,FALSE),0) -> 141 | BZ7: =IFERROR(VLOOKUP($A7,'2012'!$D$3:$O$172,5,FALSE),0) -> 72 | CA7: =IFERROR(VLOOKUP($A7,'2012'!$D$3:$O$172,6,FALSE),0) -> 43 | CB7: =IFERROR(VLOOKUP($A7,'2012'!$D$3:$O$172,7,FALSE),0) -> 52 | CC7: =IFERROR(VLOOKUP($A7,'2012'!$D$3:$O$172,8,FALSE),0) -> 8 | CD7: =IFERROR(VLOOKUP($A7,'2012'!$D$3:$O$172,9,FALSE),0) -> 0.7222222222 | CE7: =IFERROR(VLOOKUP($A7,'2012'!$D$3:$O$172,10,FALSE),0) -> 907 | CF7: =IFERROR(VLOOKUP($A7,'2012'!$D$3:$O$172,11,FALSE),0) -> 601 | CG7: =IFERROR(VLOOKUP($A7,'2012'!$D$3:$O$172,12,FALSE),0) -> 133 | CH7: =IFERROR(VLOOKUP($A7,'2011'!$D$4:$I$251,2,FALSE),0) -> 83 | CI7: =IFERROR(VLOOKUP($A7,'2011'!$D$4:$I$251,3,FALSE),0) -> 53 | CJ7: =IFERROR(VLOOKUP($A7,'2011'!$D$4:$I$251,4,FALSE),0) -> 67 | CK7: =IFERROR(VLOOKUP($A7,'2011'!$D$4:$I$251,5,FALSE),0) -> 17 | CL7: =IFERROR(VLOOKUP($A7,'2011'!$D$4:$I$251,6,FALSE),0) -> 0.8072289157 | CM7: =IFERROR(VLOOKUP($A7,'2010'!$C$3:$H$234,2,FALSE),0) -> 75 | CN7: =IFERROR(VLOOKUP($A7,'2010'!$C$3:$H$234,3,FALSE),0) -> 43 | CO7: =IFERROR(VLOOKUP($A7,'2010'!$C$3:$H$234,4,FALSE),0) -> 51 | CP7: =IFERROR(VLOOKUP($A7,'2010'!$C$3:$H$234,5,FALSE),0) -> 11 | CQ7: =IFERROR(VLOOKUP($A7,'2010'!$C$3:$H$234,6,FALSE),0) -> 0.68 | CR7: =IFERROR(VLOOKUP($A7,'2009'!$C$3:$H$242,2,FALSE),0) -> 81 | CS7: =IFERROR(VLOOKUP($A7,'2009'!$C$3:$H$242,3,FALSE),0) -> 39 | CT7: =IFERROR(VLOOKUP($A7,'2009'!$C$3:$H$242,4,FALSE),0) -> 47 | CU7: =IFERROR(VLOOKUP($A7,'2009'!$C$3:$H$242,5,FALSE),0) -> 12 | CV7: =IFERROR(VLOOKUP($A7,'2009'!$C$3:$H$242,6,FALSE),0) -> 0.5802469136 | CW7: =IFERROR(VLOOKUP($A7,'2008'!$C$3:$H$229,2,FALSE),0) -> 85 | CX7: =IFERROR(VLOOKUP($A7,'2008'!$C$3:$H$229,3,FALSE),0) -> 53 | CY7: =IFERROR(VLOOKUP($A7,'2008'!$C$3:$H$229,4,FALSE),0) -> 63 | CZ7: =IFERROR(VLOOKUP($A7,'2008'!$C$3:$H$229,5,FALSE),0) -> 12 | DA7: =IFERROR(VLOOKUP($A7,'2008'!$C$3:$H$229,6,FALSE),0) -> 0.7411764706 | DB7: =IFERROR(VLOOKUP($A7,'2007'!$C$3:$M$238,7,FALSE),0) -> 69 | DC7: =IFERROR(VLOOKUP($A7,'2007'!$C$3:$M$238,8,FALSE),0) -> 22 | DD7: =IFERROR(VLOOKUP($A7,'2007'!$C$3:$M$238,9,FALSE),0) -> 41 | DE7: =IFERROR(VLOOKUP($A7,'2007'!$C$3:$M$238,10,FALSE),0) -> 3 | DF7: =IFERROR(VLOOKUP($A7,'2007'!$C$3:$M$238,11,FALSE),0) -> 0.5942028986 | DG7: =IFERROR(VLOOKUP($A7,'2006'!$A$2:$F$200,2,FALSE),0) -> 79 | DH7: =IFERROR(VLOOKUP($A7,'2006'!$A$2:$F$200,4,FALSE),0) -> 51 | DI7: =IFERROR(VLOOKUP($A7,'2006'!$A$2:$F$200,5,FALSE),0) -> 10 | DJ7: =IFERROR(VLOOKUP($A7,'2006'!$A$2:$F$200,6,FALSE),0) -> 0.6455696203 | DK7: =IFERROR(VLOOKUP($A7,'2005'!$C$3:$M$205,8,FALSE),0) -> 0 | DL7: =IFERROR(VLOOKUP($A7,'2005'!$C$3:$M$205,9,FALSE),0) -> 0 | DM7: =IFERROR(VLOOKUP($A7,'2005'!$C$3:$M$205,10,FALSE),0) -> 0 | DN7: =IFERROR(VLOOKUP($A7,'2005'!$C$3:$M$205,11,FALSE),0) -> 0 | DO7: =IFERROR(VLOOKUP($A7,'2004'!$C$3:$M$213,8,FALSE),0) -> 70 | DP7: =IFERROR(VLOOKUP($A7,'2004'!$C$3:$M$213,9,FALSE),0) -> 60 | DQ7: =IFERROR(VLOOKUP($A7,'2004'!$C$3:$M$213,10,FALSE),0) -> 14 | DR7: =IFERROR(VLOOKUP($A7,'2004'!$C$3:$M$213,11,FALSE),0) -> 0.8571428571 | DS7: =IFERROR(VLOOKUP($A7,'2003'!$C$3:$Q$214,12,FALSE),0) -> 71 | DT7: =IFERROR(VLOOKUP($A7,'2003'!$C$3:$Q$214,13,FALSE),0) -> 48 | DU7: =IFERROR(VLOOKUP($A7,'2003'!$C$3:$Q$214,14,FALSE),0) -> 8 | DV7: =IFERROR(VLOOKUP($A7,'2003'!$C$3:$Q$214,15,FALSE),0) -> 0.676056338 | DW7: =IFERROR(VLOOKUP($A7,'2002'!$D$3:$R$214,12,FALSE),0) -> 61 | DX7: =IFERROR(VLOOKUP($A7,'2002'!$D$3:$R$214,13,FALSE),0) -> 33 | DY7: =IFERROR(VLOOKUP($A7,'2002'!$D$3:$R$214,14,FALSE),0) -> 11 | DZ7: =IFERROR(VLOOKUP($A7,'2002'!$D$3:$R$214,15,FALSE),0) -> 0.5409836066 | EA7: =IFERROR(VLOOKUP($A7,'Pre 2002'!$C$3:$CK$382,84,FALSE),0) -> 233 | EB7: =IFERROR(VLOOKUP($A7,'Pre 2002'!$C$3:$CK$382,85,FALSE),0) -> 140 | EC7: =IFERROR(VLOOKUP($A7,'Pre 2002'!$C$3:$CK$382,86,FALSE),0) -> 35 | ED7: =IFERROR(VLOOKUP($A7,'Pre 2002'!$C$3:$CK$382,87,FALSE),0) -> 0.6008583691 | EE7: =IFERROR(VLOOKUP(A7,'Pre 2002'!$C$3:$CG$382,83,FALSE),0) -> 4
A8: Josh Greer | B8: =SUM(O8,T8,Y8,AD8,AI8,AN8,AS8,AX8,BC8,BH8,BM8,BR8,BZ8,CH8,CM8,CR8,CW8,DB8,DG8,DK8,DO8,DS8,DW8,EA8) -> 726 | C8: =SUM(Q8,V8,AA8,AF8,AK8,AP8,AU8,AZ8,BE8,BJ8,BO8,BT8,CB8,CJ8,CO8,CT8,CY8,DD8,DH8,DL8,DP8,DT8,DX8,EB8) -> 519 | D8: =SUM(R8,W8,AB8,AG8,AL8,AQ8,AV8,BA8,BF8,BK8,BP8,BU8,CC8,CK8,CP8,CU8,CZ8,DE8,DI8,DM8,DQ8,DU8,DY8,EC8) -> 189 | E8: =IF(B8=0,0,C8/B8) -> 0.7148760331 | F8: =IF(O8>0,1,0)+IF(T8>0,1,0)+IF(Y8>0,1,0)+IF(AD8>0,1,0)+IF(AI8>0,1,0)+IF(AN8>0,1,0)+IF(AS8>0,1,0)+IF(AX8>0,1,0)+IF(BC8>0,1,0)+IF(BH8>0,1,0)+IF(BM8>0,1,0)+IF(BR8>0,1,0)+IF(BZ8>0,1,0)+IF(CH8>0,1,0)+IF(CM8>0,1,0)+IF(CR8>0,1,0)+IF(CW8>0,1,0)+IF(DB8>0,1,0)+IF(DG8>0,1,0)+IF(DK8>0,1,0)+IF(DO8>0,1,0)+IF(DS8>0,1,0)+IF(DW8>0,1,0)+EE8 -> 11 | G8: 2011 | H8: =IF(BM8>0,1,0)+IF(BR8>0,1,0)+IF(BZ8>0,1,0)+IF(CH8>0,1,0)+IF(CM8>0,1,0)+IF(CR8>0,1,0)+IF(CW8>0,1,0)+IF(DB8>0,1,0)+IF(DG8>0,1,0)+IF(DK8>0,1,0)+IF(DO8>0,1,0)+IF(DS8>0,1,0)+IF(DW8>0,1,0)+EE8 -> 3 | I8: =SUM(BM8,BR8,BZ8,CH8,CM8,CR8,CW8,DB8,DG8,DK8,DO8,DS8,DW8,EA8) -> 176 | J8: =SUM(BO8,BT8,CB8,CJ8,CO8,CT8,CY8,DD8,DH8,DL8,DP8,DT8,DX8,EB8) -> 123 | K8: =SUM(BP8,BU8,CC8,CK8,CP8,CU8,CZ8,DE8,DI8,DM8,DQ8,DU8,DY8,EC8) -> 35 | L8: =IF(I8=0,0,J8/I8) -> 0.6988636364 | M8: 11 | N8: 0 | O8: =IFERROR(VLOOKUP($A8,'2024'!$A$2:$M$220,6,FALSE),0) -> 0 | P8: =IFERROR(VLOOKUP($A8,'2024'!$A$2:$M$220,7,FALSE),0) -> 0 | Q8: =IFERROR(VLOOKUP($A8,'2024'!$A$2:$M$220,8,FALSE),0) -> 0 | R8: =IFERROR(VLOOKUP($A8,'2024'!$A$2:$M$220,11,FALSE),0) -> 0 | S8: =IFERROR(VLOOKUP($A8,'2024'!$A$2:$M$220,13,FALSE),0) -> 0 | T8: =IFERROR(VLOOKUP($A8,'2023'!$A$2:$M$170,6,FALSE),0) -> 0 | U8: =IFERROR(VLOOKUP($A8,'2023'!$A$2:$M$170,7,FALSE),0) -> 0 | V8: =IFERROR(VLOOKUP($A8,'2023'!$A$2:$M$170,8,FALSE),0) -> 0 | W8: =IFERROR(VLOOKUP($A8,'2023'!$A$2:$M$170,11,FALSE),0) -> 0 | X8: =IFERROR(VLOOKUP($A8,'2023'!$A$2:$M$170,13,FALSE),0) -> 0 | Y8: =IFERROR(VLOOKUP($A8,'2022'!$B$2:$K$174,3,FALSE),0) -> 65 | Z8: =IFERROR(VLOOKUP($A8,'2022'!$B$2:$K$174,4,FALSE),0) -> 33 | AA8: =IFERROR(VLOOKUP($A8,'2022'!$B$2:$K$174,5,FALSE),0) -> 38 | AB8: =IFERROR(VLOOKUP($A8,'2022'!$B$2:$K$174,8,FALSE),0) -> 14 | AC8: =IFERROR(VLOOKUP($A8,'2022'!$B$2:$K$174,10,FALSE),0) -> 0.585 | AD8: =IFERROR(VLOOKUP($A8,'2021'!$B$2:$K$174,3,FALSE),0) -> 72 | AE8: =IFERROR(VLOOKUP($A8,'2021'!$B$2:$K$174,4,FALSE),0) -> 45 | AF8: =IFERROR(VLOOKUP($A8,'2021'!$B$2:$K$174,5,FALSE),0) -> 52 | AG8: =IFERROR(VLOOKUP($A8,'2021'!$B$2:$K$174,8,FALSE),0) -> 22 | AH8: =IFERROR(VLOOKUP($A8,'2021'!$B$2:$K$174,10,FALSE),0) -> 0.722 | AI8: =IFERROR(VLOOKUP($A8,'2020'!$B$2:$K$170,3,FALSE),0) -> 77 | AJ8: =IFERROR(VLOOKUP($A8,'2020'!$B$2:$K$170,4,FALSE),0) -> 49 | AK8: =IFERROR(VLOOKUP($A8,'2020'!$B$2:$K$170,5,FALSE),0) -> 57 | AL8: =IFERROR(VLOOKUP($A8,'2020'!$B$2:$K$170,8,FALSE),0) -> 28 | AM8: =IFERROR(VLOOKUP($A8,'2020'!$B$2:$K$170,10,FALSE),0) -> 0.74 | AN8: =IFERROR(VLOOKUP($A8,'2019'!$B$2:$K$170,3,FALSE),0) -> 53 | AO8: =IFERROR(VLOOKUP($A8,'2019'!$B$2:$K$170,4,FALSE),0) -> 39 | AP8: =IFERROR(VLOOKUP($A8,'2019'!$B$2:$K$170,5,FALSE),0) -> 41 | AQ8: =IFERROR(VLOOKUP($A8,'2019'!$B$2:$K$170,8,FALSE),0) -> 23 | AR8: =IFERROR(VLOOKUP($A8,'2019'!$B$2:$K$170,10,FALSE),0) -> 0.774 | AS8: =IFERROR(VLOOKUP($A8,'2018'!$B$2:$K$170,3,FALSE),0) -> 86 | AT8: =IFERROR(VLOOKUP($A8,'2018'!$B$2:$K$170,4,FALSE),0) -> 55 | AU8: =IFERROR(VLOOKUP($A8,'2018'!$B$2:$K$170,5,FALSE),0) -> 60 | AV8: =IFERROR(VLOOKUP($A8,'2018'!$B$2:$K$170,8,FALSE),0) -> 24 | AW8: =IFERROR(VLOOKUP($A8,'2018'!$B$2:$K$170,10,FALSE),0) -> 0.698 | AX8: =IFERROR(VLOOKUP($A8,'2017'!$B$2:$J$163,2,FALSE),0) -> 58 | AY8: =IFERROR(VLOOKUP($A8,'2017'!$B$2:$J$163,3,FALSE),0) -> 35 | AZ8: =IFERROR(VLOOKUP($A8,'2017'!$B$2:$J$163,4,FALSE),0) -> 48 | BA8: =IFERROR(VLOOKUP($A8,'2017'!$B$2:$J$163,7,FALSE),0) -> 19 | BB8: =IFERROR(VLOOKUP($A8,'2017'!$B$2:$J$163,9,FALSE),0) -> 0.8275862069 | BC8: =IFERROR(VLOOKUP($A8,'2016'!$B$2:$K$165,3,FALSE),0) -> 76 | BD8: =IFERROR(VLOOKUP($A8,'2016'!$B$2:$K$165,4,FALSE),0) -> 51 | BE8: =IFERROR(VLOOKUP($A8,'2016'!$B$2:$K$165,5,FALSE),0) -> 61 | BF8: =IFERROR(VLOOKUP($A8,'2016'!$B$2:$K$165,8,FALSE),0) -> 17 | BG8: =IFERROR(VLOOKUP($A8,'2016'!$B$2:$K$165,10,FALSE),0) -> 0.803 | BH8: =IFERROR(VLOOKUP($A8,'2015'!$B$2:$K$165,3,FALSE),0) -> 63 | BI8: =IFERROR(VLOOKUP($A8,'2015'!$B$2:$K$165,4,FALSE),0) -> 27 | BJ8: =IFERROR(VLOOKUP($A8,'2015'!$B$2:$K$165,5,FALSE),0) -> 39 | BK8: =IFERROR(VLOOKUP($A8,'2015'!$B$2:$K$165,8,FALSE),0) -> 7 | BL8: =IFERROR(VLOOKUP($A8,'2015'!$B$2:$K$165,10,FALSE),0) -> 0.619047619 | BM8: =IFERROR(VLOOKUP($A8,'2014'!$B$2:$K$157,3,FALSE),0) -> 48 | BN8: =IFERROR(VLOOKUP($A8,'2014'!$B$2:$K$157,4,FALSE),0) -> 36 | BO8: =IFERROR(VLOOKUP($A8,'2014'!$B$2:$K$157,5,FALSE),0) -> 35 | BP8: =IFERROR(VLOOKUP($A8,'2014'!$B$2:$K$157,8,FALSE),0) -> 15 | BQ8: =IFERROR(VLOOKUP($A8,'2014'!$B$2:$K$157,10,FALSE),0) -> 0.7291666667 | BR8: =IFERROR(VLOOKUP($A8,'2013'!$D$4:$I$249,2,FALSE),0) -> 70 | BS8: =IFERROR(VLOOKUP($A8,'2013'!$D$4:$I$249,3,FALSE),0) -> 38 | BT8: =IFERROR(VLOOKUP($A8,'2013'!$D$4:$I$249,4,FALSE),0) -> 51 | BU8: =IFERROR(VLOOKUP($A8,'2013'!$D$4:$I$249,5,FALSE),0) -> 15 | BV8: =IFERROR(VLOOKUP($A8,'2013'!$D$4:$I$249,6,FALSE),0) -> 0.7285714286 | BW8: =IFERROR(VLOOKUP($A8,'2012'!$D$3:$O$172,2,FALSE),0) -> 0 | BX8: =IFERROR(VLOOKUP($A8,'2012'!$D$3:$O$172,3,FALSE),0) -> 0 | BY8: =IFERROR(VLOOKUP($A8,'2012'!$D$3:$O$172,4,FALSE),0) -> 0 | BZ8: =IFERROR(VLOOKUP($A8,'2012'!$D$3:$O$172,5,FALSE),0) -> 0 | CA8: =IFERROR(VLOOKUP($A8,'2012'!$D$3:$O$172,6,FALSE),0) -> 0 | CB8: =IFERROR(VLOOKUP($A8,'2012'!$D$3:$O$172,7,FALSE),0) -> 0 | CC8: =IFERROR(VLOOKUP($A8,'2012'!$D$3:$O$172,8,FALSE),0) -> 0 | CD8: =IFERROR(VLOOKUP($A8,'2012'!$D$3:$O$172,9,FALSE),0) -> 0 | CE8: =IFERROR(VLOOKUP($A8,'2012'!$D$3:$O$172,10,FALSE),0) -> 0 | CF8: =IFERROR(VLOOKUP($A8,'2012'!$D$3:$O$172,11,FALSE),0) -> 0 | CG8: =IFERROR(VLOOKUP($A8,'2012'!$D$3:$O$172,12,FALSE),0) -> 0 | CH8: =IFERROR(VLOOKUP($A8,'2011'!$D$4:$I$251,2,FALSE),0) -> 58 | CI8: =IFERROR(VLOOKUP($A8,'2011'!$D$4:$I$251,3,FALSE),0) -> 32 | CJ8: =IFERROR(VLOOKUP($A8,'2011'!$D$4:$I$251,4,FALSE),0) -> 37 | CK8: =IFERROR(VLOOKUP($A8,'2011'!$D$4:$I$251,5,FALSE),0) -> 5 | CL8: =IFERROR(VLOOKUP($A8,'2011'!$D$4:$I$251,6,FALSE),0) -> 0.6379310345 | CM8: =IFERROR(VLOOKUP($A8,'2010'!$C$3:$H$234,2,FALSE),0) -> 0 | CN8: =IFERROR(VLOOKUP($A8,'2010'!$C$3:$H$234,3,FALSE),0) -> 0 | CO8: =IFERROR(VLOOKUP($A8,'2010'!$C$3:$H$234,4,FALSE),0) -> 0 | CP8: =IFERROR(VLOOKUP($A8,'2010'!$C$3:$H$234,5,FALSE),0) -> 0 | CQ8: =IFERROR(VLOOKUP($A8,'2010'!$C$3:$H$234,6,FALSE),0) -> 0 | CR8: =IFERROR(VLOOKUP($A8,'2009'!$C$3:$H$242,2,FALSE),0) -> 0 | CS8: =IFERROR(VLOOKUP($A8,'2009'!$C$3:$H$242,3,FALSE),0) -> 0 | CT8: =IFERROR(VLOOKUP($A8,'2009'!$C$3:$H$242,4,FALSE),0) -> 0 | CU8: =IFERROR(VLOOKUP($A8,'2009'!$C$3:$H$242,5,FALSE),0) -> 0 | CV8: =IFERROR(VLOOKUP($A8,'2009'!$C$3:$H$242,6,FALSE),0) -> 0 | CW8: =IFERROR(VLOOKUP($A8,'2008'!$C$3:$H$229,2,FALSE),0) -> 0 | CX8: =IFERROR(VLOOKUP($A8,'2008'!$C$3:$H$229,3,FALSE),0) -> 0 | CY8: =IFERROR(VLOOKUP($A8,'2008'!$C$3:$H$229,4,FALSE),0) -> 0 | CZ8: =IFERROR(VLOOKUP($A8,'2008'!$C$3:$H$229,5,FALSE),0) -> 0 | DA8: =IFERROR(VLOOKUP($A8,'2008'!$C$3:$H$229,6,FALSE),0) -> 0 | DB8: =IFERROR(VLOOKUP($A8,'2007'!$C$3:$M$238,7,FALSE),0) -> 0 | DC8: =IFERROR(VLOOKUP($A8,'2007'!$C$3:$M$238,8,FALSE),0) -> 0 | DD8: =IFERROR(VLOOKUP($A8,'2007'!$C$3:$M$238,9,FALSE),0) -> 0 | DE8: =IFERROR(VLOOKUP($A8,'2007'!$C$3:$M$238,10,FALSE),0) -> 0 | DF8: =IFERROR(VLOOKUP($A8,'2007'!$C$3:$M$238,11,FALSE),0) -> 0 | DG8: =IFERROR(VLOOKUP($A8,'2006'!$A$2:$F$200,2,FALSE),0) -> 0 | DH8: =IFERROR(VLOOKUP($A8,'2006'!$A$2:$F$200,4,FALSE),0) -> 0 | DI8: =IFERROR(VLOOKUP($A8,'2006'!$A$2:$F$200,5,FALSE),0) -> 0 | DJ8: =IFERROR(VLOOKUP($A8,'2006'!$A$2:$F$200,6,FALSE),0) -> 0 | DK8: =IFERROR(VLOOKUP($A8,'2005'!$C$3:$M$205,8,FALSE),0) -> 0 | DL8: =IFERROR(VLOOKUP($A8,'2005'!$C$3:$M$205,9,FALSE),0) -> 0 | DM8: =IFERROR(VLOOKUP($A8,'2005'!$C$3:$M$205,10,FALSE),0) -> 0 | DN8: =IFERROR(VLOOKUP($A8,'2005'!$C$3:$M$205,11,FALSE),0) -> 0 | DO8: =IFERROR(VLOOKUP($A8,'2004'!$C$3:$M$213,8,FALSE),0) -> 0 | DP8: =IFERROR(VLOOKUP($A8,'2004'!$C$3:$M$213,9,FALSE),0) -> 0 | DQ8: =IFERROR(VLOOKUP($A8,'2004'!$C$3:$M$213,10,FALSE),0) -> 0 | DR8: =IFERROR(VLOOKUP($A8,'2004'!$C$3:$M$213,11,FALSE),0) -> 0 | DS8: =IFERROR(VLOOKUP($A8,'2003'!$C$3:$Q$214,12,FALSE),0) -> 0 | DT8: =IFERROR(VLOOKUP($A8,'2003'!$C$3:$Q$214,13,FALSE),0) -> 0 | DU8: =IFERROR(VLOOKUP($A8,'2003'!$C$3:$Q$214,14,FALSE),0) -> 0 | DV8: =IFERROR(VLOOKUP($A8,'2003'!$C$3:$Q$214,15,FALSE),0) -> 0 | DW8: =IFERROR(VLOOKUP($A8,'2002'!$D$3:$R$214,12,FALSE),0) -> 0 | DX8: =IFERROR(VLOOKUP($A8,'2002'!$D$3:$R$214,13,FALSE),0) -> 0 | DY8: =IFERROR(VLOOKUP($A8,'2002'!$D$3:$R$214,14,FALSE),0) -> 0 | DZ8: =IFERROR(VLOOKUP($A8,'2002'!$D$3:$R$214,15,FALSE),0) -> 0 | EA8: =IFERROR(VLOOKUP($A8,'Pre 2002'!$C$3:$CK$382,84,FALSE),0) -> 0 | EB8: =IFERROR(VLOOKUP($A8,'Pre 2002'!$C$3:$CK$382,85,FALSE),0) -> 0 | EC8: =IFERROR(VLOOKUP($A8,'Pre 2002'!$C$3:$CK$382,86,FALSE),0) -> 0 | ED8: =IFERROR(VLOOKUP($A8,'Pre 2002'!$C$3:$CK$382,87,FALSE),0) -> 0 | EE8: =IFERROR(VLOOKUP(A8,'Pre 2002'!$C$3:$CG$382,83,FALSE),0) -> 0
A9: Nick Dallas | B9: =SUM(O9,T9,Y9,AD9,AI9,AN9,AS9,AX9,BC9,BH9,BM9,BR9,BZ9,CH9,CM9,CR9,CW9,DB9,DG9,DK9,DO9,DS9,DW9,EA9) -> 684 | C9: =SUM(Q9,V9,AA9,AF9,AK9,AP9,AU9,AZ9,BE9,BJ9,BO9,BT9,CB9,CJ9,CO9,CT9,CY9,DD9,DH9,DL9,DP9,DT9,DX9,EB9) -> 506 | D9: =SUM(R9,W9,AB9,AG9,AL9,AQ9,AV9,BA9,BF9,BK9,BP9,BU9,CC9,CK9,CP9,CU9,CZ9,DE9,DI9,DM9,DQ9,DU9,DY9,EC9) -> 187 | E9: =IF(B9=0,0,C9/B9) -> 0.7397660819 | F9: =IF(O9>0,1,0)+IF(T9>0,1,0)+IF(Y9>0,1,0)+IF(AD9>0,1,0)+IF(AI9>0,1,0)+IF(AN9>0,1,0)+IF(AS9>0,1,0)+IF(AX9>0,1,0)+IF(BC9>0,1,0)+IF(BH9>0,1,0)+IF(BM9>0,1,0)+IF(BR9>0,1,0)+IF(BZ9>0,1,0)+IF(CH9>0,1,0)+IF(CM9>0,1,0)+IF(CR9>0,1,0)+IF(CW9>0,1,0)+IF(DB9>0,1,0)+IF(DG9>0,1,0)+IF(DK9>0,1,0)+IF(DO9>0,1,0)+IF(DS9>0,1,0)+IF(DW9>0,1,0)+EE9 -> 8 | G9: 2017 | O9: =IFERROR(VLOOKUP($A9,'2024'!$A$2:$M$220,6,FALSE),0) -> 75 | P9: =IFERROR(VLOOKUP($A9,'2024'!$A$2:$M$220,7,FALSE),0) -> 55 | Q9: =IFERROR(VLOOKUP($A9,'2024'!$A$2:$M$220,8,FALSE),0) -> 58 | R9: =IFERROR(VLOOKUP($A9,'2024'!$A$2:$M$220,11,FALSE),0) -> 32 | S9: =IFERROR(VLOOKUP($A9,'2024'!$A$2:$M$220,13,FALSE),0) -> 0.773 | T9: =IFERROR(VLOOKUP($A9,'2023'!$A$2:$M$170,6,FALSE),0) -> 84 | U9: =IFERROR(VLOOKUP($A9,'2023'!$A$2:$M$170,7,FALSE),0) -> 44 | V9: =IFERROR(VLOOKUP($A9,'2023'!$A$2:$M$170,8,FALSE),0) -> 55 | W9: =IFERROR(VLOOKUP($A9,'2023'!$A$2:$M$170,11,FALSE),0) -> 16 | X9: =IFERROR(VLOOKUP($A9,'2023'!$A$2:$M$170,13,FALSE),0) -> 0.655 | Y9: =IFERROR(VLOOKUP($A9,'2022'!$B$2:$K$174,3,FALSE),0) -> 97 | Z9: =IFERROR(VLOOKUP($A9,'2022'!$B$2:$K$174,4,FALSE),0) -> 56 | AA9: =IFERROR(VLOOKUP($A9,'2022'!$B$2:$K$174,5,FALSE),0) -> 69 | AB9: =IFERROR(VLOOKUP($A9,'2022'!$B$2:$K$174,8,FALSE),0) -> 18 | AC9: =IFERROR(VLOOKUP($A9,'2022'!$B$2:$K$174,10,FALSE),0) -> 0.711 | AD9: =IFERROR(VLOOKUP($A9,'2021'!$B$2:$K$174,3,FALSE),0) -> 92 | AE9: =IFERROR(VLOOKUP($A9,'2021'!$B$2:$K$174,4,FALSE),0) -> 59 | AF9: =IFERROR(VLOOKUP($A9,'2021'!$B$2:$K$174,5,FALSE),0) -> 70 | AG9: =IFERROR(VLOOKUP($A9,'2021'!$B$2:$K$174,8,FALSE),0) -> 30 | AH9: =IFERROR(VLOOKUP($A9,'2021'!$B$2:$K$174,10,FALSE),0) -> 0.761 | AI9: =IFERROR(VLOOKUP($A9,'2020'!$B$2:$K$170,3,FALSE),0) -> 79 | AJ9: =IFERROR(VLOOKUP($A9,'2020'!$B$2:$K$170,4,FALSE),0) -> 55 | AK9: =IFERROR(VLOOKUP($A9,'2020'!$B$2:$K$170,5,FALSE),0) -> 65 | AL9: =IFERROR(VLOOKUP($A9,'2020'!$B$2:$K$170,8,FALSE),0) -> 25 | AM9: =IFERROR(VLOOKUP($A9,'2020'!$B$2:$K$170,10,FALSE),0) -> 0.823 | AN9: =IFERROR(VLOOKUP($A9,'2019'!$B$2:$K$170,3,FALSE),0) -> 88 | AO9: =IFERROR(VLOOKUP($A9,'2019'!$B$2:$K$170,4,FALSE),0) -> 59 | AP9: =IFERROR(VLOOKUP($A9,'2019'!$B$2:$K$170,5,FALSE),0) -> 64 | AQ9: =IFERROR(VLOOKUP($A9,'2019'!$B$2:$K$170,8,FALSE),0) -> 23 | AR9: =IFERROR(VLOOKUP($A9,'2019'!$B$2:$K$170,10,FALSE),0) -> 0.727 | AS9: =IFERROR(VLOOKUP($A9,'2018'!$B$2:$K$170,3,FALSE),0) -> 89 | AT9: =IFERROR(VLOOKUP($A9,'2018'!$B$2:$K$170,4,FALSE),0) -> 52 | AU9: =IFERROR(VLOOKUP($A9,'2018'!$B$2:$K$170,5,FALSE),0) -> 64 | AV9: =IFERROR(VLOOKUP($A9,'2018'!$B$2:$K$170,8,FALSE),0) -> 21 | AW9: =IFERROR(VLOOKUP($A9,'2018'!$B$2:$K$170,10,FALSE),0) -> 0.719 | AX9: =IFERROR(VLOOKUP($A9,'2017'!$B$2:$J$163,2,FALSE),0) -> 80 | AY9: =IFERROR(VLOOKUP($A9,'2017'!$B$2:$J$163,3,FALSE),0) -> 53 | AZ9: =IFERROR(VLOOKUP($A9,'2017'!$B$2:$J$163,4,FALSE),0) -> 61 | BA9: =IFERROR(VLOOKUP($A9,'2017'!$B$2:$J$163,7,FALSE),0) -> 22 | BB9: =IFERROR(VLOOKUP($A9,'2017'!$B$2:$J$163,9,FALSE),0) -> 0.7625 | BC9: =IFERROR(VLOOKUP($A9,'2016'!$B$2:$K$165,3,FALSE),0) -> 0 | BD9: =IFERROR(VLOOKUP($A9,'2016'!$B$2:$K$165,4,FALSE),0) -> 0 | BE9: =IFERROR(VLOOKUP($A9,'2016'!$B$2:$K$165,5,FALSE),0) -> 0 | BF9: =IFERROR(VLOOKUP($A9,'2016'!$B$2:$K$165,8,FALSE),0) -> 0 | BG9: =IFERROR(VLOOKUP($A9,'2016'!$B$2:$K$165,10,FALSE),0) -> 0 | BH9: =IFERROR(VLOOKUP($A9,'2015'!$B$2:$K$165,3,FALSE),0) -> 0 | BI9: =IFERROR(VLOOKUP($A9,'2015'!$B$2:$K$165,4,FALSE),0) -> 0 | BJ9: =IFERROR(VLOOKUP($A9,'2015'!$B$2:$K$165,5,FALSE),0) -> 0 | BK9: =IFERROR(VLOOKUP($A9,'2015'!$B$2:$K$165,8,FALSE),0) -> 0 | BL9: =IFERROR(VLOOKUP($A9,'2015'!$B$2:$K$165,10,FALSE),0) -> 0 | BM9: =IFERROR(VLOOKUP($A9,'2014'!$B$2:$K$157,3,FALSE),0) -> 0 | BN9: =IFERROR(VLOOKUP($A9,'2014'!$B$2:$K$157,4,FALSE),0) -> 0 | BO9: =IFERROR(VLOOKUP($A9,'2014'!$B$2:$K$157,5,FALSE),0) -> 0 | BP9: =IFERROR(VLOOKUP($A9,'2014'!$B$2:$K$157,8,FALSE),0) -> 0 | BQ9: =IFERROR(VLOOKUP($A9,'2014'!$B$2:$K$157,10,FALSE),0) -> 0 | BR9: =IFERROR(VLOOKUP($A9,'2013'!$D$4:$I$249,2,FALSE),0) -> 0 | BS9: =IFERROR(VLOOKUP($A9,'2013'!$D$4:$I$249,3,FALSE),0) -> 0 | BT9: =IFERROR(VLOOKUP($A9,'2013'!$D$4:$I$249,4,FALSE),0) -> 0 | BU9: =IFERROR(VLOOKUP($A9,'2013'!$D$4:$I$249,5,FALSE),0) -> 0 | BV9: =IFERROR(VLOOKUP($A9,'2013'!$D$4:$I$249,6,FALSE),0) -> 0 | BW9: =IFERROR(VLOOKUP($A9,'2012'!$D$3:$O$172,2,FALSE),0) -> 0 | BX9: =IFERROR(VLOOKUP($A9,'2012'!$D$3:$O$172,3,FALSE),0) -> 0 | BY9: =IFERROR(VLOOKUP($A9,'2012'!$D$3:$O$172,4,FALSE),0) -> 0 | BZ9: =IFERROR(VLOOKUP($A9,'2012'!$D$3:$O$172,5,FALSE),0) -> 0 | CA9: =IFERROR(VLOOKUP($A9,'2012'!$D$3:$O$172,6,FALSE),0) -> 0 | CB9: =IFERROR(VLOOKUP($A9,'2012'!$D$3:$O$172,7,FALSE),0) -> 0 | CC9: =IFERROR(VLOOKUP($A9,'2012'!$D$3:$O$172,8,FALSE),0) -> 0 | CD9: =IFERROR(VLOOKUP($A9,'2012'!$D$3:$O$172,9,FALSE),0) -> 0 | CH9: =IFERROR(VLOOKUP($A9,'2011'!$D$4:$I$251,2,FALSE),0) -> 0 | CI9: =IFERROR(VLOOKUP($A9,'2011'!$D$4:$I$251,3,FALSE),0) -> 0 | CJ9: =IFERROR(VLOOKUP($A9,'2011'!$D$4:$I$251,4,FALSE),0) -> 0 | CK9: =IFERROR(VLOOKUP($A9,'2011'!$D$4:$I$251,5,FALSE),0) -> 0 | CL9: =IFERROR(VLOOKUP($A9,'2011'!$D$4:$I$251,6,FALSE),0) -> 0 | CM9: =IFERROR(VLOOKUP($A9,'2010'!$C$3:$H$234,2,FALSE),0) -> 0 | CN9: =IFERROR(VLOOKUP($A9,'2010'!$C$3:$H$234,3,FALSE),0) -> 0 | CO9: =IFERROR(VLOOKUP($A9,'2010'!$C$3:$H$234,4,FALSE),0) -> 0 | CP9: =IFERROR(VLOOKUP($A9,'2010'!$C$3:$H$234,5,FALSE),0) -> 0 | CQ9: =IFERROR(VLOOKUP($A9,'2010'!$C$3:$H$234,6,FALSE),0) -> 0 | CR9: =IFERROR(VLOOKUP($A9,'2009'!$C$3:$H$242,2,FALSE),0) -> 0 | CS9: =IFERROR(VLOOKUP($A9,'2009'!$C$3:$H$242,3,FALSE),0) -> 0 | CT9: =IFERROR(VLOOKUP($A9,'2009'!$C$3:$H$242,4,FALSE),0) -> 0 | CU9: =IFERROR(VLOOKUP($A9,'2009'!$C$3:$H$242,5,FALSE),0) -> 0 | CV9: =IFERROR(VLOOKUP($A9,'2009'!$C$3:$H$242,6,FALSE),0) -> 0 | CW9: =IFERROR(VLOOKUP($A9,'2008'!$C$3:$H$229,2,FALSE),0) -> 0 | CX9: =IFERROR(VLOOKUP($A9,'2008'!$C$3:$H$229,3,FALSE),0) -> 0 | CY9: =IFERROR(VLOOKUP($A9,'2008'!$C$3:$H$229,4,FALSE),0) -> 0 | CZ9: =IFERROR(VLOOKUP($A9,'2008'!$C$3:$H$229,5,FALSE),0) -> 0 | DA9: =IFERROR(VLOOKUP($A9,'2008'!$C$3:$H$229,6,FALSE),0) -> 0 | DB9: =IFERROR(VLOOKUP($A9,'2007'!$C$3:$M$238,7,FALSE),0) -> 0 | DC9: =IFERROR(VLOOKUP($A9,'2007'!$C$3:$M$238,8,FALSE),0) -> 0 | DD9: =IFERROR(VLOOKUP($A9,'2007'!$C$3:$M$238,9,FALSE),0) -> 0 | DE9: =IFERROR(VLOOKUP($A9,'2007'!$C$3:$M$238,10,FALSE),0) -> 0 | DF9: =IFERROR(VLOOKUP($A9,'2007'!$C$3:$M$238,11,FALSE),0) -> 0 | DG9: =IFERROR(VLOOKUP($A9,'2006'!$A$2:$F$200,2,FALSE),0) -> 0 | DH9: =IFERROR(VLOOKUP($A9,'2006'!$A$2:$F$200,4,FALSE),0) -> 0 | DI9: =IFERROR(VLOOKUP($A9,'2006'!$A$2:$F$200,5,FALSE),0) -> 0 | DJ9: =IFERROR(VLOOKUP($A9,'2006'!$A$2:$F$200,6,FALSE),0) -> 0 | DK9: =IFERROR(VLOOKUP($A9,'2005'!$C$3:$M$205,8,FALSE),0) -> 0 | DL9: =IFERROR(VLOOKUP($A9,'2005'!$C$3:$M$205,9,FALSE),0) -> 0 | DM9: =IFERROR(VLOOKUP($A9,'2005'!$C$3:$M$205,10,FALSE),0) -> 0 | DN9: =IFERROR(VLOOKUP($A9,'2005'!$C$3:$M$205,11,FALSE),0) -> 0 | DO9: =IFERROR(VLOOKUP($A9,'2004'!$C$3:$M$213,8,FALSE),0) -> 0 | DP9: =IFERROR(VLOOKUP($A9,'2004'!$C$3:$M$213,9,FALSE),0) -> 0 | DQ9: =IFERROR(VLOOKUP($A9,'2004'!$C$3:$M$213,10,FALSE),0) -> 0 | DR9: =IFERROR(VLOOKUP($A9,'2004'!$C$3:$M$213,11,FALSE),0) -> 0 | DS9: =IFERROR(VLOOKUP($A9,'2003'!$C$3:$Q$214,12,FALSE),0) -> 0 | DT9: =IFERROR(VLOOKUP($A9,'2003'!$C$3:$Q$214,13,FALSE),0) -> 0 | DU9: =IFERROR(VLOOKUP($A9,'2003'!$C$3:$Q$214,14,FALSE),0) -> 0 | DV9: =IFERROR(VLOOKUP($A9,'2003'!$C$3:$Q$214,15,FALSE),0) -> 0 | DW9: =IFERROR(VLOOKUP($A9,'2002'!$D$3:$R$214,12,FALSE),0) -> 0 | DX9: =IFERROR(VLOOKUP($A9,'2002'!$D$3:$R$214,13,FALSE),0) -> 0 | DY9: =IFERROR(VLOOKUP($A9,'2002'!$D$3:$R$214,14,FALSE),0) -> 0 | DZ9: =IFERROR(VLOOKUP($A9,'2002'!$D$3:$R$214,15,FALSE),0) -> 0 | EA9: =IFERROR(VLOOKUP($A9,'Pre 2002'!$C$3:$CK$382,84,FALSE),0) -> 0 | EB9: =IFERROR(VLOOKUP($A9,'Pre 2002'!$C$3:$CK$382,85,FALSE),0) -> 0 | EC9: =IFERROR(VLOOKUP($A9,'Pre 2002'!$C$3:$CK$382,86,FALSE),0) -> 0 | ED9: =IFERROR(VLOOKUP($A9,'Pre 2002'!$C$3:$CK$382,87,FALSE),0) -> 0 | EE9: =IFERROR(VLOOKUP(A9,'Pre 2002'!$C$3:$CG$382,83,FALSE),0) -> 0
A10: Billy Kammerer | B10: =SUM(O10,T10,Y10,AD10,AI10,AN10,AS10,AX10,BC10,BH10,BM10,BR10,BZ10,CH10,CM10,CR10,CW10,DB10,DG10,DK10,DO10,DS10,DW10,EA10) -> 583 | C10: =SUM(Q10,V10,AA10,AF10,AK10,AP10,AU10,AZ10,BE10,BJ10,BO10,BT10,CB10,CJ10,CO10,CT10,CY10,DD10,DH10,DL10,DP10,DT10,DX10,EB10) -> 478 | D10: =SUM(R10,W10,AB10,AG10,AL10,AQ10,AV10,BA10,BF10,BK10,BP10,BU10,CC10,CK10,CP10,CU10,CZ10,DE10,DI10,DM10,DQ10,DU10,DY10,EC10) -> 178 | E10: =IF(B10=0,0,C10/B10) -> 0.819897084 | F10: =IF(O10>0,1,0)+IF(T10>0,1,0)+IF(Y10>0,1,0)+IF(AD10>0,1,0)+IF(AI10>0,1,0)+IF(AN10>0,1,0)+IF(AS10>0,1,0)+IF(AX10>0,1,0)+IF(BC10>0,1,0)+IF(BH10>0,1,0)+IF(BM10>0,1,0)+IF(BR10>0,1,0)+IF(BZ10>0,1,0)+IF(CH10>0,1,0)+IF(CM10>0,1,0)+IF(CR10>0,1,0)+IF(CW10>0,1,0)+IF(DB10>0,1,0)+IF(DG10>0,1,0)+IF(DK10>0,1,0)+IF(DO10>0,1,0)+IF(DS10>0,1,0)+IF(DW10>0,1,0)+EE10 -> 7 | G10: 2018 | O10: =IFERROR(VLOOKUP($A10,'2024'!$A$2:$M$220,6,FALSE),0) -> 87 | P10: =IFERROR(VLOOKUP($A10,'2024'!$A$2:$M$220,7,FALSE),0) -> 60 | Q10: =IFERROR(VLOOKUP($A10,'2024'!$A$2:$M$220,8,FALSE),0) -> 69 | R10: =IFERROR(VLOOKUP($A10,'2024'!$A$2:$M$220,11,FALSE),0) -> 20 | S10: =IFERROR(VLOOKUP($A10,'2024'!$A$2:$M$220,13,FALSE),0) -> 0.793 | T10: =IFERROR(VLOOKUP($A10,'2023'!$A$2:$M$170,6,FALSE),0) -> 82 | U10: =IFERROR(VLOOKUP($A10,'2023'!$A$2:$M$170,7,FALSE),0) -> 61 | V10: =IFERROR(VLOOKUP($A10,'2023'!$A$2:$M$170,8,FALSE),0) -> 69 | W10: =IFERROR(VLOOKUP($A10,'2023'!$A$2:$M$170,11,FALSE),0) -> 21 | X10: =IFERROR(VLOOKUP($A10,'2023'!$A$2:$M$170,13,FALSE),0) -> 0.841 | Y10: =IFERROR(VLOOKUP($A10,'2022'!$B$2:$K$174,3,FALSE),0) -> 82 | Z10: =IFERROR(VLOOKUP($A10,'2022'!$B$2:$K$174,4,FALSE),0) -> 65 | AA10: =IFERROR(VLOOKUP($A10,'2022'!$B$2:$K$174,5,FALSE),0) -> 70 | AB10: =IFERROR(VLOOKUP($A10,'2022'!$B$2:$K$174,8,FALSE),0) -> 30 | AC10: =IFERROR(VLOOKUP($A10,'2022'!$B$2:$K$174,10,FALSE),0) -> 0.854 | AD10: =IFERROR(VLOOKUP($A10,'2021'!$B$2:$K$174,3,FALSE),0) -> 81 | AE10: =IFERROR(VLOOKUP($A10,'2021'!$B$2:$K$174,4,FALSE),0) -> 58 | AF10: =IFERROR(VLOOKUP($A10,'2021'!$B$2:$K$174,5,FALSE),0) -> 63 | AG10: =IFERROR(VLOOKUP($A10,'2021'!$B$2:$K$174,8,FALSE),0) -> 28 | AH10: =IFERROR(VLOOKUP($A10,'2021'!$B$2:$K$174,10,FALSE),0) -> 0.778 | AI10: =IFERROR(VLOOKUP($A10,'2020'!$B$2:$K$170,3,FALSE),0) -> 88 | AJ10: =IFERROR(VLOOKUP($A10,'2020'!$B$2:$K$170,4,FALSE),0) -> 59 | AK10: =IFERROR(VLOOKUP($A10,'2020'!$B$2:$K$170,5,FALSE),0) -> 73 | AL10: =IFERROR(VLOOKUP($A10,'2020'!$B$2:$K$170,8,FALSE),0) -> 32 | AM10: =IFERROR(VLOOKUP($A10,'2020'!$B$2:$K$170,10,FALSE),0) -> 0.83 | AN10: =IFERROR(VLOOKUP($A10,'2019'!$B$2:$K$170,3,FALSE),0) -> 87 | AO10: =IFERROR(VLOOKUP($A10,'2019'!$B$2:$K$170,4,FALSE),0) -> 62 | AP10: =IFERROR(VLOOKUP($A10,'2019'!$B$2:$K$170,5,FALSE),0) -> 72 | AQ10: =IFERROR(VLOOKUP($A10,'2019'!$B$2:$K$170,8,FALSE),0) -> 29 | AR10: =IFERROR(VLOOKUP($A10,'2019'!$B$2:$K$170,10,FALSE),0) -> 0.828 | AS10: =IFERROR(VLOOKUP($A10,'2018'!$B$2:$K$170,3,FALSE),0) -> 76 | AT10: =IFERROR(VLOOKUP($A10,'2018'!$B$2:$K$170,4,FALSE),0) -> 49 | AU10: =IFERROR(VLOOKUP($A10,'2018'!$B$2:$K$170,5,FALSE),0) -> 62 | AV10: =IFERROR(VLOOKUP($A10,'2018'!$B$2:$K$170,8,FALSE),0) -> 18 | AW10: =IFERROR(VLOOKUP($A10,'2018'!$B$2:$K$170,10,FALSE),0) -> 0.816
A11: Buster Krueger | B11: =SUM(O11,T11,Y11,AD11,AI11,AN11,AS11,AX11,BC11,BH11,BM11,BR11,BZ11,CH11,CM11,CR11,CW11,DB11,DG11,DK11,DO11,DS11,DW11,EA11) -> 1680 | C11: =SUM(Q11,V11,AA11,AF11,AK11,AP11,AU11,AZ11,BE11,BJ11,BO11,BT11,CB11,CJ11,CO11,CT11,CY11,DD11,DH11,DL11,DP11,DT11,DX11,EB11) -> 1149 | D11: =SUM(R11,W11,AB11,AG11,AL11,AQ11,AV11,BA11,BF11,BK11,BP11,BU11,CC11,CK11,CP11,CU11,CZ11,DE11,DI11,DM11,DQ11,DU11,DY11,EC11) -> 174 | E11: =IF(B11=0,0,C11/B11) -> 0.6839285714 | F11: =IF(O11>0,1,0)+IF(T11>0,1,0)+IF(Y11>0,1,0)+IF(AD11>0,1,0)+IF(AI11>0,1,0)+IF(AN11>0,1,0)+IF(AS11>0,1,0)+IF(AX11>0,1,0)+IF(BC11>0,1,0)+IF(BH11>0,1,0)+IF(BM11>0,1,0)+IF(BR11>0,1,0)+IF(BZ11>0,1,0)+IF(CH11>0,1,0)+IF(CM11>0,1,0)+IF(CR11>0,1,0)+IF(CW11>0,1,0)+IF(DB11>0,1,0)+IF(DG11>0,1,0)+IF(DK11>0,1,0)+IF(DO11>0,1,0)+IF(DS11>0,1,0)+IF(DW11>0,1,0)+EE11 -> 24 | G11: 1990 | H11: =IF(BM11>0,1,0)+IF(BR11>0,1,0)+IF(BZ11>0,1,0)+IF(CH11>0,1,0)+IF(CM11>0,1,0)+IF(CR11>0,1,0)+IF(CW11>0,1,0)+IF(DB11>0,1,0)+IF(DG11>0,1,0)+IF(DK11>0,1,0)+IF(DO11>0,1,0)+IF(DS11>0,1,0)+IF(DW11>0,1,0)+EE11 -> 24 | I11: =SUM(BM11,BR11,BZ11,CH11,CM11,CR11,CW11,DB11,DG11,DK11,DO11,DS11,DW11,EA11) -> 1680 | J11: =SUM(BO11,BT11,CB11,CJ11,CO11,CT11,CY11,DD11,DH11,DL11,DP11,DT11,DX11,EB11) -> 1149 | K11: =SUM(BP11,BU11,CC11,CK11,CP11,CU11,CZ11,DE11,DI11,DM11,DQ11,DU11,DY11,EC11) -> 174 | L11: =IF(I11=0,0,J11/I11) -> 0.6839285714 | O11: =IFERROR(VLOOKUP($A11,'2024'!$A$2:$M$220,6,FALSE),0) -> 0 | P11: =IFERROR(VLOOKUP($A11,'2024'!$A$2:$M$220,7,FALSE),0) -> 0 | Q11: =IFERROR(VLOOKUP($A11,'2024'!$A$2:$M$220,8,FALSE),0) -> 0 | R11: =IFERROR(VLOOKUP($A11,'2024'!$A$2:$M$220,11,FALSE),0) -> 0 | S11: =IFERROR(VLOOKUP($A11,'2024'!$A$2:$M$220,13,FALSE),0) -> 0 | T11: =IFERROR(VLOOKUP($A11,'2023'!$A$2:$M$170,6,FALSE),0) -> 0 | U11: =IFERROR(VLOOKUP($A11,'2023'!$A$2:$M$170,7,FALSE),0) -> 0 | V11: =IFERROR(VLOOKUP($A11,'2023'!$A$2:$M$170,8,FALSE),0) -> 0 | W11: =IFERROR(VLOOKUP($A11,'2023'!$A$2:$M$170,11,FALSE),0) -> 0 | X11: =IFERROR(VLOOKUP($A11,'2023'!$A$2:$M$170,13,FALSE),0) -> 0 | Y11: =IFERROR(VLOOKUP($A11,'2022'!$B$2:$K$174,3,FALSE),0) -> 0 | Z11: =IFERROR(VLOOKUP($A11,'2022'!$B$2:$K$174,4,FALSE),0) -> 0 | AA11: =IFERROR(VLOOKUP($A11,'2022'!$B$2:$K$174,5,FALSE),0) -> 0 | AB11: =IFERROR(VLOOKUP($A11,'2022'!$B$2:$K$174,8,FALSE),0) -> 0 | AC11: =IFERROR(VLOOKUP($A11,'2022'!$B$2:$K$174,10,FALSE),0) -> 0 | AD11: =IFERROR(VLOOKUP($A11,'2021'!$B$2:$K$174,3,FALSE),0) -> 0 | AE11: =IFERROR(VLOOKUP($A11,'2021'!$B$2:$K$174,4,FALSE),0) -> 0 | AF11: =IFERROR(VLOOKUP($A11,'2021'!$B$2:$K$174,5,FALSE),0) -> 0 | AG11: =IFERROR(VLOOKUP($A11,'2021'!$B$2:$K$174,8,FALSE),0) -> 0 | AH11: =IFERROR(VLOOKUP($A11,'2021'!$B$2:$K$174,10,FALSE),0) -> 0 | AI11: =IFERROR(VLOOKUP($A11,'2020'!$B$2:$K$170,3,FALSE),0) -> 0 | AJ11: =IFERROR(VLOOKUP($A11,'2020'!$B$2:$K$170,4,FALSE),0) -> 0 | AK11: =IFERROR(VLOOKUP($A11,'2020'!$B$2:$K$170,5,FALSE),0) -> 0 | AL11: =IFERROR(VLOOKUP($A11,'2020'!$B$2:$K$170,8,FALSE),0) -> 0 | AM11: =IFERROR(VLOOKUP($A11,'2020'!$B$2:$K$170,10,FALSE),0) -> 0 | AN11: =IFERROR(VLOOKUP($A11,'2019'!$B$2:$K$170,3,FALSE),0) -> 0 | AO11: =IFERROR(VLOOKUP($A11,'2019'!$B$2:$K$170,4,FALSE),0) -> 0 | AP11: =IFERROR(VLOOKUP($A11,'2019'!$B$2:$K$170,5,FALSE),0) -> 0 | AQ11: =IFERROR(VLOOKUP($A11,'2019'!$B$2:$K$170,8,FALSE),0) -> 0 | AR11: =IFERROR(VLOOKUP($A11,'2019'!$B$2:$K$170,10,FALSE),0) -> 0 | AS11: =IFERROR(VLOOKUP($A11,'2018'!$B$2:$K$170,3,FALSE),0) -> 0 | AT11: =IFERROR(VLOOKUP($A11,'2018'!$B$2:$K$170,4,FALSE),0) -> 0 | AU11: =IFERROR(VLOOKUP($A11,'2018'!$B$2:$K$170,5,FALSE),0) -> 0 | AV11: =IFERROR(VLOOKUP($A11,'2018'!$B$2:$K$170,8,FALSE),0) -> 0 | AW11: =IFERROR(VLOOKUP($A11,'2018'!$B$2:$K$170,10,FALSE),0) -> 0 | AX11: =IFERROR(VLOOKUP($A11,'2017'!$B$2:$J$163,2,FALSE),0) -> 0 | AY11: =IFERROR(VLOOKUP($A11,'2017'!$B$2:$J$163,3,FALSE),0) -> 0 | AZ11: =IFERROR(VLOOKUP($A11,'2017'!$B$2:$J$163,4,FALSE),0) -> 0 | BA11: =IFERROR(VLOOKUP($A11,'2017'!$B$2:$J$163,7,FALSE),0) -> 0 | BB11: =IFERROR(VLOOKUP($A11,'2017'!$B$2:$J$163,9,FALSE),0) -> 0 | BC11: =IFERROR(VLOOKUP($A11,'2016'!$B$2:$K$165,3,FALSE),0) -> 0 | BD11: =IFERROR(VLOOKUP($A11,'2016'!$B$2:$K$165,4,FALSE),0) -> 0 | BE11: =IFERROR(VLOOKUP($A11,'2016'!$B$2:$K$165,5,FALSE),0) -> 0 | BF11: =IFERROR(VLOOKUP($A11,'2016'!$B$2:$K$165,8,FALSE),0) -> 0 | BG11: =IFERROR(VLOOKUP($A11,'2016'!$B$2:$K$165,10,FALSE),0) -> 0 | BH11: =IFERROR(VLOOKUP($A11,'2015'!$B$2:$K$165,3,FALSE),0) -> 0 | BI11: =IFERROR(VLOOKUP($A11,'2015'!$B$2:$K$165,4,FALSE),0) -> 0 | BJ11: =IFERROR(VLOOKUP($A11,'2015'!$B$2:$K$165,5,FALSE),0) -> 0 | BK11: =IFERROR(VLOOKUP($A11,'2015'!$B$2:$K$165,8,FALSE),0) -> 0 | BL11: =IFERROR(VLOOKUP($A11,'2015'!$B$2:$K$165,10,FALSE),0) -> 0 | BM11: =IFERROR(VLOOKUP($A11,'2014'!$B$2:$K$157,3,FALSE),0) -> 0 | BN11: =IFERROR(VLOOKUP($A11,'2014'!$B$2:$K$157,4,FALSE),0) -> 0 | BO11: =IFERROR(VLOOKUP($A11,'2014'!$B$2:$K$157,5,FALSE),0) -> 0 | BP11: =IFERROR(VLOOKUP($A11,'2014'!$B$2:$K$157,8,FALSE),0) -> 0 | BQ11: =IFERROR(VLOOKUP($A11,'2014'!$B$2:$K$157,10,FALSE),0) -> 0 | BR11: =IFERROR(VLOOKUP($A11,'2013'!$D$4:$I$249,2,FALSE),0) -> 85 | BS11: =IFERROR(VLOOKUP($A11,'2013'!$D$4:$I$249,3,FALSE),0) -> 42 | BT11: =IFERROR(VLOOKUP($A11,'2013'!$D$4:$I$249,4,FALSE),0) -> 64 | BU11: =IFERROR(VLOOKUP($A11,'2013'!$D$4:$I$249,5,FALSE),0) -> 2 | BV11: =IFERROR(VLOOKUP($A11,'2013'!$D$4:$I$249,6,FALSE),0) -> 0.7529411765 | BW11: =IFERROR(VLOOKUP($A11,'2012'!$D$3:$O$172,2,FALSE),0) -> 1595 | BX11: =IFERROR(VLOOKUP($A11,'2012'!$D$3:$O$172,3,FALSE),0) -> 1085 | BY11: =IFERROR(VLOOKUP($A11,'2012'!$D$3:$O$172,4,FALSE),0) -> 172 | BZ11: =IFERROR(VLOOKUP($A11,'2012'!$D$3:$O$172,5,FALSE),0) -> 75 | CA11: =IFERROR(VLOOKUP($A11,'2012'!$D$3:$O$172,6,FALSE),0) -> 50 | CB11: =IFERROR(VLOOKUP($A11,'2012'!$D$3:$O$172,7,FALSE),0) -> 54 | CC11: =IFERROR(VLOOKUP($A11,'2012'!$D$3:$O$172,8,FALSE),0) -> 12 | CD11: =IFERROR(VLOOKUP($A11,'2012'!$D$3:$O$172,9,FALSE),0) -> 0.72 | CE11: =IFERROR(VLOOKUP($A11,'2012'!$D$3:$O$172,10,FALSE),0) -> 1520 | CF11: =IFERROR(VLOOKUP($A11,'2012'!$D$3:$O$172,11,FALSE),0) -> 1031 | CG11: =IFERROR(VLOOKUP($A11,'2012'!$D$3:$O$172,12,FALSE),0) -> 160 | CH11: =IFERROR(VLOOKUP($A11,'2011'!$D$4:$I$251,2,FALSE),0) -> 85 | CI11: =IFERROR(VLOOKUP($A11,'2011'!$D$4:$I$251,3,FALSE),0) -> 54 | CJ11: =IFERROR(VLOOKUP($A11,'2011'!$D$4:$I$251,4,FALSE),0) -> 63 | CK11: =IFERROR(VLOOKUP($A11,'2011'!$D$4:$I$251,5,FALSE),0) -> 10 | CL11: =IFERROR(VLOOKUP($A11,'2011'!$D$4:$I$251,6,FALSE),0) -> 0.7411764706 | CM11: =IFERROR(VLOOKUP($A11,'2010'!$C$3:$H$234,2,FALSE),0) -> 68 | CN11: =IFERROR(VLOOKUP($A11,'2010'!$C$3:$H$234,3,FALSE),0) -> 37 | CO11: =IFERROR(VLOOKUP($A11,'2010'!$C$3:$H$234,4,FALSE),0) -> 43 | CP11: =IFERROR(VLOOKUP($A11,'2010'!$C$3:$H$234,5,FALSE),0) -> 7 | CQ11: =IFERROR(VLOOKUP($A11,'2010'!$C$3:$H$234,6,FALSE),0) -> 0.6323529412 | CR11: =IFERROR(VLOOKUP($A11,'2009'!$C$3:$H$242,2,FALSE),0) -> 61 | CS11: =IFERROR(VLOOKUP($A11,'2009'!$C$3:$H$242,3,FALSE),0) -> 31 | CT11: =IFERROR(VLOOKUP($A11,'2009'!$C$3:$H$242,4,FALSE),0) -> 39 | CU11: =IFERROR(VLOOKUP($A11,'2009'!$C$3:$H$242,5,FALSE),0) -> 6 | CV11: =IFERROR(VLOOKUP($A11,'2009'!$C$3:$H$242,6,FALSE),0) -> 0.6393442623 | CW11: =IFERROR(VLOOKUP($A11,'2008'!$C$3:$H$229,2,FALSE),0) -> 75 | CX11: =IFERROR(VLOOKUP($A11,'2008'!$C$3:$H$229,3,FALSE),0) -> 42 | CY11: =IFERROR(VLOOKUP($A11,'2008'!$C$3:$H$229,4,FALSE),0) -> 55 | CZ11: =IFERROR(VLOOKUP($A11,'2008'!$C$3:$H$229,5,FALSE),0) -> 10 | DA11: =IFERROR(VLOOKUP($A11,'2008'!$C$3:$H$229,6,FALSE),0) -> 0.7333333333 | DB11: =IFERROR(VLOOKUP($A11,'2007'!$C$3:$M$238,7,FALSE),0) -> 72 | DC11: =IFERROR(VLOOKUP($A11,'2007'!$C$3:$M$238,8,FALSE),0) -> 29 | DD11: =IFERROR(VLOOKUP($A11,'2007'!$C$3:$M$238,9,FALSE),0) -> 47 | DE11: =IFERROR(VLOOKUP($A11,'2007'!$C$3:$M$238,10,FALSE),0) -> 3 | DF11: =IFERROR(VLOOKUP($A11,'2007'!$C$3:$M$238,11,FALSE),0) -> 0.6527777778 | DG11: =IFERROR(VLOOKUP($A11,'2006'!$A$2:$F$200,2,FALSE),0) -> 78 | DH11: =IFERROR(VLOOKUP($A11,'2006'!$A$2:$F$200,4,FALSE),0) -> 51 | DI11: =IFERROR(VLOOKUP($A11,'2006'!$A$2:$F$200,5,FALSE),0) -> 8 | DJ11: =IFERROR(VLOOKUP($A11,'2006'!$A$2:$F$200,6,FALSE),0) -> 0.6538461538 | DK11: =IFERROR(VLOOKUP($A11,'2005'!$C$3:$M$205,8,FALSE),0) -> 50 | DL11: =IFERROR(VLOOKUP($A11,'2005'!$C$3:$M$205,9,FALSE),0) -> 32 | DM11: =IFERROR(VLOOKUP($A11,'2005'!$C$3:$M$205,10,FALSE),0) -> 1 | DN11: =IFERROR(VLOOKUP($A11,'2005'!$C$3:$M$205,11,FALSE),0) -> 0.64 | DO11: =IFERROR(VLOOKUP($A11,'2004'!$C$3:$M$213,8,FALSE),0) -> 71 | DP11: =IFERROR(VLOOKUP($A11,'2004'!$C$3:$M$213,9,FALSE),0) -> 45 | DQ11: =IFERROR(VLOOKUP($A11,'2004'!$C$3:$M$213,10,FALSE),0) -> 9 | DR11: =IFERROR(VLOOKUP($A11,'2004'!$C$3:$M$213,11,FALSE),0) -> 0.6338028169 | DS11: =IFERROR(VLOOKUP($A11,'2003'!$C$3:$Q$214,12,FALSE),0) -> 73 | DT11: =IFERROR(VLOOKUP($A11,'2003'!$C$3:$Q$214,13,FALSE),0) -> 49 | DU11: =IFERROR(VLOOKUP($A11,'2003'!$C$3:$Q$214,14,FALSE),0) -> 7 | DV11: =IFERROR(VLOOKUP($A11,'2003'!$C$3:$Q$214,15,FALSE),0) -> 0.6712328767 | DW11: =IFERROR(VLOOKUP($A11,'2002'!$D$3:$R$214,12,FALSE),0) -> 75 | DX11: =IFERROR(VLOOKUP($A11,'2002'!$D$3:$R$214,13,FALSE),0) -> 55 | DY11: =IFERROR(VLOOKUP($A11,'2002'!$D$3:$R$214,14,FALSE),0) -> 7 | DZ11: =IFERROR(VLOOKUP($A11,'2002'!$D$3:$R$214,15,FALSE),0) -> 0.7333333333 | EA11: =IFERROR(VLOOKUP($A11,'Pre 2002'!$C$3:$CK$382,84,FALSE),0) -> 812 | EB11: =IFERROR(VLOOKUP($A11,'Pre 2002'!$C$3:$CK$382,85,FALSE),0) -> 552 | EC11: =IFERROR(VLOOKUP($A11,'Pre 2002'!$C$3:$CK$382,86,FALSE),0) -> 92 | ED11: =IFERROR(VLOOKUP($A11,'Pre 2002'!$C$3:$CK$382,87,FALSE),0) -> 0.6798029557 | EE11: =IFERROR(VLOOKUP(A11,'Pre 2002'!$C$3:$CG$382,83,FALSE),0) -> 12
A12: Brad Cline | B12: =SUM(O12,T12,Y12,AD12,AI12,AN12,AS12,AX12,BC12,BH12,BM12,BR12,BZ12,CH12,CM12,CR12,CW12,DB12,DG12,DK12,DO12,DS12,DW12,EA12) -> 2851 | C12: =SUM(Q12,V12,AA12,AF12,AK12,AP12,AU12,AZ12,BE12,BJ12,BO12,BT12,CB12,CJ12,CO12,CT12,CY12,DD12,DH12,DL12,DP12,DT12,DX12,EB12) -> 1853 | D12: =SUM(R12,W12,AB12,AG12,AL12,AQ12,AV12,BA12,BF12,BK12,BP12,BU12,CC12,CK12,CP12,CU12,CZ12,DE12,DI12,DM12,DQ12,DU12,DY12,EC12) -> 160 | E12: =IF(B12=0,0,C12/B12) -> 0.6499473869 | F12: =IF(O12>0,1,0)+IF(T12>0,1,0)+IF(Y12>0,1,0)+IF(AD12>0,1,0)+IF(AI12>0,1,0)+IF(AN12>0,1,0)+IF(AS12>0,1,0)+IF(AX12>0,1,0)+IF(BC12>0,1,0)+IF(BH12>0,1,0)+IF(BM12>0,1,0)+IF(BR12>0,1,0)+IF(BZ12>0,1,0)+IF(CH12>0,1,0)+IF(CM12>0,1,0)+IF(CR12>0,1,0)+IF(CW12>0,1,0)+IF(DB12>0,1,0)+IF(DG12>0,1,0)+IF(DK12>0,1,0)+IF(DO12>0,1,0)+IF(DS12>0,1,0)+IF(DW12>0,1,0)+EE12 -> 42 | G12: 1973 | H12: =IF(BM12>0,1,0)+IF(BR12>0,1,0)+IF(BZ12>0,1,0)+IF(CH12>0,1,0)+IF(CM12>0,1,0)+IF(CR12>0,1,0)+IF(CW12>0,1,0)+IF(DB12>0,1,0)+IF(DG12>0,1,0)+IF(DK12>0,1,0)+IF(DO12>0,1,0)+IF(DS12>0,1,0)+IF(DW12>0,1,0)+EE12 -> 41 | I12: =SUM(BM12,BR12,BZ12,CH12,CM12,CR12,CW12,DB12,DG12,DK12,DO12,DS12,DW12,EA12) -> 2822 | J12: =SUM(BO12,BT12,CB12,CJ12,CO12,CT12,CY12,DD12,DH12,DL12,DP12,DT12,DX12,EB12) -> 1839 | K12: =SUM(BP12,BU12,CC12,CK12,CP12,CU12,CZ12,DE12,DI12,DM12,DQ12,DU12,DY12,EC12) -> 160 | L12: =IF(I12=0,0,J12/I12) -> 0.6516654855 | M12: 73 | N12: 10 | O12: =IFERROR(VLOOKUP($A12,'2024'!$A$2:$M$220,6,FALSE),0) -> 0 | P12: =IFERROR(VLOOKUP($A12,'2024'!$A$2:$M$220,7,FALSE),0) -> 0 | Q12: =IFERROR(VLOOKUP($A12,'2024'!$A$2:$M$220,8,FALSE),0) -> 0 | R12: =IFERROR(VLOOKUP($A12,'2024'!$A$2:$M$220,11,FALSE),0) -> 0 | S12: =IFERROR(VLOOKUP($A12,'2024'!$A$2:$M$220,13,FALSE),0) -> 0 | T12: =IFERROR(VLOOKUP($A12,'2023'!$A$2:$M$170,6,FALSE),0) -> 0 | U12: =IFERROR(VLOOKUP($A12,'2023'!$A$2:$M$170,7,FALSE),0) -> 0 | V12: =IFERROR(VLOOKUP($A12,'2023'!$A$2:$M$170,8,FALSE),0) -> 0 | W12: =IFERROR(VLOOKUP($A12,'2023'!$A$2:$M$170,11,FALSE),0) -> 0 | X12: =IFERROR(VLOOKUP($A12,'2023'!$A$2:$M$170,13,FALSE),0) -> 0 | Y12: =IFERROR(VLOOKUP($A12,'2022'!$B$2:$K$174,3,FALSE),0) -> 0 | Z12: =IFERROR(VLOOKUP($A12,'2022'!$B$2:$K$174,4,FALSE),0) -> 0 | AA12: =IFERROR(VLOOKUP($A12,'2022'!$B$2:$K$174,5,FALSE),0) -> 0 | AB12: =IFERROR(VLOOKUP($A12,'2022'!$B$2:$K$174,8,FALSE),0) -> 0 | AC12: =IFERROR(VLOOKUP($A12,'2022'!$B$2:$K$174,10,FALSE),0) -> 0 | AD12: =IFERROR(VLOOKUP($A12,'2021'!$B$2:$K$174,3,FALSE),0) -> 0 | AE12: =IFERROR(VLOOKUP($A12,'2021'!$B$2:$K$174,4,FALSE),0) -> 0 | AF12: =IFERROR(VLOOKUP($A12,'2021'!$B$2:$K$174,5,FALSE),0) -> 0 | AG12: =IFERROR(VLOOKUP($A12,'2021'!$B$2:$K$174,8,FALSE),0) -> 0 | AH12: =IFERROR(VLOOKUP($A12,'2021'!$B$2:$K$174,10,FALSE),0) -> 0 | AI12: =IFERROR(VLOOKUP($A12,'2020'!$B$2:$K$170,3,FALSE),0) -> 0 | AJ12: =IFERROR(VLOOKUP($A12,'2020'!$B$2:$K$170,4,FALSE),0) -> 0 | AK12: =IFERROR(VLOOKUP($A12,'2020'!$B$2:$K$170,5,FALSE),0) -> 0 | AL12: =IFERROR(VLOOKUP($A12,'2020'!$B$2:$K$170,8,FALSE),0) -> 0 | AM12: =IFERROR(VLOOKUP($A12,'2020'!$B$2:$K$170,10,FALSE),0) -> 0 | AN12: =IFERROR(VLOOKUP($A12,'2019'!$B$2:$K$170,3,FALSE),0) -> 0 | AO12: =IFERROR(VLOOKUP($A12,'2019'!$B$2:$K$170,4,FALSE),0) -> 0 | AP12: =IFERROR(VLOOKUP($A12,'2019'!$B$2:$K$170,5,FALSE),0) -> 0 | AQ12: =IFERROR(VLOOKUP($A12,'2019'!$B$2:$K$170,8,FALSE),0) -> 0 | AR12: =IFERROR(VLOOKUP($A12,'2019'!$B$2:$K$170,10,FALSE),0) -> 0 | AS12: =IFERROR(VLOOKUP($A12,'2018'!$B$2:$K$170,3,FALSE),0) -> 0 | AT12: =IFERROR(VLOOKUP($A12,'2018'!$B$2:$K$170,4,FALSE),0) -> 0 | AU12: =IFERROR(VLOOKUP($A12,'2018'!$B$2:$K$170,5,FALSE),0) -> 0 | AV12: =IFERROR(VLOOKUP($A12,'2018'!$B$2:$K$170,8,FALSE),0) -> 0 | AW12: =IFERROR(VLOOKUP($A12,'2018'!$B$2:$K$170,10,FALSE),0) -> 0 | AX12: =IFERROR(VLOOKUP($A12,'2017'!$B$2:$J$163,2,FALSE),0) -> 0 | AY12: =IFERROR(VLOOKUP($A12,'2017'!$B$2:$J$163,3,FALSE),0) -> 0 | AZ12: =IFERROR(VLOOKUP($A12,'2017'!$B$2:$J$163,4,FALSE),0) -> 0 | BA12: =IFERROR(VLOOKUP($A12,'2017'!$B$2:$J$163,7,FALSE),0) -> 0 | BB12: =IFERROR(VLOOKUP($A12,'2017'!$B$2:$J$163,9,FALSE),0) -> 0 | BC12: =IFERROR(VLOOKUP($A12,'2016'!$B$2:$K$165,3,FALSE),0) -> 0 | BD12: =IFERROR(VLOOKUP($A12,'2016'!$B$2:$K$165,4,FALSE),0) -> 0 | BE12: =IFERROR(VLOOKUP($A12,'2016'!$B$2:$K$165,5,FALSE),0) -> 0 | BF12: =IFERROR(VLOOKUP($A12,'2016'!$B$2:$K$165,8,FALSE),0) -> 0 | BG12: =IFERROR(VLOOKUP($A12,'2016'!$B$2:$K$165,10,FALSE),0) -> 0 | BH12: =IFERROR(VLOOKUP($A12,'2015'!$B$2:$K$165,3,FALSE),0) -> 29 | BI12: =IFERROR(VLOOKUP($A12,'2015'!$B$2:$K$165,4,FALSE),0) -> 8 | BJ12: =IFERROR(VLOOKUP($A12,'2015'!$B$2:$K$165,5,FALSE),0) -> 14 | BK12: =IFERROR(VLOOKUP($A12,'2015'!$B$2:$K$165,8,FALSE),0) -> 0 | BL12: =IFERROR(VLOOKUP($A12,'2015'!$B$2:$K$165,10,FALSE),0) -> 0.4827586207 | BM12: =IFERROR(VLOOKUP($A12,'2014'!$B$2:$K$157,3,FALSE),0) -> 61 | BN12: =IFERROR(VLOOKUP($A12,'2014'!$B$2:$K$157,4,FALSE),0) -> 19 | BO12: =IFERROR(VLOOKUP($A12,'2014'!$B$2:$K$157,5,FALSE),0) -> 26 | BP12: =IFERROR(VLOOKUP($A12,'2014'!$B$2:$K$157,8,FALSE),0) -> 0 | BQ12: =IFERROR(VLOOKUP($A12,'2014'!$B$2:$K$157,10,FALSE),0) -> 0.4262295082 | BR12: =IFERROR(VLOOKUP($A12,'2013'!$D$4:$I$249,2,FALSE),0) -> 65 | BS12: =IFERROR(VLOOKUP($A12,'2013'!$D$4:$I$249,3,FALSE),0) -> 18 | BT12: =IFERROR(VLOOKUP($A12,'2013'!$D$4:$I$249,4,FALSE),0) -> 33 | BU12: =IFERROR(VLOOKUP($A12,'2013'!$D$4:$I$249,5,FALSE),0) -> 0 | BV12: =IFERROR(VLOOKUP($A12,'2013'!$D$4:$I$249,6,FALSE),0) -> 0.5076923077 | BW12: =IFERROR(VLOOKUP($A12,'2012'!$D$3:$O$172,2,FALSE),0) -> 2696 | BX12: =IFERROR(VLOOKUP($A12,'2012'!$D$3:$O$172,3,FALSE),0) -> 1780 | BY12: =IFERROR(VLOOKUP($A12,'2012'!$D$3:$O$172,4,FALSE),0) -> 161 | BZ12: =IFERROR(VLOOKUP($A12,'2012'!$D$3:$O$172,5,FALSE),0) -> 64 | CA12: =IFERROR(VLOOKUP($A12,'2012'!$D$3:$O$172,6,FALSE),0) -> 21 | CB12: =IFERROR(VLOOKUP($A12,'2012'!$D$3:$O$172,7,FALSE),0) -> 39 | CC12: =IFERROR(VLOOKUP($A12,'2012'!$D$3:$O$172,8,FALSE),0) -> 0 | CD12: =IFERROR(VLOOKUP($A12,'2012'!$D$3:$O$172,9,FALSE),0) -> 0.609375 | CE12: =IFERROR(VLOOKUP($A12,'2012'!$D$3:$O$172,10,FALSE),0) -> 2632 | CF12: =IFERROR(VLOOKUP($A12,'2012'!$D$3:$O$172,11,FALSE),0) -> 1741 | CG12: =IFERROR(VLOOKUP($A12,'2012'!$D$3:$O$172,12,FALSE),0) -> 161 | CH12: =IFERROR(VLOOKUP($A12,'2011'!$D$4:$I$251,2,FALSE),0) -> 82 | CI12: =IFERROR(VLOOKUP($A12,'2011'!$D$4:$I$251,3,FALSE),0) -> 39 | CJ12: =IFERROR(VLOOKUP($A12,'2011'!$D$4:$I$251,4,FALSE),0) -> 57 | CK12: =IFERROR(VLOOKUP($A12,'2011'!$D$4:$I$251,5,FALSE),0) -> 0 | CL12: =IFERROR(VLOOKUP($A12,'2011'!$D$4:$I$251,6,FALSE),0) -> 0.6951219512 | CM12: =IFERROR(VLOOKUP($A12,'2010'!$C$3:$H$234,2,FALSE),0) -> 73 | CN12: =IFERROR(VLOOKUP($A12,'2010'!$C$3:$H$234,3,FALSE),0) -> 33 | CO12: =IFERROR(VLOOKUP($A12,'2010'!$C$3:$H$234,4,FALSE),0) -> 44 | CP12: =IFERROR(VLOOKUP($A12,'2010'!$C$3:$H$234,5,FALSE),0) -> 1 | CQ12: =IFERROR(VLOOKUP($A12,'2010'!$C$3:$H$234,6,FALSE),0) -> 0.602739726 | CR12: =IFERROR(VLOOKUP($A12,'2009'!$C$3:$H$242,2,FALSE),0) -> 77 | CS12: =IFERROR(VLOOKUP($A12,'2009'!$C$3:$H$242,3,FALSE),0) -> 34 | CT12: =IFERROR(VLOOKUP($A12,'2009'!$C$3:$H$242,4,FALSE),0) -> 54 | CU12: =IFERROR(VLOOKUP($A12,'2009'!$C$3:$H$242,5,FALSE),0) -> 1 | CV12: =IFERROR(VLOOKUP($A12,'2009'!$C$3:$H$242,6,FALSE),0) -> 0.7012987013 | CW12: =IFERROR(VLOOKUP($A12,'2008'!$C$3:$H$229,2,FALSE),0) -> 74 | CX12: =IFERROR(VLOOKUP($A12,'2008'!$C$3:$H$229,3,FALSE),0) -> 30 | CY12: =IFERROR(VLOOKUP($A12,'2008'!$C$3:$H$229,4,FALSE),0) -> 52 | CZ12: =IFERROR(VLOOKUP($A12,'2008'!$C$3:$H$229,5,FALSE),0) -> 6 | DA12: =IFERROR(VLOOKUP($A12,'2008'!$C$3:$H$229,6,FALSE),0) -> 0.7027027027 | DB12: =IFERROR(VLOOKUP($A12,'2007'!$C$3:$M$238,7,FALSE),0) -> 63 | DC12: =IFERROR(VLOOKUP($A12,'2007'!$C$3:$M$238,8,FALSE),0) -> 30 | DD12: =IFERROR(VLOOKUP($A12,'2007'!$C$3:$M$238,9,FALSE),0) -> 40 | DE12: =IFERROR(VLOOKUP($A12,'2007'!$C$3:$M$238,10,FALSE),0) -> 0 | DF12: =IFERROR(VLOOKUP($A12,'2007'!$C$3:$M$238,11,FALSE),0) -> 0.6349206349 | DG12: =IFERROR(VLOOKUP($A12,'2006'!$A$2:$F$200,2,FALSE),0) -> 73 | DH12: =IFERROR(VLOOKUP($A12,'2006'!$A$2:$F$200,4,FALSE),0) -> 52 | DI12: =IFERROR(VLOOKUP($A12,'2006'!$A$2:$F$200,5,FALSE),0) -> 1 | DJ12: =IFERROR(VLOOKUP($A12,'2006'!$A$2:$F$200,6,FALSE),0) -> 0.7123287671 | DK12: =IFERROR(VLOOKUP($A12,'2005'!$C$3:$M$205,8,FALSE),0) -> 67 | DL12: =IFERROR(VLOOKUP($A12,'2005'!$C$3:$M$205,9,FALSE),0) -> 44 | DM12: =IFERROR(VLOOKUP($A12,'2005'!$C$3:$M$205,10,FALSE),0) -> 1 | DN12: =IFERROR(VLOOKUP($A12,'2005'!$C$3:$M$205,11,FALSE),0) -> 0.6567164179 | DO12: =IFERROR(VLOOKUP($A12,'2004'!$C$3:$M$213,8,FALSE),0) -> 75 | DP12: =IFERROR(VLOOKUP($A12,'2004'!$C$3:$M$213,9,FALSE),0) -> 46 | DQ12: =IFERROR(VLOOKUP($A12,'2004'!$C$3:$M$213,10,FALSE),0) -> 3 | DR12: =IFERROR(VLOOKUP($A12,'2004'!$C$3:$M$213,11,FALSE),0) -> 0.6133333333 | DS12: =IFERROR(VLOOKUP($A12,'2003'!$C$3:$Q$214,12,FALSE),0) -> 71 | DT12: =IFERROR(VLOOKUP($A12,'2003'!$C$3:$Q$214,13,FALSE),0) -> 43 | DU12: =IFERROR(VLOOKUP($A12,'2003'!$C$3:$Q$214,14,FALSE),0) -> 3 | DV12: =IFERROR(VLOOKUP($A12,'2003'!$C$3:$Q$214,15,FALSE),0) -> 0.6056338028 | DW12: =IFERROR(VLOOKUP($A12,'2002'!$D$3:$R$214,12,FALSE),0) -> 66 | DX12: =IFERROR(VLOOKUP($A12,'2002'!$D$3:$R$214,13,FALSE),0) -> 48 | DY12: =IFERROR(VLOOKUP($A12,'2002'!$D$3:$R$214,14,FALSE),0) -> 4 | DZ12: =IFERROR(VLOOKUP($A12,'2002'!$D$3:$R$214,15,FALSE),0) -> 0.7272727273 | EA12: =IFERROR(VLOOKUP($A12,'Pre 2002'!$C$3:$CK$382,84,FALSE),0) -> 1911 | EB12: =IFERROR(VLOOKUP($A12,'Pre 2002'!$C$3:$CK$382,85,FALSE),0) -> 1261 | EC12: =IFERROR(VLOOKUP($A12,'Pre 2002'!$C$3:$CK$382,86,FALSE),0) -> 140 | ED12: =IFERROR(VLOOKUP($A12,'Pre 2002'!$C$3:$CK$382,87,FALSE),0) -> 0.6598639456 | EE12: =IFERROR(VLOOKUP(A12,'Pre 2002'!$C$3:$CG$382,83,FALSE),0) -> 28
A13: Dave Barkeley | B13: =SUM(O13,T13,Y13,AD13,AI13,AN13,AS13,AX13,BC13,BH13,BM13,BR13,BZ13,CH13,CM13,CR13,CW13,DB13,DG13,DK13,DO13,DS13,DW13,EA13) -> 763 | C13: =SUM(Q13,V13,AA13,AF13,AK13,AP13,AU13,AZ13,BE13,BJ13,BO13,BT13,CB13,CJ13,CO13,CT13,CY13,DD13,DH13,DL13,DP13,DT13,DX13,EB13) -> 534 | D13: =SUM(R13,W13,AB13,AG13,AL13,AQ13,AV13,BA13,BF13,BK13,BP13,BU13,CC13,CK13,CP13,CU13,CZ13,DE13,DI13,DM13,DQ13,DU13,DY13,EC13) -> 138 | E13: =IF(B13=0,0,C13/B13) -> 0.6998689384 | F13: =IF(O13>0,1,0)+IF(T13>0,1,0)+IF(Y13>0,1,0)+IF(AD13>0,1,0)+IF(AI13>0,1,0)+IF(AN13>0,1,0)+IF(AS13>0,1,0)+IF(AX13>0,1,0)+IF(BC13>0,1,0)+IF(BH13>0,1,0)+IF(BM13>0,1,0)+IF(BR13>0,1,0)+IF(BZ13>0,1,0)+IF(CH13>0,1,0)+IF(CM13>0,1,0)+IF(CR13>0,1,0)+IF(CW13>0,1,0)+IF(DB13>0,1,0)+IF(DG13>0,1,0)+IF(DK13>0,1,0)+IF(DO13>0,1,0)+IF(DS13>0,1,0)+IF(DW13>0,1,0)+EE13 -> 13 | G13: 2000 | H13: =IF(BM13>0,1,0)+IF(BR13>0,1,0)+IF(BZ13>0,1,0)+IF(CH13>0,1,0)+IF(CM13>0,1,0)+IF(CR13>0,1,0)+IF(CW13>0,1,0)+IF(DB13>0,1,0)+IF(DG13>0,1,0)+IF(DK13>0,1,0)+IF(DO13>0,1,0)+IF(DS13>0,1,0)+IF(DW13>0,1,0)+EE13 -> 13 | I13: =SUM(BM13,BR13,BZ13,CH13,CM13,CR13,CW13,DB13,DG13,DK13,DO13,DS13,DW13,EA13) -> 763 | J13: =SUM(BO13,BT13,CB13,CJ13,CO13,CT13,CY13,DD13,DH13,DL13,DP13,DT13,DX13,EB13) -> 534 | K13: =SUM(BP13,BU13,CC13,CK13,CP13,CU13,CZ13,DE13,DI13,DM13,DQ13,DU13,DY13,EC13) -> 138 | L13: =IF(I13=0,0,J13/I13) -> 0.6998689384 | O13: =IFERROR(VLOOKUP($A13,'2024'!$A$2:$M$220,6,FALSE),0) -> 0 | P13: =IFERROR(VLOOKUP($A13,'2024'!$A$2:$M$220,7,FALSE),0) -> 0 | Q13: =IFERROR(VLOOKUP($A13,'2024'!$A$2:$M$220,8,FALSE),0) -> 0 | R13: =IFERROR(VLOOKUP($A13,'2024'!$A$2:$M$220,11,FALSE),0) -> 0 | S13: =IFERROR(VLOOKUP($A13,'2024'!$A$2:$M$220,13,FALSE),0) -> 0 | T13: =IFERROR(VLOOKUP($A13,'2023'!$A$2:$M$170,6,FALSE),0) -> 0 | U13: =IFERROR(VLOOKUP($A13,'2023'!$A$2:$M$170,7,FALSE),0) -> 0 | V13: =IFERROR(VLOOKUP($A13,'2023'!$A$2:$M$170,8,FALSE),0) -> 0 | W13: =IFERROR(VLOOKUP($A13,'2023'!$A$2:$M$170,11,FALSE),0) -> 0 | X13: =IFERROR(VLOOKUP($A13,'2023'!$A$2:$M$170,13,FALSE),0) -> 0 | Y13: =IFERROR(VLOOKUP($A13,'2022'!$B$2:$K$174,3,FALSE),0) -> 0 | Z13: =IFERROR(VLOOKUP($A13,'2022'!$B$2:$K$174,4,FALSE),0) -> 0 | AA13: =IFERROR(VLOOKUP($A13,'2022'!$B$2:$K$174,5,FALSE),0) -> 0 | AB13: =IFERROR(VLOOKUP($A13,'2022'!$B$2:$K$174,8,FALSE),0) -> 0 | AC13: =IFERROR(VLOOKUP($A13,'2022'!$B$2:$K$174,10,FALSE),0) -> 0 | AD13: =IFERROR(VLOOKUP($A13,'2021'!$B$2:$K$174,3,FALSE),0) -> 0 | AE13: =IFERROR(VLOOKUP($A13,'2021'!$B$2:$K$174,4,FALSE),0) -> 0 | AF13: =IFERROR(VLOOKUP($A13,'2021'!$B$2:$K$174,5,FALSE),0) -> 0 | AG13: =IFERROR(VLOOKUP($A13,'2021'!$B$2:$K$174,8,FALSE),0) -> 0 | AH13: =IFERROR(VLOOKUP($A13,'2021'!$B$2:$K$174,10,FALSE),0) -> 0 | AI13: =IFERROR(VLOOKUP($A13,'2020'!$B$2:$K$170,3,FALSE),0) -> 0 | AJ13: =IFERROR(VLOOKUP($A13,'2020'!$B$2:$K$170,4,FALSE),0) -> 0 | AK13: =IFERROR(VLOOKUP($A13,'2020'!$B$2:$K$170,5,FALSE),0) -> 0 | AL13: =IFERROR(VLOOKUP($A13,'2020'!$B$2:$K$170,8,FALSE),0) -> 0 | AM13: =IFERROR(VLOOKUP($A13,'2020'!$B$2:$K$170,10,FALSE),0) -> 0 | AN13: =IFERROR(VLOOKUP($A13,'2019'!$B$2:$K$170,3,FALSE),0) -> 0 | AO13: =IFERROR(VLOOKUP($A13,'2019'!$B$2:$K$170,4,FALSE),0) -> 0 | AP13: =IFERROR(VLOOKUP($A13,'2019'!$B$2:$K$170,5,FALSE),0) -> 0 | AQ13: =IFERROR(VLOOKUP($A13,'2019'!$B$2:$K$170,8,FALSE),0) -> 0 | AR13: =IFERROR(VLOOKUP($A13,'2019'!$B$2:$K$170,10,FALSE),0) -> 0 | AS13: =IFERROR(VLOOKUP($A13,'2018'!$B$2:$K$170,3,FALSE),0) -> 0 | AT13: =IFERROR(VLOOKUP($A13,'2018'!$B$2:$K$170,4,FALSE),0) -> 0 | AU13: =IFERROR(VLOOKUP($A13,'2018'!$B$2:$K$170,5,FALSE),0) -> 0 | AV13: =IFERROR(VLOOKUP($A13,'2018'!$B$2:$K$170,8,FALSE),0) -> 0 | AW13: =IFERROR(VLOOKUP($A13,'2018'!$B$2:$K$170,10,FALSE),0) -> 0 | AX13: =IFERROR(VLOOKUP($A13,'2017'!$B$2:$J$163,2,FALSE),0) -> 0 | AY13: =IFERROR(VLOOKUP($A13,'2017'!$B$2:$J$163,3,FALSE),0) -> 0 | AZ13: =IFERROR(VLOOKUP($A13,'2017'!$B$2:$J$163,4,FALSE),0) -> 0 | BA13: =IFERROR(VLOOKUP($A13,'2017'!$B$2:$J$163,7,FALSE),0) -> 0 | BB13: =IFERROR(VLOOKUP($A13,'2017'!$B$2:$J$163,9,FALSE),0) -> 0 | BC13: =IFERROR(VLOOKUP($A13,'2016'!$B$2:$K$165,3,FALSE),0) -> 0 | BD13: =IFERROR(VLOOKUP($A13,'2016'!$B$2:$K$165,4,FALSE),0) -> 0 | BE13: =IFERROR(VLOOKUP($A13,'2016'!$B$2:$K$165,5,FALSE),0) -> 0 | BF13: =IFERROR(VLOOKUP($A13,'2016'!$B$2:$K$165,8,FALSE),0) -> 0 | BG13: =IFERROR(VLOOKUP($A13,'2016'!$B$2:$K$165,10,FALSE),0) -> 0 | BH13: =IFERROR(VLOOKUP($A13,'2015'!$B$2:$K$165,3,FALSE),0) -> 0 | BI13: =IFERROR(VLOOKUP($A13,'2015'!$B$2:$K$165,4,FALSE),0) -> 0 | BJ13: =IFERROR(VLOOKUP($A13,'2015'!$B$2:$K$165,5,FALSE),0) -> 0 | BK13: =IFERROR(VLOOKUP($A13,'2015'!$B$2:$K$165,8,FALSE),0) -> 0 | BL13: =IFERROR(VLOOKUP($A13,'2015'!$B$2:$K$165,10,FALSE),0) -> 0 | BM13: =IFERROR(VLOOKUP($A13,'2014'!$B$2:$K$157,3,FALSE),0) -> 0 | BN13: =IFERROR(VLOOKUP($A13,'2014'!$B$2:$K$157,4,FALSE),0) -> 0 | BO13: =IFERROR(VLOOKUP($A13,'2014'!$B$2:$K$157,5,FALSE),0) -> 0 | BP13: =IFERROR(VLOOKUP($A13,'2014'!$B$2:$K$157,8,FALSE),0) -> 0 | BQ13: =IFERROR(VLOOKUP($A13,'2014'!$B$2:$K$157,10,FALSE),0) -> 0 | BR13: =IFERROR(VLOOKUP($A13,'2013'!$D$4:$I$249,2,FALSE),0) -> 44 | BS13: =IFERROR(VLOOKUP($A13,'2013'!$D$4:$I$249,3,FALSE),0) -> 17 | BT13: =IFERROR(VLOOKUP($A13,'2013'!$D$4:$I$249,4,FALSE),0) -> 23 | BU13: =IFERROR(VLOOKUP($A13,'2013'!$D$4:$I$249,5,FALSE),0) -> 3 | BV13: =IFERROR(VLOOKUP($A13,'2013'!$D$4:$I$249,6,FALSE),0) -> 0.5227272727 | BW13: =IFERROR(VLOOKUP($A13,'2012'!$D$3:$O$172,2,FALSE),0) -> 0 | BX13: =IFERROR(VLOOKUP($A13,'2012'!$D$3:$O$172,3,FALSE),0) -> 0 | BY13: =IFERROR(VLOOKUP($A13,'2012'!$D$3:$O$172,4,FALSE),0) -> 0 | BZ13: =IFERROR(VLOOKUP($A13,'2012'!$D$3:$O$172,5,FALSE),0) -> 0 | CA13: =IFERROR(VLOOKUP($A13,'2012'!$D$3:$O$172,6,FALSE),0) -> 0 | CB13: =IFERROR(VLOOKUP($A13,'2012'!$D$3:$O$172,7,FALSE),0) -> 0 | CC13: =IFERROR(VLOOKUP($A13,'2012'!$D$3:$O$172,8,FALSE),0) -> 0 | CD13: =IFERROR(VLOOKUP($A13,'2012'!$D$3:$O$172,9,FALSE),0) -> 0 | CE13: =IFERROR(VLOOKUP($A13,'2012'!$D$3:$O$172,10,FALSE),0) -> 0 | CF13: =IFERROR(VLOOKUP($A13,'2012'!$D$3:$O$172,11,FALSE),0) -> 0 | CG13: =IFERROR(VLOOKUP($A13,'2012'!$D$3:$O$172,12,FALSE),0) -> 0 | CH13: =IFERROR(VLOOKUP($A13,'2011'!$D$4:$I$251,2,FALSE),0) -> 62 | CI13: =IFERROR(VLOOKUP($A13,'2011'!$D$4:$I$251,3,FALSE),0) -> 36 | CJ13: =IFERROR(VLOOKUP($A13,'2011'!$D$4:$I$251,4,FALSE),0) -> 37 | CK13: =IFERROR(VLOOKUP($A13,'2011'!$D$4:$I$251,5,FALSE),0) -> 11 | CL13: =IFERROR(VLOOKUP($A13,'2011'!$D$4:$I$251,6,FALSE),0) -> 0.5967741935 | CM13: =IFERROR(VLOOKUP($A13,'2010'!$C$3:$H$234,2,FALSE),0) -> 68 | CN13: =IFERROR(VLOOKUP($A13,'2010'!$C$3:$H$234,3,FALSE),0) -> 31 | CO13: =IFERROR(VLOOKUP($A13,'2010'!$C$3:$H$234,4,FALSE),0) -> 40 | CP13: =IFERROR(VLOOKUP($A13,'2010'!$C$3:$H$234,5,FALSE),0) -> 9 | CQ13: =IFERROR(VLOOKUP($A13,'2010'!$C$3:$H$234,6,FALSE),0) -> 0.5882352941 | CR13: =IFERROR(VLOOKUP($A13,'2009'!$C$3:$H$242,2,FALSE),0) -> 66 | CS13: =IFERROR(VLOOKUP($A13,'2009'!$C$3:$H$242,3,FALSE),0) -> 39 | CT13: =IFERROR(VLOOKUP($A13,'2009'!$C$3:$H$242,4,FALSE),0) -> 47 | CU13: =IFERROR(VLOOKUP($A13,'2009'!$C$3:$H$242,5,FALSE),0) -> 7 | CV13: =IFERROR(VLOOKUP($A13,'2009'!$C$3:$H$242,6,FALSE),0) -> 0.7121212121 | CW13: =IFERROR(VLOOKUP($A13,'2008'!$C$3:$H$229,2,FALSE),0) -> 56 | CX13: =IFERROR(VLOOKUP($A13,'2008'!$C$3:$H$229,3,FALSE),0) -> 36 | CY13: =IFERROR(VLOOKUP($A13,'2008'!$C$3:$H$229,4,FALSE),0) -> 40 | CZ13: =IFERROR(VLOOKUP($A13,'2008'!$C$3:$H$229,5,FALSE),0) -> 8 | DA13: =IFERROR(VLOOKUP($A13,'2008'!$C$3:$H$229,6,FALSE),0) -> 0.7142857143 | DB13: =IFERROR(VLOOKUP($A13,'2007'!$C$3:$M$238,7,FALSE),0) -> 30 | DC13: =IFERROR(VLOOKUP($A13,'2007'!$C$3:$M$238,8,FALSE),0) -> 13 | DD13: =IFERROR(VLOOKUP($A13,'2007'!$C$3:$M$238,9,FALSE),0) -> 19 | DE13: =IFERROR(VLOOKUP($A13,'2007'!$C$3:$M$238,10,FALSE),0) -> 3 | DF13: =IFERROR(VLOOKUP($A13,'2007'!$C$3:$M$238,11,FALSE),0) -> 0.6333333333 | DG13: =IFERROR(VLOOKUP($A13,'2006'!$A$2:$F$200,2,FALSE),0) -> 65 | DH13: =IFERROR(VLOOKUP($A13,'2006'!$A$2:$F$200,4,FALSE),0) -> 50 | DI13: =IFERROR(VLOOKUP($A13,'2006'!$A$2:$F$200,5,FALSE),0) -> 9 | DJ13: =IFERROR(VLOOKUP($A13,'2006'!$A$2:$F$200,6,FALSE),0) -> 0.7692307692 | DK13: =IFERROR(VLOOKUP($A13,'2005'!$C$3:$M$205,8,FALSE),0) -> 61 | DL13: =IFERROR(VLOOKUP($A13,'2005'!$C$3:$M$205,9,FALSE),0) -> 48 | DM13: =IFERROR(VLOOKUP($A13,'2005'!$C$3:$M$205,10,FALSE),0) -> 20 | DN13: =IFERROR(VLOOKUP($A13,'2005'!$C$3:$M$205,11,FALSE),0) -> 0.7868852459 | DO13: =IFERROR(VLOOKUP($A13,'2004'!$C$3:$M$213,8,FALSE),0) -> 73 | DP13: =IFERROR(VLOOKUP($A13,'2004'!$C$3:$M$213,9,FALSE),0) -> 55 | DQ13: =IFERROR(VLOOKUP($A13,'2004'!$C$3:$M$213,10,FALSE),0) -> 22 | DR13: =IFERROR(VLOOKUP($A13,'2004'!$C$3:$M$213,11,FALSE),0) -> 0.7534246575 | DS13: =IFERROR(VLOOKUP($A13,'2003'!$C$3:$Q$214,12,FALSE),0) -> 74 | DT13: =IFERROR(VLOOKUP($A13,'2003'!$C$3:$Q$214,13,FALSE),0) -> 46 | DU13: =IFERROR(VLOOKUP($A13,'2003'!$C$3:$Q$214,14,FALSE),0) -> 10 | DV13: =IFERROR(VLOOKUP($A13,'2003'!$C$3:$Q$214,15,FALSE),0) -> 0.6216216216 | DW13: =IFERROR(VLOOKUP($A13,'2002'!$D$3:$R$214,12,FALSE),0) -> 72 | DX13: =IFERROR(VLOOKUP($A13,'2002'!$D$3:$R$214,13,FALSE),0) -> 51 | DY13: =IFERROR(VLOOKUP($A13,'2002'!$D$3:$R$214,14,FALSE),0) -> 16 | DZ13: =IFERROR(VLOOKUP($A13,'2002'!$D$3:$R$214,15,FALSE),0) -> 0.7083333333 | EA13: =IFERROR(VLOOKUP($A13,'Pre 2002'!$C$3:$CK$382,84,FALSE),0) -> 92 | EB13: =IFERROR(VLOOKUP($A13,'Pre 2002'!$C$3:$CK$382,85,FALSE),0) -> 78 | EC13: =IFERROR(VLOOKUP($A13,'Pre 2002'!$C$3:$CK$382,86,FALSE),0) -> 20 | ED13: =IFERROR(VLOOKUP($A13,'Pre 2002'!$C$3:$CK$382,87,FALSE),0) -> 0.847826087 | EE13: =IFERROR(VLOOKUP(A13,'Pre 2002'!$C$3:$CG$382,83,FALSE),0) -> 2
A14: Kyle Hartwick | B14: =SUM(O14,T14,Y14,AD14,AI14,AN14,AS14,AX14,BC14,BH14,BM14,BR14,BZ14,CH14,CM14,CR14,CW14,DB14,DG14,DK14,DO14,DS14,DW14,EA14) -> 553 | C14: =SUM(Q14,V14,AA14,AF14,AK14,AP14,AU14,AZ14,BE14,BJ14,BO14,BT14,CB14,CJ14,CO14,CT14,CY14,DD14,DH14,DL14,DP14,DT14,DX14,EB14) -> 393 | D14: =SUM(R14,W14,AB14,AG14,AL14,AQ14,AV14,BA14,BF14,BK14,BP14,BU14,CC14,CK14,CP14,CU14,CZ14,DE14,DI14,DM14,DQ14,DU14,DY14,EC14) -> 125 | E14: =IF(B14=0,0,C14/B14) -> 0.7106690778 | F14: =IF(O14>0,1,0)+IF(T14>0,1,0)+IF(Y14>0,1,0)+IF(AD14>0,1,0)+IF(AI14>0,1,0)+IF(AN14>0,1,0)+IF(AS14>0,1,0)+IF(AX14>0,1,0)+IF(BC14>0,1,0)+IF(BH14>0,1,0)+IF(BM14>0,1,0)+IF(BR14>0,1,0)+IF(BZ14>0,1,0)+IF(CH14>0,1,0)+IF(CM14>0,1,0)+IF(CR14>0,1,0)+IF(CW14>0,1,0)+IF(DB14>0,1,0)+IF(DG14>0,1,0)+IF(DK14>0,1,0)+IF(DO14>0,1,0)+IF(DS14>0,1,0)+IF(DW14>0,1,0)+EE14 -> 7 | G14: 2018 | O14: =IFERROR(VLOOKUP($A14,'2024'!$A$2:$M$220,6,FALSE),0) -> 81 | P14: =IFERROR(VLOOKUP($A14,'2024'!$A$2:$M$220,7,FALSE),0) -> 34 | Q14: =IFERROR(VLOOKUP($A14,'2024'!$A$2:$M$220,8,FALSE),0) -> 52 | R14: =IFERROR(VLOOKUP($A14,'2024'!$A$2:$M$220,11,FALSE),0) -> 13 | S14: =IFERROR(VLOOKUP($A14,'2024'!$A$2:$M$220,13,FALSE),0) -> 0.642 | T14: =IFERROR(VLOOKUP($A14,'2023'!$A$2:$M$170,6,FALSE),0) -> 74 | U14: =IFERROR(VLOOKUP($A14,'2023'!$A$2:$M$170,7,FALSE),0) -> 50 | V14: =IFERROR(VLOOKUP($A14,'2023'!$A$2:$M$170,8,FALSE),0) -> 56 | W14: =IFERROR(VLOOKUP($A14,'2023'!$A$2:$M$170,11,FALSE),0) -> 15 | X14: =IFERROR(VLOOKUP($A14,'2023'!$A$2:$M$170,13,FALSE),0) -> 0.757 | Y14: =IFERROR(VLOOKUP($A14,'2022'!$B$2:$K$174,3,FALSE),0) -> 78 | Z14: =IFERROR(VLOOKUP($A14,'2022'!$B$2:$K$174,4,FALSE),0) -> 47 | AA14: =IFERROR(VLOOKUP($A14,'2022'!$B$2:$K$174,5,FALSE),0) -> 56 | AB14: =IFERROR(VLOOKUP($A14,'2022'!$B$2:$K$174,8,FALSE),0) -> 21 | AC14: =IFERROR(VLOOKUP($A14,'2022'!$B$2:$K$174,10,FALSE),0) -> 0.718 | AD14: =IFERROR(VLOOKUP($A14,'2021'!$B$2:$K$174,3,FALSE),0) -> 75 | AE14: =IFERROR(VLOOKUP($A14,'2021'!$B$2:$K$174,4,FALSE),0) -> 39 | AF14: =IFERROR(VLOOKUP($A14,'2021'!$B$2:$K$174,5,FALSE),0) -> 47 | AG14: =IFERROR(VLOOKUP($A14,'2021'!$B$2:$K$174,8,FALSE),0) -> 18 | AH14: =IFERROR(VLOOKUP($A14,'2021'!$B$2:$K$174,10,FALSE),0) -> 0.627 | AI14: =IFERROR(VLOOKUP($A14,'2020'!$B$2:$K$170,3,FALSE),0) -> 78 | AJ14: =IFERROR(VLOOKUP($A14,'2020'!$B$2:$K$170,4,FALSE),0) -> 42 | AK14: =IFERROR(VLOOKUP($A14,'2020'!$B$2:$K$170,5,FALSE),0) -> 56 | AL14: =IFERROR(VLOOKUP($A14,'2020'!$B$2:$K$170,8,FALSE),0) -> 21 | AM14: =IFERROR(VLOOKUP($A14,'2020'!$B$2:$K$170,10,FALSE),0) -> 0.718 | AN14: =IFERROR(VLOOKUP($A14,'2019'!$B$2:$K$170,3,FALSE),0) -> 85 | AO14: =IFERROR(VLOOKUP($A14,'2019'!$B$2:$K$170,4,FALSE),0) -> 47 | AP14: =IFERROR(VLOOKUP($A14,'2019'!$B$2:$K$170,5,FALSE),0) -> 55 | AQ14: =IFERROR(VLOOKUP($A14,'2019'!$B$2:$K$170,8,FALSE),0) -> 20 | AR14: =IFERROR(VLOOKUP($A14,'2019'!$B$2:$K$170,10,FALSE),0) -> 0.647 | AS14: =IFERROR(VLOOKUP($A14,'2018'!$B$2:$K$170,3,FALSE),0) -> 82 | AT14: =IFERROR(VLOOKUP($A14,'2018'!$B$2:$K$170,4,FALSE),0) -> 49 | AU14: =IFERROR(VLOOKUP($A14,'2018'!$B$2:$K$170,5,FALSE),0) -> 71 | AV14: =IFERROR(VLOOKUP($A14,'2018'!$B$2:$K$170,8,FALSE),0) -> 17 | AW14: =IFERROR(VLOOKUP($A14,'2018'!$B$2:$K$170,10,FALSE),0) -> 0.866
A15: Brandon Lietke | B15: =SUM(O15,T15,Y15,AD15,AI15,AN15,AS15,AX15,BC15,BH15,BM15,BR15,BZ15,CH15,CM15,CR15,CW15,DB15,DG15,DK15,DO15,DS15,DW15,EA15) -> 920 | C15: =SUM(Q15,V15,AA15,AF15,AK15,AP15,AU15,AZ15,BE15,BJ15,BO15,BT15,CB15,CJ15,CO15,CT15,CY15,DD15,DH15,DL15,DP15,DT15,DX15,EB15) -> 576 | D15: =SUM(R15,W15,AB15,AG15,AL15,AQ15,AV15,BA15,BF15,BK15,BP15,BU15,CC15,CK15,CP15,CU15,CZ15,DE15,DI15,DM15,DQ15,DU15,DY15,EC15) -> 125 | E15: =IF(B15=0,0,C15/B15) -> 0.6260869565 | F15: =IF(O15>0,1,0)+IF(T15>0,1,0)+IF(Y15>0,1,0)+IF(AD15>0,1,0)+IF(AI15>0,1,0)+IF(AN15>0,1,0)+IF(AS15>0,1,0)+IF(AX15>0,1,0)+IF(BC15>0,1,0)+IF(BH15>0,1,0)+IF(BM15>0,1,0)+IF(BR15>0,1,0)+IF(BZ15>0,1,0)+IF(CH15>0,1,0)+IF(CM15>0,1,0)+IF(CR15>0,1,0)+IF(CW15>0,1,0)+IF(DB15>0,1,0)+IF(DG15>0,1,0)+IF(DK15>0,1,0)+IF(DO15>0,1,0)+IF(DS15>0,1,0)+IF(DW15>0,1,0)+EE15 -> 15 | G15: 2009 | H15: =IF(BM15>0,1,0)+IF(BR15>0,1,0)+IF(BZ15>0,1,0)+IF(CH15>0,1,0)+IF(CM15>0,1,0)+IF(CR15>0,1,0)+IF(CW15>0,1,0)+IF(DB15>0,1,0)+IF(DG15>0,1,0)+IF(DK15>0,1,0)+IF(DO15>0,1,0)+IF(DS15>0,1,0)+IF(DW15>0,1,0)+EE15 -> 6 | I15: =SUM(BM15,BR15,BZ15,CH15,CM15,CR15,CW15,DB15,DG15,DK15,DO15,DS15,DW15,EA15) -> 361 | J15: =SUM(BO15,BT15,CB15,CJ15,CO15,CT15,CY15,DD15,DH15,DL15,DP15,DT15,DX15,EB15) -> 229 | K15: =SUM(BP15,BU15,CC15,CK15,CP15,CU15,CZ15,DE15,DI15,DM15,DQ15,DU15,DY15,EC15) -> 48 | L15: =IF(I15=0,0,J15/I15) -> 0.6343490305 | M15: 09 | N15: 0 | O15: =IFERROR(VLOOKUP($A15,'2024'!$A$2:$M$220,6,FALSE),0) -> 23 | P15: =IFERROR(VLOOKUP($A15,'2024'!$A$2:$M$220,7,FALSE),0) -> 13 | Q15: =IFERROR(VLOOKUP($A15,'2024'!$A$2:$M$220,8,FALSE),0) -> 14 | R15: =IFERROR(VLOOKUP($A15,'2024'!$A$2:$M$220,11,FALSE),0) -> 4 | S15: =IFERROR(VLOOKUP($A15,'2024'!$A$2:$M$220,13,FALSE),0) -> 0.609 | T15: =IFERROR(VLOOKUP($A15,'2023'!$A$2:$M$170,6,FALSE),0) -> 78 | U15: =IFERROR(VLOOKUP($A15,'2023'!$A$2:$M$170,7,FALSE),0) -> 32 | V15: =IFERROR(VLOOKUP($A15,'2023'!$A$2:$M$170,8,FALSE),0) -> 49 | W15: =IFERROR(VLOOKUP($A15,'2023'!$A$2:$M$170,11,FALSE),0) -> 6 | X15: =IFERROR(VLOOKUP($A15,'2023'!$A$2:$M$170,13,FALSE),0) -> 0.628 | Y15: =IFERROR(VLOOKUP($A15,'2022'!$B$2:$K$174,3,FALSE),0) -> 56 | Z15: =IFERROR(VLOOKUP($A15,'2022'!$B$2:$K$174,4,FALSE),0) -> 23 | AA15: =IFERROR(VLOOKUP($A15,'2022'!$B$2:$K$174,5,FALSE),0) -> 30 | AB15: =IFERROR(VLOOKUP($A15,'2022'!$B$2:$K$174,8,FALSE),0) -> 10 | AC15: =IFERROR(VLOOKUP($A15,'2022'!$B$2:$K$174,10,FALSE),0) -> 0.536 | AD15: =IFERROR(VLOOKUP($A15,'2021'!$B$2:$K$174,3,FALSE),0) -> 77 | AE15: =IFERROR(VLOOKUP($A15,'2021'!$B$2:$K$174,4,FALSE),0) -> 45 | AF15: =IFERROR(VLOOKUP($A15,'2021'!$B$2:$K$174,5,FALSE),0) -> 50 | AG15: =IFERROR(VLOOKUP($A15,'2021'!$B$2:$K$174,8,FALSE),0) -> 16 | AH15: =IFERROR(VLOOKUP($A15,'2021'!$B$2:$K$174,10,FALSE),0) -> 0.649 | AI15: =IFERROR(VLOOKUP($A15,'2020'!$B$2:$K$170,3,FALSE),0) -> 74 | AJ15: =IFERROR(VLOOKUP($A15,'2020'!$B$2:$K$170,4,FALSE),0) -> 42 | AK15: =IFERROR(VLOOKUP($A15,'2020'!$B$2:$K$170,5,FALSE),0) -> 50 | AL15: =IFERROR(VLOOKUP($A15,'2020'!$B$2:$K$170,8,FALSE),0) -> 19 | AM15: =IFERROR(VLOOKUP($A15,'2020'!$B$2:$K$170,10,FALSE),0) -> 0.676 | AN15: =IFERROR(VLOOKUP($A15,'2019'!$B$2:$K$170,3,FALSE),0) -> 0 | AO15: =IFERROR(VLOOKUP($A15,'2019'!$B$2:$K$170,4,FALSE),0) -> 0 | AP15: =IFERROR(VLOOKUP($A15,'2019'!$B$2:$K$170,5,FALSE),0) -> 0 | AQ15: =IFERROR(VLOOKUP($A15,'2019'!$B$2:$K$170,8,FALSE),0) -> 0 | AR15: =IFERROR(VLOOKUP($A15,'2019'!$B$2:$K$170,10,FALSE),0) -> 0 | AS15: =IFERROR(VLOOKUP($A15,'2018'!$B$2:$K$170,3,FALSE),0) -> 64 | AT15: =IFERROR(VLOOKUP($A15,'2018'!$B$2:$K$170,4,FALSE),0) -> 33 | AU15: =IFERROR(VLOOKUP($A15,'2018'!$B$2:$K$170,5,FALSE),0) -> 35 | AV15: =IFERROR(VLOOKUP($A15,'2018'!$B$2:$K$170,8,FALSE),0) -> 7 | AW15: =IFERROR(VLOOKUP($A15,'2018'!$B$2:$K$170,10,FALSE),0) -> 0.547 | AX15: =IFERROR(VLOOKUP($A15,'2017'!$B$2:$J$163,2,FALSE),0) -> 56 | AY15: =IFERROR(VLOOKUP($A15,'2017'!$B$2:$J$163,3,FALSE),0) -> 25 | AZ15: =IFERROR(VLOOKUP($A15,'2017'!$B$2:$J$163,4,FALSE),0) -> 41 | BA15: =IFERROR(VLOOKUP($A15,'2017'!$B$2:$J$163,7,FALSE),0) -> 2 | BB15: =IFERROR(VLOOKUP($A15,'2017'!$B$2:$J$163,9,FALSE),0) -> 0.732 | BC15: =IFERROR(VLOOKUP($A15,'2016'!$B$2:$K$165,3,FALSE),0) -> 66 | BD15: =IFERROR(VLOOKUP($A15,'2016'!$B$2:$K$165,4,FALSE),0) -> 37 | BE15: =IFERROR(VLOOKUP($A15,'2016'!$B$2:$K$165,5,FALSE),0) -> 41 | BF15: =IFERROR(VLOOKUP($A15,'2016'!$B$2:$K$165,8,FALSE),0) -> 7 | BG15: =IFERROR(VLOOKUP($A15,'2016'!$B$2:$K$165,10,FALSE),0) -> 0.621 | BH15: =IFERROR(VLOOKUP($A15,'2015'!$B$2:$K$165,3,FALSE),0) -> 65 | BI15: =IFERROR(VLOOKUP($A15,'2015'!$B$2:$K$165,4,FALSE),0) -> 28 | BJ15: =IFERROR(VLOOKUP($A15,'2015'!$B$2:$K$165,5,FALSE),0) -> 37 | BK15: =IFERROR(VLOOKUP($A15,'2015'!$B$2:$K$165,8,FALSE),0) -> 6 | BL15: =IFERROR(VLOOKUP($A15,'2015'!$B$2:$K$165,10,FALSE),0) -> 0.5692307692 | BM15: =IFERROR(VLOOKUP($A15,'2014'!$B$2:$K$157,3,FALSE),0) -> 74 | BN15: =IFERROR(VLOOKUP($A15,'2014'!$B$2:$K$157,4,FALSE),0) -> 39 | BO15: =IFERROR(VLOOKUP($A15,'2014'!$B$2:$K$157,5,FALSE),0) -> 49 | BP15: =IFERROR(VLOOKUP($A15,'2014'!$B$2:$K$157,8,FALSE),0) -> 12 | BQ15: =IFERROR(VLOOKUP($A15,'2014'!$B$2:$K$157,10,FALSE),0) -> 0.6621621622 | BR15: =IFERROR(VLOOKUP($A15,'2013'!$D$4:$I$249,2,FALSE),0) -> 72 | BS15: =IFERROR(VLOOKUP($A15,'2013'!$D$4:$I$249,3,FALSE),0) -> 33 | BT15: =IFERROR(VLOOKUP($A15,'2013'!$D$4:$I$249,4,FALSE),0) -> 45 | BU15: =IFERROR(VLOOKUP($A15,'2013'!$D$4:$I$249,5,FALSE),0) -> 7 | BV15: =IFERROR(VLOOKUP($A15,'2013'!$D$4:$I$249,6,FALSE),0) -> 0.625 | BW15: =IFERROR(VLOOKUP($A15,'2012'!$D$3:$O$172,2,FALSE),0) -> 215 | BX15: =IFERROR(VLOOKUP($A15,'2012'!$D$3:$O$172,3,FALSE),0) -> 135 | BY15: =IFERROR(VLOOKUP($A15,'2012'!$D$3:$O$172,4,FALSE),0) -> 29 | BZ15: =IFERROR(VLOOKUP($A15,'2012'!$D$3:$O$172,5,FALSE),0) -> 81 | CA15: =IFERROR(VLOOKUP($A15,'2012'!$D$3:$O$172,6,FALSE),0) -> 39 | CB15: =IFERROR(VLOOKUP($A15,'2012'!$D$3:$O$172,7,FALSE),0) -> 53 | CC15: =IFERROR(VLOOKUP($A15,'2012'!$D$3:$O$172,8,FALSE),0) -> 11 | CD15: =IFERROR(VLOOKUP($A15,'2012'!$D$3:$O$172,9,FALSE),0) -> 0.6543209877 | CE15: =IFERROR(VLOOKUP($A15,'2012'!$D$3:$O$172,10,FALSE),0) -> 134 | CF15: =IFERROR(VLOOKUP($A15,'2012'!$D$3:$O$172,11,FALSE),0) -> 82 | CG15: =IFERROR(VLOOKUP($A15,'2012'!$D$3:$O$172,12,FALSE),0) -> 18 | CH15: =IFERROR(VLOOKUP($A15,'2011'!$D$4:$I$251,2,FALSE),0) -> 78 | CI15: =IFERROR(VLOOKUP($A15,'2011'!$D$4:$I$251,3,FALSE),0) -> 40 | CJ15: =IFERROR(VLOOKUP($A15,'2011'!$D$4:$I$251,4,FALSE),0) -> 50 | CK15: =IFERROR(VLOOKUP($A15,'2011'!$D$4:$I$251,5,FALSE),0) -> 12 | CL15: =IFERROR(VLOOKUP($A15,'2011'!$D$4:$I$251,6,FALSE),0) -> 0.641025641 | CM15: =IFERROR(VLOOKUP($A15,'2010'!$C$3:$H$234,2,FALSE),0) -> 50 | CN15: =IFERROR(VLOOKUP($A15,'2010'!$C$3:$H$234,3,FALSE),0) -> 22 | CO15: =IFERROR(VLOOKUP($A15,'2010'!$C$3:$H$234,4,FALSE),0) -> 29 | CP15: =IFERROR(VLOOKUP($A15,'2010'!$C$3:$H$234,5,FALSE),0) -> 5 | CQ15: =IFERROR(VLOOKUP($A15,'2010'!$C$3:$H$234,6,FALSE),0) -> 0.58 | CR15: =IFERROR(VLOOKUP($A15,'2009'!$C$3:$H$242,2,FALSE),0) -> 6 | CS15: =IFERROR(VLOOKUP($A15,'2009'!$C$3:$H$242,3,FALSE),0) -> 2 | CT15: =IFERROR(VLOOKUP($A15,'2009'!$C$3:$H$242,4,FALSE),0) -> 3 | CU15: =IFERROR(VLOOKUP($A15,'2009'!$C$3:$H$242,5,FALSE),0) -> 1 | CV15: =IFERROR(VLOOKUP($A15,'2009'!$C$3:$H$242,6,FALSE),0) -> 0.5 | CW15: =IFERROR(VLOOKUP($A15,'2008'!$C$3:$H$229,2,FALSE),0) -> 0 | CX15: =IFERROR(VLOOKUP($A15,'2008'!$C$3:$H$229,3,FALSE),0) -> 0 | CY15: =IFERROR(VLOOKUP($A15,'2008'!$C$3:$H$229,4,FALSE),0) -> 0 | CZ15: =IFERROR(VLOOKUP($A15,'2008'!$C$3:$H$229,5,FALSE),0) -> 0 | DA15: =IFERROR(VLOOKUP($A15,'2008'!$C$3:$H$229,6,FALSE),0) -> 0 | DB15: =IFERROR(VLOOKUP($A15,'2007'!$C$3:$M$238,7,FALSE),0) -> 0 | DC15: =IFERROR(VLOOKUP($A15,'2007'!$C$3:$M$238,8,FALSE),0) -> 0 | DD15: =IFERROR(VLOOKUP($A15,'2007'!$C$3:$M$238,9,FALSE),0) -> 0 | DE15: =IFERROR(VLOOKUP($A15,'2007'!$C$3:$M$238,10,FALSE),0) -> 0 | DF15: =IFERROR(VLOOKUP($A15,'2007'!$C$3:$M$238,11,FALSE),0) -> 0 | DG15: =IFERROR(VLOOKUP($A15,'2006'!$A$2:$F$200,2,FALSE),0) -> 0 | DH15: =IFERROR(VLOOKUP($A15,'2006'!$A$2:$F$200,4,FALSE),0) -> 0 | DI15: =IFERROR(VLOOKUP($A15,'2006'!$A$2:$F$200,5,FALSE),0) -> 0 | DJ15: =IFERROR(VLOOKUP($A15,'2006'!$A$2:$F$200,6,FALSE),0) -> 0 | DK15: =IFERROR(VLOOKUP($A15,'2005'!$C$3:$M$205,8,FALSE),0) -> 0 | DL15: =IFERROR(VLOOKUP($A15,'2005'!$C$3:$M$205,9,FALSE),0) -> 0 | DM15: =IFERROR(VLOOKUP($A15,'2005'!$C$3:$M$205,10,FALSE),0) -> 0 | DN15: =IFERROR(VLOOKUP($A15,'2005'!$C$3:$M$205,11,FALSE),0) -> 0 | DO15: =IFERROR(VLOOKUP($A15,'2004'!$C$3:$M$213,8,FALSE),0) -> 0 | DP15: =IFERROR(VLOOKUP($A15,'2004'!$C$3:$M$213,9,FALSE),0) -> 0 | DQ15: =IFERROR(VLOOKUP($A15,'2004'!$C$3:$M$213,10,FALSE),0) -> 0 | DR15: =IFERROR(VLOOKUP($A15,'2004'!$C$3:$M$213,11,FALSE),0) -> 0 | DS15: =IFERROR(VLOOKUP($A15,'2003'!$C$3:$Q$214,12,FALSE),0) -> 0 | DT15: =IFERROR(VLOOKUP($A15,'2003'!$C$3:$Q$214,13,FALSE),0) -> 0 | DU15: =IFERROR(VLOOKUP($A15,'2003'!$C$3:$Q$214,14,FALSE),0) -> 0 | DV15: =IFERROR(VLOOKUP($A15,'2003'!$C$3:$Q$214,15,FALSE),0) -> 0 | DW15: =IFERROR(VLOOKUP($A15,'2002'!$D$3:$R$214,12,FALSE),0) -> 0 | DX15: =IFERROR(VLOOKUP($A15,'2002'!$D$3:$R$214,13,FALSE),0) -> 0 | DY15: =IFERROR(VLOOKUP($A15,'2002'!$D$3:$R$214,14,FALSE),0) -> 0 | DZ15: =IFERROR(VLOOKUP($A15,'2002'!$D$3:$R$214,15,FALSE),0) -> 0 | EA15: =IFERROR(VLOOKUP($A15,'Pre 2002'!$C$3:$CK$382,84,FALSE),0) -> 0 | EB15: =IFERROR(VLOOKUP($A15,'Pre 2002'!$C$3:$CK$382,85,FALSE),0) -> 0 | EC15: =IFERROR(VLOOKUP($A15,'Pre 2002'!$C$3:$CK$382,86,FALSE),0) -> 0 | ED15: =IFERROR(VLOOKUP($A15,'Pre 2002'!$C$3:$CK$382,87,FALSE),0) -> 0 | EE15: =IFERROR(VLOOKUP(A15,'Pre 2002'!$C$3:$CG$382,83,FALSE),0) -> 0
A16: Jeff Acton | B16: =SUM(O16,T16,Y16,AD16,AI16,AN16,AS16,AX16,BC16,BH16,BM16,BR16,BZ16,CH16,CM16,CR16,CW16,DB16,DG16,DK16,DO16,DS16,DW16,EA16) -> 520 | C16: =SUM(Q16,V16,AA16,AF16,AK16,AP16,AU16,AZ16,BE16,BJ16,BO16,BT16,CB16,CJ16,CO16,CT16,CY16,DD16,DH16,DL16,DP16,DT16,DX16,EB16) -> 368 | D16: =SUM(R16,W16,AB16,AG16,AL16,AQ16,AV16,BA16,BF16,BK16,BP16,BU16,CC16,CK16,CP16,CU16,CZ16,DE16,DI16,DM16,DQ16,DU16,DY16,EC16) -> 124 | E16: =IF(B16=0,0,C16/B16) -> 0.7076923077 | F16: =IF(O16>0,1,0)+IF(T16>0,1,0)+IF(Y16>0,1,0)+IF(AD16>0,1,0)+IF(AI16>0,1,0)+IF(AN16>0,1,0)+IF(AS16>0,1,0)+IF(AX16>0,1,0)+IF(BC16>0,1,0)+IF(BH16>0,1,0)+IF(BM16>0,1,0)+IF(BR16>0,1,0)+IF(BZ16>0,1,0)+IF(CH16>0,1,0)+IF(CM16>0,1,0)+IF(CR16>0,1,0)+IF(CW16>0,1,0)+IF(DB16>0,1,0)+IF(DG16>0,1,0)+IF(DK16>0,1,0)+IF(DO16>0,1,0)+IF(DS16>0,1,0)+IF(DW16>0,1,0)+EE16 -> 10 | H16: =IF(BM16>0,1,0)+IF(BR16>0,1,0)+IF(BZ16>0,1,0)+IF(CH16>0,1,0)+IF(CM16>0,1,0)+IF(CR16>0,1,0)+IF(CW16>0,1,0)+IF(DB16>0,1,0)+IF(DG16>0,1,0)+IF(DK16>0,1,0)+IF(DO16>0,1,0)+IF(DS16>0,1,0)+IF(DW16>0,1,0)+EE16 -> 10 | I16: =SUM(BM16,BR16,BZ16,CH16,CM16,CR16,CW16,DB16,DG16,DK16,DO16,DS16,DW16,EA16) -> 520 | J16: =SUM(BO16,BT16,CB16,CJ16,CO16,CT16,CY16,DD16,DH16,DL16,DP16,DT16,DX16,EB16) -> 368 | K16: =SUM(BP16,BU16,CC16,CK16,CP16,CU16,CZ16,DE16,DI16,DM16,DQ16,DU16,DY16,EC16) -> 124 | L16: =IF(I16=0,0,J16/I16) -> 0.7076923077 | O16: =IFERROR(VLOOKUP($A16,'2024'!$A$2:$M$220,6,FALSE),0) -> 0 | P16: =IFERROR(VLOOKUP($A16,'2024'!$A$2:$M$220,7,FALSE),0) -> 0 | Q16: =IFERROR(VLOOKUP($A16,'2024'!$A$2:$M$220,8,FALSE),0) -> 0 | R16: =IFERROR(VLOOKUP($A16,'2024'!$A$2:$M$220,11,FALSE),0) -> 0 | S16: =IFERROR(VLOOKUP($A16,'2024'!$A$2:$M$220,13,FALSE),0) -> 0 | T16: =IFERROR(VLOOKUP($A16,'2023'!$A$2:$M$170,6,FALSE),0) -> 0 | U16: =IFERROR(VLOOKUP($A16,'2023'!$A$2:$M$170,7,FALSE),0) -> 0 | V16: =IFERROR(VLOOKUP($A16,'2023'!$A$2:$M$170,8,FALSE),0) -> 0 | W16: =IFERROR(VLOOKUP($A16,'2023'!$A$2:$M$170,11,FALSE),0) -> 0 | X16: =IFERROR(VLOOKUP($A16,'2023'!$A$2:$M$170,13,FALSE),0) -> 0 | Y16: =IFERROR(VLOOKUP($A16,'2022'!$B$2:$K$174,3,FALSE),0) -> 0 | Z16: =IFERROR(VLOOKUP($A16,'2022'!$B$2:$K$174,4,FALSE),0) -> 0 | AA16: =IFERROR(VLOOKUP($A16,'2022'!$B$2:$K$174,5,FALSE),0) -> 0 | AB16: =IFERROR(VLOOKUP($A16,'2022'!$B$2:$K$174,8,FALSE),0) -> 0 | AC16: =IFERROR(VLOOKUP($A16,'2022'!$B$2:$K$174,10,FALSE),0) -> 0 | AD16: =IFERROR(VLOOKUP($A16,'2021'!$B$2:$K$174,3,FALSE),0) -> 0 | AE16: =IFERROR(VLOOKUP($A16,'2021'!$B$2:$K$174,4,FALSE),0) -> 0 | AF16: =IFERROR(VLOOKUP($A16,'2021'!$B$2:$K$174,5,FALSE),0) -> 0 | AG16: =IFERROR(VLOOKUP($A16,'2021'!$B$2:$K$174,8,FALSE),0) -> 0 | AH16: =IFERROR(VLOOKUP($A16,'2021'!$B$2:$K$174,10,FALSE),0) -> 0 | AI16: =IFERROR(VLOOKUP($A16,'2020'!$B$2:$K$170,3,FALSE),0) -> 0 | AJ16: =IFERROR(VLOOKUP($A16,'2020'!$B$2:$K$170,4,FALSE),0) -> 0 | AK16: =IFERROR(VLOOKUP($A16,'2020'!$B$2:$K$170,5,FALSE),0) -> 0 | AL16: =IFERROR(VLOOKUP($A16,'2020'!$B$2:$K$170,8,FALSE),0) -> 0 | AM16: =IFERROR(VLOOKUP($A16,'2020'!$B$2:$K$170,10,FALSE),0) -> 0 | AN16: =IFERROR(VLOOKUP($A16,'2019'!$B$2:$K$170,3,FALSE),0) -> 0 | AO16: =IFERROR(VLOOKUP($A16,'2019'!$B$2:$K$170,4,FALSE),0) -> 0 | AP16: =IFERROR(VLOOKUP($A16,'2019'!$B$2:$K$170,5,FALSE),0) -> 0 | AQ16: =IFERROR(VLOOKUP($A16,'2019'!$B$2:$K$170,8,FALSE),0) -> 0 | AR16: =IFERROR(VLOOKUP($A16,'2019'!$B$2:$K$170,10,FALSE),0) -> 0 | AS16: =IFERROR(VLOOKUP($A16,'2018'!$B$2:$K$170,3,FALSE),0) -> 0 | AT16: =IFERROR(VLOOKUP($A16,'2018'!$B$2:$K$170,4,FALSE),0) -> 0 | AU16: =IFERROR(VLOOKUP($A16,'2018'!$B$2:$K$170,5,FALSE),0) -> 0 | AV16: =IFERROR(VLOOKUP($A16,'2018'!$B$2:$K$170,8,FALSE),0) -> 0 | AW16: =IFERROR(VLOOKUP($A16,'2018'!$B$2:$K$170,10,FALSE),0) -> 0 | AX16: =IFERROR(VLOOKUP($A16,'2017'!$B$2:$J$163,2,FALSE),0) -> 0 | AY16: =IFERROR(VLOOKUP($A16,'2017'!$B$2:$J$163,3,FALSE),0) -> 0 | AZ16: =IFERROR(VLOOKUP($A16,'2017'!$B$2:$J$163,4,FALSE),0) -> 0 | BA16: =IFERROR(VLOOKUP($A16,'2017'!$B$2:$J$163,7,FALSE),0) -> 0 | BB16: =IFERROR(VLOOKUP($A16,'2017'!$B$2:$J$163,9,FALSE),0) -> 0 | BC16: =IFERROR(VLOOKUP($A16,'2016'!$B$2:$K$165,3,FALSE),0) -> 0 | BD16: =IFERROR(VLOOKUP($A16,'2016'!$B$2:$K$165,4,FALSE),0) -> 0 | BE16: =IFERROR(VLOOKUP($A16,'2016'!$B$2:$K$165,5,FALSE),0) -> 0 | BF16: =IFERROR(VLOOKUP($A16,'2016'!$B$2:$K$165,8,FALSE),0) -> 0 | BG16: =IFERROR(VLOOKUP($A16,'2016'!$B$2:$K$165,10,FALSE),0) -> 0 | BH16: =IFERROR(VLOOKUP($A16,'2015'!$B$2:$K$165,3,FALSE),0) -> 0 | BI16: =IFERROR(VLOOKUP($A16,'2015'!$B$2:$K$165,4,FALSE),0) -> 0 | BJ16: =IFERROR(VLOOKUP($A16,'2015'!$B$2:$K$165,5,FALSE),0) -> 0 | BK16: =IFERROR(VLOOKUP($A16,'2015'!$B$2:$K$165,8,FALSE),0) -> 0 | BL16: =IFERROR(VLOOKUP($A16,'2015'!$B$2:$K$165,10,FALSE),0) -> 0 | BM16: =IFERROR(VLOOKUP($A16,'2014'!$B$2:$K$157,3,FALSE),0) -> 0 | BN16: =IFERROR(VLOOKUP($A16,'2014'!$B$2:$K$157,4,FALSE),0) -> 0 | BO16: =IFERROR(VLOOKUP($A16,'2014'!$B$2:$K$157,5,FALSE),0) -> 0 | BP16: =IFERROR(VLOOKUP($A16,'2014'!$B$2:$K$157,8,FALSE),0) -> 0 | BQ16: =IFERROR(VLOOKUP($A16,'2014'!$B$2:$K$157,10,FALSE),0) -> 0 | BR16: =IFERROR(VLOOKUP($A16,'2013'!$D$4:$I$249,2,FALSE),0) -> 0 | BS16: =IFERROR(VLOOKUP($A16,'2013'!$D$4:$I$249,3,FALSE),0) -> 0 | BT16: =IFERROR(VLOOKUP($A16,'2013'!$D$4:$I$249,4,FALSE),0) -> 0 | BU16: =IFERROR(VLOOKUP($A16,'2013'!$D$4:$I$249,5,FALSE),0) -> 0 | BV16: =IFERROR(VLOOKUP($A16,'2013'!$D$4:$I$249,6,FALSE),0) -> 0 | BW16: =IFERROR(VLOOKUP($A16,'2012'!$D$3:$O$172,2,FALSE),0) -> 0 | BX16: =IFERROR(VLOOKUP($A16,'2012'!$D$3:$O$172,3,FALSE),0) -> 0 | BY16: =IFERROR(VLOOKUP($A16,'2012'!$D$3:$O$172,4,FALSE),0) -> 0 | BZ16: =IFERROR(VLOOKUP($A16,'2012'!$D$3:$O$172,5,FALSE),0) -> 0 | CA16: =IFERROR(VLOOKUP($A16,'2012'!$D$3:$O$172,6,FALSE),0) -> 0 | CB16: =IFERROR(VLOOKUP($A16,'2012'!$D$3:$O$172,7,FALSE),0) -> 0 | CC16: =IFERROR(VLOOKUP($A16,'2012'!$D$3:$O$172,8,FALSE),0) -> 0 | CD16: =IFERROR(VLOOKUP($A16,'2012'!$D$3:$O$172,9,FALSE),0) -> 0 | CH16: =IFERROR(VLOOKUP($A16,'2011'!$D$4:$I$251,2,FALSE),0) -> 0 | CI16: =IFERROR(VLOOKUP($A16,'2011'!$D$4:$I$251,3,FALSE),0) -> 0 | CJ16: =IFERROR(VLOOKUP($A16,'2011'!$D$4:$I$251,4,FALSE),0) -> 0 | CK16: =IFERROR(VLOOKUP($A16,'2011'!$D$4:$I$251,5,FALSE),0) -> 0 | CL16: =IFERROR(VLOOKUP($A16,'2011'!$D$4:$I$251,6,FALSE),0) -> 0 | CM16: =IFERROR(VLOOKUP($A16,'2010'!$C$3:$H$234,2,FALSE),0) -> 0 | CN16: =IFERROR(VLOOKUP($A16,'2010'!$C$3:$H$234,3,FALSE),0) -> 0 | CO16: =IFERROR(VLOOKUP($A16,'2010'!$C$3:$H$234,4,FALSE),0) -> 0 | CP16: =IFERROR(VLOOKUP($A16,'2010'!$C$3:$H$234,5,FALSE),0) -> 0 | CQ16: =IFERROR(VLOOKUP($A16,'2010'!$C$3:$H$234,6,FALSE),0) -> 0 | CR16: =IFERROR(VLOOKUP($A16,'2009'!$C$3:$H$242,2,FALSE),0) -> 0 | CS16: =IFERROR(VLOOKUP($A16,'2009'!$C$3:$H$242,3,FALSE),0) -> 0 | CT16: =IFERROR(VLOOKUP($A16,'2009'!$C$3:$H$242,4,FALSE),0) -> 0 | CU16: =IFERROR(VLOOKUP($A16,'2009'!$C$3:$H$242,5,FALSE),0) -> 0 | CV16: =IFERROR(VLOOKUP($A16,'2009'!$C$3:$H$242,6,FALSE),0) -> 0 | CW16: =IFERROR(VLOOKUP($A16,'2008'!$C$3:$H$229,2,FALSE),0) -> 0 | CX16: =IFERROR(VLOOKUP($A16,'2008'!$C$3:$H$229,3,FALSE),0) -> 0 | CY16: =IFERROR(VLOOKUP($A16,'2008'!$C$3:$H$229,4,FALSE),0) -> 0 | CZ16: =IFERROR(VLOOKUP($A16,'2008'!$C$3:$H$229,5,FALSE),0) -> 0 | DA16: =IFERROR(VLOOKUP($A16,'2008'!$C$3:$H$229,6,FALSE),0) -> 0 | DB16: =IFERROR(VLOOKUP($A16,'2007'!$C$3:$M$238,7,FALSE),0) -> 0 | DC16: =IFERROR(VLOOKUP($A16,'2007'!$C$3:$M$238,8,FALSE),0) -> 0 | DD16: =IFERROR(VLOOKUP($A16,'2007'!$C$3:$M$238,9,FALSE),0) -> 0 | DE16: =IFERROR(VLOOKUP($A16,'2007'!$C$3:$M$238,10,FALSE),0) -> 0 | DF16: =IFERROR(VLOOKUP($A16,'2007'!$C$3:$M$238,11,FALSE),0) -> 0 | DG16: =IFERROR(VLOOKUP($A16,'2006'!$A$2:$F$200,2,FALSE),0) -> 0 | DH16: =IFERROR(VLOOKUP($A16,'2006'!$A$2:$F$200,4,FALSE),0) -> 0 | DI16: =IFERROR(VLOOKUP($A16,'2006'!$A$2:$F$200,5,FALSE),0) -> 0 | DJ16: =IFERROR(VLOOKUP($A16,'2006'!$A$2:$F$200,6,FALSE),0) -> 0 | DK16: =IFERROR(VLOOKUP($A16,'2005'!$C$3:$M$205,8,FALSE),0) -> 7 | DL16: =IFERROR(VLOOKUP($A16,'2005'!$C$3:$M$205,9,FALSE),0) -> 2 | DM16: =IFERROR(VLOOKUP($A16,'2005'!$C$3:$M$205,10,FALSE),0) -> 0 | DN16: =IFERROR(VLOOKUP($A16,'2005'!$C$3:$M$205,11,FALSE),0) -> 0.2857142857 | DO16: =IFERROR(VLOOKUP($A16,'2004'!$C$3:$M$213,8,FALSE),0) -> 54 | DP16: =IFERROR(VLOOKUP($A16,'2004'!$C$3:$M$213,9,FALSE),0) -> 39 | DQ16: =IFERROR(VLOOKUP($A16,'2004'!$C$3:$M$213,10,FALSE),0) -> 4 | DR16: =IFERROR(VLOOKUP($A16,'2004'!$C$3:$M$213,11,FALSE),0) -> 0.7222222222 | DS16: =IFERROR(VLOOKUP($A16,'2003'!$C$3:$Q$214,12,FALSE),0) -> 0 | DT16: =IFERROR(VLOOKUP($A16,'2003'!$C$3:$Q$214,13,FALSE),0) -> 0 | DU16: =IFERROR(VLOOKUP($A16,'2003'!$C$3:$Q$214,14,FALSE),0) -> 0 | DV16: =IFERROR(VLOOKUP($A16,'2003'!$C$3:$Q$214,15,FALSE),0) -> 0 | DW16: =IFERROR(VLOOKUP($A16,'2002'!$D$3:$R$214,12,FALSE),0) -> 0 | DX16: =IFERROR(VLOOKUP($A16,'2002'!$D$3:$R$214,13,FALSE),0) -> 0 | DY16: =IFERROR(VLOOKUP($A16,'2002'!$D$3:$R$214,14,FALSE),0) -> 0 | DZ16: =IFERROR(VLOOKUP($A16,'2002'!$D$3:$R$214,15,FALSE),0) -> 0 | EA16: =IFERROR(VLOOKUP($A16,'Pre 2002'!$C$3:$CK$382,84,FALSE),0) -> 459 | EB16: =IFERROR(VLOOKUP($A16,'Pre 2002'!$C$3:$CK$382,85,FALSE),0) -> 327 | EC16: =IFERROR(VLOOKUP($A16,'Pre 2002'!$C$3:$CK$382,86,FALSE),0) -> 120 | ED16: =IFERROR(VLOOKUP($A16,'Pre 2002'!$C$3:$CK$382,87,FALSE),0) -> 0.7124183007 | EE16: =IFERROR(VLOOKUP(A16,'Pre 2002'!$C$3:$CG$382,83,FALSE),0) -> 8
A17: Mark Sims | B17: =SUM(O17,T17,Y17,AD17,AI17,AN17,AS17,AX17,BC17,BH17,BM17,BR17,BZ17,CH17,CM17,CR17,CW17,DB17,DG17,DK17,DO17,DS17,DW17,EA17) -> 1874 | C17: =SUM(Q17,V17,AA17,AF17,AK17,AP17,AU17,AZ17,BE17,BJ17,BO17,BT17,CB17,CJ17,CO17,CT17,CY17,DD17,DH17,DL17,DP17,DT17,DX17,EB17) -> 1100 | D17: =SUM(R17,W17,AB17,AG17,AL17,AQ17,AV17,BA17,BF17,BK17,BP17,BU17,CC17,CK17,CP17,CU17,CZ17,DE17,DI17,DM17,DQ17,DU17,DY17,EC17) -> 122 | E17: =IF(B17=0,0,C17/B17) -> 0.5869797225 | F17: =IF(O17>0,1,0)+IF(T17>0,1,0)+IF(Y17>0,1,0)+IF(AD17>0,1,0)+IF(AI17>0,1,0)+IF(AN17>0,1,0)+IF(AS17>0,1,0)+IF(AX17>0,1,0)+IF(BC17>0,1,0)+IF(BH17>0,1,0)+IF(BM17>0,1,0)+IF(BR17>0,1,0)+IF(BZ17>0,1,0)+IF(CH17>0,1,0)+IF(CM17>0,1,0)+IF(CR17>0,1,0)+IF(CW17>0,1,0)+IF(DB17>0,1,0)+IF(DG17>0,1,0)+IF(DK17>0,1,0)+IF(DO17>0,1,0)+IF(DS17>0,1,0)+IF(DW17>0,1,0)+EE17 -> 30 | G17: 1985 | H17: =IF(BM17>0,1,0)+IF(BR17>0,1,0)+IF(BZ17>0,1,0)+IF(CH17>0,1,0)+IF(CM17>0,1,0)+IF(CR17>0,1,0)+IF(CW17>0,1,0)+IF(DB17>0,1,0)+IF(DG17>0,1,0)+IF(DK17>0,1,0)+IF(DO17>0,1,0)+IF(DS17>0,1,0)+IF(DW17>0,1,0)+EE17 -> 29 | I17: =SUM(BM17,BR17,BZ17,CH17,CM17,CR17,CW17,DB17,DG17,DK17,DO17,DS17,DW17,EA17) -> 1858 | J17: =SUM(BO17,BT17,CB17,CJ17,CO17,CT17,CY17,DD17,DH17,DL17,DP17,DT17,DX17,EB17) -> 1093 | K17: =SUM(BP17,BU17,CC17,CK17,CP17,CU17,CZ17,DE17,DI17,DM17,DQ17,DU17,DY17,EC17) -> 122 | L17: =IF(I17=0,0,J17/I17) -> 0.5882669537 | O17: =IFERROR(VLOOKUP($A17,'2024'!$A$2:$M$220,6,FALSE),0) -> 0 | P17: =IFERROR(VLOOKUP($A17,'2024'!$A$2:$M$220,7,FALSE),0) -> 0 | Q17: =IFERROR(VLOOKUP($A17,'2024'!$A$2:$M$220,8,FALSE),0) -> 0 | R17: =IFERROR(VLOOKUP($A17,'2024'!$A$2:$M$220,11,FALSE),0) -> 0 | S17: =IFERROR(VLOOKUP($A17,'2024'!$A$2:$M$220,13,FALSE),0) -> 0 | T17: =IFERROR(VLOOKUP($A17,'2023'!$A$2:$M$170,6,FALSE),0) -> 0 | U17: =IFERROR(VLOOKUP($A17,'2023'!$A$2:$M$170,7,FALSE),0) -> 0 | V17: =IFERROR(VLOOKUP($A17,'2023'!$A$2:$M$170,8,FALSE),0) -> 0 | W17: =IFERROR(VLOOKUP($A17,'2023'!$A$2:$M$170,11,FALSE),0) -> 0 | X17: =IFERROR(VLOOKUP($A17,'2023'!$A$2:$M$170,13,FALSE),0) -> 0 | Y17: =IFERROR(VLOOKUP($A17,'2022'!$B$2:$K$174,3,FALSE),0) -> 0 | Z17: =IFERROR(VLOOKUP($A17,'2022'!$B$2:$K$174,4,FALSE),0) -> 0 | AA17: =IFERROR(VLOOKUP($A17,'2022'!$B$2:$K$174,5,FALSE),0) -> 0 | AB17: =IFERROR(VLOOKUP($A17,'2022'!$B$2:$K$174,8,FALSE),0) -> 0 | AC17: =IFERROR(VLOOKUP($A17,'2022'!$B$2:$K$174,10,FALSE),0) -> 0 | AD17: =IFERROR(VLOOKUP($A17,'2021'!$B$2:$K$174,3,FALSE),0) -> 0 | AE17: =IFERROR(VLOOKUP($A17,'2021'!$B$2:$K$174,4,FALSE),0) -> 0 | AF17: =IFERROR(VLOOKUP($A17,'2021'!$B$2:$K$174,5,FALSE),0) -> 0 | AG17: =IFERROR(VLOOKUP($A17,'2021'!$B$2:$K$174,8,FALSE),0) -> 0 | AH17: =IFERROR(VLOOKUP($A17,'2021'!$B$2:$K$174,10,FALSE),0) -> 0 | AI17: =IFERROR(VLOOKUP($A17,'2020'!$B$2:$K$170,3,FALSE),0) -> 0 | AJ17: =IFERROR(VLOOKUP($A17,'2020'!$B$2:$K$170,4,FALSE),0) -> 0 | AK17: =IFERROR(VLOOKUP($A17,'2020'!$B$2:$K$170,5,FALSE),0) -> 0 | AL17: =IFERROR(VLOOKUP($A17,'2020'!$B$2:$K$170,8,FALSE),0) -> 0 | AM17: =IFERROR(VLOOKUP($A17,'2020'!$B$2:$K$170,10,FALSE),0) -> 0 | AN17: =IFERROR(VLOOKUP($A17,'2019'!$B$2:$K$170,3,FALSE),0) -> 0 | AO17: =IFERROR(VLOOKUP($A17,'2019'!$B$2:$K$170,4,FALSE),0) -> 0 | AP17: =IFERROR(VLOOKUP($A17,'2019'!$B$2:$K$170,5,FALSE),0) -> 0 | AQ17: =IFERROR(VLOOKUP($A17,'2019'!$B$2:$K$170,8,FALSE),0) -> 0 | AR17: =IFERROR(VLOOKUP($A17,'2019'!$B$2:$K$170,10,FALSE),0) -> 0 | AS17: =IFERROR(VLOOKUP($A17,'2018'!$B$2:$K$170,3,FALSE),0) -> 0 | AT17: =IFERROR(VLOOKUP($A17,'2018'!$B$2:$K$170,4,FALSE),0) -> 0 | AU17: =IFERROR(VLOOKUP($A17,'2018'!$B$2:$K$170,5,FALSE),0) -> 0 | AV17: =IFERROR(VLOOKUP($A17,'2018'!$B$2:$K$170,8,FALSE),0) -> 0 | AW17: =IFERROR(VLOOKUP($A17,'2018'!$B$2:$K$170,10,FALSE),0) -> 0 | AX17: =IFERROR(VLOOKUP($A17,'2017'!$B$2:$J$163,2,FALSE),0) -> 0 | AY17: =IFERROR(VLOOKUP($A17,'2017'!$B$2:$J$163,3,FALSE),0) -> 0 | AZ17: =IFERROR(VLOOKUP($A17,'2017'!$B$2:$J$163,4,FALSE),0) -> 0 | BA17: =IFERROR(VLOOKUP($A17,'2017'!$B$2:$J$163,7,FALSE),0) -> 0 | BB17: =IFERROR(VLOOKUP($A17,'2017'!$B$2:$J$163,9,FALSE),0) -> 0 | BC17: =IFERROR(VLOOKUP($A17,'2016'!$B$2:$K$165,3,FALSE),0) -> 16 | BD17: =IFERROR(VLOOKUP($A17,'2016'!$B$2:$K$165,4,FALSE),0) -> 2 | BE17: =IFERROR(VLOOKUP($A17,'2016'!$B$2:$K$165,5,FALSE),0) -> 7 | BF17: =IFERROR(VLOOKUP($A17,'2016'!$B$2:$K$165,8,FALSE),0) -> 0 | BG17: =IFERROR(VLOOKUP($A17,'2016'!$B$2:$K$165,10,FALSE),0) -> 0.438 | BH17: =IFERROR(VLOOKUP($A17,'2015'!$B$2:$K$165,3,FALSE),0) -> 0 | BI17: =IFERROR(VLOOKUP($A17,'2015'!$B$2:$K$165,4,FALSE),0) -> 0 | BJ17: =IFERROR(VLOOKUP($A17,'2015'!$B$2:$K$165,5,FALSE),0) -> 0 | BK17: =IFERROR(VLOOKUP($A17,'2015'!$B$2:$K$165,8,FALSE),0) -> 0 | BL17: =IFERROR(VLOOKUP($A17,'2015'!$B$2:$K$165,10,FALSE),0) -> 0 | BM17: =IFERROR(VLOOKUP($A17,'2014'!$B$2:$K$157,3,FALSE),0) -> 0 | BN17: =IFERROR(VLOOKUP($A17,'2014'!$B$2:$K$157,4,FALSE),0) -> 0 | BO17: =IFERROR(VLOOKUP($A17,'2014'!$B$2:$K$157,5,FALSE),0) -> 0 | BP17: =IFERROR(VLOOKUP($A17,'2014'!$B$2:$K$157,8,FALSE),0) -> 0 | BQ17: =IFERROR(VLOOKUP($A17,'2014'!$B$2:$K$157,10,FALSE),0) -> 0 | BR17: =IFERROR(VLOOKUP($A17,'2013'!$D$4:$I$249,2,FALSE),0) -> 0 | BS17: =IFERROR(VLOOKUP($A17,'2013'!$D$4:$I$249,3,FALSE),0) -> 0 | BT17: =IFERROR(VLOOKUP($A17,'2013'!$D$4:$I$249,4,FALSE),0) -> 0 | BU17: =IFERROR(VLOOKUP($A17,'2013'!$D$4:$I$249,5,FALSE),0) -> 0 | BV17: =IFERROR(VLOOKUP($A17,'2013'!$D$4:$I$249,6,FALSE),0) -> 0 | BW17: =IFERROR(VLOOKUP($A17,'2012'!$D$3:$O$172,2,FALSE),0) -> 1858 | BX17: =IFERROR(VLOOKUP($A17,'2012'!$D$3:$O$172,3,FALSE),0) -> 1093 | BY17: =IFERROR(VLOOKUP($A17,'2012'!$D$3:$O$172,4,FALSE),0) -> 122 | BZ17: =IFERROR(VLOOKUP($A17,'2012'!$D$3:$O$172,5,FALSE),0) -> 75 | CA17: =IFERROR(VLOOKUP($A17,'2012'!$D$3:$O$172,6,FALSE),0) -> 26 | CB17: =IFERROR(VLOOKUP($A17,'2012'!$D$3:$O$172,7,FALSE),0) -> 43 | CC17: =IFERROR(VLOOKUP($A17,'2012'!$D$3:$O$172,8,FALSE),0) -> 1 | CD17: =IFERROR(VLOOKUP($A17,'2012'!$D$3:$O$172,9,FALSE),0) -> 0.5733333333 | CE17: =IFERROR(VLOOKUP($A17,'2012'!$D$3:$O$172,10,FALSE),0) -> 1783 | CF17: =IFERROR(VLOOKUP($A17,'2012'!$D$3:$O$172,11,FALSE),0) -> 1050 | CG17: =IFERROR(VLOOKUP($A17,'2012'!$D$3:$O$172,12,FALSE),0) -> 121 | CH17: =IFERROR(VLOOKUP($A17,'2011'!$D$4:$I$251,2,FALSE),0) -> 79 | CI17: =IFERROR(VLOOKUP($A17,'2011'!$D$4:$I$251,3,FALSE),0) -> 26 | CJ17: =IFERROR(VLOOKUP($A17,'2011'!$D$4:$I$251,4,FALSE),0) -> 46 | CK17: =IFERROR(VLOOKUP($A17,'2011'!$D$4:$I$251,5,FALSE),0) -> 4 | CL17: =IFERROR(VLOOKUP($A17,'2011'!$D$4:$I$251,6,FALSE),0) -> 0.582278481 | CM17: =IFERROR(VLOOKUP($A17,'2010'!$C$3:$H$234,2,FALSE),0) -> 87 | CN17: =IFERROR(VLOOKUP($A17,'2010'!$C$3:$H$234,3,FALSE),0) -> 34 | CO17: =IFERROR(VLOOKUP($A17,'2010'!$C$3:$H$234,4,FALSE),0) -> 58 | CP17: =IFERROR(VLOOKUP($A17,'2010'!$C$3:$H$234,5,FALSE),0) -> 2 | CQ17: =IFERROR(VLOOKUP($A17,'2010'!$C$3:$H$234,6,FALSE),0) -> 0.6666666667 | CR17: =IFERROR(VLOOKUP($A17,'2009'!$C$3:$H$242,2,FALSE),0) -> 67 | CS17: =IFERROR(VLOOKUP($A17,'2009'!$C$3:$H$242,3,FALSE),0) -> 21 | CT17: =IFERROR(VLOOKUP($A17,'2009'!$C$3:$H$242,4,FALSE),0) -> 33 | CU17: =IFERROR(VLOOKUP($A17,'2009'!$C$3:$H$242,5,FALSE),0) -> 2 | CV17: =IFERROR(VLOOKUP($A17,'2009'!$C$3:$H$242,6,FALSE),0) -> 0.4925373134 | CW17: =IFERROR(VLOOKUP($A17,'2008'!$C$3:$H$229,2,FALSE),0) -> 52 | CX17: =IFERROR(VLOOKUP($A17,'2008'!$C$3:$H$229,3,FALSE),0) -> 18 | CY17: =IFERROR(VLOOKUP($A17,'2008'!$C$3:$H$229,4,FALSE),0) -> 24 | CZ17: =IFERROR(VLOOKUP($A17,'2008'!$C$3:$H$229,5,FALSE),0) -> 1 | DA17: =IFERROR(VLOOKUP($A17,'2008'!$C$3:$H$229,6,FALSE),0) -> 0.4615384615 | DB17: =IFERROR(VLOOKUP($A17,'2007'!$C$3:$M$238,7,FALSE),0) -> 77 | DC17: =IFERROR(VLOOKUP($A17,'2007'!$C$3:$M$238,8,FALSE),0) -> 29 | DD17: =IFERROR(VLOOKUP($A17,'2007'!$C$3:$M$238,9,FALSE),0) -> 40 | DE17: =IFERROR(VLOOKUP($A17,'2007'!$C$3:$M$238,10,FALSE),0) -> 3 | DF17: =IFERROR(VLOOKUP($A17,'2007'!$C$3:$M$238,11,FALSE),0) -> 0.5194805195 | DG17: =IFERROR(VLOOKUP($A17,'2006'!$A$2:$F$200,2,FALSE),0) -> 74 | DH17: =IFERROR(VLOOKUP($A17,'2006'!$A$2:$F$200,4,FALSE),0) -> 49 | DI17: =IFERROR(VLOOKUP($A17,'2006'!$A$2:$F$200,5,FALSE),0) -> 2 | DJ17: =IFERROR(VLOOKUP($A17,'2006'!$A$2:$F$200,6,FALSE),0) -> 0.6621621622 | DK17: =IFERROR(VLOOKUP($A17,'2005'!$C$3:$M$205,8,FALSE),0) -> 0 | DL17: =IFERROR(VLOOKUP($A17,'2005'!$C$3:$M$205,9,FALSE),0) -> 0 | DM17: =IFERROR(VLOOKUP($A17,'2005'!$C$3:$M$205,10,FALSE),0) -> 0 | DN17: =IFERROR(VLOOKUP($A17,'2005'!$C$3:$M$205,11,FALSE),0) -> 0 | DO17: =IFERROR(VLOOKUP($A17,'2004'!$C$3:$M$213,8,FALSE),0) -> 49 | DP17: =IFERROR(VLOOKUP($A17,'2004'!$C$3:$M$213,9,FALSE),0) -> 29 | DQ17: =IFERROR(VLOOKUP($A17,'2004'!$C$3:$M$213,10,FALSE),0) -> 4 | DR17: =IFERROR(VLOOKUP($A17,'2004'!$C$3:$M$213,11,FALSE),0) -> 0.5918367347 | DS17: =IFERROR(VLOOKUP($A17,'2003'!$C$3:$Q$214,12,FALSE),0) -> 36 | DT17: =IFERROR(VLOOKUP($A17,'2003'!$C$3:$Q$214,13,FALSE),0) -> 18 | DU17: =IFERROR(VLOOKUP($A17,'2003'!$C$3:$Q$214,14,FALSE),0) -> 2 | DV17: =IFERROR(VLOOKUP($A17,'2003'!$C$3:$Q$214,15,FALSE),0) -> 0.5 | DW17: =IFERROR(VLOOKUP($A17,'2002'!$D$3:$R$214,12,FALSE),0) -> 0 | DX17: =IFERROR(VLOOKUP($A17,'2002'!$D$3:$R$214,13,FALSE),0) -> 0 | DY17: =IFERROR(VLOOKUP($A17,'2002'!$D$3:$R$214,14,FALSE),0) -> 0 | DZ17: =IFERROR(VLOOKUP($A17,'2002'!$D$3:$R$214,15,FALSE),0) -> 0 | EA17: =IFERROR(VLOOKUP($A17,'Pre 2002'!$C$3:$CK$382,84,FALSE),0) -> 1262 | EB17: =IFERROR(VLOOKUP($A17,'Pre 2002'!$C$3:$CK$382,85,FALSE),0) -> 753 | EC17: =IFERROR(VLOOKUP($A17,'Pre 2002'!$C$3:$CK$382,86,FALSE),0) -> 101 | ED17: =IFERROR(VLOOKUP($A17,'Pre 2002'!$C$3:$CK$382,87,FALSE),0) -> 0.5966719493 | EE17: =IFERROR(VLOOKUP(A17,'Pre 2002'!$C$3:$CG$382,83,FALSE),0) -> 20
A18: Don Miller | B18: =SUM(O18,T18,Y18,AD18,AI18,AN18,AS18,AX18,BC18,BH18,BM18,BR18,BZ18,CH18,CM18,CR18,CW18,DB18,DG18,DK18,DO18,DS18,DW18,EA18) -> 2122 | C18: =SUM(Q18,V18,AA18,AF18,AK18,AP18,AU18,AZ18,BE18,BJ18,BO18,BT18,CB18,CJ18,CO18,CT18,CY18,DD18,DH18,DL18,DP18,DT18,DX18,EB18) -> 1288 | D18: =SUM(R18,W18,AB18,AG18,AL18,AQ18,AV18,BA18,BF18,BK18,BP18,BU18,CC18,CK18,CP18,CU18,CZ18,DE18,DI18,DM18,DQ18,DU18,DY18,EC18) -> 115 | E18: =IF(B18=0,0,C18/B18) -> 0.6069745523 | F18: =IF(O18>0,1,0)+IF(T18>0,1,0)+IF(Y18>0,1,0)+IF(AD18>0,1,0)+IF(AI18>0,1,0)+IF(AN18>0,1,0)+IF(AS18>0,1,0)+IF(AX18>0,1,0)+IF(BC18>0,1,0)+IF(BH18>0,1,0)+IF(BM18>0,1,0)+IF(BR18>0,1,0)+IF(BZ18>0,1,0)+IF(CH18>0,1,0)+IF(CM18>0,1,0)+IF(CR18>0,1,0)+IF(CW18>0,1,0)+IF(DB18>0,1,0)+IF(DG18>0,1,0)+IF(DK18>0,1,0)+IF(DO18>0,1,0)+IF(DS18>0,1,0)+IF(DW18>0,1,0)+EE18 -> 38 | G18: 1987 | H18: =IF(BM18>0,1,0)+IF(BR18>0,1,0)+IF(BZ18>0,1,0)+IF(CH18>0,1,0)+IF(CM18>0,1,0)+IF(CR18>0,1,0)+IF(CW18>0,1,0)+IF(DB18>0,1,0)+IF(DG18>0,1,0)+IF(DK18>0,1,0)+IF(DO18>0,1,0)+IF(DS18>0,1,0)+IF(DW18>0,1,0)+EE18 -> 28 | I18: =SUM(BM18,BR18,BZ18,CH18,CM18,CR18,CW18,DB18,DG18,DK18,DO18,DS18,DW18,EA18) -> 1804 | J18: =SUM(BO18,BT18,CB18,CJ18,CO18,CT18,CY18,DD18,DH18,DL18,DP18,DT18,DX18,EB18) -> 1120 | K18: =SUM(BP18,BU18,CC18,CK18,CP18,CU18,CZ18,DE18,DI18,DM18,DQ18,DU18,DY18,EC18) -> 114 | L18: =IF(I18=0,0,J18/I18) -> 0.6208425721 | M18: 87 | N18: 6 | O18: =IFERROR(VLOOKUP($A18,'2024'!$A$2:$M$220,6,FALSE),0) -> 27 | P18: =IFERROR(VLOOKUP($A18,'2024'!$A$2:$M$220,7,FALSE),0) -> 6 | Q18: =IFERROR(VLOOKUP($A18,'2024'!$A$2:$M$220,8,FALSE),0) -> 12 | R18: =IFERROR(VLOOKUP($A18,'2024'!$A$2:$M$220,11,FALSE),0) -> 0 | S18: =IFERROR(VLOOKUP($A18,'2024'!$A$2:$M$220,13,FALSE),0) -> 0.444 | T18: =IFERROR(VLOOKUP($A18,'2023'!$A$2:$M$170,6,FALSE),0) -> 53 | U18: =IFERROR(VLOOKUP($A18,'2023'!$A$2:$M$170,7,FALSE),0) -> 18 | V18: =IFERROR(VLOOKUP($A18,'2023'!$A$2:$M$170,8,FALSE),0) -> 33 | W18: =IFERROR(VLOOKUP($A18,'2023'!$A$2:$M$170,11,FALSE),0) -> 0 | X18: =IFERROR(VLOOKUP($A18,'2023'!$A$2:$M$170,13,FALSE),0) -> 0.623 | Y18: =IFERROR(VLOOKUP($A18,'2022'!$B$2:$K$174,3,FALSE),0) -> 27 | Z18: =IFERROR(VLOOKUP($A18,'2022'!$B$2:$K$174,4,FALSE),0) -> 7 | AA18: =IFERROR(VLOOKUP($A18,'2022'!$B$2:$K$174,5,FALSE),0) -> 11 | AB18: =IFERROR(VLOOKUP($A18,'2022'!$B$2:$K$174,8,FALSE),0) -> 0 | AC18: =IFERROR(VLOOKUP($A18,'2022'!$B$2:$K$174,10,FALSE),0) -> 0.407 | AD18: =IFERROR(VLOOKUP($A18,'2021'!$B$2:$K$174,3,FALSE),0) -> 11 | AE18: =IFERROR(VLOOKUP($A18,'2021'!$B$2:$K$174,4,FALSE),0) -> 1 | AF18: =IFERROR(VLOOKUP($A18,'2021'!$B$2:$K$174,5,FALSE),0) -> 3 | AG18: =IFERROR(VLOOKUP($A18,'2021'!$B$2:$K$174,8,FALSE),0) -> 0 | AH18: =IFERROR(VLOOKUP($A18,'2021'!$B$2:$K$174,10,FALSE),0) -> 0.273 | AI18: =IFERROR(VLOOKUP($A18,'2020'!$B$2:$K$170,3,FALSE),0) -> 21 | AJ18: =IFERROR(VLOOKUP($A18,'2020'!$B$2:$K$170,4,FALSE),0) -> 6 | AK18: =IFERROR(VLOOKUP($A18,'2020'!$B$2:$K$170,5,FALSE),0) -> 11 | AL18: =IFERROR(VLOOKUP($A18,'2020'!$B$2:$K$170,8,FALSE),0) -> 0 | AM18: =IFERROR(VLOOKUP($A18,'2020'!$B$2:$K$170,10,FALSE),0) -> 0.524 | AN18: =IFERROR(VLOOKUP($A18,'2019'!$B$2:$K$170,3,FALSE),0) -> 33 | AO18: =IFERROR(VLOOKUP($A18,'2019'!$B$2:$K$170,4,FALSE),0) -> 7 | AP18: =IFERROR(VLOOKUP($A18,'2019'!$B$2:$K$170,5,FALSE),0) -> 18 | AQ18: =IFERROR(VLOOKUP($A18,'2019'!$B$2:$K$170,8,FALSE),0) -> 1 | AR18: =IFERROR(VLOOKUP($A18,'2019'!$B$2:$K$170,10,FALSE),0) -> 0.545 | AS18: =IFERROR(VLOOKUP($A18,'2018'!$B$2:$K$170,3,FALSE),0) -> 30 | AT18: =IFERROR(VLOOKUP($A18,'2018'!$B$2:$K$170,4,FALSE),0) -> 7 | AU18: =IFERROR(VLOOKUP($A18,'2018'!$B$2:$K$170,5,FALSE),0) -> 19 | AV18: =IFERROR(VLOOKUP($A18,'2018'!$B$2:$K$170,8,FALSE),0) -> 0 | AW18: =IFERROR(VLOOKUP($A18,'2018'!$B$2:$K$170,10,FALSE),0) -> 0.633 | AX18: =IFERROR(VLOOKUP($A18,'2017'!$B$2:$J$163,2,FALSE),0) -> 54 | AY18: =IFERROR(VLOOKUP($A18,'2017'!$B$2:$J$163,3,FALSE),0) -> 12 | AZ18: =IFERROR(VLOOKUP($A18,'2017'!$B$2:$J$163,4,FALSE),0) -> 28 | BA18: =IFERROR(VLOOKUP($A18,'2017'!$B$2:$J$163,7,FALSE),0) -> 0 | BB18: =IFERROR(VLOOKUP($A18,'2017'!$B$2:$J$163,9,FALSE),0) -> 0.5185185185 | BC18: =IFERROR(VLOOKUP($A18,'2016'!$B$2:$K$165,3,FALSE),0) -> 22 | BD18: =IFERROR(VLOOKUP($A18,'2016'!$B$2:$K$165,4,FALSE),0) -> 5 | BE18: =IFERROR(VLOOKUP($A18,'2016'!$B$2:$K$165,5,FALSE),0) -> 12 | BF18: =IFERROR(VLOOKUP($A18,'2016'!$B$2:$K$165,8,FALSE),0) -> 0 | BG18: =IFERROR(VLOOKUP($A18,'2016'!$B$2:$K$165,10,FALSE),0) -> 0.545 | BH18: =IFERROR(VLOOKUP($A18,'2015'!$B$2:$K$165,3,FALSE),0) -> 40 | BI18: =IFERROR(VLOOKUP($A18,'2015'!$B$2:$K$165,4,FALSE),0) -> 12 | BJ18: =IFERROR(VLOOKUP($A18,'2015'!$B$2:$K$165,5,FALSE),0) -> 21 | BK18: =IFERROR(VLOOKUP($A18,'2015'!$B$2:$K$165,8,FALSE),0) -> 0 | BL18: =IFERROR(VLOOKUP($A18,'2015'!$B$2:$K$165,10,FALSE),0) -> 0.525 | BM18: =IFERROR(VLOOKUP($A18,'2014'!$B$2:$K$157,3,FALSE),0) -> 33 | BN18: =IFERROR(VLOOKUP($A18,'2014'!$B$2:$K$157,4,FALSE),0) -> 13 | BO18: =IFERROR(VLOOKUP($A18,'2014'!$B$2:$K$157,5,FALSE),0) -> 15 | BP18: =IFERROR(VLOOKUP($A18,'2014'!$B$2:$K$157,8,FALSE),0) -> 0 | BQ18: =IFERROR(VLOOKUP($A18,'2014'!$B$2:$K$157,10,FALSE),0) -> 0.4545454545 | BR18: =IFERROR(VLOOKUP($A18,'2013'!$D$4:$I$249,2,FALSE),0) -> 56 | BS18: =IFERROR(VLOOKUP($A18,'2013'!$D$4:$I$249,3,FALSE),0) -> 25 | BT18: =IFERROR(VLOOKUP($A18,'2013'!$D$4:$I$249,4,FALSE),0) -> 35 | BU18: =IFERROR(VLOOKUP($A18,'2013'!$D$4:$I$249,5,FALSE),0) -> 1 | BV18: =IFERROR(VLOOKUP($A18,'2013'!$D$4:$I$249,6,FALSE),0) -> 0.625 | BW18: =IFERROR(VLOOKUP($A18,'2012'!$D$3:$O$172,2,FALSE),0) -> 1715 | BX18: =IFERROR(VLOOKUP($A18,'2012'!$D$3:$O$172,3,FALSE),0) -> 1070 | BY18: =IFERROR(VLOOKUP($A18,'2012'!$D$3:$O$172,4,FALSE),0) -> 113 | BZ18: =IFERROR(VLOOKUP($A18,'2012'!$D$3:$O$172,5,FALSE),0) -> 75 | CA18: =IFERROR(VLOOKUP($A18,'2012'!$D$3:$O$172,6,FALSE),0) -> 32 | CB18: =IFERROR(VLOOKUP($A18,'2012'!$D$3:$O$172,7,FALSE),0) -> 47 | CC18: =IFERROR(VLOOKUP($A18,'2012'!$D$3:$O$172,8,FALSE),0) -> 0 | CD18: =IFERROR(VLOOKUP($A18,'2012'!$D$3:$O$172,9,FALSE),0) -> 0.6266666667 | CE18: =IFERROR(VLOOKUP($A18,'2012'!$D$3:$O$172,10,FALSE),0) -> 1640 | CF18: =IFERROR(VLOOKUP($A18,'2012'!$D$3:$O$172,11,FALSE),0) -> 1023 | CG18: =IFERROR(VLOOKUP($A18,'2012'!$D$3:$O$172,12,FALSE),0) -> 113 | CH18: =IFERROR(VLOOKUP($A18,'2011'!$D$4:$I$251,2,FALSE),0) -> 85 | CI18: =IFERROR(VLOOKUP($A18,'2011'!$D$4:$I$251,3,FALSE),0) -> 29 | CJ18: =IFERROR(VLOOKUP($A18,'2011'!$D$4:$I$251,4,FALSE),0) -> 53 | CK18: =IFERROR(VLOOKUP($A18,'2011'!$D$4:$I$251,5,FALSE),0) -> 6 | CL18: =IFERROR(VLOOKUP($A18,'2011'!$D$4:$I$251,6,FALSE),0) -> 0.6235294118 | CM18: =IFERROR(VLOOKUP($A18,'2010'!$C$3:$H$234,2,FALSE),0) -> 86 | CN18: =IFERROR(VLOOKUP($A18,'2010'!$C$3:$H$234,3,FALSE),0) -> 47 | CO18: =IFERROR(VLOOKUP($A18,'2010'!$C$3:$H$234,4,FALSE),0) -> 66 | CP18: =IFERROR(VLOOKUP($A18,'2010'!$C$3:$H$234,5,FALSE),0) -> 5 | CQ18: =IFERROR(VLOOKUP($A18,'2010'!$C$3:$H$234,6,FALSE),0) -> 0.7674418605 | CR18: =IFERROR(VLOOKUP($A18,'2009'!$C$3:$H$242,2,FALSE),0) -> 72 | CS18: =IFERROR(VLOOKUP($A18,'2009'!$C$3:$H$242,3,FALSE),0) -> 26 | CT18: =IFERROR(VLOOKUP($A18,'2009'!$C$3:$H$242,4,FALSE),0) -> 44 | CU18: =IFERROR(VLOOKUP($A18,'2009'!$C$3:$H$242,5,FALSE),0) -> 0 | CV18: =IFERROR(VLOOKUP($A18,'2009'!$C$3:$H$242,6,FALSE),0) -> 0.6111111111 | CW18: =IFERROR(VLOOKUP($A18,'2008'!$C$3:$H$229,2,FALSE),0) -> 71 | CX18: =IFERROR(VLOOKUP($A18,'2008'!$C$3:$H$229,3,FALSE),0) -> 27 | CY18: =IFERROR(VLOOKUP($A18,'2008'!$C$3:$H$229,4,FALSE),0) -> 51 | CZ18: =IFERROR(VLOOKUP($A18,'2008'!$C$3:$H$229,5,FALSE),0) -> 3 | DA18: =IFERROR(VLOOKUP($A18,'2008'!$C$3:$H$229,6,FALSE),0) -> 0.7183098592 | DB18: =IFERROR(VLOOKUP($A18,'2007'!$C$3:$M$238,7,FALSE),0) -> 0 | DC18: =IFERROR(VLOOKUP($A18,'2007'!$C$3:$M$238,8,FALSE),0) -> 0 | DD18: =IFERROR(VLOOKUP($A18,'2007'!$C$3:$M$238,9,FALSE),0) -> 0 | DE18: =IFERROR(VLOOKUP($A18,'2007'!$C$3:$M$238,10,FALSE),0) -> 0 | DF18: =IFERROR(VLOOKUP($A18,'2007'!$C$3:$M$238,11,FALSE),0) -> 0 | DG18: =IFERROR(VLOOKUP($A18,'2006'!$A$2:$F$200,2,FALSE),0) -> 87 | DH18: =IFERROR(VLOOKUP($A18,'2006'!$A$2:$F$200,4,FALSE),0) -> 52 | DI18: =IFERROR(VLOOKUP($A18,'2006'!$A$2:$F$200,5,FALSE),0) -> 2 | DJ18: =IFERROR(VLOOKUP($A18,'2006'!$A$2:$F$200,6,FALSE),0) -> 0.5977011494 | DK18: =IFERROR(VLOOKUP($A18,'2005'!$C$3:$M$205,8,FALSE),0) -> 66 | DL18: =IFERROR(VLOOKUP($A18,'2005'!$C$3:$M$205,9,FALSE),0) -> 45 | DM18: =IFERROR(VLOOKUP($A18,'2005'!$C$3:$M$205,10,FALSE),0) -> 0 | DN18: =IFERROR(VLOOKUP($A18,'2005'!$C$3:$M$205,11,FALSE),0) -> 0.6818181818 | DO18: =IFERROR(VLOOKUP($A18,'2004'!$C$3:$M$213,8,FALSE),0) -> 55 | DP18: =IFERROR(VLOOKUP($A18,'2004'!$C$3:$M$213,9,FALSE),0) -> 32 | DQ18: =IFERROR(VLOOKUP($A18,'2004'!$C$3:$M$213,10,FALSE),0) -> 1 | DR18: =IFERROR(VLOOKUP($A18,'2004'!$C$3:$M$213,11,FALSE),0) -> 0.5818181818 | DS18: =IFERROR(VLOOKUP($A18,'2003'!$C$3:$Q$214,12,FALSE),0) -> 67 | DT18: =IFERROR(VLOOKUP($A18,'2003'!$C$3:$Q$214,13,FALSE),0) -> 44 | DU18: =IFERROR(VLOOKUP($A18,'2003'!$C$3:$Q$214,14,FALSE),0) -> 5 | DV18: =IFERROR(VLOOKUP($A18,'2003'!$C$3:$Q$214,15,FALSE),0) -> 0.6567164179 | DW18: =IFERROR(VLOOKUP($A18,'2002'!$D$3:$R$214,12,FALSE),0) -> 52 | DX18: =IFERROR(VLOOKUP($A18,'2002'!$D$3:$R$214,13,FALSE),0) -> 32 | DY18: =IFERROR(VLOOKUP($A18,'2002'!$D$3:$R$214,14,FALSE),0) -> 5 | DZ18: =IFERROR(VLOOKUP($A18,'2002'!$D$3:$R$214,15,FALSE),0) -> 0.6153846154 | EA18: =IFERROR(VLOOKUP($A18,'Pre 2002'!$C$3:$CK$382,84,FALSE),0) -> 999 | EB18: =IFERROR(VLOOKUP($A18,'Pre 2002'!$C$3:$CK$382,85,FALSE),0) -> 604 | EC18: =IFERROR(VLOOKUP($A18,'Pre 2002'!$C$3:$CK$382,86,FALSE),0) -> 86 | ED18: =IFERROR(VLOOKUP($A18,'Pre 2002'!$C$3:$CK$382,87,FALSE),0) -> 0.6046046046 | EE18: =IFERROR(VLOOKUP(A18,'Pre 2002'!$C$3:$CG$382,83,FALSE),0) -> 16
A19: Eric Knoblock | B19: =SUM(O19,T19,Y19,AD19,AI19,AN19,AS19,AX19,BC19,BH19,BM19,BR19,BZ19,CH19,CM19,CR19,CW19,DB19,DG19,DK19,DO19,DS19,DW19,EA19) -> 453 | C19: =SUM(Q19,V19,AA19,AF19,AK19,AP19,AU19,AZ19,BE19,BJ19,BO19,BT19,CB19,CJ19,CO19,CT19,CY19,DD19,DH19,DL19,DP19,DT19,DX19,EB19) -> 322 | D19: =SUM(R19,W19,AB19,AG19,AL19,AQ19,AV19,BA19,BF19,BK19,BP19,BU19,CC19,CK19,CP19,CU19,CZ19,DE19,DI19,DM19,DQ19,DU19,DY19,EC19) -> 114 | E19: =IF(B19=0,0,C19/B19) -> 0.710816777 | F19: =IF(O19>0,1,0)+IF(T19>0,1,0)+IF(Y19>0,1,0)+IF(AD19>0,1,0)+IF(AI19>0,1,0)+IF(AN19>0,1,0)+IF(AS19>0,1,0)+IF(AX19>0,1,0)+IF(BC19>0,1,0)+IF(BH19>0,1,0)+IF(BM19>0,1,0)+IF(BR19>0,1,0)+IF(BZ19>0,1,0)+IF(CH19>0,1,0)+IF(CM19>0,1,0)+IF(CR19>0,1,0)+IF(CW19>0,1,0)+IF(DB19>0,1,0)+IF(DG19>0,1,0)+IF(DK19>0,1,0)+IF(DO19>0,1,0)+IF(DS19>0,1,0)+IF(DW19>0,1,0)+EE19 -> 6 | G19: 2019 | O19: =IFERROR(VLOOKUP($A19,'2024'!$A$2:$M$220,6,FALSE),0) -> 70 | P19: =IFERROR(VLOOKUP($A19,'2024'!$A$2:$M$220,7,FALSE),0) -> 45 | Q19: =IFERROR(VLOOKUP($A19,'2024'!$A$2:$M$220,8,FALSE),0) -> 44 | R19: =IFERROR(VLOOKUP($A19,'2024'!$A$2:$M$220,11,FALSE),0) -> 23 | S19: =IFERROR(VLOOKUP($A19,'2024'!$A$2:$M$220,13,FALSE),0) -> 0.629 | T19: =IFERROR(VLOOKUP($A19,'2023'!$A$2:$M$170,6,FALSE),0) -> 74 | U19: =IFERROR(VLOOKUP($A19,'2023'!$A$2:$M$170,7,FALSE),0) -> 38 | V19: =IFERROR(VLOOKUP($A19,'2023'!$A$2:$M$170,8,FALSE),0) -> 49 | W19: =IFERROR(VLOOKUP($A19,'2023'!$A$2:$M$170,11,FALSE),0) -> 13 | X19: =IFERROR(VLOOKUP($A19,'2023'!$A$2:$M$170,13,FALSE),0) -> 0.662 | Y19: =IFERROR(VLOOKUP($A19,'2022'!$B$2:$K$174,3,FALSE),0) -> 83 | Z19: =IFERROR(VLOOKUP($A19,'2022'!$B$2:$K$174,4,FALSE),0) -> 55 | AA19: =IFERROR(VLOOKUP($A19,'2022'!$B$2:$K$174,5,FALSE),0) -> 65 | AB19: =IFERROR(VLOOKUP($A19,'2022'!$B$2:$K$174,8,FALSE),0) -> 21 | AC19: =IFERROR(VLOOKUP($A19,'2022'!$B$2:$K$174,10,FALSE),0) -> 0.783 | AD19: =IFERROR(VLOOKUP($A19,'2021'!$B$2:$K$174,3,FALSE),0) -> 85 | AE19: =IFERROR(VLOOKUP($A19,'2021'!$B$2:$K$174,4,FALSE),0) -> 53 | AF19: =IFERROR(VLOOKUP($A19,'2021'!$B$2:$K$174,5,FALSE),0) -> 64 | AG19: =IFERROR(VLOOKUP($A19,'2021'!$B$2:$K$174,8,FALSE),0) -> 27 | AH19: =IFERROR(VLOOKUP($A19,'2021'!$B$2:$K$174,10,FALSE),0) -> 0.753 | AI19: =IFERROR(VLOOKUP($A19,'2020'!$B$2:$K$170,3,FALSE),0) -> 77 | AJ19: =IFERROR(VLOOKUP($A19,'2020'!$B$2:$K$170,4,FALSE),0) -> 47 | AK19: =IFERROR(VLOOKUP($A19,'2020'!$B$2:$K$170,5,FALSE),0) -> 58 | AL19: =IFERROR(VLOOKUP($A19,'2020'!$B$2:$K$170,8,FALSE),0) -> 21 | AM19: =IFERROR(VLOOKUP($A19,'2020'!$B$2:$K$170,10,FALSE),0) -> 0.753 | AN19: =IFERROR(VLOOKUP($A19,'2019'!$B$2:$K$170,3,FALSE),0) -> 64 | AO19: =IFERROR(VLOOKUP($A19,'2019'!$B$2:$K$170,4,FALSE),0) -> 32 | AP19: =IFERROR(VLOOKUP($A19,'2019'!$B$2:$K$170,5,FALSE),0) -> 42 | AQ19: =IFERROR(VLOOKUP($A19,'2019'!$B$2:$K$170,8,FALSE),0) -> 9 | AR19: =IFERROR(VLOOKUP($A19,'2019'!$B$2:$K$170,10,FALSE),0) -> 0.656
A20: Tim Scribner | B20: =SUM(O20,T20,Y20,AD20,AI20,AN20,AS20,AX20,BC20,BH20,BM20,BR20,BZ20,CH20,CM20,CR20,CW20,DB20,DG20,DK20,DO20,DS20,DW20,EA20) -> 1763 | C20: =SUM(Q20,V20,AA20,AF20,AK20,AP20,AU20,AZ20,BE20,BJ20,BO20,BT20,CB20,CJ20,CO20,CT20,CY20,DD20,DH20,DL20,DP20,DT20,DX20,EB20) -> 1033 | D20: =SUM(R20,W20,AB20,AG20,AL20,AQ20,AV20,BA20,BF20,BK20,BP20,BU20,CC20,CK20,CP20,CU20,CZ20,DE20,DI20,DM20,DQ20,DU20,DY20,EC20) -> 111 | E20: =IF(B20=0,0,C20/B20) -> 0.5859330686 | F20: =IF(O20>0,1,0)+IF(T20>0,1,0)+IF(Y20>0,1,0)+IF(AD20>0,1,0)+IF(AI20>0,1,0)+IF(AN20>0,1,0)+IF(AS20>0,1,0)+IF(AX20>0,1,0)+IF(BC20>0,1,0)+IF(BH20>0,1,0)+IF(BM20>0,1,0)+IF(BR20>0,1,0)+IF(BZ20>0,1,0)+IF(CH20>0,1,0)+IF(CM20>0,1,0)+IF(CR20>0,1,0)+IF(CW20>0,1,0)+IF(DB20>0,1,0)+IF(DG20>0,1,0)+IF(DK20>0,1,0)+IF(DO20>0,1,0)+IF(DS20>0,1,0)+IF(DW20>0,1,0)+EE20 -> 33 | G20: 1986 | H20: =IF(BM20>0,1,0)+IF(BR20>0,1,0)+IF(BZ20>0,1,0)+IF(CH20>0,1,0)+IF(CM20>0,1,0)+IF(CR20>0,1,0)+IF(CW20>0,1,0)+IF(DB20>0,1,0)+IF(DG20>0,1,0)+IF(DK20>0,1,0)+IF(DO20>0,1,0)+IF(DS20>0,1,0)+IF(DW20>0,1,0)+EE20 -> 31 | I20: =SUM(BM20,BR20,BZ20,CH20,CM20,CR20,CW20,DB20,DG20,DK20,DO20,DS20,DW20,EA20) -> 1698 | J20: =SUM(BO20,BT20,CB20,CJ20,CO20,CT20,CY20,DD20,DH20,DL20,DP20,DT20,DX20,EB20) -> 1000 | K20: =SUM(BP20,BU20,CC20,CK20,CP20,CU20,CZ20,DE20,DI20,DM20,DQ20,DU20,DY20,EC20) -> 111 | L20: =IF(I20=0,0,J20/I20) -> 0.5889281508 | M20: 86 | N20: 3 | O20: =IFERROR(VLOOKUP($A20,'2024'!$A$2:$M$220,6,FALSE),0) -> 0 | P20: =IFERROR(VLOOKUP($A20,'2024'!$A$2:$M$220,7,FALSE),0) -> 0 | Q20: =IFERROR(VLOOKUP($A20,'2024'!$A$2:$M$220,8,FALSE),0) -> 0 | R20: =IFERROR(VLOOKUP($A20,'2024'!$A$2:$M$220,11,FALSE),0) -> 0 | S20: =IFERROR(VLOOKUP($A20,'2024'!$A$2:$M$220,13,FALSE),0) -> 0 | T20: =IFERROR(VLOOKUP($A20,'2023'!$A$2:$M$170,6,FALSE),0) -> 0 | U20: =IFERROR(VLOOKUP($A20,'2023'!$A$2:$M$170,7,FALSE),0) -> 0 | V20: =IFERROR(VLOOKUP($A20,'2023'!$A$2:$M$170,8,FALSE),0) -> 0 | W20: =IFERROR(VLOOKUP($A20,'2023'!$A$2:$M$170,11,FALSE),0) -> 0 | X20: =IFERROR(VLOOKUP($A20,'2023'!$A$2:$M$170,13,FALSE),0) -> 0 | Y20: =IFERROR(VLOOKUP($A20,'2022'!$B$2:$K$174,3,FALSE),0) -> 0 | Z20: =IFERROR(VLOOKUP($A20,'2022'!$B$2:$K$174,4,FALSE),0) -> 0 | AA20: =IFERROR(VLOOKUP($A20,'2022'!$B$2:$K$174,5,FALSE),0) -> 0 | AB20: =IFERROR(VLOOKUP($A20,'2022'!$B$2:$K$174,8,FALSE),0) -> 0 | AC20: =IFERROR(VLOOKUP($A20,'2022'!$B$2:$K$174,10,FALSE),0) -> 0 | AD20: =IFERROR(VLOOKUP($A20,'2021'!$B$2:$K$174,3,FALSE),0) -> 0 | AE20: =IFERROR(VLOOKUP($A20,'2021'!$B$2:$K$174,4,FALSE),0) -> 0 | AF20: =IFERROR(VLOOKUP($A20,'2021'!$B$2:$K$174,5,FALSE),0) -> 0 | AG20: =IFERROR(VLOOKUP($A20,'2021'!$B$2:$K$174,8,FALSE),0) -> 0 | AH20: =IFERROR(VLOOKUP($A20,'2021'!$B$2:$K$174,10,FALSE),0) -> 0 | AI20: =IFERROR(VLOOKUP($A20,'2020'!$B$2:$K$170,3,FALSE),0) -> 0 | AJ20: =IFERROR(VLOOKUP($A20,'2020'!$B$2:$K$170,4,FALSE),0) -> 0 | AK20: =IFERROR(VLOOKUP($A20,'2020'!$B$2:$K$170,5,FALSE),0) -> 0 | AL20: =IFERROR(VLOOKUP($A20,'2020'!$B$2:$K$170,8,FALSE),0) -> 0 | AM20: =IFERROR(VLOOKUP($A20,'2020'!$B$2:$K$170,10,FALSE),0) -> 0 | AN20: =IFERROR(VLOOKUP($A20,'2019'!$B$2:$K$170,3,FALSE),0) -> 0 | AO20: =IFERROR(VLOOKUP($A20,'2019'!$B$2:$K$170,4,FALSE),0) -> 0 | AP20: =IFERROR(VLOOKUP($A20,'2019'!$B$2:$K$170,5,FALSE),0) -> 0 | AQ20: =IFERROR(VLOOKUP($A20,'2019'!$B$2:$K$170,8,FALSE),0) -> 0 | AR20: =IFERROR(VLOOKUP($A20,'2019'!$B$2:$K$170,10,FALSE),0) -> 0 | AS20: =IFERROR(VLOOKUP($A20,'2018'!$B$2:$K$170,3,FALSE),0) -> 0 | AT20: =IFERROR(VLOOKUP($A20,'2018'!$B$2:$K$170,4,FALSE),0) -> 0 | AU20: =IFERROR(VLOOKUP($A20,'2018'!$B$2:$K$170,5,FALSE),0) -> 0 | AV20: =IFERROR(VLOOKUP($A20,'2018'!$B$2:$K$170,8,FALSE),0) -> 0 | AW20: =IFERROR(VLOOKUP($A20,'2018'!$B$2:$K$170,10,FALSE),0) -> 0 | AX20: =IFERROR(VLOOKUP($A20,'2017'!$B$2:$J$163,2,FALSE),0) -> 0 | AY20: =IFERROR(VLOOKUP($A20,'2017'!$B$2:$J$163,3,FALSE),0) -> 0 | AZ20: =IFERROR(VLOOKUP($A20,'2017'!$B$2:$J$163,4,FALSE),0) -> 0 | BA20: =IFERROR(VLOOKUP($A20,'2017'!$B$2:$J$163,7,FALSE),0) -> 0 | BB20: =IFERROR(VLOOKUP($A20,'2017'!$B$2:$J$163,9,FALSE),0) -> 0 | BC20: =IFERROR(VLOOKUP($A20,'2016'!$B$2:$K$165,3,FALSE),0) -> 8 | BD20: =IFERROR(VLOOKUP($A20,'2016'!$B$2:$K$165,4,FALSE),0) -> 3 | BE20: =IFERROR(VLOOKUP($A20,'2016'!$B$2:$K$165,5,FALSE),0) -> 4 | BF20: =IFERROR(VLOOKUP($A20,'2016'!$B$2:$K$165,8,FALSE),0) -> 0 | BG20: =IFERROR(VLOOKUP($A20,'2016'!$B$2:$K$165,10,FALSE),0) -> 0.5 | BH20: =IFERROR(VLOOKUP($A20,'2015'!$B$2:$K$165,3,FALSE),0) -> 57 | BI20: =IFERROR(VLOOKUP($A20,'2015'!$B$2:$K$165,4,FALSE),0) -> 14 | BJ20: =IFERROR(VLOOKUP($A20,'2015'!$B$2:$K$165,5,FALSE),0) -> 29 | BK20: =IFERROR(VLOOKUP($A20,'2015'!$B$2:$K$165,8,FALSE),0) -> 0 | BL20: =IFERROR(VLOOKUP($A20,'2015'!$B$2:$K$165,10,FALSE),0) -> 0.5087719298 | BM20: =IFERROR(VLOOKUP($A20,'2014'!$B$2:$K$157,3,FALSE),0) -> 5 | BN20: =IFERROR(VLOOKUP($A20,'2014'!$B$2:$K$157,4,FALSE),0) -> 1 | BO20: =IFERROR(VLOOKUP($A20,'2014'!$B$2:$K$157,5,FALSE),0) -> 2 | BP20: =IFERROR(VLOOKUP($A20,'2014'!$B$2:$K$157,8,FALSE),0) -> 0 | BQ20: =IFERROR(VLOOKUP($A20,'2014'!$B$2:$K$157,10,FALSE),0) -> 0.4 | BR20: =IFERROR(VLOOKUP($A20,'2013'!$D$4:$I$249,2,FALSE),0) -> 73 | BS20: =IFERROR(VLOOKUP($A20,'2013'!$D$4:$I$249,3,FALSE),0) -> 16 | BT20: =IFERROR(VLOOKUP($A20,'2013'!$D$4:$I$249,4,FALSE),0) -> 42 | BU20: =IFERROR(VLOOKUP($A20,'2013'!$D$4:$I$249,5,FALSE),0) -> 1 | BV20: =IFERROR(VLOOKUP($A20,'2013'!$D$4:$I$249,6,FALSE),0) -> 0.5753424658 | BW20: =IFERROR(VLOOKUP($A20,'2012'!$D$3:$O$172,2,FALSE),0) -> 1620 | BX20: =IFERROR(VLOOKUP($A20,'2012'!$D$3:$O$172,3,FALSE),0) -> 950 | BY20: =IFERROR(VLOOKUP($A20,'2012'!$D$3:$O$172,4,FALSE),0) -> 110 | BZ20: =IFERROR(VLOOKUP($A20,'2012'!$D$3:$O$172,5,FALSE),0) -> 63 | CA20: =IFERROR(VLOOKUP($A20,'2012'!$D$3:$O$172,6,FALSE),0) -> 14 | CB20: =IFERROR(VLOOKUP($A20,'2012'!$D$3:$O$172,7,FALSE),0) -> 36 | CC20: =IFERROR(VLOOKUP($A20,'2012'!$D$3:$O$172,8,FALSE),0) -> 1 | CD20: =IFERROR(VLOOKUP($A20,'2012'!$D$3:$O$172,9,FALSE),0) -> 0.5714285714 | CE20: =IFERROR(VLOOKUP($A20,'2012'!$D$3:$O$172,10,FALSE),0) -> 1557 | CF20: =IFERROR(VLOOKUP($A20,'2012'!$D$3:$O$172,11,FALSE),0) -> 914 | CG20: =IFERROR(VLOOKUP($A20,'2012'!$D$3:$O$172,12,FALSE),0) -> 109 | CH20: =IFERROR(VLOOKUP($A20,'2011'!$D$4:$I$251,2,FALSE),0) -> 63 | CI20: =IFERROR(VLOOKUP($A20,'2011'!$D$4:$I$251,3,FALSE),0) -> 22 | CJ20: =IFERROR(VLOOKUP($A20,'2011'!$D$4:$I$251,4,FALSE),0) -> 36 | CK20: =IFERROR(VLOOKUP($A20,'2011'!$D$4:$I$251,5,FALSE),0) -> 3 | CL20: =IFERROR(VLOOKUP($A20,'2011'!$D$4:$I$251,6,FALSE),0) -> 0.5714285714 | CM20: =IFERROR(VLOOKUP($A20,'2010'!$C$3:$H$234,2,FALSE),0) -> 51 | CN20: =IFERROR(VLOOKUP($A20,'2010'!$C$3:$H$234,3,FALSE),0) -> 12 | CO20: =IFERROR(VLOOKUP($A20,'2010'!$C$3:$H$234,4,FALSE),0) -> 26 | CP20: =IFERROR(VLOOKUP($A20,'2010'!$C$3:$H$234,5,FALSE),0) -> 1 | CQ20: =IFERROR(VLOOKUP($A20,'2010'!$C$3:$H$234,6,FALSE),0) -> 0.5098039216 | CR20: =IFERROR(VLOOKUP($A20,'2009'!$C$3:$H$242,2,FALSE),0) -> 50 | CS20: =IFERROR(VLOOKUP($A20,'2009'!$C$3:$H$242,3,FALSE),0) -> 13 | CT20: =IFERROR(VLOOKUP($A20,'2009'!$C$3:$H$242,4,FALSE),0) -> 32 | CU20: =IFERROR(VLOOKUP($A20,'2009'!$C$3:$H$242,5,FALSE),0) -> 1 | CV20: =IFERROR(VLOOKUP($A20,'2009'!$C$3:$H$242,6,FALSE),0) -> 0.64 | CW20: =IFERROR(VLOOKUP($A20,'2008'!$C$3:$H$229,2,FALSE),0) -> 60 | CX20: =IFERROR(VLOOKUP($A20,'2008'!$C$3:$H$229,3,FALSE),0) -> 17 | CY20: =IFERROR(VLOOKUP($A20,'2008'!$C$3:$H$229,4,FALSE),0) -> 31 | CZ20: =IFERROR(VLOOKUP($A20,'2008'!$C$3:$H$229,5,FALSE),0) -> 4 | DA20: =IFERROR(VLOOKUP($A20,'2008'!$C$3:$H$229,6,FALSE),0) -> 0.5166666667 | DB20: =IFERROR(VLOOKUP($A20,'2007'!$C$3:$M$238,7,FALSE),0) -> 36 | DC20: =IFERROR(VLOOKUP($A20,'2007'!$C$3:$M$238,8,FALSE),0) -> 12 | DD20: =IFERROR(VLOOKUP($A20,'2007'!$C$3:$M$238,9,FALSE),0) -> 20 | DE20: =IFERROR(VLOOKUP($A20,'2007'!$C$3:$M$238,10,FALSE),0) -> 0 | DF20: =IFERROR(VLOOKUP($A20,'2007'!$C$3:$M$238,11,FALSE),0) -> 0.5555555556 | DG20: =IFERROR(VLOOKUP($A20,'2006'!$A$2:$F$200,2,FALSE),0) -> 55 | DH20: =IFERROR(VLOOKUP($A20,'2006'!$A$2:$F$200,4,FALSE),0) -> 29 | DI20: =IFERROR(VLOOKUP($A20,'2006'!$A$2:$F$200,5,FALSE),0) -> 3 | DJ20: =IFERROR(VLOOKUP($A20,'2006'!$A$2:$F$200,6,FALSE),0) -> 0.5272727273 | DK20: =IFERROR(VLOOKUP($A20,'2005'!$C$3:$M$205,8,FALSE),0) -> 74 | DL20: =IFERROR(VLOOKUP($A20,'2005'!$C$3:$M$205,9,FALSE),0) -> 52 | DM20: =IFERROR(VLOOKUP($A20,'2005'!$C$3:$M$205,10,FALSE),0) -> 4 | DN20: =IFERROR(VLOOKUP($A20,'2005'!$C$3:$M$205,11,FALSE),0) -> 0.7027027027 | DO20: =IFERROR(VLOOKUP($A20,'2004'!$C$3:$M$213,8,FALSE),0) -> 56 | DP20: =IFERROR(VLOOKUP($A20,'2004'!$C$3:$M$213,9,FALSE),0) -> 36 | DQ20: =IFERROR(VLOOKUP($A20,'2004'!$C$3:$M$213,10,FALSE),0) -> 4 | DR20: =IFERROR(VLOOKUP($A20,'2004'!$C$3:$M$213,11,FALSE),0) -> 0.6428571429 | DS20: =IFERROR(VLOOKUP($A20,'2003'!$C$3:$Q$214,12,FALSE),0) -> 67 | DT20: =IFERROR(VLOOKUP($A20,'2003'!$C$3:$Q$214,13,FALSE),0) -> 43 | DU20: =IFERROR(VLOOKUP($A20,'2003'!$C$3:$Q$214,14,FALSE),0) -> 6 | DV20: =IFERROR(VLOOKUP($A20,'2003'!$C$3:$Q$214,15,FALSE),0) -> 0.6417910448 | DW20: =IFERROR(VLOOKUP($A20,'2002'!$D$3:$R$214,12,FALSE),0) -> 57 | DX20: =IFERROR(VLOOKUP($A20,'2002'!$D$3:$R$214,13,FALSE),0) -> 28 | DY20: =IFERROR(VLOOKUP($A20,'2002'!$D$3:$R$214,14,FALSE),0) -> 4 | DZ20: =IFERROR(VLOOKUP($A20,'2002'!$D$3:$R$214,15,FALSE),0) -> 0.4912280702 | EA20: =IFERROR(VLOOKUP($A20,'Pre 2002'!$C$3:$CK$382,84,FALSE),0) -> 988 | EB20: =IFERROR(VLOOKUP($A20,'Pre 2002'!$C$3:$CK$382,85,FALSE),0) -> 587 | EC20: =IFERROR(VLOOKUP($A20,'Pre 2002'!$C$3:$CK$382,86,FALSE),0) -> 79 | ED20: =IFERROR(VLOOKUP($A20,'Pre 2002'!$C$3:$CK$382,87,FALSE),0) -> 0.5941295547 | EE20: =IFERROR(VLOOKUP(A20,'Pre 2002'!$C$3:$CG$382,83,FALSE),0) -> 18
A21: Brian McCall | B21: =SUM(O21,T21,Y21,AD21,AI21,AN21,AS21,AX21,BC21,BH21,BM21,BR21,BZ21,CH21,CM21,CR21,CW21,DB21,DG21,DK21,DO21,DS21,DW21,EA21) -> 2262 | C21: =SUM(Q21,V21,AA21,AF21,AK21,AP21,AU21,AZ21,BE21,BJ21,BO21,BT21,CB21,CJ21,CO21,CT21,CY21,DD21,DH21,DL21,DP21,DT21,DX21,EB21) -> 1273 | D21: =SUM(R21,W21,AB21,AG21,AL21,AQ21,AV21,BA21,BF21,BK21,BP21,BU21,CC21,CK21,CP21,CU21,CZ21,DE21,DI21,DM21,DQ21,DU21,DY21,EC21) -> 110 | E21: =IF(B21=0,0,C21/B21) -> 0.5627763042 | F21: =IF(O21>0,1,0)+IF(T21>0,1,0)+IF(Y21>0,1,0)+IF(AD21>0,1,0)+IF(AI21>0,1,0)+IF(AN21>0,1,0)+IF(AS21>0,1,0)+IF(AX21>0,1,0)+IF(BC21>0,1,0)+IF(BH21>0,1,0)+IF(BM21>0,1,0)+IF(BR21>0,1,0)+IF(BZ21>0,1,0)+IF(CH21>0,1,0)+IF(CM21>0,1,0)+IF(CR21>0,1,0)+IF(CW21>0,1,0)+IF(DB21>0,1,0)+IF(DG21>0,1,0)+IF(DK21>0,1,0)+IF(DO21>0,1,0)+IF(DS21>0,1,0)+IF(DW21>0,1,0)+EE21 -> 32 | G21: 1993 | H21: =IF(BM21>0,1,0)+IF(BR21>0,1,0)+IF(BZ21>0,1,0)+IF(CH21>0,1,0)+IF(CM21>0,1,0)+IF(CR21>0,1,0)+IF(CW21>0,1,0)+IF(DB21>0,1,0)+IF(DG21>0,1,0)+IF(DK21>0,1,0)+IF(DO21>0,1,0)+IF(DS21>0,1,0)+IF(DW21>0,1,0)+EE21 -> 22 | I21: =SUM(BM21,BR21,BZ21,CH21,CM21,CR21,CW21,DB21,DG21,DK21,DO21,DS21,DW21,EA21) -> 1512 | J21: =SUM(BO21,BT21,CB21,CJ21,CO21,CT21,CY21,DD21,DH21,DL21,DP21,DT21,DX21,EB21) -> 851 | K21: =SUM(BP21,BU21,CC21,CK21,CP21,CU21,CZ21,DE21,DI21,DM21,DQ21,DU21,DY21,EC21) -> 84 | L21: =IF(I21=0,0,J21/I21) -> 0.5628306878 | M21: 93 | N21: 3 | O21: =IFERROR(VLOOKUP($A21,'2024'!$A$2:$M$220,6,FALSE),0) -> 82 | P21: =IFERROR(VLOOKUP($A21,'2024'!$A$2:$M$220,7,FALSE),0) -> 19 | Q21: =IFERROR(VLOOKUP($A21,'2024'!$A$2:$M$220,8,FALSE),0) -> 47 | R21: =IFERROR(VLOOKUP($A21,'2024'!$A$2:$M$220,11,FALSE),0) -> 0 | S21: =IFERROR(VLOOKUP($A21,'2024'!$A$2:$M$220,13,FALSE),0) -> 0.573 | T21: =IFERROR(VLOOKUP($A21,'2023'!$A$2:$M$170,6,FALSE),0) -> 68 | U21: =IFERROR(VLOOKUP($A21,'2023'!$A$2:$M$170,7,FALSE),0) -> 17 | V21: =IFERROR(VLOOKUP($A21,'2023'!$A$2:$M$170,8,FALSE),0) -> 38 | W21: =IFERROR(VLOOKUP($A21,'2023'!$A$2:$M$170,11,FALSE),0) -> 0 | X21: =IFERROR(VLOOKUP($A21,'2023'!$A$2:$M$170,13,FALSE),0) -> 0.559 | Y21: =IFERROR(VLOOKUP($A21,'2022'!$B$2:$K$174,3,FALSE),0) -> 79 | Z21: =IFERROR(VLOOKUP($A21,'2022'!$B$2:$K$174,4,FALSE),0) -> 13 | AA21: =IFERROR(VLOOKUP($A21,'2022'!$B$2:$K$174,5,FALSE),0) -> 38 | AB21: =IFERROR(VLOOKUP($A21,'2022'!$B$2:$K$174,8,FALSE),0) -> 0 | AC21: =IFERROR(VLOOKUP($A21,'2022'!$B$2:$K$174,10,FALSE),0) -> 0.481 | AD21: =IFERROR(VLOOKUP($A21,'2021'!$B$2:$K$174,3,FALSE),0) -> 77 | AE21: =IFERROR(VLOOKUP($A21,'2021'!$B$2:$K$174,4,FALSE),0) -> 13 | AF21: =IFERROR(VLOOKUP($A21,'2021'!$B$2:$K$174,5,FALSE),0) -> 36 | AG21: =IFERROR(VLOOKUP($A21,'2021'!$B$2:$K$174,8,FALSE),0) -> 0 | AH21: =IFERROR(VLOOKUP($A21,'2021'!$B$2:$K$174,10,FALSE),0) -> 0.468 | AI21: =IFERROR(VLOOKUP($A21,'2020'!$B$2:$K$170,3,FALSE),0) -> 90 | AJ21: =IFERROR(VLOOKUP($A21,'2020'!$B$2:$K$170,4,FALSE),0) -> 29 | AK21: =IFERROR(VLOOKUP($A21,'2020'!$B$2:$K$170,5,FALSE),0) -> 46 | AL21: =IFERROR(VLOOKUP($A21,'2020'!$B$2:$K$170,8,FALSE),0) -> 1 | AM21: =IFERROR(VLOOKUP($A21,'2020'!$B$2:$K$170,10,FALSE),0) -> 0.511 | AN21: =IFERROR(VLOOKUP($A21,'2019'!$B$2:$K$170,3,FALSE),0) -> 71 | AO21: =IFERROR(VLOOKUP($A21,'2019'!$B$2:$K$170,4,FALSE),0) -> 34 | AP21: =IFERROR(VLOOKUP($A21,'2019'!$B$2:$K$170,5,FALSE),0) -> 45 | AQ21: =IFERROR(VLOOKUP($A21,'2019'!$B$2:$K$170,8,FALSE),0) -> 7 | AR21: =IFERROR(VLOOKUP($A21,'2019'!$B$2:$K$170,10,FALSE),0) -> 0.634 | AS21: =IFERROR(VLOOKUP($A21,'2018'!$B$2:$K$170,3,FALSE),0) -> 81 | AT21: =IFERROR(VLOOKUP($A21,'2018'!$B$2:$K$170,4,FALSE),0) -> 33 | AU21: =IFERROR(VLOOKUP($A21,'2018'!$B$2:$K$170,5,FALSE),0) -> 51 | AV21: =IFERROR(VLOOKUP($A21,'2018'!$B$2:$K$170,8,FALSE),0) -> 4 | AW21: =IFERROR(VLOOKUP($A21,'2018'!$B$2:$K$170,10,FALSE),0) -> 0.63 | AX21: =IFERROR(VLOOKUP($A21,'2017'!$B$2:$J$163,2,FALSE),0) -> 65 | AY21: =IFERROR(VLOOKUP($A21,'2017'!$B$2:$J$163,3,FALSE),0) -> 25 | AZ21: =IFERROR(VLOOKUP($A21,'2017'!$B$2:$J$163,4,FALSE),0) -> 39 | BA21: =IFERROR(VLOOKUP($A21,'2017'!$B$2:$J$163,7,FALSE),0) -> 4 | BB21: =IFERROR(VLOOKUP($A21,'2017'!$B$2:$J$163,9,FALSE),0) -> 0.6 | BC21: =IFERROR(VLOOKUP($A21,'2016'!$B$2:$K$165,3,FALSE),0) -> 63 | BD21: =IFERROR(VLOOKUP($A21,'2016'!$B$2:$K$165,4,FALSE),0) -> 33 | BE21: =IFERROR(VLOOKUP($A21,'2016'!$B$2:$K$165,5,FALSE),0) -> 34 | BF21: =IFERROR(VLOOKUP($A21,'2016'!$B$2:$K$165,8,FALSE),0) -> 7 | BG21: =IFERROR(VLOOKUP($A21,'2016'!$B$2:$K$165,10,FALSE),0) -> 0.54 | BH21: =IFERROR(VLOOKUP($A21,'2015'!$B$2:$K$165,3,FALSE),0) -> 74 | BI21: =IFERROR(VLOOKUP($A21,'2015'!$B$2:$K$165,4,FALSE),0) -> 29 | BJ21: =IFERROR(VLOOKUP($A21,'2015'!$B$2:$K$165,5,FALSE),0) -> 48 | BK21: =IFERROR(VLOOKUP($A21,'2015'!$B$2:$K$165,8,FALSE),0) -> 3 | BL21: =IFERROR(VLOOKUP($A21,'2015'!$B$2:$K$165,10,FALSE),0) -> 0.6486486486 | BM21: =IFERROR(VLOOKUP($A21,'2014'!$B$2:$K$157,3,FALSE),0) -> 93 | BN21: =IFERROR(VLOOKUP($A21,'2014'!$B$2:$K$157,4,FALSE),0) -> 35 | BO21: =IFERROR(VLOOKUP($A21,'2014'!$B$2:$K$157,5,FALSE),0) -> 58 | BP21: =IFERROR(VLOOKUP($A21,'2014'!$B$2:$K$157,8,FALSE),0) -> 6 | BQ21: =IFERROR(VLOOKUP($A21,'2014'!$B$2:$K$157,10,FALSE),0) -> 0.623655914 | BR21: =IFERROR(VLOOKUP($A21,'2013'!$D$4:$I$249,2,FALSE),0) -> 78 | BS21: =IFERROR(VLOOKUP($A21,'2013'!$D$4:$I$249,3,FALSE),0) -> 31 | BT21: =IFERROR(VLOOKUP($A21,'2013'!$D$4:$I$249,4,FALSE),0) -> 49 | BU21: =IFERROR(VLOOKUP($A21,'2013'!$D$4:$I$249,5,FALSE),0) -> 10 | BV21: =IFERROR(VLOOKUP($A21,'2013'!$D$4:$I$249,6,FALSE),0) -> 0.6282051282 | BW21: =IFERROR(VLOOKUP($A21,'2012'!$D$3:$O$172,2,FALSE),0) -> 1341 | BX21: =IFERROR(VLOOKUP($A21,'2012'!$D$3:$O$172,3,FALSE),0) -> 744 | BY21: =IFERROR(VLOOKUP($A21,'2012'!$D$3:$O$172,4,FALSE),0) -> 68 | BZ21: =IFERROR(VLOOKUP($A21,'2012'!$D$3:$O$172,5,FALSE),0) -> 74 | CA21: =IFERROR(VLOOKUP($A21,'2012'!$D$3:$O$172,6,FALSE),0) -> 28 | CB21: =IFERROR(VLOOKUP($A21,'2012'!$D$3:$O$172,7,FALSE),0) -> 44 | CC21: =IFERROR(VLOOKUP($A21,'2012'!$D$3:$O$172,8,FALSE),0) -> 8 | CD21: =IFERROR(VLOOKUP($A21,'2012'!$D$3:$O$172,9,FALSE),0) -> 0.5945945946 | CE21: =IFERROR(VLOOKUP($A21,'2012'!$D$3:$O$172,10,FALSE),0) -> 1267 | CF21: =IFERROR(VLOOKUP($A21,'2012'!$D$3:$O$172,11,FALSE),0) -> 700 | CG21: =IFERROR(VLOOKUP($A21,'2012'!$D$3:$O$172,12,FALSE),0) -> 60 | CH21: =IFERROR(VLOOKUP($A21,'2011'!$D$4:$I$251,2,FALSE),0) -> 78 | CI21: =IFERROR(VLOOKUP($A21,'2011'!$D$4:$I$251,3,FALSE),0) -> 29 | CJ21: =IFERROR(VLOOKUP($A21,'2011'!$D$4:$I$251,4,FALSE),0) -> 49 | CK21: =IFERROR(VLOOKUP($A21,'2011'!$D$4:$I$251,5,FALSE),0) -> 4 | CL21: =IFERROR(VLOOKUP($A21,'2011'!$D$4:$I$251,6,FALSE),0) -> 0.6282051282 | CM21: =IFERROR(VLOOKUP($A21,'2010'!$C$3:$H$234,2,FALSE),0) -> 76 | CN21: =IFERROR(VLOOKUP($A21,'2010'!$C$3:$H$234,3,FALSE),0) -> 33 | CO21: =IFERROR(VLOOKUP($A21,'2010'!$C$3:$H$234,4,FALSE),0) -> 42 | CP21: =IFERROR(VLOOKUP($A21,'2010'!$C$3:$H$234,5,FALSE),0) -> 6 | CQ21: =IFERROR(VLOOKUP($A21,'2010'!$C$3:$H$234,6,FALSE),0) -> 0.5526315789 | CR21: =IFERROR(VLOOKUP($A21,'2009'!$C$3:$H$242,2,FALSE),0) -> 82 | CS21: =IFERROR(VLOOKUP($A21,'2009'!$C$3:$H$242,3,FALSE),0) -> 32 | CT21: =IFERROR(VLOOKUP($A21,'2009'!$C$3:$H$242,4,FALSE),0) -> 46 | CU21: =IFERROR(VLOOKUP($A21,'2009'!$C$3:$H$242,5,FALSE),0) -> 5 | CV21: =IFERROR(VLOOKUP($A21,'2009'!$C$3:$H$242,6,FALSE),0) -> 0.5609756098 | CW21: =IFERROR(VLOOKUP($A21,'2008'!$C$3:$H$229,2,FALSE),0) -> 71 | CX21: =IFERROR(VLOOKUP($A21,'2008'!$C$3:$H$229,3,FALSE),0) -> 29 | CY21: =IFERROR(VLOOKUP($A21,'2008'!$C$3:$H$229,4,FALSE),0) -> 40 | CZ21: =IFERROR(VLOOKUP($A21,'2008'!$C$3:$H$229,5,FALSE),0) -> 10 | DA21: =IFERROR(VLOOKUP($A21,'2008'!$C$3:$H$229,6,FALSE),0) -> 0.5633802817 | DB21: =IFERROR(VLOOKUP($A21,'2007'!$C$3:$M$238,7,FALSE),0) -> 83 | DC21: =IFERROR(VLOOKUP($A21,'2007'!$C$3:$M$238,8,FALSE),0) -> 28 | DD21: =IFERROR(VLOOKUP($A21,'2007'!$C$3:$M$238,9,FALSE),0) -> 48 | DE21: =IFERROR(VLOOKUP($A21,'2007'!$C$3:$M$238,10,FALSE),0) -> 2 | DF21: =IFERROR(VLOOKUP($A21,'2007'!$C$3:$M$238,11,FALSE),0) -> 0.578313253 | DG21: =IFERROR(VLOOKUP($A21,'2006'!$A$2:$F$200,2,FALSE),0) -> 68 | DH21: =IFERROR(VLOOKUP($A21,'2006'!$A$2:$F$200,4,FALSE),0) -> 38 | DI21: =IFERROR(VLOOKUP($A21,'2006'!$A$2:$F$200,5,FALSE),0) -> 2 | DJ21: =IFERROR(VLOOKUP($A21,'2006'!$A$2:$F$200,6,FALSE),0) -> 0.5588235294 | DK21: =IFERROR(VLOOKUP($A21,'2005'!$C$3:$M$205,8,FALSE),0) -> 76 | DL21: =IFERROR(VLOOKUP($A21,'2005'!$C$3:$M$205,9,FALSE),0) -> 54 | DM21: =IFERROR(VLOOKUP($A21,'2005'!$C$3:$M$205,10,FALSE),0) -> 3 | DN21: =IFERROR(VLOOKUP($A21,'2005'!$C$3:$M$205,11,FALSE),0) -> 0.7105263158 | DO21: =IFERROR(VLOOKUP($A21,'2004'!$C$3:$M$213,8,FALSE),0) -> 62 | DP21: =IFERROR(VLOOKUP($A21,'2004'!$C$3:$M$213,9,FALSE),0) -> 24 | DQ21: =IFERROR(VLOOKUP($A21,'2004'!$C$3:$M$213,10,FALSE),0) -> 1 | DR21: =IFERROR(VLOOKUP($A21,'2004'!$C$3:$M$213,11,FALSE),0) -> 0.3870967742 | DS21: =IFERROR(VLOOKUP($A21,'2003'!$C$3:$Q$214,12,FALSE),0) -> 57 | DT21: =IFERROR(VLOOKUP($A21,'2003'!$C$3:$Q$214,13,FALSE),0) -> 33 | DU21: =IFERROR(VLOOKUP($A21,'2003'!$C$3:$Q$214,14,FALSE),0) -> 1 | DV21: =IFERROR(VLOOKUP($A21,'2003'!$C$3:$Q$214,15,FALSE),0) -> 0.5789473684 | DW21: =IFERROR(VLOOKUP($A21,'2002'!$D$3:$R$214,12,FALSE),0) -> 62 | DX21: =IFERROR(VLOOKUP($A21,'2002'!$D$3:$R$214,13,FALSE),0) -> 44 | DY21: =IFERROR(VLOOKUP($A21,'2002'!$D$3:$R$214,14,FALSE),0) -> 3 | DZ21: =IFERROR(VLOOKUP($A21,'2002'!$D$3:$R$214,15,FALSE),0) -> 0.7096774194 | EA21: =IFERROR(VLOOKUP($A21,'Pre 2002'!$C$3:$CK$382,84,FALSE),0) -> 552 | EB21: =IFERROR(VLOOKUP($A21,'Pre 2002'!$C$3:$CK$382,85,FALSE),0) -> 282 | EC21: =IFERROR(VLOOKUP($A21,'Pre 2002'!$C$3:$CK$382,86,FALSE),0) -> 23 | ED21: =IFERROR(VLOOKUP($A21,'Pre 2002'!$C$3:$CK$382,87,FALSE),0) -> 0.5108695652 | EE21: =IFERROR(VLOOKUP(A21,'Pre 2002'!$C$3:$CG$382,83,FALSE),0) -> 9
A22: Chris Mize | B22: =SUM(O22,T22,Y22,AD22,AI22,AN22,AS22,AX22,BC22,BH22,BM22,BR22,BZ22,CH22,CM22,CR22,CW22,DB22,DG22,DK22,DO22,DS22,DW22,EA22) -> 683 | C22: =SUM(Q22,V22,AA22,AF22,AK22,AP22,AU22,AZ22,BE22,BJ22,BO22,BT22,CB22,CJ22,CO22,CT22,CY22,DD22,DH22,DL22,DP22,DT22,DX22,EB22) -> 484 | D22: =SUM(R22,W22,AB22,AG22,AL22,AQ22,AV22,BA22,BF22,BK22,BP22,BU22,CC22,CK22,CP22,CU22,CZ22,DE22,DI22,DM22,DQ22,DU22,DY22,EC22) -> 103 | E22: =IF(B22=0,0,C22/B22) -> 0.7086383602 | F22: =IF(O22>0,1,0)+IF(T22>0,1,0)+IF(Y22>0,1,0)+IF(AD22>0,1,0)+IF(AI22>0,1,0)+IF(AN22>0,1,0)+IF(AS22>0,1,0)+IF(AX22>0,1,0)+IF(BC22>0,1,0)+IF(BH22>0,1,0)+IF(BM22>0,1,0)+IF(BR22>0,1,0)+IF(BZ22>0,1,0)+IF(CH22>0,1,0)+IF(CM22>0,1,0)+IF(CR22>0,1,0)+IF(CW22>0,1,0)+IF(DB22>0,1,0)+IF(DG22>0,1,0)+IF(DK22>0,1,0)+IF(DO22>0,1,0)+IF(DS22>0,1,0)+IF(DW22>0,1,0)+EE22 -> 13 | H22: =IF(BM22>0,1,0)+IF(BR22>0,1,0)+IF(BZ22>0,1,0)+IF(CH22>0,1,0)+IF(CM22>0,1,0)+IF(CR22>0,1,0)+IF(CW22>0,1,0)+IF(DB22>0,1,0)+IF(DG22>0,1,0)+IF(DK22>0,1,0)+IF(DO22>0,1,0)+IF(DS22>0,1,0)+IF(DW22>0,1,0)+EE22 -> 13 | I22: =SUM(BM22,BR22,BZ22,CH22,CM22,CR22,CW22,DB22,DG22,DK22,DO22,DS22,DW22,EA22) -> 683 | J22: =SUM(BO22,BT22,CB22,CJ22,CO22,CT22,CY22,DD22,DH22,DL22,DP22,DT22,DX22,EB22) -> 484 | K22: =SUM(BP22,BU22,CC22,CK22,CP22,CU22,CZ22,DE22,DI22,DM22,DQ22,DU22,DY22,EC22) -> 103 | L22: =IF(I22=0,0,J22/I22) -> 0.7086383602 | O22: =IFERROR(VLOOKUP($A22,'2024'!$A$2:$M$220,6,FALSE),0) -> 0 | P22: =IFERROR(VLOOKUP($A22,'2024'!$A$2:$M$220,7,FALSE),0) -> 0 | Q22: =IFERROR(VLOOKUP($A22,'2024'!$A$2:$M$220,8,FALSE),0) -> 0 | R22: =IFERROR(VLOOKUP($A22,'2024'!$A$2:$M$220,11,FALSE),0) -> 0 | S22: =IFERROR(VLOOKUP($A22,'2024'!$A$2:$M$220,13,FALSE),0) -> 0 | T22: =IFERROR(VLOOKUP($A22,'2023'!$A$2:$M$170,6,FALSE),0) -> 0 | U22: =IFERROR(VLOOKUP($A22,'2023'!$A$2:$M$170,7,FALSE),0) -> 0 | V22: =IFERROR(VLOOKUP($A22,'2023'!$A$2:$M$170,8,FALSE),0) -> 0 | W22: =IFERROR(VLOOKUP($A22,'2023'!$A$2:$M$170,11,FALSE),0) -> 0 | X22: =IFERROR(VLOOKUP($A22,'2023'!$A$2:$M$170,13,FALSE),0) -> 0 | Y22: =IFERROR(VLOOKUP($A22,'2022'!$B$2:$K$174,3,FALSE),0) -> 0 | Z22: =IFERROR(VLOOKUP($A22,'2022'!$B$2:$K$174,4,FALSE),0) -> 0 | AA22: =IFERROR(VLOOKUP($A22,'2022'!$B$2:$K$174,5,FALSE),0) -> 0 | AB22: =IFERROR(VLOOKUP($A22,'2022'!$B$2:$K$174,8,FALSE),0) -> 0 | AC22: =IFERROR(VLOOKUP($A22,'2022'!$B$2:$K$174,10,FALSE),0) -> 0 | AD22: =IFERROR(VLOOKUP($A22,'2021'!$B$2:$K$174,3,FALSE),0) -> 0 | AE22: =IFERROR(VLOOKUP($A22,'2021'!$B$2:$K$174,4,FALSE),0) -> 0 | AF22: =IFERROR(VLOOKUP($A22,'2021'!$B$2:$K$174,5,FALSE),0) -> 0 | AG22: =IFERROR(VLOOKUP($A22,'2021'!$B$2:$K$174,8,FALSE),0) -> 0 | AH22: =IFERROR(VLOOKUP($A22,'2021'!$B$2:$K$174,10,FALSE),0) -> 0 | AI22: =IFERROR(VLOOKUP($A22,'2020'!$B$2:$K$170,3,FALSE),0) -> 0 | AJ22: =IFERROR(VLOOKUP($A22,'2020'!$B$2:$K$170,4,FALSE),0) -> 0 | AK22: =IFERROR(VLOOKUP($A22,'2020'!$B$2:$K$170,5,FALSE),0) -> 0 | AL22: =IFERROR(VLOOKUP($A22,'2020'!$B$2:$K$170,8,FALSE),0) -> 0 | AM22: =IFERROR(VLOOKUP($A22,'2020'!$B$2:$K$170,10,FALSE),0) -> 0 | AN22: =IFERROR(VLOOKUP($A22,'2019'!$B$2:$K$170,3,FALSE),0) -> 0 | AO22: =IFERROR(VLOOKUP($A22,'2019'!$B$2:$K$170,4,FALSE),0) -> 0 | AP22: =IFERROR(VLOOKUP($A22,'2019'!$B$2:$K$170,5,FALSE),0) -> 0 | AQ22: =IFERROR(VLOOKUP($A22,'2019'!$B$2:$K$170,8,FALSE),0) -> 0 | AR22: =IFERROR(VLOOKUP($A22,'2019'!$B$2:$K$170,10,FALSE),0) -> 0 | AS22: =IFERROR(VLOOKUP($A22,'2018'!$B$2:$K$170,3,FALSE),0) -> 0 | AT22: =IFERROR(VLOOKUP($A22,'2018'!$B$2:$K$170,4,FALSE),0) -> 0 | AU22: =IFERROR(VLOOKUP($A22,'2018'!$B$2:$K$170,5,FALSE),0) -> 0 | AV22: =IFERROR(VLOOKUP($A22,'2018'!$B$2:$K$170,8,FALSE),0) -> 0 | AW22: =IFERROR(VLOOKUP($A22,'2018'!$B$2:$K$170,10,FALSE),0) -> 0 | AX22: =IFERROR(VLOOKUP($A22,'2017'!$B$2:$J$163,2,FALSE),0) -> 0 | AY22: =IFERROR(VLOOKUP($A22,'2017'!$B$2:$J$163,3,FALSE),0) -> 0 | AZ22: =IFERROR(VLOOKUP($A22,'2017'!$B$2:$J$163,4,FALSE),0) -> 0 | BA22: =IFERROR(VLOOKUP($A22,'2017'!$B$2:$J$163,7,FALSE),0) -> 0 | BB22: =IFERROR(VLOOKUP($A22,'2017'!$B$2:$J$163,9,FALSE),0) -> 0 | BC22: =IFERROR(VLOOKUP($A22,'2016'!$B$2:$K$165,3,FALSE),0) -> 0 | BD22: =IFERROR(VLOOKUP($A22,'2016'!$B$2:$K$165,4,FALSE),0) -> 0 | BE22: =IFERROR(VLOOKUP($A22,'2016'!$B$2:$K$165,5,FALSE),0) -> 0 | BF22: =IFERROR(VLOOKUP($A22,'2016'!$B$2:$K$165,8,FALSE),0) -> 0 | BG22: =IFERROR(VLOOKUP($A22,'2016'!$B$2:$K$165,10,FALSE),0) -> 0 | BH22: =IFERROR(VLOOKUP($A22,'2015'!$B$2:$K$165,3,FALSE),0) -> 0 | BI22: =IFERROR(VLOOKUP($A22,'2015'!$B$2:$K$165,4,FALSE),0) -> 0 | BJ22: =IFERROR(VLOOKUP($A22,'2015'!$B$2:$K$165,5,FALSE),0) -> 0 | BK22: =IFERROR(VLOOKUP($A22,'2015'!$B$2:$K$165,8,FALSE),0) -> 0 | BL22: =IFERROR(VLOOKUP($A22,'2015'!$B$2:$K$165,10,FALSE),0) -> 0 | BM22: =IFERROR(VLOOKUP($A22,'2014'!$B$2:$K$157,3,FALSE),0) -> 0 | BN22: =IFERROR(VLOOKUP($A22,'2014'!$B$2:$K$157,4,FALSE),0) -> 0 | BO22: =IFERROR(VLOOKUP($A22,'2014'!$B$2:$K$157,5,FALSE),0) -> 0 | BP22: =IFERROR(VLOOKUP($A22,'2014'!$B$2:$K$157,8,FALSE),0) -> 0 | BQ22: =IFERROR(VLOOKUP($A22,'2014'!$B$2:$K$157,10,FALSE),0) -> 0 | BR22: =IFERROR(VLOOKUP($A22,'2013'!$D$4:$I$249,2,FALSE),0) -> 0 | BS22: =IFERROR(VLOOKUP($A22,'2013'!$D$4:$I$249,3,FALSE),0) -> 0 | BT22: =IFERROR(VLOOKUP($A22,'2013'!$D$4:$I$249,4,FALSE),0) -> 0 | BU22: =IFERROR(VLOOKUP($A22,'2013'!$D$4:$I$249,5,FALSE),0) -> 0 | BV22: =IFERROR(VLOOKUP($A22,'2013'!$D$4:$I$249,6,FALSE),0) -> 0 | BW22: =IFERROR(VLOOKUP($A22,'2012'!$D$3:$O$172,2,FALSE),0) -> 0 | BX22: =IFERROR(VLOOKUP($A22,'2012'!$D$3:$O$172,3,FALSE),0) -> 0 | BY22: =IFERROR(VLOOKUP($A22,'2012'!$D$3:$O$172,4,FALSE),0) -> 0 | BZ22: =IFERROR(VLOOKUP($A22,'2012'!$D$3:$O$172,5,FALSE),0) -> 0 | CA22: =IFERROR(VLOOKUP($A22,'2012'!$D$3:$O$172,6,FALSE),0) -> 0 | CB22: =IFERROR(VLOOKUP($A22,'2012'!$D$3:$O$172,7,FALSE),0) -> 0 | CC22: =IFERROR(VLOOKUP($A22,'2012'!$D$3:$O$172,8,FALSE),0) -> 0 | CD22: =IFERROR(VLOOKUP($A22,'2012'!$D$3:$O$172,9,FALSE),0) -> 0 | CH22: =IFERROR(VLOOKUP($A22,'2011'!$D$4:$I$251,2,FALSE),0) -> 0 | CI22: =IFERROR(VLOOKUP($A22,'2011'!$D$4:$I$251,3,FALSE),0) -> 0 | CJ22: =IFERROR(VLOOKUP($A22,'2011'!$D$4:$I$251,4,FALSE),0) -> 0 | CK22: =IFERROR(VLOOKUP($A22,'2011'!$D$4:$I$251,5,FALSE),0) -> 0 | CL22: =IFERROR(VLOOKUP($A22,'2011'!$D$4:$I$251,6,FALSE),0) -> 0 | CM22: =IFERROR(VLOOKUP($A22,'2010'!$C$3:$H$234,2,FALSE),0) -> 0 | CN22: =IFERROR(VLOOKUP($A22,'2010'!$C$3:$H$234,3,FALSE),0) -> 0 | CO22: =IFERROR(VLOOKUP($A22,'2010'!$C$3:$H$234,4,FALSE),0) -> 0 | CP22: =IFERROR(VLOOKUP($A22,'2010'!$C$3:$H$234,5,FALSE),0) -> 0 | CQ22: =IFERROR(VLOOKUP($A22,'2010'!$C$3:$H$234,6,FALSE),0) -> 0 | CR22: =IFERROR(VLOOKUP($A22,'2009'!$C$3:$H$242,2,FALSE),0) -> 0 | CS22: =IFERROR(VLOOKUP($A22,'2009'!$C$3:$H$242,3,FALSE),0) -> 0 | CT22: =IFERROR(VLOOKUP($A22,'2009'!$C$3:$H$242,4,FALSE),0) -> 0 | CU22: =IFERROR(VLOOKUP($A22,'2009'!$C$3:$H$242,5,FALSE),0) -> 0 | CV22: =IFERROR(VLOOKUP($A22,'2009'!$C$3:$H$242,6,FALSE),0) -> 0 | CW22: =IFERROR(VLOOKUP($A22,'2008'!$C$3:$H$229,2,FALSE),0) -> 0 | CX22: =IFERROR(VLOOKUP($A22,'2008'!$C$3:$H$229,3,FALSE),0) -> 0 | CY22: =IFERROR(VLOOKUP($A22,'2008'!$C$3:$H$229,4,FALSE),0) -> 0 | CZ22: =IFERROR(VLOOKUP($A22,'2008'!$C$3:$H$229,5,FALSE),0) -> 0 | DA22: =IFERROR(VLOOKUP($A22,'2008'!$C$3:$H$229,6,FALSE),0) -> 0 | DB22: =IFERROR(VLOOKUP($A22,'2007'!$C$3:$M$238,7,FALSE),0) -> 65 | DC22: =IFERROR(VLOOKUP($A22,'2007'!$C$3:$M$238,8,FALSE),0) -> 30 | DD22: =IFERROR(VLOOKUP($A22,'2007'!$C$3:$M$238,9,FALSE),0) -> 41 | DE22: =IFERROR(VLOOKUP($A22,'2007'!$C$3:$M$238,10,FALSE),0) -> 4 | DF22: =IFERROR(VLOOKUP($A22,'2007'!$C$3:$M$238,11,FALSE),0) -> 0.6307692308 | DG22: =IFERROR(VLOOKUP($A22,'2006'!$A$2:$F$200,2,FALSE),0) -> 0 | DH22: =IFERROR(VLOOKUP($A22,'2006'!$A$2:$F$200,4,FALSE),0) -> 0 | DI22: =IFERROR(VLOOKUP($A22,'2006'!$A$2:$F$200,5,FALSE),0) -> 0 | DJ22: =IFERROR(VLOOKUP($A22,'2006'!$A$2:$F$200,6,FALSE),0) -> 0 | DK22: =IFERROR(VLOOKUP($A22,'2005'!$C$3:$M$205,8,FALSE),0) -> 50 | DL22: =IFERROR(VLOOKUP($A22,'2005'!$C$3:$M$205,9,FALSE),0) -> 43 | DM22: =IFERROR(VLOOKUP($A22,'2005'!$C$3:$M$205,10,FALSE),0) -> 4 | DN22: =IFERROR(VLOOKUP($A22,'2005'!$C$3:$M$205,11,FALSE),0) -> 0.86 | DO22: =IFERROR(VLOOKUP($A22,'2004'!$C$3:$M$213,8,FALSE),0) -> 64 | DP22: =IFERROR(VLOOKUP($A22,'2004'!$C$3:$M$213,9,FALSE),0) -> 48 | DQ22: =IFERROR(VLOOKUP($A22,'2004'!$C$3:$M$213,10,FALSE),0) -> 10 | DR22: =IFERROR(VLOOKUP($A22,'2004'!$C$3:$M$213,11,FALSE),0) -> 0.75 | DS22: =IFERROR(VLOOKUP($A22,'2003'!$C$3:$Q$214,12,FALSE),0) -> 47 | DT22: =IFERROR(VLOOKUP($A22,'2003'!$C$3:$Q$214,13,FALSE),0) -> 32 | DU22: =IFERROR(VLOOKUP($A22,'2003'!$C$3:$Q$214,14,FALSE),0) -> 9 | DV22: =IFERROR(VLOOKUP($A22,'2003'!$C$3:$Q$214,15,FALSE),0) -> 0.6808510638 | DW22: =IFERROR(VLOOKUP($A22,'2002'!$D$3:$R$214,12,FALSE),0) -> 62 | DX22: =IFERROR(VLOOKUP($A22,'2002'!$D$3:$R$214,13,FALSE),0) -> 54 | DY22: =IFERROR(VLOOKUP($A22,'2002'!$D$3:$R$214,14,FALSE),0) -> 9 | DZ22: =IFERROR(VLOOKUP($A22,'2002'!$D$3:$R$214,15,FALSE),0) -> 0.8709677419 | EA22: =IFERROR(VLOOKUP($A22,'Pre 2002'!$C$3:$CK$382,84,FALSE),0) -> 395 | EB22: =IFERROR(VLOOKUP($A22,'Pre 2002'!$C$3:$CK$382,85,FALSE),0) -> 266 | EC22: =IFERROR(VLOOKUP($A22,'Pre 2002'!$C$3:$CK$382,86,FALSE),0) -> 67 | ED22: =IFERROR(VLOOKUP($A22,'Pre 2002'!$C$3:$CK$382,87,FALSE),0) -> 0.6734177215 | EE22: =IFERROR(VLOOKUP(A22,'Pre 2002'!$C$3:$CG$382,83,FALSE),0) -> 8
A23: Randy Bailey | B23: =SUM(O23,T23,Y23,AD23,AI23,AN23,AS23,AX23,BC23,BH23,BM23,BR23,BZ23,CH23,CM23,CR23,CW23,DB23,DG23,DK23,DO23,DS23,DW23,EA23) -> 1493 | C23: =SUM(Q23,V23,AA23,AF23,AK23,AP23,AU23,AZ23,BE23,BJ23,BO23,BT23,CB23,CJ23,CO23,CT23,CY23,DD23,DH23,DL23,DP23,DT23,DX23,EB23) -> 895 | D23: =SUM(R23,W23,AB23,AG23,AL23,AQ23,AV23,BA23,BF23,BK23,BP23,BU23,CC23,CK23,CP23,CU23,CZ23,DE23,DI23,DM23,DQ23,DU23,DY23,EC23) -> 102 | E23: =IF(B23=0,0,C23/B23) -> 0.5994641661 | F23: =IF(O23>0,1,0)+IF(T23>0,1,0)+IF(Y23>0,1,0)+IF(AD23>0,1,0)+IF(AI23>0,1,0)+IF(AN23>0,1,0)+IF(AS23>0,1,0)+IF(AX23>0,1,0)+IF(BC23>0,1,0)+IF(BH23>0,1,0)+IF(BM23>0,1,0)+IF(BR23>0,1,0)+IF(BZ23>0,1,0)+IF(CH23>0,1,0)+IF(CM23>0,1,0)+IF(CR23>0,1,0)+IF(CW23>0,1,0)+IF(DB23>0,1,0)+IF(DG23>0,1,0)+IF(DK23>0,1,0)+IF(DO23>0,1,0)+IF(DS23>0,1,0)+IF(DW23>0,1,0)+EE23 -> 24 | G23: 1985 | H23: =IF(BM23>0,1,0)+IF(BR23>0,1,0)+IF(BZ23>0,1,0)+IF(CH23>0,1,0)+IF(CM23>0,1,0)+IF(CR23>0,1,0)+IF(CW23>0,1,0)+IF(DB23>0,1,0)+IF(DG23>0,1,0)+IF(DK23>0,1,0)+IF(DO23>0,1,0)+IF(DS23>0,1,0)+IF(DW23>0,1,0)+EE23 -> 24 | I23: =SUM(BM23,BR23,BZ23,CH23,CM23,CR23,CW23,DB23,DG23,DK23,DO23,DS23,DW23,EA23) -> 1493 | J23: =SUM(BO23,BT23,CB23,CJ23,CO23,CT23,CY23,DD23,DH23,DL23,DP23,DT23,DX23,EB23) -> 895 | K23: =SUM(BP23,BU23,CC23,CK23,CP23,CU23,CZ23,DE23,DI23,DM23,DQ23,DU23,DY23,EC23) -> 102 | L23: =IF(I23=0,0,J23/I23) -> 0.5994641661 | O23: =IFERROR(VLOOKUP($A23,'2024'!$A$2:$M$220,6,FALSE),0) -> 0 | P23: =IFERROR(VLOOKUP($A23,'2024'!$A$2:$M$220,7,FALSE),0) -> 0 | Q23: =IFERROR(VLOOKUP($A23,'2024'!$A$2:$M$220,8,FALSE),0) -> 0 | R23: =IFERROR(VLOOKUP($A23,'2024'!$A$2:$M$220,11,FALSE),0) -> 0 | S23: =IFERROR(VLOOKUP($A23,'2024'!$A$2:$M$220,13,FALSE),0) -> 0 | T23: =IFERROR(VLOOKUP($A23,'2023'!$A$2:$M$170,6,FALSE),0) -> 0 | U23: =IFERROR(VLOOKUP($A23,'2023'!$A$2:$M$170,7,FALSE),0) -> 0 | V23: =IFERROR(VLOOKUP($A23,'2023'!$A$2:$M$170,8,FALSE),0) -> 0 | W23: =IFERROR(VLOOKUP($A23,'2023'!$A$2:$M$170,11,FALSE),0) -> 0 | X23: =IFERROR(VLOOKUP($A23,'2023'!$A$2:$M$170,13,FALSE),0) -> 0 | Y23: =IFERROR(VLOOKUP($A23,'2022'!$B$2:$K$174,3,FALSE),0) -> 0 | Z23: =IFERROR(VLOOKUP($A23,'2022'!$B$2:$K$174,4,FALSE),0) -> 0 | AA23: =IFERROR(VLOOKUP($A23,'2022'!$B$2:$K$174,5,FALSE),0) -> 0 | AB23: =IFERROR(VLOOKUP($A23,'2022'!$B$2:$K$174,8,FALSE),0) -> 0 | AC23: =IFERROR(VLOOKUP($A23,'2022'!$B$2:$K$174,10,FALSE),0) -> 0 | AD23: =IFERROR(VLOOKUP($A23,'2021'!$B$2:$K$174,3,FALSE),0) -> 0 | AE23: =IFERROR(VLOOKUP($A23,'2021'!$B$2:$K$174,4,FALSE),0) -> 0 | AF23: =IFERROR(VLOOKUP($A23,'2021'!$B$2:$K$174,5,FALSE),0) -> 0 | AG23: =IFERROR(VLOOKUP($A23,'2021'!$B$2:$K$174,8,FALSE),0) -> 0 | AH23: =IFERROR(VLOOKUP($A23,'2021'!$B$2:$K$174,10,FALSE),0) -> 0 | AI23: =IFERROR(VLOOKUP($A23,'2020'!$B$2:$K$170,3,FALSE),0) -> 0 | AJ23: =IFERROR(VLOOKUP($A23,'2020'!$B$2:$K$170,4,FALSE),0) -> 0 | AK23: =IFERROR(VLOOKUP($A23,'2020'!$B$2:$K$170,5,FALSE),0) -> 0 | AL23: =IFERROR(VLOOKUP($A23,'2020'!$B$2:$K$170,8,FALSE),0) -> 0 | AM23: =IFERROR(VLOOKUP($A23,'2020'!$B$2:$K$170,10,FALSE),0) -> 0 | AN23: =IFERROR(VLOOKUP($A23,'2019'!$B$2:$K$170,3,FALSE),0) -> 0 | AO23: =IFERROR(VLOOKUP($A23,'2019'!$B$2:$K$170,4,FALSE),0) -> 0 | AP23: =IFERROR(VLOOKUP($A23,'2019'!$B$2:$K$170,5,FALSE),0) -> 0 | AQ23: =IFERROR(VLOOKUP($A23,'2019'!$B$2:$K$170,8,FALSE),0) -> 0 | AR23: =IFERROR(VLOOKUP($A23,'2019'!$B$2:$K$170,10,FALSE),0) -> 0 | AS23: =IFERROR(VLOOKUP($A23,'2018'!$B$2:$K$170,3,FALSE),0) -> 0 | AT23: =IFERROR(VLOOKUP($A23,'2018'!$B$2:$K$170,4,FALSE),0) -> 0 | AU23: =IFERROR(VLOOKUP($A23,'2018'!$B$2:$K$170,5,FALSE),0) -> 0 | AV23: =IFERROR(VLOOKUP($A23,'2018'!$B$2:$K$170,8,FALSE),0) -> 0 | AW23: =IFERROR(VLOOKUP($A23,'2018'!$B$2:$K$170,10,FALSE),0) -> 0 | AX23: =IFERROR(VLOOKUP($A23,'2017'!$B$2:$J$163,2,FALSE),0) -> 0 | AY23: =IFERROR(VLOOKUP($A23,'2017'!$B$2:$J$163,3,FALSE),0) -> 0 | AZ23: =IFERROR(VLOOKUP($A23,'2017'!$B$2:$J$163,4,FALSE),0) -> 0 | BA23: =IFERROR(VLOOKUP($A23,'2017'!$B$2:$J$163,7,FALSE),0) -> 0 | BB23: =IFERROR(VLOOKUP($A23,'2017'!$B$2:$J$163,9,FALSE),0) -> 0 | BC23: =IFERROR(VLOOKUP($A23,'2016'!$B$2:$K$165,3,FALSE),0) -> 0 | BD23: =IFERROR(VLOOKUP($A23,'2016'!$B$2:$K$165,4,FALSE),0) -> 0 | BE23: =IFERROR(VLOOKUP($A23,'2016'!$B$2:$K$165,5,FALSE),0) -> 0 | BF23: =IFERROR(VLOOKUP($A23,'2016'!$B$2:$K$165,8,FALSE),0) -> 0 | BG23: =IFERROR(VLOOKUP($A23,'2016'!$B$2:$K$165,10,FALSE),0) -> 0 | BH23: =IFERROR(VLOOKUP($A23,'2015'!$B$2:$K$165,3,FALSE),0) -> 0 | BI23: =IFERROR(VLOOKUP($A23,'2015'!$B$2:$K$165,4,FALSE),0) -> 0 | BJ23: =IFERROR(VLOOKUP($A23,'2015'!$B$2:$K$165,5,FALSE),0) -> 0 | BK23: =IFERROR(VLOOKUP($A23,'2015'!$B$2:$K$165,8,FALSE),0) -> 0 | BL23: =IFERROR(VLOOKUP($A23,'2015'!$B$2:$K$165,10,FALSE),0) -> 0 | BM23: =IFERROR(VLOOKUP($A23,'2014'!$B$2:$K$157,3,FALSE),0) -> 0 | BN23: =IFERROR(VLOOKUP($A23,'2014'!$B$2:$K$157,4,FALSE),0) -> 0 | BO23: =IFERROR(VLOOKUP($A23,'2014'!$B$2:$K$157,5,FALSE),0) -> 0 | BP23: =IFERROR(VLOOKUP($A23,'2014'!$B$2:$K$157,8,FALSE),0) -> 0 | BQ23: =IFERROR(VLOOKUP($A23,'2014'!$B$2:$K$157,10,FALSE),0) -> 0 | BR23: =IFERROR(VLOOKUP($A23,'2013'!$D$4:$I$249,2,FALSE),0) -> 0 | BS23: =IFERROR(VLOOKUP($A23,'2013'!$D$4:$I$249,3,FALSE),0) -> 0 | BT23: =IFERROR(VLOOKUP($A23,'2013'!$D$4:$I$249,4,FALSE),0) -> 0 | BU23: =IFERROR(VLOOKUP($A23,'2013'!$D$4:$I$249,5,FALSE),0) -> 0 | BV23: =IFERROR(VLOOKUP($A23,'2013'!$D$4:$I$249,6,FALSE),0) -> 0 | BW23: =IFERROR(VLOOKUP($A23,'2012'!$D$3:$O$172,2,FALSE),0) -> 1493 | BX23: =IFERROR(VLOOKUP($A23,'2012'!$D$3:$O$172,3,FALSE),0) -> 895 | BY23: =IFERROR(VLOOKUP($A23,'2012'!$D$3:$O$172,4,FALSE),0) -> 102 | BZ23: =IFERROR(VLOOKUP($A23,'2012'!$D$3:$O$172,5,FALSE),0) -> 59 | CA23: =IFERROR(VLOOKUP($A23,'2012'!$D$3:$O$172,6,FALSE),0) -> 26 | CB23: =IFERROR(VLOOKUP($A23,'2012'!$D$3:$O$172,7,FALSE),0) -> 41 | CC23: =IFERROR(VLOOKUP($A23,'2012'!$D$3:$O$172,8,FALSE),0) -> 1 | CD23: =IFERROR(VLOOKUP($A23,'2012'!$D$3:$O$172,9,FALSE),0) -> 0.6949152542 | CE23: =IFERROR(VLOOKUP($A23,'2012'!$D$3:$O$172,10,FALSE),0) -> 1434 | CF23: =IFERROR(VLOOKUP($A23,'2012'!$D$3:$O$172,11,FALSE),0) -> 854 | CG23: =IFERROR(VLOOKUP($A23,'2012'!$D$3:$O$172,12,FALSE),0) -> 101 | CH23: =IFERROR(VLOOKUP($A23,'2011'!$D$4:$I$251,2,FALSE),0) -> 62 | CI23: =IFERROR(VLOOKUP($A23,'2011'!$D$4:$I$251,3,FALSE),0) -> 30 | CJ23: =IFERROR(VLOOKUP($A23,'2011'!$D$4:$I$251,4,FALSE),0) -> 40 | CK23: =IFERROR(VLOOKUP($A23,'2011'!$D$4:$I$251,5,FALSE),0) -> 7 | CL23: =IFERROR(VLOOKUP($A23,'2011'!$D$4:$I$251,6,FALSE),0) -> 0.6451612903 | CM23: =IFERROR(VLOOKUP($A23,'2010'!$C$3:$H$234,2,FALSE),0) -> 64 | CN23: =IFERROR(VLOOKUP($A23,'2010'!$C$3:$H$234,3,FALSE),0) -> 25 | CO23: =IFERROR(VLOOKUP($A23,'2010'!$C$3:$H$234,4,FALSE),0) -> 39 | CP23: =IFERROR(VLOOKUP($A23,'2010'!$C$3:$H$234,5,FALSE),0) -> 3 | CQ23: =IFERROR(VLOOKUP($A23,'2010'!$C$3:$H$234,6,FALSE),0) -> 0.609375 | CR23: =IFERROR(VLOOKUP($A23,'2009'!$C$3:$H$242,2,FALSE),0) -> 73 | CS23: =IFERROR(VLOOKUP($A23,'2009'!$C$3:$H$242,3,FALSE),0) -> 31 | CT23: =IFERROR(VLOOKUP($A23,'2009'!$C$3:$H$242,4,FALSE),0) -> 43 | CU23: =IFERROR(VLOOKUP($A23,'2009'!$C$3:$H$242,5,FALSE),0) -> 4 | CV23: =IFERROR(VLOOKUP($A23,'2009'!$C$3:$H$242,6,FALSE),0) -> 0.5890410959 | CW23: =IFERROR(VLOOKUP($A23,'2008'!$C$3:$H$229,2,FALSE),0) -> 86 | CX23: =IFERROR(VLOOKUP($A23,'2008'!$C$3:$H$229,3,FALSE),0) -> 42 | CY23: =IFERROR(VLOOKUP($A23,'2008'!$C$3:$H$229,4,FALSE),0) -> 51 | CZ23: =IFERROR(VLOOKUP($A23,'2008'!$C$3:$H$229,5,FALSE),0) -> 2 | DA23: =IFERROR(VLOOKUP($A23,'2008'!$C$3:$H$229,6,FALSE),0) -> 0.5930232558 | DB23: =IFERROR(VLOOKUP($A23,'2007'!$C$3:$M$238,7,FALSE),0) -> 64 | DC23: =IFERROR(VLOOKUP($A23,'2007'!$C$3:$M$238,8,FALSE),0) -> 22 | DD23: =IFERROR(VLOOKUP($A23,'2007'!$C$3:$M$238,9,FALSE),0) -> 30 | DE23: =IFERROR(VLOOKUP($A23,'2007'!$C$3:$M$238,10,FALSE),0) -> 0 | DF23: =IFERROR(VLOOKUP($A23,'2007'!$C$3:$M$238,11,FALSE),0) -> 0.46875 | DG23: =IFERROR(VLOOKUP($A23,'2006'!$A$2:$F$200,2,FALSE),0) -> 69 | DH23: =IFERROR(VLOOKUP($A23,'2006'!$A$2:$F$200,4,FALSE),0) -> 35 | DI23: =IFERROR(VLOOKUP($A23,'2006'!$A$2:$F$200,5,FALSE),0) -> 0 | DJ23: =IFERROR(VLOOKUP($A23,'2006'!$A$2:$F$200,6,FALSE),0) -> 0.5072463768 | DK23: =IFERROR(VLOOKUP($A23,'2005'!$C$3:$M$205,8,FALSE),0) -> 0 | DL23: =IFERROR(VLOOKUP($A23,'2005'!$C$3:$M$205,9,FALSE),0) -> 0 | DM23: =IFERROR(VLOOKUP($A23,'2005'!$C$3:$M$205,10,FALSE),0) -> 0 | DN23: =IFERROR(VLOOKUP($A23,'2005'!$C$3:$M$205,11,FALSE),0) -> 0 | DO23: =IFERROR(VLOOKUP($A23,'2004'!$C$3:$M$213,8,FALSE),0) -> 0 | DP23: =IFERROR(VLOOKUP($A23,'2004'!$C$3:$M$213,9,FALSE),0) -> 0 | DQ23: =IFERROR(VLOOKUP($A23,'2004'!$C$3:$M$213,10,FALSE),0) -> 0 | DR23: =IFERROR(VLOOKUP($A23,'2004'!$C$3:$M$213,11,FALSE),0) -> 0 | DS23: =IFERROR(VLOOKUP($A23,'2003'!$C$3:$Q$214,12,FALSE),0) -> 0 | DT23: =IFERROR(VLOOKUP($A23,'2003'!$C$3:$Q$214,13,FALSE),0) -> 0 | DU23: =IFERROR(VLOOKUP($A23,'2003'!$C$3:$Q$214,14,FALSE),0) -> 0 | DV23: =IFERROR(VLOOKUP($A23,'2003'!$C$3:$Q$214,15,FALSE),0) -> 0 | DW23: =IFERROR(VLOOKUP($A23,'2002'!$D$3:$R$214,12,FALSE),0) -> 63 | DX23: =IFERROR(VLOOKUP($A23,'2002'!$D$3:$R$214,13,FALSE),0) -> 38 | DY23: =IFERROR(VLOOKUP($A23,'2002'!$D$3:$R$214,14,FALSE),0) -> 6 | DZ23: =IFERROR(VLOOKUP($A23,'2002'!$D$3:$R$214,15,FALSE),0) -> 0.6031746032 | EA23: =IFERROR(VLOOKUP($A23,'Pre 2002'!$C$3:$CK$382,84,FALSE),0) -> 953 | EB23: =IFERROR(VLOOKUP($A23,'Pre 2002'!$C$3:$CK$382,85,FALSE),0) -> 578 | EC23: =IFERROR(VLOOKUP($A23,'Pre 2002'!$C$3:$CK$382,86,FALSE),0) -> 79 | ED23: =IFERROR(VLOOKUP($A23,'Pre 2002'!$C$3:$CK$382,87,FALSE),0) -> 0.6065057712 | EE23: =IFERROR(VLOOKUP(A23,'Pre 2002'!$C$3:$CG$382,83,FALSE),0) -> 16
A24: Nick Walls | B24: =SUM(O24,T24,Y24,AD24,AI24,AN24,AS24,AX24,BC24,BH24,BM24,BR24,BZ24,CH24,CM24,CR24,CW24,DB24,DG24,DK24,DO24,DS24,DW24,EA24) -> 1448 | C24: =SUM(Q24,V24,AA24,AF24,AK24,AP24,AU24,AZ24,BE24,BJ24,BO24,BT24,CB24,CJ24,CO24,CT24,CY24,DD24,DH24,DL24,DP24,DT24,DX24,EB24) -> 779 | D24: =SUM(R24,W24,AB24,AG24,AL24,AQ24,AV24,BA24,BF24,BK24,BP24,BU24,CC24,CK24,CP24,CU24,CZ24,DE24,DI24,DM24,DQ24,DU24,DY24,EC24) -> 102 | E24: =IF(B24=0,0,C24/B24) -> 0.5379834254 | F24: =IF(O24>0,1,0)+IF(T24>0,1,0)+IF(Y24>0,1,0)+IF(AD24>0,1,0)+IF(AI24>0,1,0)+IF(AN24>0,1,0)+IF(AS24>0,1,0)+IF(AX24>0,1,0)+IF(BC24>0,1,0)+IF(BH24>0,1,0)+IF(BM24>0,1,0)+IF(BR24>0,1,0)+IF(BZ24>0,1,0)+IF(CH24>0,1,0)+IF(CM24>0,1,0)+IF(CR24>0,1,0)+IF(CW24>0,1,0)+IF(DB24>0,1,0)+IF(DG24>0,1,0)+IF(DK24>0,1,0)+IF(DO24>0,1,0)+IF(DS24>0,1,0)+IF(DW24>0,1,0)+EE24 -> 23 | G24: 1998 | H24: =IF(BM24>0,1,0)+IF(BR24>0,1,0)+IF(BZ24>0,1,0)+IF(CH24>0,1,0)+IF(CM24>0,1,0)+IF(CR24>0,1,0)+IF(CW24>0,1,0)+IF(DB24>0,1,0)+IF(DG24>0,1,0)+IF(DK24>0,1,0)+IF(DO24>0,1,0)+IF(DS24>0,1,0)+IF(DW24>0,1,0)+EE24 -> 13 | I24: =SUM(BM24,BR24,BZ24,CH24,CM24,CR24,CW24,DB24,DG24,DK24,DO24,DS24,DW24,EA24) -> 743 | J24: =SUM(BO24,BT24,CB24,CJ24,CO24,CT24,CY24,DD24,DH24,DL24,DP24,DT24,DX24,EB24) -> 392 | K24: =SUM(BP24,BU24,CC24,CK24,CP24,CU24,CZ24,DE24,DI24,DM24,DQ24,DU24,DY24,EC24) -> 45 | L24: =IF(I24=0,0,J24/I24) -> 0.5275908479 | M24: 98 | N24: 0 | O24: =IFERROR(VLOOKUP($A24,'2024'!$A$2:$M$220,6,FALSE),0) -> 77 | P24: =IFERROR(VLOOKUP($A24,'2024'!$A$2:$M$220,7,FALSE),0) -> 21 | Q24: =IFERROR(VLOOKUP($A24,'2024'!$A$2:$M$220,8,FALSE),0) -> 45 | R24: =IFERROR(VLOOKUP($A24,'2024'!$A$2:$M$220,11,FALSE),0) -> 3 | S24: =IFERROR(VLOOKUP($A24,'2024'!$A$2:$M$220,13,FALSE),0) -> 0.584 | T24: =IFERROR(VLOOKUP($A24,'2023'!$A$2:$M$170,6,FALSE),0) -> 60 | U24: =IFERROR(VLOOKUP($A24,'2023'!$A$2:$M$170,7,FALSE),0) -> 24 | V24: =IFERROR(VLOOKUP($A24,'2023'!$A$2:$M$170,8,FALSE),0) -> 37 | W24: =IFERROR(VLOOKUP($A24,'2023'!$A$2:$M$170,11,FALSE),0) -> 3 | X24: =IFERROR(VLOOKUP($A24,'2023'!$A$2:$M$170,13,FALSE),0) -> 0.617 | Y24: =IFERROR(VLOOKUP($A24,'2022'!$B$2:$K$174,3,FALSE),0) -> 62 | Z24: =IFERROR(VLOOKUP($A24,'2022'!$B$2:$K$174,4,FALSE),0) -> 19 | AA24: =IFERROR(VLOOKUP($A24,'2022'!$B$2:$K$174,5,FALSE),0) -> 36 | AB24: =IFERROR(VLOOKUP($A24,'2022'!$B$2:$K$174,8,FALSE),0) -> 3 | AC24: =IFERROR(VLOOKUP($A24,'2022'!$B$2:$K$174,10,FALSE),0) -> 0.581 | AD24: =IFERROR(VLOOKUP($A24,'2021'!$B$2:$K$174,3,FALSE),0) -> 66 | AE24: =IFERROR(VLOOKUP($A24,'2021'!$B$2:$K$174,4,FALSE),0) -> 23 | AF24: =IFERROR(VLOOKUP($A24,'2021'!$B$2:$K$174,5,FALSE),0) -> 33 | AG24: =IFERROR(VLOOKUP($A24,'2021'!$B$2:$K$174,8,FALSE),0) -> 6 | AH24: =IFERROR(VLOOKUP($A24,'2021'!$B$2:$K$174,10,FALSE),0) -> 0.5 | AI24: =IFERROR(VLOOKUP($A24,'2020'!$B$2:$K$170,3,FALSE),0) -> 73 | AJ24: =IFERROR(VLOOKUP($A24,'2020'!$B$2:$K$170,4,FALSE),0) -> 36 | AK24: =IFERROR(VLOOKUP($A24,'2020'!$B$2:$K$170,5,FALSE),0) -> 47 | AL24: =IFERROR(VLOOKUP($A24,'2020'!$B$2:$K$170,8,FALSE),0) -> 16 | AM24: =IFERROR(VLOOKUP($A24,'2020'!$B$2:$K$170,10,FALSE),0) -> 0.644 | AN24: =IFERROR(VLOOKUP($A24,'2019'!$B$2:$K$170,3,FALSE),0) -> 84 | AO24: =IFERROR(VLOOKUP($A24,'2019'!$B$2:$K$170,4,FALSE),0) -> 33 | AP24: =IFERROR(VLOOKUP($A24,'2019'!$B$2:$K$170,5,FALSE),0) -> 53 | AQ24: =IFERROR(VLOOKUP($A24,'2019'!$B$2:$K$170,8,FALSE),0) -> 10 | AR24: =IFERROR(VLOOKUP($A24,'2019'!$B$2:$K$170,10,FALSE),0) -> 0.631 | AS24: =IFERROR(VLOOKUP($A24,'2018'!$B$2:$K$170,3,FALSE),0) -> 76 | AT24: =IFERROR(VLOOKUP($A24,'2018'!$B$2:$K$170,4,FALSE),0) -> 23 | AU24: =IFERROR(VLOOKUP($A24,'2018'!$B$2:$K$170,5,FALSE),0) -> 40 | AV24: =IFERROR(VLOOKUP($A24,'2018'!$B$2:$K$170,8,FALSE),0) -> 6 | AW24: =IFERROR(VLOOKUP($A24,'2018'!$B$2:$K$170,10,FALSE),0) -> 0.526 | AX24: =IFERROR(VLOOKUP($A24,'2017'!$B$2:$J$163,2,FALSE),0) -> 77 | AY24: =IFERROR(VLOOKUP($A24,'2017'!$B$2:$J$163,3,FALSE),0) -> 24 | AZ24: =IFERROR(VLOOKUP($A24,'2017'!$B$2:$J$163,4,FALSE),0) -> 33 | BA24: =IFERROR(VLOOKUP($A24,'2017'!$B$2:$J$163,7,FALSE),0) -> 6 | BB24: =IFERROR(VLOOKUP($A24,'2017'!$B$2:$J$163,9,FALSE),0) -> 0.4285714286 | BC24: =IFERROR(VLOOKUP($A24,'2016'!$B$2:$K$165,3,FALSE),0) -> 72 | BD24: =IFERROR(VLOOKUP($A24,'2016'!$B$2:$K$165,4,FALSE),0) -> 23 | BE24: =IFERROR(VLOOKUP($A24,'2016'!$B$2:$K$165,5,FALSE),0) -> 40 | BF24: =IFERROR(VLOOKUP($A24,'2016'!$B$2:$K$165,8,FALSE),0) -> 4 | BG24: =IFERROR(VLOOKUP($A24,'2016'!$B$2:$K$165,10,FALSE),0) -> 0.556 | BH24: =IFERROR(VLOOKUP($A24,'2015'!$B$2:$K$165,3,FALSE),0) -> 58 | BI24: =IFERROR(VLOOKUP($A24,'2015'!$B$2:$K$165,4,FALSE),0) -> 5 | BJ24: =IFERROR(VLOOKUP($A24,'2015'!$B$2:$K$165,5,FALSE),0) -> 23 | BK24: =IFERROR(VLOOKUP($A24,'2015'!$B$2:$K$165,8,FALSE),0) -> 0 | BL24: =IFERROR(VLOOKUP($A24,'2015'!$B$2:$K$165,10,FALSE),0) -> 0.3965517241 | BM24: =IFERROR(VLOOKUP($A24,'2014'!$B$2:$K$157,3,FALSE),0) -> 74 | BN24: =IFERROR(VLOOKUP($A24,'2014'!$B$2:$K$157,4,FALSE),0) -> 20 | BO24: =IFERROR(VLOOKUP($A24,'2014'!$B$2:$K$157,5,FALSE),0) -> 36 | BP24: =IFERROR(VLOOKUP($A24,'2014'!$B$2:$K$157,8,FALSE),0) -> 2 | BQ24: =IFERROR(VLOOKUP($A24,'2014'!$B$2:$K$157,10,FALSE),0) -> 0.4864864865 | BR24: =IFERROR(VLOOKUP($A24,'2013'!$D$4:$I$249,2,FALSE),0) -> 64 | BS24: =IFERROR(VLOOKUP($A24,'2013'!$D$4:$I$249,3,FALSE),0) -> 23 | BT24: =IFERROR(VLOOKUP($A24,'2013'!$D$4:$I$249,4,FALSE),0) -> 34 | BU24: =IFERROR(VLOOKUP($A24,'2013'!$D$4:$I$249,5,FALSE),0) -> 8 | BV24: =IFERROR(VLOOKUP($A24,'2013'!$D$4:$I$249,6,FALSE),0) -> 0.53125 | BW24: =IFERROR(VLOOKUP($A24,'2012'!$D$3:$O$172,2,FALSE),0) -> 605 | BX24: =IFERROR(VLOOKUP($A24,'2012'!$D$3:$O$172,3,FALSE),0) -> 322 | BY24: =IFERROR(VLOOKUP($A24,'2012'!$D$3:$O$172,4,FALSE),0) -> 35 | BZ24: =IFERROR(VLOOKUP($A24,'2012'!$D$3:$O$172,5,FALSE),0) -> 72 | CA24: =IFERROR(VLOOKUP($A24,'2012'!$D$3:$O$172,6,FALSE),0) -> 19 | CB24: =IFERROR(VLOOKUP($A24,'2012'!$D$3:$O$172,7,FALSE),0) -> 36 | CC24: =IFERROR(VLOOKUP($A24,'2012'!$D$3:$O$172,8,FALSE),0) -> 3 | CD24: =IFERROR(VLOOKUP($A24,'2012'!$D$3:$O$172,9,FALSE),0) -> 0.5 | CE24: =IFERROR(VLOOKUP($A24,'2012'!$D$3:$O$172,10,FALSE),0) -> 533 | CF24: =IFERROR(VLOOKUP($A24,'2012'!$D$3:$O$172,11,FALSE),0) -> 286 | CG24: =IFERROR(VLOOKUP($A24,'2012'!$D$3:$O$172,12,FALSE),0) -> 32 | CH24: =IFERROR(VLOOKUP($A24,'2011'!$D$4:$I$251,2,FALSE),0) -> 66 | CI24: =IFERROR(VLOOKUP($A24,'2011'!$D$4:$I$251,3,FALSE),0) -> 25 | CJ24: =IFERROR(VLOOKUP($A24,'2011'!$D$4:$I$251,4,FALSE),0) -> 39 | CK24: =IFERROR(VLOOKUP($A24,'2011'!$D$4:$I$251,5,FALSE),0) -> 8 | CL24: =IFERROR(VLOOKUP($A24,'2011'!$D$4:$I$251,6,FALSE),0) -> 0.5909090909 | CM24: =IFERROR(VLOOKUP($A24,'2010'!$C$3:$H$234,2,FALSE),0) -> 31 | CN24: =IFERROR(VLOOKUP($A24,'2010'!$C$3:$H$234,3,FALSE),0) -> 6 | CO24: =IFERROR(VLOOKUP($A24,'2010'!$C$3:$H$234,4,FALSE),0) -> 13 | CP24: =IFERROR(VLOOKUP($A24,'2010'!$C$3:$H$234,5,FALSE),0) -> 2 | CQ24: =IFERROR(VLOOKUP($A24,'2010'!$C$3:$H$234,6,FALSE),0) -> 0.4193548387 | CR24: =IFERROR(VLOOKUP($A24,'2009'!$C$3:$H$242,2,FALSE),0) -> 78 | CS24: =IFERROR(VLOOKUP($A24,'2009'!$C$3:$H$242,3,FALSE),0) -> 29 | CT24: =IFERROR(VLOOKUP($A24,'2009'!$C$3:$H$242,4,FALSE),0) -> 42 | CU24: =IFERROR(VLOOKUP($A24,'2009'!$C$3:$H$242,5,FALSE),0) -> 4 | CV24: =IFERROR(VLOOKUP($A24,'2009'!$C$3:$H$242,6,FALSE),0) -> 0.5384615385 | CW24: =IFERROR(VLOOKUP($A24,'2008'!$C$3:$H$229,2,FALSE),0) -> 84 | CX24: =IFERROR(VLOOKUP($A24,'2008'!$C$3:$H$229,3,FALSE),0) -> 35 | CY24: =IFERROR(VLOOKUP($A24,'2008'!$C$3:$H$229,4,FALSE),0) -> 41 | CZ24: =IFERROR(VLOOKUP($A24,'2008'!$C$3:$H$229,5,FALSE),0) -> 6 | DA24: =IFERROR(VLOOKUP($A24,'2008'!$C$3:$H$229,6,FALSE),0) -> 0.4880952381 | DB24: =IFERROR(VLOOKUP($A24,'2007'!$C$3:$M$238,7,FALSE),0) -> 54 | DC24: =IFERROR(VLOOKUP($A24,'2007'!$C$3:$M$238,8,FALSE),0) -> 25 | DD24: =IFERROR(VLOOKUP($A24,'2007'!$C$3:$M$238,9,FALSE),0) -> 36 | DE24: =IFERROR(VLOOKUP($A24,'2007'!$C$3:$M$238,10,FALSE),0) -> 4 | DF24: =IFERROR(VLOOKUP($A24,'2007'!$C$3:$M$238,11,FALSE),0) -> 0.6666666667 | DG24: =IFERROR(VLOOKUP($A24,'2006'!$A$2:$F$200,2,FALSE),0) -> 57 | DH24: =IFERROR(VLOOKUP($A24,'2006'!$A$2:$F$200,4,FALSE),0) -> 27 | DI24: =IFERROR(VLOOKUP($A24,'2006'!$A$2:$F$200,5,FALSE),0) -> 4 | DJ24: =IFERROR(VLOOKUP($A24,'2006'!$A$2:$F$200,6,FALSE),0) -> 0.4736842105 | DK24: =IFERROR(VLOOKUP($A24,'2005'!$C$3:$M$205,8,FALSE),0) -> 54 | DL24: =IFERROR(VLOOKUP($A24,'2005'!$C$3:$M$205,9,FALSE),0) -> 30 | DM24: =IFERROR(VLOOKUP($A24,'2005'!$C$3:$M$205,10,FALSE),0) -> 1 | DN24: =IFERROR(VLOOKUP($A24,'2005'!$C$3:$M$205,11,FALSE),0) -> 0.5555555556 | DO24: =IFERROR(VLOOKUP($A24,'2004'!$C$3:$M$213,8,FALSE),0) -> 49 | DP24: =IFERROR(VLOOKUP($A24,'2004'!$C$3:$M$213,9,FALSE),0) -> 27 | DQ24: =IFERROR(VLOOKUP($A24,'2004'!$C$3:$M$213,10,FALSE),0) -> 2 | DR24: =IFERROR(VLOOKUP($A24,'2004'!$C$3:$M$213,11,FALSE),0) -> 0.5510204082 | DS24: =IFERROR(VLOOKUP($A24,'2003'!$C$3:$Q$214,12,FALSE),0) -> 0 | DT24: =IFERROR(VLOOKUP($A24,'2003'!$C$3:$Q$214,13,FALSE),0) -> 0 | DU24: =IFERROR(VLOOKUP($A24,'2003'!$C$3:$Q$214,14,FALSE),0) -> 0 | DV24: =IFERROR(VLOOKUP($A24,'2003'!$C$3:$Q$214,15,FALSE),0) -> 0 | DW24: =IFERROR(VLOOKUP($A24,'2002'!$D$3:$R$214,12,FALSE),0) -> 0 | DX24: =IFERROR(VLOOKUP($A24,'2002'!$D$3:$R$214,13,FALSE),0) -> 0 | DY24: =IFERROR(VLOOKUP($A24,'2002'!$D$3:$R$214,14,FALSE),0) -> 0 | DZ24: =IFERROR(VLOOKUP($A24,'2002'!$D$3:$R$214,15,FALSE),0) -> 0 | EA24: =IFERROR(VLOOKUP($A24,'Pre 2002'!$C$3:$CK$382,84,FALSE),0) -> 60 | EB24: =IFERROR(VLOOKUP($A24,'Pre 2002'!$C$3:$CK$382,85,FALSE),0) -> 31 | EC24: =IFERROR(VLOOKUP($A24,'Pre 2002'!$C$3:$CK$382,86,FALSE),0) -> 1 | ED24: =IFERROR(VLOOKUP($A24,'Pre 2002'!$C$3:$CK$382,87,FALSE),0) -> 0.5166666667 | EE24: =IFERROR(VLOOKUP(A24,'Pre 2002'!$C$3:$CG$382,83,FALSE),0) -> 2
A25: Jacob Barger | B25: =SUM(O25,T25,Y25,AD25,AI25,AN25,AS25,AX25,BC25,BH25,BM25,BR25,BZ25,CH25,CM25,CR25,CW25,DB25,DG25,DK25,DO25,DS25,DW25,EA25) -> 620 | C25: =SUM(Q25,V25,AA25,AF25,AK25,AP25,AU25,AZ25,BE25,BJ25,BO25,BT25,CB25,CJ25,CO25,CT25,CY25,DD25,DH25,DL25,DP25,DT25,DX25,EB25) -> 388 | D25: =SUM(R25,W25,AB25,AG25,AL25,AQ25,AV25,BA25,BF25,BK25,BP25,BU25,CC25,CK25,CP25,CU25,CZ25,DE25,DI25,DM25,DQ25,DU25,DY25,EC25) -> 101 | E25: =IF(B25=0,0,C25/B25) -> 0.6258064516 | F25: =IF(O25>0,1,0)+IF(T25>0,1,0)+IF(Y25>0,1,0)+IF(AD25>0,1,0)+IF(AI25>0,1,0)+IF(AN25>0,1,0)+IF(AS25>0,1,0)+IF(AX25>0,1,0)+IF(BC25>0,1,0)+IF(BH25>0,1,0)+IF(BM25>0,1,0)+IF(BR25>0,1,0)+IF(BZ25>0,1,0)+IF(CH25>0,1,0)+IF(CM25>0,1,0)+IF(CR25>0,1,0)+IF(CW25>0,1,0)+IF(DB25>0,1,0)+IF(DG25>0,1,0)+IF(DK25>0,1,0)+IF(DO25>0,1,0)+IF(DS25>0,1,0)+IF(DW25>0,1,0)+EE25 -> 9 | G25: 2016 | H25: =IF(BM25>0,1,0)+IF(BR25>0,1,0)+IF(BZ25>0,1,0)+IF(CH25>0,1,0)+IF(CM25>0,1,0)+IF(CR25>0,1,0)+IF(CW25>0,1,0)+IF(DB25>0,1,0)+IF(DG25>0,1,0)+IF(DK25>0,1,0)+IF(DO25>0,1,0)+IF(DS25>0,1,0)+IF(DW25>0,1,0)+EE25 -> 0 | I25: =SUM(BM25,BR25,BZ25,CH25,CM25,CR25,CW25,DB25,DG25,DK25,DO25,DS25,DW25,EA25) -> 0 | J25: =SUM(BO25,BT25,CB25,CJ25,CO25,CT25,CY25,DD25,DH25,DL25,DP25,DT25,DX25,EB25) -> 0 | K25: =SUM(BP25,BU25,CC25,CK25,CP25,CU25,CZ25,DE25,DI25,DM25,DQ25,DU25,DY25,EC25) -> 0 | L25: =IF(I25=0,0,J25/I25) -> 0 | O25: =IFERROR(VLOOKUP($A25,'2024'!$A$2:$M$220,6,FALSE),0) -> 80 | P25: =IFERROR(VLOOKUP($A25,'2024'!$A$2:$M$220,7,FALSE),0) -> 41 | Q25: =IFERROR(VLOOKUP($A25,'2024'!$A$2:$M$220,8,FALSE),0) -> 49 | R25: =IFERROR(VLOOKUP($A25,'2024'!$A$2:$M$220,11,FALSE),0) -> 14 | S25: =IFERROR(VLOOKUP($A25,'2024'!$A$2:$M$220,13,FALSE),0) -> 0.613 | T25: =IFERROR(VLOOKUP($A25,'2023'!$A$2:$M$170,6,FALSE),0) -> 82 | U25: =IFERROR(VLOOKUP($A25,'2023'!$A$2:$M$170,7,FALSE),0) -> 41 | V25: =IFERROR(VLOOKUP($A25,'2023'!$A$2:$M$170,8,FALSE),0) -> 48 | W25: =IFERROR(VLOOKUP($A25,'2023'!$A$2:$M$170,11,FALSE),0) -> 13 | X25: =IFERROR(VLOOKUP($A25,'2023'!$A$2:$M$170,13,FALSE),0) -> 0.585 | Y25: =IFERROR(VLOOKUP($A25,'2022'!$B$2:$K$174,3,FALSE),0) -> 73 | Z25: =IFERROR(VLOOKUP($A25,'2022'!$B$2:$K$174,4,FALSE),0) -> 37 | AA25: =IFERROR(VLOOKUP($A25,'2022'!$B$2:$K$174,5,FALSE),0) -> 42 | AB25: =IFERROR(VLOOKUP($A25,'2022'!$B$2:$K$174,8,FALSE),0) -> 13 | AC25: =IFERROR(VLOOKUP($A25,'2022'!$B$2:$K$174,10,FALSE),0) -> 0.575 | AD25: =IFERROR(VLOOKUP($A25,'2021'!$B$2:$K$174,3,FALSE),0) -> 76 | AE25: =IFERROR(VLOOKUP($A25,'2021'!$B$2:$K$174,4,FALSE),0) -> 38 | AF25: =IFERROR(VLOOKUP($A25,'2021'!$B$2:$K$174,5,FALSE),0) -> 48 | AG25: =IFERROR(VLOOKUP($A25,'2021'!$B$2:$K$174,8,FALSE),0) -> 10 | AH25: =IFERROR(VLOOKUP($A25,'2021'!$B$2:$K$174,10,FALSE),0) -> 0.632 | AI25: =IFERROR(VLOOKUP($A25,'2020'!$B$2:$K$170,3,FALSE),0) -> 82 | AJ25: =IFERROR(VLOOKUP($A25,'2020'!$B$2:$K$170,4,FALSE),0) -> 50 | AK25: =IFERROR(VLOOKUP($A25,'2020'!$B$2:$K$170,5,FALSE),0) -> 53 | AL25: =IFERROR(VLOOKUP($A25,'2020'!$B$2:$K$170,8,FALSE),0) -> 16 | AM25: =IFERROR(VLOOKUP($A25,'2020'!$B$2:$K$170,10,FALSE),0) -> 0.646 | AN25: =IFERROR(VLOOKUP($A25,'2019'!$B$2:$K$170,3,FALSE),0) -> 72 | AO25: =IFERROR(VLOOKUP($A25,'2019'!$B$2:$K$170,4,FALSE),0) -> 33 | AP25: =IFERROR(VLOOKUP($A25,'2019'!$B$2:$K$170,5,FALSE),0) -> 46 | AQ25: =IFERROR(VLOOKUP($A25,'2019'!$B$2:$K$170,8,FALSE),0) -> 10 | AR25: =IFERROR(VLOOKUP($A25,'2019'!$B$2:$K$170,10,FALSE),0) -> 0.639 | AS25: =IFERROR(VLOOKUP($A25,'2018'!$B$2:$K$170,3,FALSE),0) -> 67 | AT25: =IFERROR(VLOOKUP($A25,'2018'!$B$2:$K$170,4,FALSE),0) -> 39 | AU25: =IFERROR(VLOOKUP($A25,'2018'!$B$2:$K$170,5,FALSE),0) -> 44 | AV25: =IFERROR(VLOOKUP($A25,'2018'!$B$2:$K$170,8,FALSE),0) -> 15 | AW25: =IFERROR(VLOOKUP($A25,'2018'!$B$2:$K$170,10,FALSE),0) -> 0.657 | AX25: =IFERROR(VLOOKUP($A25,'2017'!$B$2:$J$163,2,FALSE),0) -> 75 | AY25: =IFERROR(VLOOKUP($A25,'2017'!$B$2:$J$163,3,FALSE),0) -> 35 | AZ25: =IFERROR(VLOOKUP($A25,'2017'!$B$2:$J$163,4,FALSE),0) -> 50 | BA25: =IFERROR(VLOOKUP($A25,'2017'!$B$2:$J$163,7,FALSE),0) -> 9 | BB25: =IFERROR(VLOOKUP($A25,'2017'!$B$2:$J$163,9,FALSE),0) -> 0.667 | BC25: =IFERROR(VLOOKUP($A25,'2016'!$B$2:$K$165,3,FALSE),0) -> 13 | BD25: =IFERROR(VLOOKUP($A25,'2016'!$B$2:$K$165,4,FALSE),0) -> 4 | BE25: =IFERROR(VLOOKUP($A25,'2016'!$B$2:$K$165,5,FALSE),0) -> 8 | BF25: =IFERROR(VLOOKUP($A25,'2016'!$B$2:$K$165,8,FALSE),0) -> 1 | BG25: =IFERROR(VLOOKUP($A25,'2016'!$B$2:$K$165,10,FALSE),0) -> 0.615 | BH25: =IFERROR(VLOOKUP($A25,'2015'!$B$2:$K$165,3,FALSE),0) -> 0 | BI25: =IFERROR(VLOOKUP($A25,'2015'!$B$2:$K$165,4,FALSE),0) -> 0 | BJ25: =IFERROR(VLOOKUP($A25,'2015'!$B$2:$K$165,5,FALSE),0) -> 0 | BK25: =IFERROR(VLOOKUP($A25,'2015'!$B$2:$K$165,8,FALSE),0) -> 0 | BL25: =IFERROR(VLOOKUP($A25,'2015'!$B$2:$K$165,10,FALSE),0) -> 0 | BM25: =IFERROR(VLOOKUP($A25,'2014'!$B$2:$K$157,3,FALSE),0) -> 0 | BN25: =IFERROR(VLOOKUP($A25,'2014'!$B$2:$K$157,4,FALSE),0) -> 0 | BO25: =IFERROR(VLOOKUP($A25,'2014'!$B$2:$K$157,5,FALSE),0) -> 0 | BP25: =IFERROR(VLOOKUP($A25,'2014'!$B$2:$K$157,8,FALSE),0) -> 0 | BQ25: =IFERROR(VLOOKUP($A25,'2014'!$B$2:$K$157,10,FALSE),0) -> 0 | BR25: =IFERROR(VLOOKUP($A25,'2013'!$D$4:$I$249,2,FALSE),0) -> 0 | BS25: =IFERROR(VLOOKUP($A25,'2013'!$D$4:$I$249,3,FALSE),0) -> 0 | BT25: =IFERROR(VLOOKUP($A25,'2013'!$D$4:$I$249,4,FALSE),0) -> 0 | BU25: =IFERROR(VLOOKUP($A25,'2013'!$D$4:$I$249,5,FALSE),0) -> 0 | BV25: =IFERROR(VLOOKUP($A25,'2013'!$D$4:$I$249,6,FALSE),0) -> 0 | BW25: =IFERROR(VLOOKUP($A25,'2012'!$D$3:$O$172,2,FALSE),0) -> 0 | BX25: =IFERROR(VLOOKUP($A25,'2012'!$D$3:$O$172,3,FALSE),0) -> 0 | BY25: =IFERROR(VLOOKUP($A25,'2012'!$D$3:$O$172,4,FALSE),0) -> 0 | BZ25: =IFERROR(VLOOKUP($A25,'2012'!$D$3:$O$172,5,FALSE),0) -> 0 | CA25: =IFERROR(VLOOKUP($A25,'2012'!$D$3:$O$172,6,FALSE),0) -> 0 | CB25: =IFERROR(VLOOKUP($A25,'2012'!$D$3:$O$172,7,FALSE),0) -> 0 | CC25: =IFERROR(VLOOKUP($A25,'2012'!$D$3:$O$172,8,FALSE),0) -> 0 | CD25: =IFERROR(VLOOKUP($A25,'2012'!$D$3:$O$172,9,FALSE),0) -> 0 | CH25: =IFERROR(VLOOKUP($A25,'2011'!$D$4:$I$251,2,FALSE),0) -> 0 | CI25: =IFERROR(VLOOKUP($A25,'2011'!$D$4:$I$251,3,FALSE),0) -> 0 | CJ25: =IFERROR(VLOOKUP($A25,'2011'!$D$4:$I$251,4,FALSE),0) -> 0 | CK25: =IFERROR(VLOOKUP($A25,'2011'!$D$4:$I$251,5,FALSE),0) -> 0 | CL25: =IFERROR(VLOOKUP($A25,'2011'!$D$4:$I$251,6,FALSE),0) -> 0 | CM25: =IFERROR(VLOOKUP($A25,'2010'!$C$3:$H$234,2,FALSE),0) -> 0 | CN25: =IFERROR(VLOOKUP($A25,'2010'!$C$3:$H$234,3,FALSE),0) -> 0 | CO25: =IFERROR(VLOOKUP($A25,'2010'!$C$3:$H$234,4,FALSE),0) -> 0 | CP25: =IFERROR(VLOOKUP($A25,'2010'!$C$3:$H$234,5,FALSE),0) -> 0 | CQ25: =IFERROR(VLOOKUP($A25,'2010'!$C$3:$H$234,6,FALSE),0) -> 0 | CR25: =IFERROR(VLOOKUP($A25,'2009'!$C$3:$H$242,2,FALSE),0) -> 0 | CS25: =IFERROR(VLOOKUP($A25,'2009'!$C$3:$H$242,3,FALSE),0) -> 0 | CT25: =IFERROR(VLOOKUP($A25,'2009'!$C$3:$H$242,4,FALSE),0) -> 0 | CU25: =IFERROR(VLOOKUP($A25,'2009'!$C$3:$H$242,5,FALSE),0) -> 0 | CV25: =IFERROR(VLOOKUP($A25,'2009'!$C$3:$H$242,6,FALSE),0) -> 0 | CW25: =IFERROR(VLOOKUP($A25,'2008'!$C$3:$H$229,2,FALSE),0) -> 0 | CX25: =IFERROR(VLOOKUP($A25,'2008'!$C$3:$H$229,3,FALSE),0) -> 0 | CY25: =IFERROR(VLOOKUP($A25,'2008'!$C$3:$H$229,4,FALSE),0) -> 0 | CZ25: =IFERROR(VLOOKUP($A25,'2008'!$C$3:$H$229,5,FALSE),0) -> 0 | DA25: =IFERROR(VLOOKUP($A25,'2008'!$C$3:$H$229,6,FALSE),0) -> 0 | DB25: =IFERROR(VLOOKUP($A25,'2007'!$C$3:$M$238,7,FALSE),0) -> 0 | DC25: =IFERROR(VLOOKUP($A25,'2007'!$C$3:$M$238,8,FALSE),0) -> 0 | DD25: =IFERROR(VLOOKUP($A25,'2007'!$C$3:$M$238,9,FALSE),0) -> 0 | DE25: =IFERROR(VLOOKUP($A25,'2007'!$C$3:$M$238,10,FALSE),0) -> 0 | DF25: =IFERROR(VLOOKUP($A25,'2007'!$C$3:$M$238,11,FALSE),0) -> 0 | DG25: =IFERROR(VLOOKUP($A25,'2006'!$A$2:$F$200,2,FALSE),0) -> 0 | DH25: =IFERROR(VLOOKUP($A25,'2006'!$A$2:$F$200,4,FALSE),0) -> 0 | DI25: =IFERROR(VLOOKUP($A25,'2006'!$A$2:$F$200,5,FALSE),0) -> 0 | DJ25: =IFERROR(VLOOKUP($A25,'2006'!$A$2:$F$200,6,FALSE),0) -> 0 | DK25: =IFERROR(VLOOKUP($A25,'2005'!$C$3:$M$205,8,FALSE),0) -> 0 | DL25: =IFERROR(VLOOKUP($A25,'2005'!$C$3:$M$205,9,FALSE),0) -> 0 | DM25: =IFERROR(VLOOKUP($A25,'2005'!$C$3:$M$205,10,FALSE),0) -> 0 | DN25: =IFERROR(VLOOKUP($A25,'2005'!$C$3:$M$205,11,FALSE),0) -> 0 | DO25: =IFERROR(VLOOKUP($A25,'2004'!$C$3:$M$213,8,FALSE),0) -> 0 | DP25: =IFERROR(VLOOKUP($A25,'2004'!$C$3:$M$213,9,FALSE),0) -> 0 | DQ25: =IFERROR(VLOOKUP($A25,'2004'!$C$3:$M$213,10,FALSE),0) -> 0 | DR25: =IFERROR(VLOOKUP($A25,'2004'!$C$3:$M$213,11,FALSE),0) -> 0 | DS25: =IFERROR(VLOOKUP($A25,'2003'!$C$3:$Q$214,12,FALSE),0) -> 0 | DT25: =IFERROR(VLOOKUP($A25,'2003'!$C$3:$Q$214,13,FALSE),0) -> 0 | DU25: =IFERROR(VLOOKUP($A25,'2003'!$C$3:$Q$214,14,FALSE),0) -> 0 | DV25: =IFERROR(VLOOKUP($A25,'2003'!$C$3:$Q$214,15,FALSE),0) -> 0 | DW25: =IFERROR(VLOOKUP($A25,'2002'!$D$3:$R$214,12,FALSE),0) -> 0 | DX25: =IFERROR(VLOOKUP($A25,'2002'!$D$3:$R$214,13,FALSE),0) -> 0 | DY25: =IFERROR(VLOOKUP($A25,'2002'!$D$3:$R$214,14,FALSE),0) -> 0 | DZ25: =IFERROR(VLOOKUP($A25,'2002'!$D$3:$R$214,15,FALSE),0) -> 0 | EA25: =IFERROR(VLOOKUP($A25,'Pre 2002'!$C$3:$CK$382,84,FALSE),0) -> 0 | EB25: =IFERROR(VLOOKUP($A25,'Pre 2002'!$C$3:$CK$382,85,FALSE),0) -> 0 | EC25: =IFERROR(VLOOKUP($A25,'Pre 2002'!$C$3:$CK$382,86,FALSE),0) -> 0 | ED25: =IFERROR(VLOOKUP($A25,'Pre 2002'!$C$3:$CK$382,87,FALSE),0) -> 0 | EE25: =IFERROR(VLOOKUP(A25,'Pre 2002'!$C$3:$CG$382,83,FALSE),0) -> 0
A26: Bob Lawton | B26: =SUM(O26,T26,Y26,AD26,AI26,AN26,AS26,AX26,BC26,BH26,BM26,BR26,BZ26,CH26,CM26,CR26,CW26,DB26,DG26,DK26,DO26,DS26,DW26,EA26) -> 3203 | C26: =SUM(Q26,V26,AA26,AF26,AK26,AP26,AU26,AZ26,BE26,BJ26,BO26,BT26,CB26,CJ26,CO26,CT26,CY26,DD26,DH26,DL26,DP26,DT26,DX26,EB26) -> 1785 | D26: =SUM(R26,W26,AB26,AG26,AL26,AQ26,AV26,BA26,BF26,BK26,BP26,BU26,CC26,CK26,CP26,CU26,CZ26,DE26,DI26,DM26,DQ26,DU26,DY26,EC26) -> 96 | E26: =IF(B26=0,0,C26/B26) -> 0.5572900406 | F26: =IF(O26>0,1,0)+IF(T26>0,1,0)+IF(Y26>0,1,0)+IF(AD26>0,1,0)+IF(AI26>0,1,0)+IF(AN26>0,1,0)+IF(AS26>0,1,0)+IF(AX26>0,1,0)+IF(BC26>0,1,0)+IF(BH26>0,1,0)+IF(BM26>0,1,0)+IF(BR26>0,1,0)+IF(BZ26>0,1,0)+IF(CH26>0,1,0)+IF(CM26>0,1,0)+IF(CR26>0,1,0)+IF(CW26>0,1,0)+IF(DB26>0,1,0)+IF(DG26>0,1,0)+IF(DK26>0,1,0)+IF(DO26>0,1,0)+IF(DS26>0,1,0)+IF(DW26>0,1,0)+EE26 -> 47 | G26: 1978 | H26: =IF(BM26>0,1,0)+IF(BR26>0,1,0)+IF(BZ26>0,1,0)+IF(CH26>0,1,0)+IF(CM26>0,1,0)+IF(CR26>0,1,0)+IF(CW26>0,1,0)+IF(DB26>0,1,0)+IF(DG26>0,1,0)+IF(DK26>0,1,0)+IF(DO26>0,1,0)+IF(DS26>0,1,0)+IF(DW26>0,1,0)+EE26 -> 37 | I26: =SUM(BM26,BR26,BZ26,CH26,CM26,CR26,CW26,DB26,DG26,DK26,DO26,DS26,DW26,EA26) -> 2658 | J26: =SUM(BO26,BT26,CB26,CJ26,CO26,CT26,CY26,DD26,DH26,DL26,DP26,DT26,DX26,EB26) -> 1528 | K26: =SUM(BP26,BU26,CC26,CK26,CP26,CU26,CZ26,DE26,DI26,DM26,DQ26,DU26,DY26,EC26) -> 96 | L26: =IF(I26=0,0,J26/I26) -> 0.574868322 | M26: 78 | N26: 4 | O26: =IFERROR(VLOOKUP($A26,'2024'!$A$2:$M$220,6,FALSE),0) -> 41 | P26: =IFERROR(VLOOKUP($A26,'2024'!$A$2:$M$220,7,FALSE),0) -> 10 | Q26: =IFERROR(VLOOKUP($A26,'2024'!$A$2:$M$220,8,FALSE),0) -> 17 | R26: =IFERROR(VLOOKUP($A26,'2024'!$A$2:$M$220,11,FALSE),0) -> 0 | S26: =IFERROR(VLOOKUP($A26,'2024'!$A$2:$M$220,13,FALSE),0) -> 0.415 | T26: =IFERROR(VLOOKUP($A26,'2023'!$A$2:$M$170,6,FALSE),0) -> 38 | U26: =IFERROR(VLOOKUP($A26,'2023'!$A$2:$M$170,7,FALSE),0) -> 15 | V26: =IFERROR(VLOOKUP($A26,'2023'!$A$2:$M$170,8,FALSE),0) -> 18 | W26: =IFERROR(VLOOKUP($A26,'2023'!$A$2:$M$170,11,FALSE),0) -> 0 | X26: =IFERROR(VLOOKUP($A26,'2023'!$A$2:$M$170,13,FALSE),0) -> 0.474 | Y26: =IFERROR(VLOOKUP($A26,'2022'!$B$2:$K$174,3,FALSE),0) -> 46 | Z26: =IFERROR(VLOOKUP($A26,'2022'!$B$2:$K$174,4,FALSE),0) -> 11 | AA26: =IFERROR(VLOOKUP($A26,'2022'!$B$2:$K$174,5,FALSE),0) -> 21 | AB26: =IFERROR(VLOOKUP($A26,'2022'!$B$2:$K$174,8,FALSE),0) -> 0 | AC26: =IFERROR(VLOOKUP($A26,'2022'!$B$2:$K$174,10,FALSE),0) -> 0.457 | AD26: =IFERROR(VLOOKUP($A26,'2021'!$B$2:$K$174,3,FALSE),0) -> 53 | AE26: =IFERROR(VLOOKUP($A26,'2021'!$B$2:$K$174,4,FALSE),0) -> 8 | AF26: =IFERROR(VLOOKUP($A26,'2021'!$B$2:$K$174,5,FALSE),0) -> 18 | AG26: =IFERROR(VLOOKUP($A26,'2021'!$B$2:$K$174,8,FALSE),0) -> 0 | AH26: =IFERROR(VLOOKUP($A26,'2021'!$B$2:$K$174,10,FALSE),0) -> 0.34 | AI26: =IFERROR(VLOOKUP($A26,'2020'!$B$2:$K$170,3,FALSE),0) -> 60 | AJ26: =IFERROR(VLOOKUP($A26,'2020'!$B$2:$K$170,4,FALSE),0) -> 13 | AK26: =IFERROR(VLOOKUP($A26,'2020'!$B$2:$K$170,5,FALSE),0) -> 33 | AL26: =IFERROR(VLOOKUP($A26,'2020'!$B$2:$K$170,8,FALSE),0) -> 0 | AM26: =IFERROR(VLOOKUP($A26,'2020'!$B$2:$K$170,10,FALSE),0) -> 0.55 | AN26: =IFERROR(VLOOKUP($A26,'2019'!$B$2:$K$170,3,FALSE),0) -> 49 | AO26: =IFERROR(VLOOKUP($A26,'2019'!$B$2:$K$170,4,FALSE),0) -> 15 | AP26: =IFERROR(VLOOKUP($A26,'2019'!$B$2:$K$170,5,FALSE),0) -> 21 | AQ26: =IFERROR(VLOOKUP($A26,'2019'!$B$2:$K$170,8,FALSE),0) -> 0 | AR26: =IFERROR(VLOOKUP($A26,'2019'!$B$2:$K$170,10,FALSE),0) -> 0.429 | AS26: =IFERROR(VLOOKUP($A26,'2018'!$B$2:$K$170,3,FALSE),0) -> 45 | AT26: =IFERROR(VLOOKUP($A26,'2018'!$B$2:$K$170,4,FALSE),0) -> 10 | AU26: =IFERROR(VLOOKUP($A26,'2018'!$B$2:$K$170,5,FALSE),0) -> 19 | AV26: =IFERROR(VLOOKUP($A26,'2018'!$B$2:$K$170,8,FALSE),0) -> 0 | AW26: =IFERROR(VLOOKUP($A26,'2018'!$B$2:$K$170,10,FALSE),0) -> 0.422 | AX26: =IFERROR(VLOOKUP($A26,'2017'!$B$2:$J$163,2,FALSE),0) -> 76 | AY26: =IFERROR(VLOOKUP($A26,'2017'!$B$2:$J$163,3,FALSE),0) -> 20 | AZ26: =IFERROR(VLOOKUP($A26,'2017'!$B$2:$J$163,4,FALSE),0) -> 37 | BA26: =IFERROR(VLOOKUP($A26,'2017'!$B$2:$J$163,7,FALSE),0) -> 0 | BB26: =IFERROR(VLOOKUP($A26,'2017'!$B$2:$J$163,9,FALSE),0) -> 0.4868421053 | BC26: =IFERROR(VLOOKUP($A26,'2016'!$B$2:$K$165,3,FALSE),0) -> 81 | BD26: =IFERROR(VLOOKUP($A26,'2016'!$B$2:$K$165,4,FALSE),0) -> 29 | BE26: =IFERROR(VLOOKUP($A26,'2016'!$B$2:$K$165,5,FALSE),0) -> 48 | BF26: =IFERROR(VLOOKUP($A26,'2016'!$B$2:$K$165,8,FALSE),0) -> 0 | BG26: =IFERROR(VLOOKUP($A26,'2016'!$B$2:$K$165,10,FALSE),0) -> 0.593 | BH26: =IFERROR(VLOOKUP($A26,'2015'!$B$2:$K$165,3,FALSE),0) -> 56 | BI26: =IFERROR(VLOOKUP($A26,'2015'!$B$2:$K$165,4,FALSE),0) -> 7 | BJ26: =IFERROR(VLOOKUP($A26,'2015'!$B$2:$K$165,5,FALSE),0) -> 25 | BK26: =IFERROR(VLOOKUP($A26,'2015'!$B$2:$K$165,8,FALSE),0) -> 0 | BL26: =IFERROR(VLOOKUP($A26,'2015'!$B$2:$K$165,10,FALSE),0) -> 0.4464285714 | BM26: =IFERROR(VLOOKUP($A26,'2014'!$B$2:$K$157,3,FALSE),0) -> 82 | BN26: =IFERROR(VLOOKUP($A26,'2014'!$B$2:$K$157,4,FALSE),0) -> 31 | BO26: =IFERROR(VLOOKUP($A26,'2014'!$B$2:$K$157,5,FALSE),0) -> 46 | BP26: =IFERROR(VLOOKUP($A26,'2014'!$B$2:$K$157,8,FALSE),0) -> 0 | BQ26: =IFERROR(VLOOKUP($A26,'2014'!$B$2:$K$157,10,FALSE),0) -> 0.5609756098 | BR26: =IFERROR(VLOOKUP($A26,'2013'!$D$4:$I$249,2,FALSE),0) -> 89 | BS26: =IFERROR(VLOOKUP($A26,'2013'!$D$4:$I$249,3,FALSE),0) -> 35 | BT26: =IFERROR(VLOOKUP($A26,'2013'!$D$4:$I$249,4,FALSE),0) -> 52 | BU26: =IFERROR(VLOOKUP($A26,'2013'!$D$4:$I$249,5,FALSE),0) -> 0 | BV26: =IFERROR(VLOOKUP($A26,'2013'!$D$4:$I$249,6,FALSE),0) -> 0.5842696629 | BW26: =IFERROR(VLOOKUP($A26,'2012'!$D$3:$O$172,2,FALSE),0) -> 2494 | BX26: =IFERROR(VLOOKUP($A26,'2012'!$D$3:$O$172,3,FALSE),0) -> 1434 | BY26: =IFERROR(VLOOKUP($A26,'2012'!$D$3:$O$172,4,FALSE),0) -> 96 | BZ26: =IFERROR(VLOOKUP($A26,'2012'!$D$3:$O$172,5,FALSE),0) -> 74 | CA26: =IFERROR(VLOOKUP($A26,'2012'!$D$3:$O$172,6,FALSE),0) -> 27 | CB26: =IFERROR(VLOOKUP($A26,'2012'!$D$3:$O$172,7,FALSE),0) -> 41 | CC26: =IFERROR(VLOOKUP($A26,'2012'!$D$3:$O$172,8,FALSE),0) -> 0 | CD26: =IFERROR(VLOOKUP($A26,'2012'!$D$3:$O$172,9,FALSE),0) -> 0.5540540541 | CE26: =IFERROR(VLOOKUP($A26,'2012'!$D$3:$O$172,10,FALSE),0) -> 2420 | CF26: =IFERROR(VLOOKUP($A26,'2012'!$D$3:$O$172,11,FALSE),0) -> 1393 | CG26: =IFERROR(VLOOKUP($A26,'2012'!$D$3:$O$172,12,FALSE),0) -> 96 | CH26: =IFERROR(VLOOKUP($A26,'2011'!$D$4:$I$251,2,FALSE),0) -> 71 | CI26: =IFERROR(VLOOKUP($A26,'2011'!$D$4:$I$251,3,FALSE),0) -> 21 | CJ26: =IFERROR(VLOOKUP($A26,'2011'!$D$4:$I$251,4,FALSE),0) -> 43 | CK26: =IFERROR(VLOOKUP($A26,'2011'!$D$4:$I$251,5,FALSE),0) -> 0 | CL26: =IFERROR(VLOOKUP($A26,'2011'!$D$4:$I$251,6,FALSE),0) -> 0.6056338028 | CM26: =IFERROR(VLOOKUP($A26,'2010'!$C$3:$H$234,2,FALSE),0) -> 85 | CN26: =IFERROR(VLOOKUP($A26,'2010'!$C$3:$H$234,3,FALSE),0) -> 34 | CO26: =IFERROR(VLOOKUP($A26,'2010'!$C$3:$H$234,4,FALSE),0) -> 54 | CP26: =IFERROR(VLOOKUP($A26,'2010'!$C$3:$H$234,5,FALSE),0) -> 2 | CQ26: =IFERROR(VLOOKUP($A26,'2010'!$C$3:$H$234,6,FALSE),0) -> 0.6352941176 | CR26: =IFERROR(VLOOKUP($A26,'2009'!$C$3:$H$242,2,FALSE),0) -> 84 | CS26: =IFERROR(VLOOKUP($A26,'2009'!$C$3:$H$242,3,FALSE),0) -> 37 | CT26: =IFERROR(VLOOKUP($A26,'2009'!$C$3:$H$242,4,FALSE),0) -> 50 | CU26: =IFERROR(VLOOKUP($A26,'2009'!$C$3:$H$242,5,FALSE),0) -> 1 | CV26: =IFERROR(VLOOKUP($A26,'2009'!$C$3:$H$242,6,FALSE),0) -> 0.5952380952 | CW26: =IFERROR(VLOOKUP($A26,'2008'!$C$3:$H$229,2,FALSE),0) -> 78 | CX26: =IFERROR(VLOOKUP($A26,'2008'!$C$3:$H$229,3,FALSE),0) -> 30 | CY26: =IFERROR(VLOOKUP($A26,'2008'!$C$3:$H$229,4,FALSE),0) -> 45 | CZ26: =IFERROR(VLOOKUP($A26,'2008'!$C$3:$H$229,5,FALSE),0) -> 8 | DA26: =IFERROR(VLOOKUP($A26,'2008'!$C$3:$H$229,6,FALSE),0) -> 0.5769230769 | DB26: =IFERROR(VLOOKUP($A26,'2007'!$C$3:$M$238,7,FALSE),0) -> 79 | DC26: =IFERROR(VLOOKUP($A26,'2007'!$C$3:$M$238,8,FALSE),0) -> 34 | DD26: =IFERROR(VLOOKUP($A26,'2007'!$C$3:$M$238,9,FALSE),0) -> 56 | DE26: =IFERROR(VLOOKUP($A26,'2007'!$C$3:$M$238,10,FALSE),0) -> 0 | DF26: =IFERROR(VLOOKUP($A26,'2007'!$C$3:$M$238,11,FALSE),0) -> 0.7088607595 | DG26: =IFERROR(VLOOKUP($A26,'2006'!$A$2:$F$200,2,FALSE),0) -> 64 | DH26: =IFERROR(VLOOKUP($A26,'2006'!$A$2:$F$200,4,FALSE),0) -> 34 | DI26: =IFERROR(VLOOKUP($A26,'2006'!$A$2:$F$200,5,FALSE),0) -> 3 | DJ26: =IFERROR(VLOOKUP($A26,'2006'!$A$2:$F$200,6,FALSE),0) -> 0.53125 | DK26: =IFERROR(VLOOKUP($A26,'2005'!$C$3:$M$205,8,FALSE),0) -> 88 | DL26: =IFERROR(VLOOKUP($A26,'2005'!$C$3:$M$205,9,FALSE),0) -> 59 | DM26: =IFERROR(VLOOKUP($A26,'2005'!$C$3:$M$205,10,FALSE),0) -> 1 | DN26: =IFERROR(VLOOKUP($A26,'2005'!$C$3:$M$205,11,FALSE),0) -> 0.6704545455 | DO26: =IFERROR(VLOOKUP($A26,'2004'!$C$3:$M$213,8,FALSE),0) -> 65 | DP26: =IFERROR(VLOOKUP($A26,'2004'!$C$3:$M$213,9,FALSE),0) -> 39 | DQ26: =IFERROR(VLOOKUP($A26,'2004'!$C$3:$M$213,10,FALSE),0) -> 1 | DR26: =IFERROR(VLOOKUP($A26,'2004'!$C$3:$M$213,11,FALSE),0) -> 0.6 | DS26: =IFERROR(VLOOKUP($A26,'2003'!$C$3:$Q$214,12,FALSE),0) -> 74 | DT26: =IFERROR(VLOOKUP($A26,'2003'!$C$3:$Q$214,13,FALSE),0) -> 44 | DU26: =IFERROR(VLOOKUP($A26,'2003'!$C$3:$Q$214,14,FALSE),0) -> 2 | DV26: =IFERROR(VLOOKUP($A26,'2003'!$C$3:$Q$214,15,FALSE),0) -> 0.5945945946 | DW26: =IFERROR(VLOOKUP($A26,'2002'!$D$3:$R$214,12,FALSE),0) -> 61 | DX26: =IFERROR(VLOOKUP($A26,'2002'!$D$3:$R$214,13,FALSE),0) -> 32 | DY26: =IFERROR(VLOOKUP($A26,'2002'!$D$3:$R$214,14,FALSE),0) -> 1 | DZ26: =IFERROR(VLOOKUP($A26,'2002'!$D$3:$R$214,15,FALSE),0) -> 0.5245901639 | EA26: =IFERROR(VLOOKUP($A26,'Pre 2002'!$C$3:$CK$382,84,FALSE),0) -> 1664 | EB26: =IFERROR(VLOOKUP($A26,'Pre 2002'!$C$3:$CK$382,85,FALSE),0) -> 933 | EC26: =IFERROR(VLOOKUP($A26,'Pre 2002'!$C$3:$CK$382,86,FALSE),0) -> 77 | ED26: =IFERROR(VLOOKUP($A26,'Pre 2002'!$C$3:$CK$382,87,FALSE),0) -> 0.5606971154 | EE26: =IFERROR(VLOOKUP(A26,'Pre 2002'!$C$3:$CG$382,83,FALSE),0) -> 24
A27: Darrin Sliwa | B27: =SUM(O27,T27,Y27,AD27,AI27,AN27,AS27,AX27,BC27,BH27,BM27,BR27,BZ27,CH27,CM27,CR27,CW27,DB27,DG27,DK27,DO27,DS27,DW27,EA27) -> 1452 | C27: =SUM(Q27,V27,AA27,AF27,AK27,AP27,AU27,AZ27,BE27,BJ27,BO27,BT27,CB27,CJ27,CO27,CT27,CY27,DD27,DH27,DL27,DP27,DT27,DX27,EB27) -> 842 | D27: =SUM(R27,W27,AB27,AG27,AL27,AQ27,AV27,BA27,BF27,BK27,BP27,BU27,CC27,CK27,CP27,CU27,CZ27,DE27,DI27,DM27,DQ27,DU27,DY27,EC27) -> 94 | E27: =IF(B27=0,0,C27/B27) -> 0.5798898072 | F27: =IF(O27>0,1,0)+IF(T27>0,1,0)+IF(Y27>0,1,0)+IF(AD27>0,1,0)+IF(AI27>0,1,0)+IF(AN27>0,1,0)+IF(AS27>0,1,0)+IF(AX27>0,1,0)+IF(BC27>0,1,0)+IF(BH27>0,1,0)+IF(BM27>0,1,0)+IF(BR27>0,1,0)+IF(BZ27>0,1,0)+IF(CH27>0,1,0)+IF(CM27>0,1,0)+IF(CR27>0,1,0)+IF(CW27>0,1,0)+IF(DB27>0,1,0)+IF(DG27>0,1,0)+IF(DK27>0,1,0)+IF(DO27>0,1,0)+IF(DS27>0,1,0)+IF(DW27>0,1,0)+EE27 -> 21 | G27: 2000 | H27: =IF(BM27>0,1,0)+IF(BR27>0,1,0)+IF(BZ27>0,1,0)+IF(CH27>0,1,0)+IF(CM27>0,1,0)+IF(CR27>0,1,0)+IF(CW27>0,1,0)+IF(DB27>0,1,0)+IF(DG27>0,1,0)+IF(DK27>0,1,0)+IF(DO27>0,1,0)+IF(DS27>0,1,0)+IF(DW27>0,1,0)+EE27 -> 12 | I27: =SUM(BM27,BR27,BZ27,CH27,CM27,CR27,CW27,DB27,DG27,DK27,DO27,DS27,DW27,EA27) -> 784 | J27: =SUM(BO27,BT27,CB27,CJ27,CO27,CT27,CY27,DD27,DH27,DL27,DP27,DT27,DX27,EB27) -> 460 | K27: =SUM(BP27,BU27,CC27,CK27,CP27,CU27,CZ27,DE27,DI27,DM27,DQ27,DU27,DY27,EC27) -> 58 | L27: =IF(I27=0,0,J27/I27) -> 0.5867346939 | O27: =IFERROR(VLOOKUP($A27,'2024'!$A$2:$M$220,6,FALSE),0) -> 74 | P27: =IFERROR(VLOOKUP($A27,'2024'!$A$2:$M$220,7,FALSE),0) -> 26 | Q27: =IFERROR(VLOOKUP($A27,'2024'!$A$2:$M$220,8,FALSE),0) -> 44 | R27: =IFERROR(VLOOKUP($A27,'2024'!$A$2:$M$220,11,FALSE),0) -> 0 | S27: =IFERROR(VLOOKUP($A27,'2024'!$A$2:$M$220,13,FALSE),0) -> 0.595 | T27: =IFERROR(VLOOKUP($A27,'2023'!$A$2:$M$170,6,FALSE),0) -> 62 | U27: =IFERROR(VLOOKUP($A27,'2023'!$A$2:$M$170,7,FALSE),0) -> 17 | V27: =IFERROR(VLOOKUP($A27,'2023'!$A$2:$M$170,8,FALSE),0) -> 29 | W27: =IFERROR(VLOOKUP($A27,'2023'!$A$2:$M$170,11,FALSE),0) -> 1 | X27: =IFERROR(VLOOKUP($A27,'2023'!$A$2:$M$170,13,FALSE),0) -> 0.468 | Y27: =IFERROR(VLOOKUP($A27,'2022'!$B$2:$K$174,3,FALSE),0) -> 74 | Z27: =IFERROR(VLOOKUP($A27,'2022'!$B$2:$K$174,4,FALSE),0) -> 18 | AA27: =IFERROR(VLOOKUP($A27,'2022'!$B$2:$K$174,5,FALSE),0) -> 34 | AB27: =IFERROR(VLOOKUP($A27,'2022'!$B$2:$K$174,8,FALSE),0) -> 2 | AC27: =IFERROR(VLOOKUP($A27,'2022'!$B$2:$K$174,10,FALSE),0) -> 0.459 | AD27: =IFERROR(VLOOKUP($A27,'2021'!$B$2:$K$174,3,FALSE),0) -> 61 | AE27: =IFERROR(VLOOKUP($A27,'2021'!$B$2:$K$174,4,FALSE),0) -> 30 | AF27: =IFERROR(VLOOKUP($A27,'2021'!$B$2:$K$174,5,FALSE),0) -> 30 | AG27: =IFERROR(VLOOKUP($A27,'2021'!$B$2:$K$174,8,FALSE),0) -> 4 | AH27: =IFERROR(VLOOKUP($A27,'2021'!$B$2:$K$174,10,FALSE),0) -> 0.492 | AI27: =IFERROR(VLOOKUP($A27,'2020'!$B$2:$K$170,3,FALSE),0) -> 74 | AJ27: =IFERROR(VLOOKUP($A27,'2020'!$B$2:$K$170,4,FALSE),0) -> 30 | AK27: =IFERROR(VLOOKUP($A27,'2020'!$B$2:$K$170,5,FALSE),0) -> 44 | AL27: =IFERROR(VLOOKUP($A27,'2020'!$B$2:$K$170,8,FALSE),0) -> 6 | AM27: =IFERROR(VLOOKUP($A27,'2020'!$B$2:$K$170,10,FALSE),0) -> 0.595 | AN27: =IFERROR(VLOOKUP($A27,'2019'!$B$2:$K$170,3,FALSE),0) -> 85 | AO27: =IFERROR(VLOOKUP($A27,'2019'!$B$2:$K$170,4,FALSE),0) -> 37 | AP27: =IFERROR(VLOOKUP($A27,'2019'!$B$2:$K$170,5,FALSE),0) -> 54 | AQ27: =IFERROR(VLOOKUP($A27,'2019'!$B$2:$K$170,8,FALSE),0) -> 6 | AR27: =IFERROR(VLOOKUP($A27,'2019'!$B$2:$K$170,10,FALSE),0) -> 0.635 | AS27: =IFERROR(VLOOKUP($A27,'2018'!$B$2:$K$170,3,FALSE),0) -> 79 | AT27: =IFERROR(VLOOKUP($A27,'2018'!$B$2:$K$170,4,FALSE),0) -> 27 | AU27: =IFERROR(VLOOKUP($A27,'2018'!$B$2:$K$170,5,FALSE),0) -> 50 | AV27: =IFERROR(VLOOKUP($A27,'2018'!$B$2:$K$170,8,FALSE),0) -> 3 | AW27: =IFERROR(VLOOKUP($A27,'2018'!$B$2:$K$170,10,FALSE),0) -> 0.633 | AX27: =IFERROR(VLOOKUP($A27,'2017'!$B$2:$J$163,2,FALSE),0) -> 74 | AY27: =IFERROR(VLOOKUP($A27,'2017'!$B$2:$J$163,3,FALSE),0) -> 33 | AZ27: =IFERROR(VLOOKUP($A27,'2017'!$B$2:$J$163,4,FALSE),0) -> 42 | BA27: =IFERROR(VLOOKUP($A27,'2017'!$B$2:$J$163,7,FALSE),0) -> 3 | BB27: =IFERROR(VLOOKUP($A27,'2017'!$B$2:$J$163,9,FALSE),0) -> 0.5675675676 | BC27: =IFERROR(VLOOKUP($A27,'2016'!$B$2:$K$165,3,FALSE),0) -> 85 | BD27: =IFERROR(VLOOKUP($A27,'2016'!$B$2:$K$165,4,FALSE),0) -> 51 | BE27: =IFERROR(VLOOKUP($A27,'2016'!$B$2:$K$165,5,FALSE),0) -> 55 | BF27: =IFERROR(VLOOKUP($A27,'2016'!$B$2:$K$165,8,FALSE),0) -> 11 | BG27: =IFERROR(VLOOKUP($A27,'2016'!$B$2:$K$165,10,FALSE),0) -> 0.647 | BH27: =IFERROR(VLOOKUP($A27,'2015'!$B$2:$K$165,3,FALSE),0) -> 0 | BI27: =IFERROR(VLOOKUP($A27,'2015'!$B$2:$K$165,4,FALSE),0) -> 0 | BJ27: =IFERROR(VLOOKUP($A27,'2015'!$B$2:$K$165,5,FALSE),0) -> 0 | BK27: =IFERROR(VLOOKUP($A27,'2015'!$B$2:$K$165,8,FALSE),0) -> 0 | BL27: =IFERROR(VLOOKUP($A27,'2015'!$B$2:$K$165,10,FALSE),0) -> 0 | BM27: =IFERROR(VLOOKUP($A27,'2014'!$B$2:$K$157,3,FALSE),0) -> 0 | BN27: =IFERROR(VLOOKUP($A27,'2014'!$B$2:$K$157,4,FALSE),0) -> 0 | BO27: =IFERROR(VLOOKUP($A27,'2014'!$B$2:$K$157,5,FALSE),0) -> 0 | BP27: =IFERROR(VLOOKUP($A27,'2014'!$B$2:$K$157,8,FALSE),0) -> 0 | BQ27: =IFERROR(VLOOKUP($A27,'2014'!$B$2:$K$157,10,FALSE),0) -> 0 | BR27: =IFERROR(VLOOKUP($A27,'2013'!$D$4:$I$249,2,FALSE),0) -> 0 | BS27: =IFERROR(VLOOKUP($A27,'2013'!$D$4:$I$249,3,FALSE),0) -> 0 | BT27: =IFERROR(VLOOKUP($A27,'2013'!$D$4:$I$249,4,FALSE),0) -> 0 | BU27: =IFERROR(VLOOKUP($A27,'2013'!$D$4:$I$249,5,FALSE),0) -> 0 | BV27: =IFERROR(VLOOKUP($A27,'2013'!$D$4:$I$249,6,FALSE),0) -> 0 | BW27: =IFERROR(VLOOKUP($A27,'2012'!$D$3:$O$172,2,FALSE),0) -> 0 | BX27: =IFERROR(VLOOKUP($A27,'2012'!$D$3:$O$172,3,FALSE),0) -> 0 | BY27: =IFERROR(VLOOKUP($A27,'2012'!$D$3:$O$172,4,FALSE),0) -> 0 | BZ27: =IFERROR(VLOOKUP($A27,'2012'!$D$3:$O$172,5,FALSE),0) -> 0 | CA27: =IFERROR(VLOOKUP($A27,'2012'!$D$3:$O$172,6,FALSE),0) -> 0 | CB27: =IFERROR(VLOOKUP($A27,'2012'!$D$3:$O$172,7,FALSE),0) -> 0 | CC27: =IFERROR(VLOOKUP($A27,'2012'!$D$3:$O$172,8,FALSE),0) -> 0 | CD27: =IFERROR(VLOOKUP($A27,'2012'!$D$3:$O$172,9,FALSE),0) -> 0 | CH27: =IFERROR(VLOOKUP($A27,'2011'!$D$4:$I$251,2,FALSE),0) -> 66 | CI27: =IFERROR(VLOOKUP($A27,'2011'!$D$4:$I$251,3,FALSE),0) -> 43 | CJ27: =IFERROR(VLOOKUP($A27,'2011'!$D$4:$I$251,4,FALSE),0) -> 43 | CK27: =IFERROR(VLOOKUP($A27,'2011'!$D$4:$I$251,5,FALSE),0) -> 11 | CL27: =IFERROR(VLOOKUP($A27,'2011'!$D$4:$I$251,6,FALSE),0) -> 0.6515151515 | CM27: =IFERROR(VLOOKUP($A27,'2010'!$C$3:$H$234,2,FALSE),0) -> 81 | CN27: =IFERROR(VLOOKUP($A27,'2010'!$C$3:$H$234,3,FALSE),0) -> 40 | CO27: =IFERROR(VLOOKUP($A27,'2010'!$C$3:$H$234,4,FALSE),0) -> 59 | CP27: =IFERROR(VLOOKUP($A27,'2010'!$C$3:$H$234,5,FALSE),0) -> 10 | CQ27: =IFERROR(VLOOKUP($A27,'2010'!$C$3:$H$234,6,FALSE),0) -> 0.7283950617 | CR27: =IFERROR(VLOOKUP($A27,'2009'!$C$3:$H$242,2,FALSE),0) -> 68 | CS27: =IFERROR(VLOOKUP($A27,'2009'!$C$3:$H$242,3,FALSE),0) -> 35 | CT27: =IFERROR(VLOOKUP($A27,'2009'!$C$3:$H$242,4,FALSE),0) -> 41 | CU27: =IFERROR(VLOOKUP($A27,'2009'!$C$3:$H$242,5,FALSE),0) -> 8 | CV27: =IFERROR(VLOOKUP($A27,'2009'!$C$3:$H$242,6,FALSE),0) -> 0.6029411765 | CW27: =IFERROR(VLOOKUP($A27,'2008'!$C$3:$H$229,2,FALSE),0) -> 80 | CX27: =IFERROR(VLOOKUP($A27,'2008'!$C$3:$H$229,3,FALSE),0) -> 41 | CY27: =IFERROR(VLOOKUP($A27,'2008'!$C$3:$H$229,4,FALSE),0) -> 48 | CZ27: =IFERROR(VLOOKUP($A27,'2008'!$C$3:$H$229,5,FALSE),0) -> 7 | DA27: =IFERROR(VLOOKUP($A27,'2008'!$C$3:$H$229,6,FALSE),0) -> 0.6 | DB27: =IFERROR(VLOOKUP($A27,'2007'!$C$3:$M$238,7,FALSE),0) -> 59 | DC27: =IFERROR(VLOOKUP($A27,'2007'!$C$3:$M$238,8,FALSE),0) -> 17 | DD27: =IFERROR(VLOOKUP($A27,'2007'!$C$3:$M$238,9,FALSE),0) -> 30 | DE27: =IFERROR(VLOOKUP($A27,'2007'!$C$3:$M$238,10,FALSE),0) -> 0 | DF27: =IFERROR(VLOOKUP($A27,'2007'!$C$3:$M$238,11,FALSE),0) -> 0.5084745763 | DG27: =IFERROR(VLOOKUP($A27,'2006'!$A$2:$F$200,2,FALSE),0) -> 72 | DH27: =IFERROR(VLOOKUP($A27,'2006'!$A$2:$F$200,4,FALSE),0) -> 38 | DI27: =IFERROR(VLOOKUP($A27,'2006'!$A$2:$F$200,5,FALSE),0) -> 4 | DJ27: =IFERROR(VLOOKUP($A27,'2006'!$A$2:$F$200,6,FALSE),0) -> 0.5277777778 | DK27: =IFERROR(VLOOKUP($A27,'2005'!$C$3:$M$205,8,FALSE),0) -> 73 | DL27: =IFERROR(VLOOKUP($A27,'2005'!$C$3:$M$205,9,FALSE),0) -> 37 | DM27: =IFERROR(VLOOKUP($A27,'2005'!$C$3:$M$205,10,FALSE),0) -> 5 | DN27: =IFERROR(VLOOKUP($A27,'2005'!$C$3:$M$205,11,FALSE),0) -> 0.5068493151 | DO27: =IFERROR(VLOOKUP($A27,'2004'!$C$3:$M$213,8,FALSE),0) -> 67 | DP27: =IFERROR(VLOOKUP($A27,'2004'!$C$3:$M$213,9,FALSE),0) -> 35 | DQ27: =IFERROR(VLOOKUP($A27,'2004'!$C$3:$M$213,10,FALSE),0) -> 3 | DR27: =IFERROR(VLOOKUP($A27,'2004'!$C$3:$M$213,11,FALSE),0) -> 0.5223880597 | DS27: =IFERROR(VLOOKUP($A27,'2003'!$C$3:$Q$214,12,FALSE),0) -> 63 | DT27: =IFERROR(VLOOKUP($A27,'2003'!$C$3:$Q$214,13,FALSE),0) -> 36 | DU27: =IFERROR(VLOOKUP($A27,'2003'!$C$3:$Q$214,14,FALSE),0) -> 4 | DV27: =IFERROR(VLOOKUP($A27,'2003'!$C$3:$Q$214,15,FALSE),0) -> 0.5714285714 | DW27: =IFERROR(VLOOKUP($A27,'2002'!$D$3:$R$214,12,FALSE),0) -> 62 | DX27: =IFERROR(VLOOKUP($A27,'2002'!$D$3:$R$214,13,FALSE),0) -> 46 | DY27: =IFERROR(VLOOKUP($A27,'2002'!$D$3:$R$214,14,FALSE),0) -> 3 | DZ27: =IFERROR(VLOOKUP($A27,'2002'!$D$3:$R$214,15,FALSE),0) -> 0.7419354839 | EA27: =IFERROR(VLOOKUP($A27,'Pre 2002'!$C$3:$CK$382,84,FALSE),0) -> 93 | EB27: =IFERROR(VLOOKUP($A27,'Pre 2002'!$C$3:$CK$382,85,FALSE),0) -> 47 | EC27: =IFERROR(VLOOKUP($A27,'Pre 2002'!$C$3:$CK$382,86,FALSE),0) -> 3 | ED27: =IFERROR(VLOOKUP($A27,'Pre 2002'!$C$3:$CK$382,87,FALSE),0) -> 0.5053763441 | EE27: =IFERROR(VLOOKUP(A27,'Pre 2002'!$C$3:$CG$382,83,FALSE),0) -> 2
A28: Bill Acton | B28: =SUM(O28,T28,Y28,AD28,AI28,AN28,AS28,AX28,BC28,BH28,BM28,BR28,BZ28,CH28,CM28,CR28,CW28,DB28,DG28,DK28,DO28,DS28,DW28,EA28) -> 589 | C28: =SUM(Q28,V28,AA28,AF28,AK28,AP28,AU28,AZ28,BE28,BJ28,BO28,BT28,CB28,CJ28,CO28,CT28,CY28,DD28,DH28,DL28,DP28,DT28,DX28,EB28) -> 429 | D28: =SUM(R28,W28,AB28,AG28,AL28,AQ28,AV28,BA28,BF28,BK28,BP28,BU28,CC28,CK28,CP28,CU28,CZ28,DE28,DI28,DM28,DQ28,DU28,DY28,EC28) -> 89 | E28: =IF(B28=0,0,C28/B28) -> 0.7283531409 | F28: =IF(O28>0,1,0)+IF(T28>0,1,0)+IF(Y28>0,1,0)+IF(AD28>0,1,0)+IF(AI28>0,1,0)+IF(AN28>0,1,0)+IF(AS28>0,1,0)+IF(AX28>0,1,0)+IF(BC28>0,1,0)+IF(BH28>0,1,0)+IF(BM28>0,1,0)+IF(BR28>0,1,0)+IF(BZ28>0,1,0)+IF(CH28>0,1,0)+IF(CM28>0,1,0)+IF(CR28>0,1,0)+IF(CW28>0,1,0)+IF(DB28>0,1,0)+IF(DG28>0,1,0)+IF(DK28>0,1,0)+IF(DO28>0,1,0)+IF(DS28>0,1,0)+IF(DW28>0,1,0)+EE28 -> 9 | H28: =IF(BM28>0,1,0)+IF(BR28>0,1,0)+IF(BZ28>0,1,0)+IF(CH28>0,1,0)+IF(CM28>0,1,0)+IF(CR28>0,1,0)+IF(CW28>0,1,0)+IF(DB28>0,1,0)+IF(DG28>0,1,0)+IF(DK28>0,1,0)+IF(DO28>0,1,0)+IF(DS28>0,1,0)+IF(DW28>0,1,0)+EE28 -> 9 | I28: =SUM(BM28,BR28,BZ28,CH28,CM28,CR28,CW28,DB28,DG28,DK28,DO28,DS28,DW28,EA28) -> 589 | J28: =SUM(BO28,BT28,CB28,CJ28,CO28,CT28,CY28,DD28,DH28,DL28,DP28,DT28,DX28,EB28) -> 429 | K28: =SUM(BP28,BU28,CC28,CK28,CP28,CU28,CZ28,DE28,DI28,DM28,DQ28,DU28,DY28,EC28) -> 89 | L28: =IF(I28=0,0,J28/I28) -> 0.7283531409 | O28: =IFERROR(VLOOKUP($A28,'2024'!$A$2:$M$220,6,FALSE),0) -> 0 | P28: =IFERROR(VLOOKUP($A28,'2024'!$A$2:$M$220,7,FALSE),0) -> 0 | Q28: =IFERROR(VLOOKUP($A28,'2024'!$A$2:$M$220,8,FALSE),0) -> 0 | R28: =IFERROR(VLOOKUP($A28,'2024'!$A$2:$M$220,11,FALSE),0) -> 0 | S28: =IFERROR(VLOOKUP($A28,'2024'!$A$2:$M$220,13,FALSE),0) -> 0 | T28: =IFERROR(VLOOKUP($A28,'2023'!$A$2:$M$170,6,FALSE),0) -> 0 | U28: =IFERROR(VLOOKUP($A28,'2023'!$A$2:$M$170,7,FALSE),0) -> 0 | V28: =IFERROR(VLOOKUP($A28,'2023'!$A$2:$M$170,8,FALSE),0) -> 0 | W28: =IFERROR(VLOOKUP($A28,'2023'!$A$2:$M$170,11,FALSE),0) -> 0 | X28: =IFERROR(VLOOKUP($A28,'2023'!$A$2:$M$170,13,FALSE),0) -> 0 | Y28: =IFERROR(VLOOKUP($A28,'2022'!$B$2:$K$174,3,FALSE),0) -> 0 | Z28: =IFERROR(VLOOKUP($A28,'2022'!$B$2:$K$174,4,FALSE),0) -> 0 | AA28: =IFERROR(VLOOKUP($A28,'2022'!$B$2:$K$174,5,FALSE),0) -> 0 | AB28: =IFERROR(VLOOKUP($A28,'2022'!$B$2:$K$174,8,FALSE),0) -> 0 | AC28: =IFERROR(VLOOKUP($A28,'2022'!$B$2:$K$174,10,FALSE),0) -> 0 | AD28: =IFERROR(VLOOKUP($A28,'2021'!$B$2:$K$174,3,FALSE),0) -> 0 | AE28: =IFERROR(VLOOKUP($A28,'2021'!$B$2:$K$174,4,FALSE),0) -> 0 | AF28: =IFERROR(VLOOKUP($A28,'2021'!$B$2:$K$174,5,FALSE),0) -> 0 | AG28: =IFERROR(VLOOKUP($A28,'2021'!$B$2:$K$174,8,FALSE),0) -> 0 | AH28: =IFERROR(VLOOKUP($A28,'2021'!$B$2:$K$174,10,FALSE),0) -> 0 | AI28: =IFERROR(VLOOKUP($A28,'2020'!$B$2:$K$170,3,FALSE),0) -> 0 | AJ28: =IFERROR(VLOOKUP($A28,'2020'!$B$2:$K$170,4,FALSE),0) -> 0 | AK28: =IFERROR(VLOOKUP($A28,'2020'!$B$2:$K$170,5,FALSE),0) -> 0 | AL28: =IFERROR(VLOOKUP($A28,'2020'!$B$2:$K$170,8,FALSE),0) -> 0 | AM28: =IFERROR(VLOOKUP($A28,'2020'!$B$2:$K$170,10,FALSE),0) -> 0 | AN28: =IFERROR(VLOOKUP($A28,'2019'!$B$2:$K$170,3,FALSE),0) -> 0 | AO28: =IFERROR(VLOOKUP($A28,'2019'!$B$2:$K$170,4,FALSE),0) -> 0 | AP28: =IFERROR(VLOOKUP($A28,'2019'!$B$2:$K$170,5,FALSE),0) -> 0 | AQ28: =IFERROR(VLOOKUP($A28,'2019'!$B$2:$K$170,8,FALSE),0) -> 0 | AR28: =IFERROR(VLOOKUP($A28,'2019'!$B$2:$K$170,10,FALSE),0) -> 0 | AS28: =IFERROR(VLOOKUP($A28,'2018'!$B$2:$K$170,3,FALSE),0) -> 0 | AT28: =IFERROR(VLOOKUP($A28,'2018'!$B$2:$K$170,4,FALSE),0) -> 0 | AU28: =IFERROR(VLOOKUP($A28,'2018'!$B$2:$K$170,5,FALSE),0) -> 0 | AV28: =IFERROR(VLOOKUP($A28,'2018'!$B$2:$K$170,8,FALSE),0) -> 0 | AW28: =IFERROR(VLOOKUP($A28,'2018'!$B$2:$K$170,10,FALSE),0) -> 0 | AX28: =IFERROR(VLOOKUP($A28,'2017'!$B$2:$J$163,2,FALSE),0) -> 0 | AY28: =IFERROR(VLOOKUP($A28,'2017'!$B$2:$J$163,3,FALSE),0) -> 0 | AZ28: =IFERROR(VLOOKUP($A28,'2017'!$B$2:$J$163,4,FALSE),0) -> 0 | BA28: =IFERROR(VLOOKUP($A28,'2017'!$B$2:$J$163,7,FALSE),0) -> 0 | BB28: =IFERROR(VLOOKUP($A28,'2017'!$B$2:$J$163,9,FALSE),0) -> 0 | BC28: =IFERROR(VLOOKUP($A28,'2016'!$B$2:$K$165,3,FALSE),0) -> 0 | BD28: =IFERROR(VLOOKUP($A28,'2016'!$B$2:$K$165,4,FALSE),0) -> 0 | BE28: =IFERROR(VLOOKUP($A28,'2016'!$B$2:$K$165,5,FALSE),0) -> 0 | BF28: =IFERROR(VLOOKUP($A28,'2016'!$B$2:$K$165,8,FALSE),0) -> 0 | BG28: =IFERROR(VLOOKUP($A28,'2016'!$B$2:$K$165,10,FALSE),0) -> 0 | BH28: =IFERROR(VLOOKUP($A28,'2015'!$B$2:$K$165,3,FALSE),0) -> 0 | BI28: =IFERROR(VLOOKUP($A28,'2015'!$B$2:$K$165,4,FALSE),0) -> 0 | BJ28: =IFERROR(VLOOKUP($A28,'2015'!$B$2:$K$165,5,FALSE),0) -> 0 | BK28: =IFERROR(VLOOKUP($A28,'2015'!$B$2:$K$165,8,FALSE),0) -> 0 | BL28: =IFERROR(VLOOKUP($A28,'2015'!$B$2:$K$165,10,FALSE),0) -> 0 | BM28: =IFERROR(VLOOKUP($A28,'2014'!$B$2:$K$157,3,FALSE),0) -> 0 | BN28: =IFERROR(VLOOKUP($A28,'2014'!$B$2:$K$157,4,FALSE),0) -> 0 | BO28: =IFERROR(VLOOKUP($A28,'2014'!$B$2:$K$157,5,FALSE),0) -> 0 | BP28: =IFERROR(VLOOKUP($A28,'2014'!$B$2:$K$157,8,FALSE),0) -> 0 | BQ28: =IFERROR(VLOOKUP($A28,'2014'!$B$2:$K$157,10,FALSE),0) -> 0 | BR28: =IFERROR(VLOOKUP($A28,'2013'!$D$4:$I$249,2,FALSE),0) -> 0 | BS28: =IFERROR(VLOOKUP($A28,'2013'!$D$4:$I$249,3,FALSE),0) -> 0 | BT28: =IFERROR(VLOOKUP($A28,'2013'!$D$4:$I$249,4,FALSE),0) -> 0 | BU28: =IFERROR(VLOOKUP($A28,'2013'!$D$4:$I$249,5,FALSE),0) -> 0 | BV28: =IFERROR(VLOOKUP($A28,'2013'!$D$4:$I$249,6,FALSE),0) -> 0 | BW28: =IFERROR(VLOOKUP($A28,'2012'!$D$3:$O$172,2,FALSE),0) -> 0 | BX28: =IFERROR(VLOOKUP($A28,'2012'!$D$3:$O$172,3,FALSE),0) -> 0 | BY28: =IFERROR(VLOOKUP($A28,'2012'!$D$3:$O$172,4,FALSE),0) -> 0 | BZ28: =IFERROR(VLOOKUP($A28,'2012'!$D$3:$O$172,5,FALSE),0) -> 0 | CA28: =IFERROR(VLOOKUP($A28,'2012'!$D$3:$O$172,6,FALSE),0) -> 0 | CB28: =IFERROR(VLOOKUP($A28,'2012'!$D$3:$O$172,7,FALSE),0) -> 0 | CC28: =IFERROR(VLOOKUP($A28,'2012'!$D$3:$O$172,8,FALSE),0) -> 0 | CD28: =IFERROR(VLOOKUP($A28,'2012'!$D$3:$O$172,9,FALSE),0) -> 0 | CH28: =IFERROR(VLOOKUP($A28,'2011'!$D$4:$I$251,2,FALSE),0) -> 0 | CI28: =IFERROR(VLOOKUP($A28,'2011'!$D$4:$I$251,3,FALSE),0) -> 0 | CJ28: =IFERROR(VLOOKUP($A28,'2011'!$D$4:$I$251,4,FALSE),0) -> 0 | CK28: =IFERROR(VLOOKUP($A28,'2011'!$D$4:$I$251,5,FALSE),0) -> 0 | CL28: =IFERROR(VLOOKUP($A28,'2011'!$D$4:$I$251,6,FALSE),0) -> 0 | CM28: =IFERROR(VLOOKUP($A28,'2010'!$C$3:$H$234,2,FALSE),0) -> 77 | CN28: =IFERROR(VLOOKUP($A28,'2010'!$C$3:$H$234,3,FALSE),0) -> 45 | CO28: =IFERROR(VLOOKUP($A28,'2010'!$C$3:$H$234,4,FALSE),0) -> 51 | CP28: =IFERROR(VLOOKUP($A28,'2010'!$C$3:$H$234,5,FALSE),0) -> 17 | CQ28: =IFERROR(VLOOKUP($A28,'2010'!$C$3:$H$234,6,FALSE),0) -> 0.6623376623 | CR28: =IFERROR(VLOOKUP($A28,'2009'!$C$3:$H$242,2,FALSE),0) -> 70 | CS28: =IFERROR(VLOOKUP($A28,'2009'!$C$3:$H$242,3,FALSE),0) -> 33 | CT28: =IFERROR(VLOOKUP($A28,'2009'!$C$3:$H$242,4,FALSE),0) -> 48 | CU28: =IFERROR(VLOOKUP($A28,'2009'!$C$3:$H$242,5,FALSE),0) -> 14 | CV28: =IFERROR(VLOOKUP($A28,'2009'!$C$3:$H$242,6,FALSE),0) -> 0.6857142857 | CW28: =IFERROR(VLOOKUP($A28,'2008'!$C$3:$H$229,2,FALSE),0) -> 82 | CX28: =IFERROR(VLOOKUP($A28,'2008'!$C$3:$H$229,3,FALSE),0) -> 57 | CY28: =IFERROR(VLOOKUP($A28,'2008'!$C$3:$H$229,4,FALSE),0) -> 65 | CZ28: =IFERROR(VLOOKUP($A28,'2008'!$C$3:$H$229,5,FALSE),0) -> 8 | DA28: =IFERROR(VLOOKUP($A28,'2008'!$C$3:$H$229,6,FALSE),0) -> 0.7926829268 | DB28: =IFERROR(VLOOKUP($A28,'2007'!$C$3:$M$238,7,FALSE),0) -> 0 | DC28: =IFERROR(VLOOKUP($A28,'2007'!$C$3:$M$238,8,FALSE),0) -> 0 | DD28: =IFERROR(VLOOKUP($A28,'2007'!$C$3:$M$238,9,FALSE),0) -> 0 | DE28: =IFERROR(VLOOKUP($A28,'2007'!$C$3:$M$238,10,FALSE),0) -> 0 | DF28: =IFERROR(VLOOKUP($A28,'2007'!$C$3:$M$238,11,FALSE),0) -> 0 | DG28: =IFERROR(VLOOKUP($A28,'2006'!$A$2:$F$200,2,FALSE),0) -> 0 | DH28: =IFERROR(VLOOKUP($A28,'2006'!$A$2:$F$200,4,FALSE),0) -> 0 | DI28: =IFERROR(VLOOKUP($A28,'2006'!$A$2:$F$200,5,FALSE),0) -> 0 | DJ28: =IFERROR(VLOOKUP($A28,'2006'!$A$2:$F$200,6,FALSE),0) -> --- | DK28: =IFERROR(VLOOKUP($A28,'2005'!$C$3:$M$205,8,FALSE),0) -> 0 | DL28: =IFERROR(VLOOKUP($A28,'2005'!$C$3:$M$205,9,FALSE),0) -> 0 | DM28: =IFERROR(VLOOKUP($A28,'2005'!$C$3:$M$205,10,FALSE),0) -> 0 | DN28: =IFERROR(VLOOKUP($A28,'2005'!$C$3:$M$205,11,FALSE),0) -> 0 | DO28: =IFERROR(VLOOKUP($A28,'2004'!$C$3:$M$213,8,FALSE),0) -> 25 | DP28: =IFERROR(VLOOKUP($A28,'2004'!$C$3:$M$213,9,FALSE),0) -> 19 | DQ28: =IFERROR(VLOOKUP($A28,'2004'!$C$3:$M$213,10,FALSE),0) -> 4 | DR28: =IFERROR(VLOOKUP($A28,'2004'!$C$3:$M$213,11,FALSE),0) -> 0.76 | DS28: =IFERROR(VLOOKUP($A28,'2003'!$C$3:$Q$214,12,FALSE),0) -> 49 | DT28: =IFERROR(VLOOKUP($A28,'2003'!$C$3:$Q$214,13,FALSE),0) -> 41 | DU28: =IFERROR(VLOOKUP($A28,'2003'!$C$3:$Q$214,14,FALSE),0) -> 12 | DV28: =IFERROR(VLOOKUP($A28,'2003'!$C$3:$Q$214,15,FALSE),0) -> 0.8367346939 | DW28: =IFERROR(VLOOKUP($A28,'2002'!$D$3:$R$214,12,FALSE),0) -> 59 | DX28: =IFERROR(VLOOKUP($A28,'2002'!$D$3:$R$214,13,FALSE),0) -> 38 | DY28: =IFERROR(VLOOKUP($A28,'2002'!$D$3:$R$214,14,FALSE),0) -> 6 | DZ28: =IFERROR(VLOOKUP($A28,'2002'!$D$3:$R$214,15,FALSE),0) -> 0.6440677966 | EA28: =IFERROR(VLOOKUP($A28,'Pre 2002'!$C$3:$CK$382,84,FALSE),0) -> 227 | EB28: =IFERROR(VLOOKUP($A28,'Pre 2002'!$C$3:$CK$382,85,FALSE),0) -> 167 | EC28: =IFERROR(VLOOKUP($A28,'Pre 2002'!$C$3:$CK$382,86,FALSE),0) -> 28 | ED28: =IFERROR(VLOOKUP($A28,'Pre 2002'!$C$3:$CK$382,87,FALSE),0) -> 0.7356828194 | EE28: =IFERROR(VLOOKUP(A28,'Pre 2002'!$C$3:$CG$382,83,FALSE),0) -> 3
A29: Ralph Adragna | B29: =SUM(O29,T29,Y29,AD29,AI29,AN29,AS29,AX29,BC29,BH29,BM29,BR29,BZ29,CH29,CM29,CR29,CW29,DB29,DG29,DK29,DO29,DS29,DW29,EA29) -> 1022 | C29: =SUM(Q29,V29,AA29,AF29,AK29,AP29,AU29,AZ29,BE29,BJ29,BO29,BT29,CB29,CJ29,CO29,CT29,CY29,DD29,DH29,DL29,DP29,DT29,DX29,EB29) -> 683 | D29: =SUM(R29,W29,AB29,AG29,AL29,AQ29,AV29,BA29,BF29,BK29,BP29,BU29,CC29,CK29,CP29,CU29,CZ29,DE29,DI29,DM29,DQ29,DU29,DY29,EC29) -> 86 | E29: =IF(B29=0,0,C29/B29) -> 0.668297456 | F29: =IF(O29>0,1,0)+IF(T29>0,1,0)+IF(Y29>0,1,0)+IF(AD29>0,1,0)+IF(AI29>0,1,0)+IF(AN29>0,1,0)+IF(AS29>0,1,0)+IF(AX29>0,1,0)+IF(BC29>0,1,0)+IF(BH29>0,1,0)+IF(BM29>0,1,0)+IF(BR29>0,1,0)+IF(BZ29>0,1,0)+IF(CH29>0,1,0)+IF(CM29>0,1,0)+IF(CR29>0,1,0)+IF(CW29>0,1,0)+IF(DB29>0,1,0)+IF(DG29>0,1,0)+IF(DK29>0,1,0)+IF(DO29>0,1,0)+IF(DS29>0,1,0)+IF(DW29>0,1,0)+EE29 -> 16 | G29: 1999 | H29: =IF(BM29>0,1,0)+IF(BR29>0,1,0)+IF(BZ29>0,1,0)+IF(CH29>0,1,0)+IF(CM29>0,1,0)+IF(CR29>0,1,0)+IF(CW29>0,1,0)+IF(DB29>0,1,0)+IF(DG29>0,1,0)+IF(DK29>0,1,0)+IF(DO29>0,1,0)+IF(DS29>0,1,0)+IF(DW29>0,1,0)+EE29 -> 16 | I29: =SUM(BM29,BR29,BZ29,CH29,CM29,CR29,CW29,DB29,DG29,DK29,DO29,DS29,DW29,EA29) -> 1022 | J29: =SUM(BO29,BT29,CB29,CJ29,CO29,CT29,CY29,DD29,DH29,DL29,DP29,DT29,DX29,EB29) -> 683 | K29: =SUM(BP29,BU29,CC29,CK29,CP29,CU29,CZ29,DE29,DI29,DM29,DQ29,DU29,DY29,EC29) -> 86 | L29: =IF(I29=0,0,J29/I29) -> 0.668297456 | O29: =IFERROR(VLOOKUP($A29,'2024'!$A$2:$M$220,6,FALSE),0) -> 0 | P29: =IFERROR(VLOOKUP($A29,'2024'!$A$2:$M$220,7,FALSE),0) -> 0 | Q29: =IFERROR(VLOOKUP($A29,'2024'!$A$2:$M$220,8,FALSE),0) -> 0 | R29: =IFERROR(VLOOKUP($A29,'2024'!$A$2:$M$220,11,FALSE),0) -> 0 | S29: =IFERROR(VLOOKUP($A29,'2024'!$A$2:$M$220,13,FALSE),0) -> 0 | T29: =IFERROR(VLOOKUP($A29,'2023'!$A$2:$M$170,6,FALSE),0) -> 0 | U29: =IFERROR(VLOOKUP($A29,'2023'!$A$2:$M$170,7,FALSE),0) -> 0 | V29: =IFERROR(VLOOKUP($A29,'2023'!$A$2:$M$170,8,FALSE),0) -> 0 | W29: =IFERROR(VLOOKUP($A29,'2023'!$A$2:$M$170,11,FALSE),0) -> 0 | X29: =IFERROR(VLOOKUP($A29,'2023'!$A$2:$M$170,13,FALSE),0) -> 0 | Y29: =IFERROR(VLOOKUP($A29,'2022'!$B$2:$K$174,3,FALSE),0) -> 0 | Z29: =IFERROR(VLOOKUP($A29,'2022'!$B$2:$K$174,4,FALSE),0) -> 0 | AA29: =IFERROR(VLOOKUP($A29,'2022'!$B$2:$K$174,5,FALSE),0) -> 0 | AB29: =IFERROR(VLOOKUP($A29,'2022'!$B$2:$K$174,8,FALSE),0) -> 0 | AC29: =IFERROR(VLOOKUP($A29,'2022'!$B$2:$K$174,10,FALSE),0) -> 0 | AD29: =IFERROR(VLOOKUP($A29,'2021'!$B$2:$K$174,3,FALSE),0) -> 0 | AE29: =IFERROR(VLOOKUP($A29,'2021'!$B$2:$K$174,4,FALSE),0) -> 0 | AF29: =IFERROR(VLOOKUP($A29,'2021'!$B$2:$K$174,5,FALSE),0) -> 0 | AG29: =IFERROR(VLOOKUP($A29,'2021'!$B$2:$K$174,8,FALSE),0) -> 0 | AH29: =IFERROR(VLOOKUP($A29,'2021'!$B$2:$K$174,10,FALSE),0) -> 0 | AI29: =IFERROR(VLOOKUP($A29,'2020'!$B$2:$K$170,3,FALSE),0) -> 0 | AJ29: =IFERROR(VLOOKUP($A29,'2020'!$B$2:$K$170,4,FALSE),0) -> 0 | AK29: =IFERROR(VLOOKUP($A29,'2020'!$B$2:$K$170,5,FALSE),0) -> 0 | AL29: =IFERROR(VLOOKUP($A29,'2020'!$B$2:$K$170,8,FALSE),0) -> 0 | AM29: =IFERROR(VLOOKUP($A29,'2020'!$B$2:$K$170,10,FALSE),0) -> 0 | AN29: =IFERROR(VLOOKUP($A29,'2019'!$B$2:$K$170,3,FALSE),0) -> 0 | AO29: =IFERROR(VLOOKUP($A29,'2019'!$B$2:$K$170,4,FALSE),0) -> 0 | AP29: =IFERROR(VLOOKUP($A29,'2019'!$B$2:$K$170,5,FALSE),0) -> 0 | AQ29: =IFERROR(VLOOKUP($A29,'2019'!$B$2:$K$170,8,FALSE),0) -> 0 | AR29: =IFERROR(VLOOKUP($A29,'2019'!$B$2:$K$170,10,FALSE),0) -> 0 | AS29: =IFERROR(VLOOKUP($A29,'2018'!$B$2:$K$170,3,FALSE),0) -> 0 | AT29: =IFERROR(VLOOKUP($A29,'2018'!$B$2:$K$170,4,FALSE),0) -> 0 | AU29: =IFERROR(VLOOKUP($A29,'2018'!$B$2:$K$170,5,FALSE),0) -> 0 | AV29: =IFERROR(VLOOKUP($A29,'2018'!$B$2:$K$170,8,FALSE),0) -> 0 | AW29: =IFERROR(VLOOKUP($A29,'2018'!$B$2:$K$170,10,FALSE),0) -> 0 | AX29: =IFERROR(VLOOKUP($A29,'2017'!$B$2:$J$163,2,FALSE),0) -> 0 | AY29: =IFERROR(VLOOKUP($A29,'2017'!$B$2:$J$163,3,FALSE),0) -> 0 | AZ29: =IFERROR(VLOOKUP($A29,'2017'!$B$2:$J$163,4,FALSE),0) -> 0 | BA29: =IFERROR(VLOOKUP($A29,'2017'!$B$2:$J$163,7,FALSE),0) -> 0 | BB29: =IFERROR(VLOOKUP($A29,'2017'!$B$2:$J$163,9,FALSE),0) -> 0 | BC29: =IFERROR(VLOOKUP($A29,'2016'!$B$2:$K$165,3,FALSE),0) -> 0 | BD29: =IFERROR(VLOOKUP($A29,'2016'!$B$2:$K$165,4,FALSE),0) -> 0 | BE29: =IFERROR(VLOOKUP($A29,'2016'!$B$2:$K$165,5,FALSE),0) -> 0 | BF29: =IFERROR(VLOOKUP($A29,'2016'!$B$2:$K$165,8,FALSE),0) -> 0 | BG29: =IFERROR(VLOOKUP($A29,'2016'!$B$2:$K$165,10,FALSE),0) -> 0 | BH29: =IFERROR(VLOOKUP($A29,'2015'!$B$2:$K$165,3,FALSE),0) -> 0 | BI29: =IFERROR(VLOOKUP($A29,'2015'!$B$2:$K$165,4,FALSE),0) -> 0 | BJ29: =IFERROR(VLOOKUP($A29,'2015'!$B$2:$K$165,5,FALSE),0) -> 0 | BK29: =IFERROR(VLOOKUP($A29,'2015'!$B$2:$K$165,8,FALSE),0) -> 0 | BL29: =IFERROR(VLOOKUP($A29,'2015'!$B$2:$K$165,10,FALSE),0) -> 0 | BM29: =IFERROR(VLOOKUP($A29,'2014'!$B$2:$K$157,3,FALSE),0) -> 0 | BN29: =IFERROR(VLOOKUP($A29,'2014'!$B$2:$K$157,4,FALSE),0) -> 0 | BO29: =IFERROR(VLOOKUP($A29,'2014'!$B$2:$K$157,5,FALSE),0) -> 0 | BP29: =IFERROR(VLOOKUP($A29,'2014'!$B$2:$K$157,8,FALSE),0) -> 0 | BQ29: =IFERROR(VLOOKUP($A29,'2014'!$B$2:$K$157,10,FALSE),0) -> 0 | BR29: =IFERROR(VLOOKUP($A29,'2013'!$D$4:$I$249,2,FALSE),0) -> 84 | BS29: =IFERROR(VLOOKUP($A29,'2013'!$D$4:$I$249,3,FALSE),0) -> 41 | BT29: =IFERROR(VLOOKUP($A29,'2013'!$D$4:$I$249,4,FALSE),0) -> 51 | BU29: =IFERROR(VLOOKUP($A29,'2013'!$D$4:$I$249,5,FALSE),0) -> 2 | BV29: =IFERROR(VLOOKUP($A29,'2013'!$D$4:$I$249,6,FALSE),0) -> 0.6071428571 | BW29: =IFERROR(VLOOKUP($A29,'2012'!$D$3:$O$172,2,FALSE),0) -> 856 | BX29: =IFERROR(VLOOKUP($A29,'2012'!$D$3:$O$172,3,FALSE),0) -> 580 | BY29: =IFERROR(VLOOKUP($A29,'2012'!$D$3:$O$172,4,FALSE),0) -> 77 | BZ29: =IFERROR(VLOOKUP($A29,'2012'!$D$3:$O$172,5,FALSE),0) -> 33 | CA29: =IFERROR(VLOOKUP($A29,'2012'!$D$3:$O$172,6,FALSE),0) -> 25 | CB29: =IFERROR(VLOOKUP($A29,'2012'!$D$3:$O$172,7,FALSE),0) -> 20 | CC29: =IFERROR(VLOOKUP($A29,'2012'!$D$3:$O$172,8,FALSE),0) -> 5 | CD29: =IFERROR(VLOOKUP($A29,'2012'!$D$3:$O$172,9,FALSE),0) -> 0.6060606061 | CE29: =IFERROR(VLOOKUP($A29,'2012'!$D$3:$O$172,10,FALSE),0) -> 823 | CF29: =IFERROR(VLOOKUP($A29,'2012'!$D$3:$O$172,11,FALSE),0) -> 560 | CG29: =IFERROR(VLOOKUP($A29,'2012'!$D$3:$O$172,12,FALSE),0) -> 72 | CH29: =IFERROR(VLOOKUP($A29,'2011'!$D$4:$I$251,2,FALSE),0) -> 79 | CI29: =IFERROR(VLOOKUP($A29,'2011'!$D$4:$I$251,3,FALSE),0) -> 49 | CJ29: =IFERROR(VLOOKUP($A29,'2011'!$D$4:$I$251,4,FALSE),0) -> 50 | CK29: =IFERROR(VLOOKUP($A29,'2011'!$D$4:$I$251,5,FALSE),0) -> 2 | CL29: =IFERROR(VLOOKUP($A29,'2011'!$D$4:$I$251,6,FALSE),0) -> 0.6329113924 | CM29: =IFERROR(VLOOKUP($A29,'2010'!$C$3:$H$234,2,FALSE),0) -> 74 | CN29: =IFERROR(VLOOKUP($A29,'2010'!$C$3:$H$234,3,FALSE),0) -> 42 | CO29: =IFERROR(VLOOKUP($A29,'2010'!$C$3:$H$234,4,FALSE),0) -> 46 | CP29: =IFERROR(VLOOKUP($A29,'2010'!$C$3:$H$234,5,FALSE),0) -> 5 | CQ29: =IFERROR(VLOOKUP($A29,'2010'!$C$3:$H$234,6,FALSE),0) -> 0.6216216216 | CR29: =IFERROR(VLOOKUP($A29,'2009'!$C$3:$H$242,2,FALSE),0) -> 0 | CS29: =IFERROR(VLOOKUP($A29,'2009'!$C$3:$H$242,3,FALSE),0) -> 0 | CT29: =IFERROR(VLOOKUP($A29,'2009'!$C$3:$H$242,4,FALSE),0) -> 0 | CU29: =IFERROR(VLOOKUP($A29,'2009'!$C$3:$H$242,5,FALSE),0) -> 0 | CV29: =IFERROR(VLOOKUP($A29,'2009'!$C$3:$H$242,6,FALSE),0) -> 0 | CW29: =IFERROR(VLOOKUP($A29,'2008'!$C$3:$H$229,2,FALSE),0) -> 86 | CX29: =IFERROR(VLOOKUP($A29,'2008'!$C$3:$H$229,3,FALSE),0) -> 47 | CY29: =IFERROR(VLOOKUP($A29,'2008'!$C$3:$H$229,4,FALSE),0) -> 57 | CZ29: =IFERROR(VLOOKUP($A29,'2008'!$C$3:$H$229,5,FALSE),0) -> 3 | DA29: =IFERROR(VLOOKUP($A29,'2008'!$C$3:$H$229,6,FALSE),0) -> 0.6627906977 | DB29: =IFERROR(VLOOKUP($A29,'2007'!$C$3:$M$238,7,FALSE),0) -> 69 | DC29: =IFERROR(VLOOKUP($A29,'2007'!$C$3:$M$238,8,FALSE),0) -> 38 | DD29: =IFERROR(VLOOKUP($A29,'2007'!$C$3:$M$238,9,FALSE),0) -> 46 | DE29: =IFERROR(VLOOKUP($A29,'2007'!$C$3:$M$238,10,FALSE),0) -> 3 | DF29: =IFERROR(VLOOKUP($A29,'2007'!$C$3:$M$238,11,FALSE),0) -> 0.6666666667 | DG29: =IFERROR(VLOOKUP($A29,'2006'!$A$2:$F$200,2,FALSE),0) -> 61 | DH29: =IFERROR(VLOOKUP($A29,'2006'!$A$2:$F$200,4,FALSE),0) -> 38 | DI29: =IFERROR(VLOOKUP($A29,'2006'!$A$2:$F$200,5,FALSE),0) -> 7 | DJ29: =IFERROR(VLOOKUP($A29,'2006'!$A$2:$F$200,6,FALSE),0) -> 0.6229508197 | DK29: =IFERROR(VLOOKUP($A29,'2005'!$C$3:$M$205,8,FALSE),0) -> 53 | DL29: =IFERROR(VLOOKUP($A29,'2005'!$C$3:$M$205,9,FALSE),0) -> 36 | DM29: =IFERROR(VLOOKUP($A29,'2005'!$C$3:$M$205,10,FALSE),0) -> 10 | DN29: =IFERROR(VLOOKUP($A29,'2005'!$C$3:$M$205,11,FALSE),0) -> 0.679245283 | DO29: =IFERROR(VLOOKUP($A29,'2004'!$C$3:$M$213,8,FALSE),0) -> 66 | DP29: =IFERROR(VLOOKUP($A29,'2004'!$C$3:$M$213,9,FALSE),0) -> 42 | DQ29: =IFERROR(VLOOKUP($A29,'2004'!$C$3:$M$213,10,FALSE),0) -> 7 | DR29: =IFERROR(VLOOKUP($A29,'2004'!$C$3:$M$213,11,FALSE),0) -> 0.6363636364 | DS29: =IFERROR(VLOOKUP($A29,'2003'!$C$3:$Q$214,12,FALSE),0) -> 58 | DT29: =IFERROR(VLOOKUP($A29,'2003'!$C$3:$Q$214,13,FALSE),0) -> 47 | DU29: =IFERROR(VLOOKUP($A29,'2003'!$C$3:$Q$214,14,FALSE),0) -> 6 | DV29: =IFERROR(VLOOKUP($A29,'2003'!$C$3:$Q$214,15,FALSE),0) -> 0.8103448276 | DW29: =IFERROR(VLOOKUP($A29,'2002'!$D$3:$R$214,12,FALSE),0) -> 39 | DX29: =IFERROR(VLOOKUP($A29,'2002'!$D$3:$R$214,13,FALSE),0) -> 26 | DY29: =IFERROR(VLOOKUP($A29,'2002'!$D$3:$R$214,14,FALSE),0) -> 3 | DZ29: =IFERROR(VLOOKUP($A29,'2002'!$D$3:$R$214,15,FALSE),0) -> 0.6666666667 | EA29: =IFERROR(VLOOKUP($A29,'Pre 2002'!$C$3:$CK$382,84,FALSE),0) -> 320 | EB29: =IFERROR(VLOOKUP($A29,'Pre 2002'!$C$3:$CK$382,85,FALSE),0) -> 224 | EC29: =IFERROR(VLOOKUP($A29,'Pre 2002'!$C$3:$CK$382,86,FALSE),0) -> 33 | ED29: =IFERROR(VLOOKUP($A29,'Pre 2002'!$C$3:$CK$382,87,FALSE),0) -> 0.7 | EE29: =IFERROR(VLOOKUP(A29,'Pre 2002'!$C$3:$CG$382,83,FALSE),0) -> 5
A30: Roy Phillips | B30: =SUM(O30,T30,Y30,AD30,AI30,AN30,AS30,AX30,BC30,BH30,BM30,BR30,BZ30,CH30,CM30,CR30,CW30,DB30,DG30,DK30,DO30,DS30,DW30,EA30) -> 1171 | C30: =SUM(Q30,V30,AA30,AF30,AK30,AP30,AU30,AZ30,BE30,BJ30,BO30,BT30,CB30,CJ30,CO30,CT30,CY30,DD30,DH30,DL30,DP30,DT30,DX30,EB30) -> 687 | D30: =SUM(R30,W30,AB30,AG30,AL30,AQ30,AV30,BA30,BF30,BK30,BP30,BU30,CC30,CK30,CP30,CU30,CZ30,DE30,DI30,DM30,DQ30,DU30,DY30,EC30) -> 82 | E30: =IF(B30=0,0,C30/B30) -> 0.5866780529 | F30: =IF(O30>0,1,0)+IF(T30>0,1,0)+IF(Y30>0,1,0)+IF(AD30>0,1,0)+IF(AI30>0,1,0)+IF(AN30>0,1,0)+IF(AS30>0,1,0)+IF(AX30>0,1,0)+IF(BC30>0,1,0)+IF(BH30>0,1,0)+IF(BM30>0,1,0)+IF(BR30>0,1,0)+IF(BZ30>0,1,0)+IF(CH30>0,1,0)+IF(CM30>0,1,0)+IF(CR30>0,1,0)+IF(CW30>0,1,0)+IF(DB30>0,1,0)+IF(DG30>0,1,0)+IF(DK30>0,1,0)+IF(DO30>0,1,0)+IF(DS30>0,1,0)+IF(DW30>0,1,0)+EE30 -> 19 | H30: =IF(BM30>0,1,0)+IF(BR30>0,1,0)+IF(BZ30>0,1,0)+IF(CH30>0,1,0)+IF(CM30>0,1,0)+IF(CR30>0,1,0)+IF(CW30>0,1,0)+IF(DB30>0,1,0)+IF(DG30>0,1,0)+IF(DK30>0,1,0)+IF(DO30>0,1,0)+IF(DS30>0,1,0)+IF(DW30>0,1,0)+EE30 -> 19 | I30: =SUM(BM30,BR30,BZ30,CH30,CM30,CR30,CW30,DB30,DG30,DK30,DO30,DS30,DW30,EA30) -> 1171 | J30: =SUM(BO30,BT30,CB30,CJ30,CO30,CT30,CY30,DD30,DH30,DL30,DP30,DT30,DX30,EB30) -> 687 | K30: =SUM(BP30,BU30,CC30,CK30,CP30,CU30,CZ30,DE30,DI30,DM30,DQ30,DU30,DY30,EC30) -> 82 | L30: =IF(I30=0,0,J30/I30) -> 0.5866780529 | O30: =IFERROR(VLOOKUP($A30,'2024'!$A$2:$M$220,6,FALSE),0) -> 0 | P30: =IFERROR(VLOOKUP($A30,'2024'!$A$2:$M$220,7,FALSE),0) -> 0 | Q30: =IFERROR(VLOOKUP($A30,'2024'!$A$2:$M$220,8,FALSE),0) -> 0 | R30: =IFERROR(VLOOKUP($A30,'2024'!$A$2:$M$220,11,FALSE),0) -> 0 | S30: =IFERROR(VLOOKUP($A30,'2024'!$A$2:$M$220,13,FALSE),0) -> 0 | T30: =IFERROR(VLOOKUP($A30,'2023'!$A$2:$M$170,6,FALSE),0) -> 0 | U30: =IFERROR(VLOOKUP($A30,'2023'!$A$2:$M$170,7,FALSE),0) -> 0 | V30: =IFERROR(VLOOKUP($A30,'2023'!$A$2:$M$170,8,FALSE),0) -> 0 | W30: =IFERROR(VLOOKUP($A30,'2023'!$A$2:$M$170,11,FALSE),0) -> 0 | X30: =IFERROR(VLOOKUP($A30,'2023'!$A$2:$M$170,13,FALSE),0) -> 0 | Y30: =IFERROR(VLOOKUP($A30,'2022'!$B$2:$K$174,3,FALSE),0) -> 0 | Z30: =IFERROR(VLOOKUP($A30,'2022'!$B$2:$K$174,4,FALSE),0) -> 0 | AA30: =IFERROR(VLOOKUP($A30,'2022'!$B$2:$K$174,5,FALSE),0) -> 0 | AB30: =IFERROR(VLOOKUP($A30,'2022'!$B$2:$K$174,8,FALSE),0) -> 0 | AC30: =IFERROR(VLOOKUP($A30,'2022'!$B$2:$K$174,10,FALSE),0) -> 0 | AD30: =IFERROR(VLOOKUP($A30,'2021'!$B$2:$K$174,3,FALSE),0) -> 0 | AE30: =IFERROR(VLOOKUP($A30,'2021'!$B$2:$K$174,4,FALSE),0) -> 0 | AF30: =IFERROR(VLOOKUP($A30,'2021'!$B$2:$K$174,5,FALSE),0) -> 0 | AG30: =IFERROR(VLOOKUP($A30,'2021'!$B$2:$K$174,8,FALSE),0) -> 0 | AH30: =IFERROR(VLOOKUP($A30,'2021'!$B$2:$K$174,10,FALSE),0) -> 0 | AI30: =IFERROR(VLOOKUP($A30,'2020'!$B$2:$K$170,3,FALSE),0) -> 0 | AJ30: =IFERROR(VLOOKUP($A30,'2020'!$B$2:$K$170,4,FALSE),0) -> 0 | AK30: =IFERROR(VLOOKUP($A30,'2020'!$B$2:$K$170,5,FALSE),0) -> 0 | AL30: =IFERROR(VLOOKUP($A30,'2020'!$B$2:$K$170,8,FALSE),0) -> 0 | AM30: =IFERROR(VLOOKUP($A30,'2020'!$B$2:$K$170,10,FALSE),0) -> 0 | AN30: =IFERROR(VLOOKUP($A30,'2019'!$B$2:$K$170,3,FALSE),0) -> 0 | AO30: =IFERROR(VLOOKUP($A30,'2019'!$B$2:$K$170,4,FALSE),0) -> 0 | AP30: =IFERROR(VLOOKUP($A30,'2019'!$B$2:$K$170,5,FALSE),0) -> 0 | AQ30: =IFERROR(VLOOKUP($A30,'2019'!$B$2:$K$170,8,FALSE),0) -> 0 | AR30: =IFERROR(VLOOKUP($A30,'2019'!$B$2:$K$170,10,FALSE),0) -> 0 | AS30: =IFERROR(VLOOKUP($A30,'2018'!$B$2:$K$170,3,FALSE),0) -> 0 | AT30: =IFERROR(VLOOKUP($A30,'2018'!$B$2:$K$170,4,FALSE),0) -> 0 | AU30: =IFERROR(VLOOKUP($A30,'2018'!$B$2:$K$170,5,FALSE),0) -> 0 | AV30: =IFERROR(VLOOKUP($A30,'2018'!$B$2:$K$170,8,FALSE),0) -> 0 | AW30: =IFERROR(VLOOKUP($A30,'2018'!$B$2:$K$170,10,FALSE),0) -> 0 | AX30: =IFERROR(VLOOKUP($A30,'2017'!$B$2:$J$163,2,FALSE),0) -> 0 | AY30: =IFERROR(VLOOKUP($A30,'2017'!$B$2:$J$163,3,FALSE),0) -> 0 | AZ30: =IFERROR(VLOOKUP($A30,'2017'!$B$2:$J$163,4,FALSE),0) -> 0 | BA30: =IFERROR(VLOOKUP($A30,'2017'!$B$2:$J$163,7,FALSE),0) -> 0 | BB30: =IFERROR(VLOOKUP($A30,'2017'!$B$2:$J$163,9,FALSE),0) -> 0 | BC30: =IFERROR(VLOOKUP($A30,'2016'!$B$2:$K$165,3,FALSE),0) -> 0 | BD30: =IFERROR(VLOOKUP($A30,'2016'!$B$2:$K$165,4,FALSE),0) -> 0 | BE30: =IFERROR(VLOOKUP($A30,'2016'!$B$2:$K$165,5,FALSE),0) -> 0 | BF30: =IFERROR(VLOOKUP($A30,'2016'!$B$2:$K$165,8,FALSE),0) -> 0 | BG30: =IFERROR(VLOOKUP($A30,'2016'!$B$2:$K$165,10,FALSE),0) -> 0 | BH30: =IFERROR(VLOOKUP($A30,'2015'!$B$2:$K$165,3,FALSE),0) -> 0 | BI30: =IFERROR(VLOOKUP($A30,'2015'!$B$2:$K$165,4,FALSE),0) -> 0 | BJ30: =IFERROR(VLOOKUP($A30,'2015'!$B$2:$K$165,5,FALSE),0) -> 0 | BK30: =IFERROR(VLOOKUP($A30,'2015'!$B$2:$K$165,8,FALSE),0) -> 0 | BL30: =IFERROR(VLOOKUP($A30,'2015'!$B$2:$K$165,10,FALSE),0) -> 0 | BM30: =IFERROR(VLOOKUP($A30,'2014'!$B$2:$K$157,3,FALSE),0) -> 0 | BN30: =IFERROR(VLOOKUP($A30,'2014'!$B$2:$K$157,4,FALSE),0) -> 0 | BO30: =IFERROR(VLOOKUP($A30,'2014'!$B$2:$K$157,5,FALSE),0) -> 0 | BP30: =IFERROR(VLOOKUP($A30,'2014'!$B$2:$K$157,8,FALSE),0) -> 0 | BQ30: =IFERROR(VLOOKUP($A30,'2014'!$B$2:$K$157,10,FALSE),0) -> 0 | BR30: =IFERROR(VLOOKUP($A30,'2013'!$D$4:$I$249,2,FALSE),0) -> 0 | BS30: =IFERROR(VLOOKUP($A30,'2013'!$D$4:$I$249,3,FALSE),0) -> 0 | BT30: =IFERROR(VLOOKUP($A30,'2013'!$D$4:$I$249,4,FALSE),0) -> 0 | BU30: =IFERROR(VLOOKUP($A30,'2013'!$D$4:$I$249,5,FALSE),0) -> 0 | BV30: =IFERROR(VLOOKUP($A30,'2013'!$D$4:$I$249,6,FALSE),0) -> 0 | BW30: =IFERROR(VLOOKUP($A30,'2012'!$D$3:$O$172,2,FALSE),0) -> 0 | BX30: =IFERROR(VLOOKUP($A30,'2012'!$D$3:$O$172,3,FALSE),0) -> 0 | BY30: =IFERROR(VLOOKUP($A30,'2012'!$D$3:$O$172,4,FALSE),0) -> 0 | BZ30: =IFERROR(VLOOKUP($A30,'2012'!$D$3:$O$172,5,FALSE),0) -> 0 | CA30: =IFERROR(VLOOKUP($A30,'2012'!$D$3:$O$172,6,FALSE),0) -> 0 | CB30: =IFERROR(VLOOKUP($A30,'2012'!$D$3:$O$172,7,FALSE),0) -> 0 | CC30: =IFERROR(VLOOKUP($A30,'2012'!$D$3:$O$172,8,FALSE),0) -> 0 | CD30: =IFERROR(VLOOKUP($A30,'2012'!$D$3:$O$172,9,FALSE),0) -> 0 | CH30: =IFERROR(VLOOKUP($A30,'2011'!$D$4:$I$251,2,FALSE),0) -> 0 | CI30: =IFERROR(VLOOKUP($A30,'2011'!$D$4:$I$251,3,FALSE),0) -> 0 | CJ30: =IFERROR(VLOOKUP($A30,'2011'!$D$4:$I$251,4,FALSE),0) -> 0 | CK30: =IFERROR(VLOOKUP($A30,'2011'!$D$4:$I$251,5,FALSE),0) -> 0 | CL30: =IFERROR(VLOOKUP($A30,'2011'!$D$4:$I$251,6,FALSE),0) -> 0 | CM30: =IFERROR(VLOOKUP($A30,'2010'!$C$3:$H$234,2,FALSE),0) -> 0 | CN30: =IFERROR(VLOOKUP($A30,'2010'!$C$3:$H$234,3,FALSE),0) -> 0 | CO30: =IFERROR(VLOOKUP($A30,'2010'!$C$3:$H$234,4,FALSE),0) -> 0 | CP30: =IFERROR(VLOOKUP($A30,'2010'!$C$3:$H$234,5,FALSE),0) -> 0 | CQ30: =IFERROR(VLOOKUP($A30,'2010'!$C$3:$H$234,6,FALSE),0) -> 0 | CR30: =IFERROR(VLOOKUP($A30,'2009'!$C$3:$H$242,2,FALSE),0) -> 0 | CS30: =IFERROR(VLOOKUP($A30,'2009'!$C$3:$H$242,3,FALSE),0) -> 0 | CT30: =IFERROR(VLOOKUP($A30,'2009'!$C$3:$H$242,4,FALSE),0) -> 0 | CU30: =IFERROR(VLOOKUP($A30,'2009'!$C$3:$H$242,5,FALSE),0) -> 0 | CV30: =IFERROR(VLOOKUP($A30,'2009'!$C$3:$H$242,6,FALSE),0) -> 0 | CW30: =IFERROR(VLOOKUP($A30,'2008'!$C$3:$H$229,2,FALSE),0) -> 0 | CX30: =IFERROR(VLOOKUP($A30,'2008'!$C$3:$H$229,3,FALSE),0) -> 0 | CY30: =IFERROR(VLOOKUP($A30,'2008'!$C$3:$H$229,4,FALSE),0) -> 0 | CZ30: =IFERROR(VLOOKUP($A30,'2008'!$C$3:$H$229,5,FALSE),0) -> 0 | DA30: =IFERROR(VLOOKUP($A30,'2008'!$C$3:$H$229,6,FALSE),0) -> 0 | DB30: =IFERROR(VLOOKUP($A30,'2007'!$C$3:$M$238,7,FALSE),0) -> 0 | DC30: =IFERROR(VLOOKUP($A30,'2007'!$C$3:$M$238,8,FALSE),0) -> 0 | DD30: =IFERROR(VLOOKUP($A30,'2007'!$C$3:$M$238,9,FALSE),0) -> 0 | DE30: =IFERROR(VLOOKUP($A30,'2007'!$C$3:$M$238,10,FALSE),0) -> 0 | DF30: =IFERROR(VLOOKUP($A30,'2007'!$C$3:$M$238,11,FALSE),0) -> 0 | DG30: =IFERROR(VLOOKUP($A30,'2006'!$A$2:$F$200,2,FALSE),0) -> 0 | DH30: =IFERROR(VLOOKUP($A30,'2006'!$A$2:$F$200,4,FALSE),0) -> 0 | DI30: =IFERROR(VLOOKUP($A30,'2006'!$A$2:$F$200,5,FALSE),0) -> 0 | DJ30: =IFERROR(VLOOKUP($A30,'2006'!$A$2:$F$200,6,FALSE),0) -> 0 | DK30: =IFERROR(VLOOKUP($A30,'2005'!$C$3:$M$205,8,FALSE),0) -> 0 | DL30: =IFERROR(VLOOKUP($A30,'2005'!$C$3:$M$205,9,FALSE),0) -> 0 | DM30: =IFERROR(VLOOKUP($A30,'2005'!$C$3:$M$205,10,FALSE),0) -> 0 | DN30: =IFERROR(VLOOKUP($A30,'2005'!$C$3:$M$205,11,FALSE),0) -> 0 | DO30: =IFERROR(VLOOKUP($A30,'2004'!$C$3:$M$213,8,FALSE),0) -> 0 | DP30: =IFERROR(VLOOKUP($A30,'2004'!$C$3:$M$213,9,FALSE),0) -> 0 | DQ30: =IFERROR(VLOOKUP($A30,'2004'!$C$3:$M$213,10,FALSE),0) -> 0 | DR30: =IFERROR(VLOOKUP($A30,'2004'!$C$3:$M$213,11,FALSE),0) -> 0 | DS30: =IFERROR(VLOOKUP($A30,'2003'!$C$3:$Q$214,12,FALSE),0) -> 61 | DT30: =IFERROR(VLOOKUP($A30,'2003'!$C$3:$Q$214,13,FALSE),0) -> 33 | DU30: =IFERROR(VLOOKUP($A30,'2003'!$C$3:$Q$214,14,FALSE),0) -> 3 | DV30: =IFERROR(VLOOKUP($A30,'2003'!$C$3:$Q$214,15,FALSE),0) -> 0.5409836066 | DW30: =IFERROR(VLOOKUP($A30,'2002'!$D$3:$R$214,12,FALSE),0) -> 46 | DX30: =IFERROR(VLOOKUP($A30,'2002'!$D$3:$R$214,13,FALSE),0) -> 25 | DY30: =IFERROR(VLOOKUP($A30,'2002'!$D$3:$R$214,14,FALSE),0) -> 0 | DZ30: =IFERROR(VLOOKUP($A30,'2002'!$D$3:$R$214,15,FALSE),0) -> 0.5434782609 | EA30: =IFERROR(VLOOKUP($A30,'Pre 2002'!$C$3:$CK$382,84,FALSE),0) -> 1064 | EB30: =IFERROR(VLOOKUP($A30,'Pre 2002'!$C$3:$CK$382,85,FALSE),0) -> 629 | EC30: =IFERROR(VLOOKUP($A30,'Pre 2002'!$C$3:$CK$382,86,FALSE),0) -> 79 | ED30: =IFERROR(VLOOKUP($A30,'Pre 2002'!$C$3:$CK$382,87,FALSE),0) -> 0.5911654135 | EE30: =IFERROR(VLOOKUP(A30,'Pre 2002'!$C$3:$CG$382,83,FALSE),0) -> 17
A31: Darrin Lamphier | B31: =SUM(O31,T31,Y31,AD31,AI31,AN31,AS31,AX31,BC31,BH31,BM31,BR31,BZ31,CH31,CM31,CR31,CW31,DB31,DG31,DK31,DO31,DS31,DW31,EA31) -> 2101 | C31: =SUM(Q31,V31,AA31,AF31,AK31,AP31,AU31,AZ31,BE31,BJ31,BO31,BT31,CB31,CJ31,CO31,CT31,CY31,DD31,DH31,DL31,DP31,DT31,DX31,EB31) -> 1400 | D31: =SUM(R31,W31,AB31,AG31,AL31,AQ31,AV31,BA31,BF31,BK31,BP31,BU31,CC31,CK31,CP31,CU31,CZ31,DE31,DI31,DM31,DQ31,DU31,DY31,EC31) -> 81 | E31: =IF(B31=0,0,C31/B31) -> 0.6663493574 | F31: =IF(O31>0,1,0)+IF(T31>0,1,0)+IF(Y31>0,1,0)+IF(AD31>0,1,0)+IF(AI31>0,1,0)+IF(AN31>0,1,0)+IF(AS31>0,1,0)+IF(AX31>0,1,0)+IF(BC31>0,1,0)+IF(BH31>0,1,0)+IF(BM31>0,1,0)+IF(BR31>0,1,0)+IF(BZ31>0,1,0)+IF(CH31>0,1,0)+IF(CM31>0,1,0)+IF(CR31>0,1,0)+IF(CW31>0,1,0)+IF(DB31>0,1,0)+IF(DG31>0,1,0)+IF(DK31>0,1,0)+IF(DO31>0,1,0)+IF(DS31>0,1,0)+IF(DW31>0,1,0)+EE31 -> 30 | G31: 1988 | H31: =IF(BM31>0,1,0)+IF(BR31>0,1,0)+IF(BZ31>0,1,0)+IF(CH31>0,1,0)+IF(CM31>0,1,0)+IF(CR31>0,1,0)+IF(CW31>0,1,0)+IF(DB31>0,1,0)+IF(DG31>0,1,0)+IF(DK31>0,1,0)+IF(DO31>0,1,0)+IF(DS31>0,1,0)+IF(DW31>0,1,0)+EE31 -> 27 | I31: =SUM(BM31,BR31,BZ31,CH31,CM31,CR31,CW31,DB31,DG31,DK31,DO31,DS31,DW31,EA31) -> 1883 | J31: =SUM(BO31,BT31,CB31,CJ31,CO31,CT31,CY31,DD31,DH31,DL31,DP31,DT31,DX31,EB31) -> 1263 | K31: =SUM(BP31,BU31,CC31,CK31,CP31,CU31,CZ31,DE31,DI31,DM31,DQ31,DU31,DY31,EC31) -> 79 | L31: =IF(I31=0,0,J31/I31) -> 0.6707381837 | M31: 88 | N31: 4 | O31: =IFERROR(VLOOKUP($A31,'2024'!$A$2:$M$220,6,FALSE),0) -> 0 | P31: =IFERROR(VLOOKUP($A31,'2024'!$A$2:$M$220,7,FALSE),0) -> 0 | Q31: =IFERROR(VLOOKUP($A31,'2024'!$A$2:$M$220,8,FALSE),0) -> 0 | R31: =IFERROR(VLOOKUP($A31,'2024'!$A$2:$M$220,11,FALSE),0) -> 0 | S31: =IFERROR(VLOOKUP($A31,'2024'!$A$2:$M$220,13,FALSE),0) -> 0 | T31: =IFERROR(VLOOKUP($A31,'2023'!$A$2:$M$170,6,FALSE),0) -> 0 | U31: =IFERROR(VLOOKUP($A31,'2023'!$A$2:$M$170,7,FALSE),0) -> 0 | V31: =IFERROR(VLOOKUP($A31,'2023'!$A$2:$M$170,8,FALSE),0) -> 0 | W31: =IFERROR(VLOOKUP($A31,'2023'!$A$2:$M$170,11,FALSE),0) -> 0 | X31: =IFERROR(VLOOKUP($A31,'2023'!$A$2:$M$170,13,FALSE),0) -> 0 | Y31: =IFERROR(VLOOKUP($A31,'2022'!$B$2:$K$174,3,FALSE),0) -> 0 | Z31: =IFERROR(VLOOKUP($A31,'2022'!$B$2:$K$174,4,FALSE),0) -> 0 | AA31: =IFERROR(VLOOKUP($A31,'2022'!$B$2:$K$174,5,FALSE),0) -> 0 | AB31: =IFERROR(VLOOKUP($A31,'2022'!$B$2:$K$174,8,FALSE),0) -> 0 | AC31: =IFERROR(VLOOKUP($A31,'2022'!$B$2:$K$174,10,FALSE),0) -> 0 | AD31: =IFERROR(VLOOKUP($A31,'2021'!$B$2:$K$174,3,FALSE),0) -> 0 | AE31: =IFERROR(VLOOKUP($A31,'2021'!$B$2:$K$174,4,FALSE),0) -> 0 | AF31: =IFERROR(VLOOKUP($A31,'2021'!$B$2:$K$174,5,FALSE),0) -> 0 | AG31: =IFERROR(VLOOKUP($A31,'2021'!$B$2:$K$174,8,FALSE),0) -> 0 | AH31: =IFERROR(VLOOKUP($A31,'2021'!$B$2:$K$174,10,FALSE),0) -> 0 | AI31: =IFERROR(VLOOKUP($A31,'2020'!$B$2:$K$170,3,FALSE),0) -> 0 | AJ31: =IFERROR(VLOOKUP($A31,'2020'!$B$2:$K$170,4,FALSE),0) -> 0 | AK31: =IFERROR(VLOOKUP($A31,'2020'!$B$2:$K$170,5,FALSE),0) -> 0 | AL31: =IFERROR(VLOOKUP($A31,'2020'!$B$2:$K$170,8,FALSE),0) -> 0 | AM31: =IFERROR(VLOOKUP($A31,'2020'!$B$2:$K$170,10,FALSE),0) -> 0 | AN31: =IFERROR(VLOOKUP($A31,'2019'!$B$2:$K$170,3,FALSE),0) -> 0 | AO31: =IFERROR(VLOOKUP($A31,'2019'!$B$2:$K$170,4,FALSE),0) -> 0 | AP31: =IFERROR(VLOOKUP($A31,'2019'!$B$2:$K$170,5,FALSE),0) -> 0 | AQ31: =IFERROR(VLOOKUP($A31,'2019'!$B$2:$K$170,8,FALSE),0) -> 0 | AR31: =IFERROR(VLOOKUP($A31,'2019'!$B$2:$K$170,10,FALSE),0) -> 0 | AS31: =IFERROR(VLOOKUP($A31,'2018'!$B$2:$K$170,3,FALSE),0) -> 0 | AT31: =IFERROR(VLOOKUP($A31,'2018'!$B$2:$K$170,4,FALSE),0) -> 0 | AU31: =IFERROR(VLOOKUP($A31,'2018'!$B$2:$K$170,5,FALSE),0) -> 0 | AV31: =IFERROR(VLOOKUP($A31,'2018'!$B$2:$K$170,8,FALSE),0) -> 0 | AW31: =IFERROR(VLOOKUP($A31,'2018'!$B$2:$K$170,10,FALSE),0) -> 0 | AX31: =IFERROR(VLOOKUP($A31,'2017'!$B$2:$J$163,2,FALSE),0) -> 65 | AY31: =IFERROR(VLOOKUP($A31,'2017'!$B$2:$J$163,3,FALSE),0) -> 34 | AZ31: =IFERROR(VLOOKUP($A31,'2017'!$B$2:$J$163,4,FALSE),0) -> 44 | BA31: =IFERROR(VLOOKUP($A31,'2017'!$B$2:$J$163,7,FALSE),0) -> 2 | BB31: =IFERROR(VLOOKUP($A31,'2017'!$B$2:$J$163,9,FALSE),0) -> 0.6769230769 | BC31: =IFERROR(VLOOKUP($A31,'2016'!$B$2:$K$165,3,FALSE),0) -> 77 | BD31: =IFERROR(VLOOKUP($A31,'2016'!$B$2:$K$165,4,FALSE),0) -> 39 | BE31: =IFERROR(VLOOKUP($A31,'2016'!$B$2:$K$165,5,FALSE),0) -> 47 | BF31: =IFERROR(VLOOKUP($A31,'2016'!$B$2:$K$165,8,FALSE),0) -> 0 | BG31: =IFERROR(VLOOKUP($A31,'2016'!$B$2:$K$165,10,FALSE),0) -> 0.61 | BH31: =IFERROR(VLOOKUP($A31,'2015'!$B$2:$K$165,3,FALSE),0) -> 76 | BI31: =IFERROR(VLOOKUP($A31,'2015'!$B$2:$K$165,4,FALSE),0) -> 30 | BJ31: =IFERROR(VLOOKUP($A31,'2015'!$B$2:$K$165,5,FALSE),0) -> 46 | BK31: =IFERROR(VLOOKUP($A31,'2015'!$B$2:$K$165,8,FALSE),0) -> 0 | BL31: =IFERROR(VLOOKUP($A31,'2015'!$B$2:$K$165,10,FALSE),0) -> 0.6052631579 | BM31: =IFERROR(VLOOKUP($A31,'2014'!$B$2:$K$157,3,FALSE),0) -> 81 | BN31: =IFERROR(VLOOKUP($A31,'2014'!$B$2:$K$157,4,FALSE),0) -> 41 | BO31: =IFERROR(VLOOKUP($A31,'2014'!$B$2:$K$157,5,FALSE),0) -> 64 | BP31: =IFERROR(VLOOKUP($A31,'2014'!$B$2:$K$157,8,FALSE),0) -> 4 | BQ31: =IFERROR(VLOOKUP($A31,'2014'!$B$2:$K$157,10,FALSE),0) -> 0.7901234568 | BR31: =IFERROR(VLOOKUP($A31,'2013'!$D$4:$I$249,2,FALSE),0) -> 89 | BS31: =IFERROR(VLOOKUP($A31,'2013'!$D$4:$I$249,3,FALSE),0) -> 42 | BT31: =IFERROR(VLOOKUP($A31,'2013'!$D$4:$I$249,4,FALSE),0) -> 64 | BU31: =IFERROR(VLOOKUP($A31,'2013'!$D$4:$I$249,5,FALSE),0) -> 6 | BV31: =IFERROR(VLOOKUP($A31,'2013'!$D$4:$I$249,6,FALSE),0) -> 0.7191011236 | BW31: =IFERROR(VLOOKUP($A31,'2012'!$D$3:$O$172,2,FALSE),0) -> 1712 | BX31: =IFERROR(VLOOKUP($A31,'2012'!$D$3:$O$172,3,FALSE),0) -> 1133 | BY31: =IFERROR(VLOOKUP($A31,'2012'!$D$3:$O$172,4,FALSE),0) -> 70 | BZ31: =IFERROR(VLOOKUP($A31,'2012'!$D$3:$O$172,5,FALSE),0) -> 85 | CA31: =IFERROR(VLOOKUP($A31,'2012'!$D$3:$O$172,6,FALSE),0) -> 54 | CB31: =IFERROR(VLOOKUP($A31,'2012'!$D$3:$O$172,7,FALSE),0) -> 65 | CC31: =IFERROR(VLOOKUP($A31,'2012'!$D$3:$O$172,8,FALSE),0) -> 7 | CD31: =IFERROR(VLOOKUP($A31,'2012'!$D$3:$O$172,9,FALSE),0) -> 0.7647058824 | CE31: =IFERROR(VLOOKUP($A31,'2012'!$D$3:$O$172,10,FALSE),0) -> 1627 | CF31: =IFERROR(VLOOKUP($A31,'2012'!$D$3:$O$172,11,FALSE),0) -> 1068 | CG31: =IFERROR(VLOOKUP($A31,'2012'!$D$3:$O$172,12,FALSE),0) -> 63 | CH31: =IFERROR(VLOOKUP($A31,'2011'!$D$4:$I$251,2,FALSE),0) -> 86 | CI31: =IFERROR(VLOOKUP($A31,'2011'!$D$4:$I$251,3,FALSE),0) -> 45 | CJ31: =IFERROR(VLOOKUP($A31,'2011'!$D$4:$I$251,4,FALSE),0) -> 68 | CK31: =IFERROR(VLOOKUP($A31,'2011'!$D$4:$I$251,5,FALSE),0) -> 4 | CL31: =IFERROR(VLOOKUP($A31,'2011'!$D$4:$I$251,6,FALSE),0) -> 0.7906976744 | CM31: =IFERROR(VLOOKUP($A31,'2010'!$C$3:$H$234,2,FALSE),0) -> 43 | CN31: =IFERROR(VLOOKUP($A31,'2010'!$C$3:$H$234,3,FALSE),0) -> 24 | CO31: =IFERROR(VLOOKUP($A31,'2010'!$C$3:$H$234,4,FALSE),0) -> 30 | CP31: =IFERROR(VLOOKUP($A31,'2010'!$C$3:$H$234,5,FALSE),0) -> 4 | CQ31: =IFERROR(VLOOKUP($A31,'2010'!$C$3:$H$234,6,FALSE),0) -> 0.6976744186 | CR31: =IFERROR(VLOOKUP($A31,'2009'!$C$3:$H$242,2,FALSE),0) -> 78 | CS31: =IFERROR(VLOOKUP($A31,'2009'!$C$3:$H$242,3,FALSE),0) -> 46 | CT31: =IFERROR(VLOOKUP($A31,'2009'!$C$3:$H$242,4,FALSE),0) -> 55 | CU31: =IFERROR(VLOOKUP($A31,'2009'!$C$3:$H$242,5,FALSE),0) -> 6 | CV31: =IFERROR(VLOOKUP($A31,'2009'!$C$3:$H$242,6,FALSE),0) -> 0.7051282051 | CW31: =IFERROR(VLOOKUP($A31,'2008'!$C$3:$H$229,2,FALSE),0) -> 82 | CX31: =IFERROR(VLOOKUP($A31,'2008'!$C$3:$H$229,3,FALSE),0) -> 50 | CY31: =IFERROR(VLOOKUP($A31,'2008'!$C$3:$H$229,4,FALSE),0) -> 56 | CZ31: =IFERROR(VLOOKUP($A31,'2008'!$C$3:$H$229,5,FALSE),0) -> 3 | DA31: =IFERROR(VLOOKUP($A31,'2008'!$C$3:$H$229,6,FALSE),0) -> 0.6829268293 | DB31: =IFERROR(VLOOKUP($A31,'2007'!$C$3:$M$238,7,FALSE),0) -> 80 | DC31: =IFERROR(VLOOKUP($A31,'2007'!$C$3:$M$238,8,FALSE),0) -> 42 | DD31: =IFERROR(VLOOKUP($A31,'2007'!$C$3:$M$238,9,FALSE),0) -> 54 | DE31: =IFERROR(VLOOKUP($A31,'2007'!$C$3:$M$238,10,FALSE),0) -> 4 | DF31: =IFERROR(VLOOKUP($A31,'2007'!$C$3:$M$238,11,FALSE),0) -> 0.675 | DG31: =IFERROR(VLOOKUP($A31,'2006'!$A$2:$F$200,2,FALSE),0) -> 79 | DH31: =IFERROR(VLOOKUP($A31,'2006'!$A$2:$F$200,4,FALSE),0) -> 50 | DI31: =IFERROR(VLOOKUP($A31,'2006'!$A$2:$F$200,5,FALSE),0) -> 1 | DJ31: =IFERROR(VLOOKUP($A31,'2006'!$A$2:$F$200,6,FALSE),0) -> 0.6329113924 | DK31: =IFERROR(VLOOKUP($A31,'2005'!$C$3:$M$205,8,FALSE),0) -> 70 | DL31: =IFERROR(VLOOKUP($A31,'2005'!$C$3:$M$205,9,FALSE),0) -> 36 | DM31: =IFERROR(VLOOKUP($A31,'2005'!$C$3:$M$205,10,FALSE),0) -> 1 | DN31: =IFERROR(VLOOKUP($A31,'2005'!$C$3:$M$205,11,FALSE),0) -> 0.5142857143 | DO31: =IFERROR(VLOOKUP($A31,'2004'!$C$3:$M$213,8,FALSE),0) -> 68 | DP31: =IFERROR(VLOOKUP($A31,'2004'!$C$3:$M$213,9,FALSE),0) -> 38 | DQ31: =IFERROR(VLOOKUP($A31,'2004'!$C$3:$M$213,10,FALSE),0) -> 0 | DR31: =IFERROR(VLOOKUP($A31,'2004'!$C$3:$M$213,11,FALSE),0) -> 0.5588235294 | DS31: =IFERROR(VLOOKUP($A31,'2003'!$C$3:$Q$214,12,FALSE),0) -> 73 | DT31: =IFERROR(VLOOKUP($A31,'2003'!$C$3:$Q$214,13,FALSE),0) -> 50 | DU31: =IFERROR(VLOOKUP($A31,'2003'!$C$3:$Q$214,14,FALSE),0) -> 2 | DV31: =IFERROR(VLOOKUP($A31,'2003'!$C$3:$Q$214,15,FALSE),0) -> 0.6849315068 | DW31: =IFERROR(VLOOKUP($A31,'2002'!$D$3:$R$214,12,FALSE),0) -> 57 | DX31: =IFERROR(VLOOKUP($A31,'2002'!$D$3:$R$214,13,FALSE),0) -> 30 | DY31: =IFERROR(VLOOKUP($A31,'2002'!$D$3:$R$214,14,FALSE),0) -> 3 | DZ31: =IFERROR(VLOOKUP($A31,'2002'!$D$3:$R$214,15,FALSE),0) -> 0.5263157895 | EA31: =IFERROR(VLOOKUP($A31,'Pre 2002'!$C$3:$CK$382,84,FALSE),0) -> 912 | EB31: =IFERROR(VLOOKUP($A31,'Pre 2002'!$C$3:$CK$382,85,FALSE),0) -> 603 | EC31: =IFERROR(VLOOKUP($A31,'Pre 2002'!$C$3:$CK$382,86,FALSE),0) -> 34 | ED31: =IFERROR(VLOOKUP($A31,'Pre 2002'!$C$3:$CK$382,87,FALSE),0) -> 0.6611842105 | EE31: =IFERROR(VLOOKUP(A31,'Pre 2002'!$C$3:$CG$382,83,FALSE),0) -> 14
A32: Nick Giroux | B32: =SUM(O32,T32,Y32,AD32,AI32,AN32,AS32,AX32,BC32,BH32,BM32,BR32,BZ32,CH32,CM32,CR32,CW32,DB32,DG32,DK32,DO32,DS32,DW32,EA32) -> 696 | C32: =SUM(Q32,V32,AA32,AF32,AK32,AP32,AU32,AZ32,BE32,BJ32,BO32,BT32,CB32,CJ32,CO32,CT32,CY32,DD32,DH32,DL32,DP32,DT32,DX32,EB32) -> 438 | D32: =SUM(R32,W32,AB32,AG32,AL32,AQ32,AV32,BA32,BF32,BK32,BP32,BU32,CC32,CK32,CP32,CU32,CZ32,DE32,DI32,DM32,DQ32,DU32,DY32,EC32) -> 81 | E32: =IF(B32=0,0,C32/B32) -> 0.6293103448 | F32: =IF(O32>0,1,0)+IF(T32>0,1,0)+IF(Y32>0,1,0)+IF(AD32>0,1,0)+IF(AI32>0,1,0)+IF(AN32>0,1,0)+IF(AS32>0,1,0)+IF(AX32>0,1,0)+IF(BC32>0,1,0)+IF(BH32>0,1,0)+IF(BM32>0,1,0)+IF(BR32>0,1,0)+IF(BZ32>0,1,0)+IF(CH32>0,1,0)+IF(CM32>0,1,0)+IF(CR32>0,1,0)+IF(CW32>0,1,0)+IF(DB32>0,1,0)+IF(DG32>0,1,0)+IF(DK32>0,1,0)+IF(DO32>0,1,0)+IF(DS32>0,1,0)+IF(DW32>0,1,0)+EE32 -> 9 | G32: 2009 | H32: =IF(BM32>0,1,0)+IF(BR32>0,1,0)+IF(BZ32>0,1,0)+IF(CH32>0,1,0)+IF(CM32>0,1,0)+IF(CR32>0,1,0)+IF(CW32>0,1,0)+IF(DB32>0,1,0)+IF(DG32>0,1,0)+IF(DK32>0,1,0)+IF(DO32>0,1,0)+IF(DS32>0,1,0)+IF(DW32>0,1,0)+EE32 -> 4 | I32: =SUM(BM32,BR32,BZ32,CH32,CM32,CR32,CW32,DB32,DG32,DK32,DO32,DS32,DW32,EA32) -> 312 | J32: =SUM(BO32,BT32,CB32,CJ32,CO32,CT32,CY32,DD32,DH32,DL32,DP32,DT32,DX32,EB32) -> 188 | K32: =SUM(BP32,BU32,CC32,CK32,CP32,CU32,CZ32,DE32,DI32,DM32,DQ32,DU32,DY32,EC32) -> 29 | L32: =IF(I32=0,0,J32/I32) -> 0.6025641026 | O32: =IFERROR(VLOOKUP($A32,'2024'!$A$2:$M$220,6,FALSE),0) -> 0 | P32: =IFERROR(VLOOKUP($A32,'2024'!$A$2:$M$220,7,FALSE),0) -> 0 | Q32: =IFERROR(VLOOKUP($A32,'2024'!$A$2:$M$220,8,FALSE),0) -> 0 | R32: =IFERROR(VLOOKUP($A32,'2024'!$A$2:$M$220,11,FALSE),0) -> 0 | S32: =IFERROR(VLOOKUP($A32,'2024'!$A$2:$M$220,13,FALSE),0) -> 0 | T32: =IFERROR(VLOOKUP($A32,'2023'!$A$2:$M$170,6,FALSE),0) -> 0 | U32: =IFERROR(VLOOKUP($A32,'2023'!$A$2:$M$170,7,FALSE),0) -> 0 | V32: =IFERROR(VLOOKUP($A32,'2023'!$A$2:$M$170,8,FALSE),0) -> 0 | W32: =IFERROR(VLOOKUP($A32,'2023'!$A$2:$M$170,11,FALSE),0) -> 0 | X32: =IFERROR(VLOOKUP($A32,'2023'!$A$2:$M$170,13,FALSE),0) -> 0 | Y32: =IFERROR(VLOOKUP($A32,'2022'!$B$2:$K$174,3,FALSE),0) -> 0 | Z32: =IFERROR(VLOOKUP($A32,'2022'!$B$2:$K$174,4,FALSE),0) -> 0 | AA32: =IFERROR(VLOOKUP($A32,'2022'!$B$2:$K$174,5,FALSE),0) -> 0 | AB32: =IFERROR(VLOOKUP($A32,'2022'!$B$2:$K$174,8,FALSE),0) -> 0 | AC32: =IFERROR(VLOOKUP($A32,'2022'!$B$2:$K$174,10,FALSE),0) -> 0 | AD32: =IFERROR(VLOOKUP($A32,'2021'!$B$2:$K$174,3,FALSE),0) -> 0 | AE32: =IFERROR(VLOOKUP($A32,'2021'!$B$2:$K$174,4,FALSE),0) -> 0 | AF32: =IFERROR(VLOOKUP($A32,'2021'!$B$2:$K$174,5,FALSE),0) -> 0 | AG32: =IFERROR(VLOOKUP($A32,'2021'!$B$2:$K$174,8,FALSE),0) -> 0 | AH32: =IFERROR(VLOOKUP($A32,'2021'!$B$2:$K$174,10,FALSE),0) -> 0 | AI32: =IFERROR(VLOOKUP($A32,'2020'!$B$2:$K$170,3,FALSE),0) -> 0 | AJ32: =IFERROR(VLOOKUP($A32,'2020'!$B$2:$K$170,4,FALSE),0) -> 0 | AK32: =IFERROR(VLOOKUP($A32,'2020'!$B$2:$K$170,5,FALSE),0) -> 0 | AL32: =IFERROR(VLOOKUP($A32,'2020'!$B$2:$K$170,8,FALSE),0) -> 0 | AM32: =IFERROR(VLOOKUP($A32,'2020'!$B$2:$K$170,10,FALSE),0) -> 0 | AN32: =IFERROR(VLOOKUP($A32,'2019'!$B$2:$K$170,3,FALSE),0) -> 81 | AO32: =IFERROR(VLOOKUP($A32,'2019'!$B$2:$K$170,4,FALSE),0) -> 42 | AP32: =IFERROR(VLOOKUP($A32,'2019'!$B$2:$K$170,5,FALSE),0) -> 51 | AQ32: =IFERROR(VLOOKUP($A32,'2019'!$B$2:$K$170,8,FALSE),0) -> 6 | AR32: =IFERROR(VLOOKUP($A32,'2019'!$B$2:$K$170,10,FALSE),0) -> 0.63 | AS32: =IFERROR(VLOOKUP($A32,'2018'!$B$2:$K$170,3,FALSE),0) -> 86 | AT32: =IFERROR(VLOOKUP($A32,'2018'!$B$2:$K$170,4,FALSE),0) -> 38 | AU32: =IFERROR(VLOOKUP($A32,'2018'!$B$2:$K$170,5,FALSE),0) -> 56 | AV32: =IFERROR(VLOOKUP($A32,'2018'!$B$2:$K$170,8,FALSE),0) -> 9 | AW32: =IFERROR(VLOOKUP($A32,'2018'!$B$2:$K$170,10,FALSE),0) -> 0.651 | AX32: =IFERROR(VLOOKUP($A32,'2017'!$B$2:$J$163,2,FALSE),0) -> 54 | AY32: =IFERROR(VLOOKUP($A32,'2017'!$B$2:$J$163,3,FALSE),0) -> 25 | AZ32: =IFERROR(VLOOKUP($A32,'2017'!$B$2:$J$163,4,FALSE),0) -> 31 | BA32: =IFERROR(VLOOKUP($A32,'2017'!$B$2:$J$163,7,FALSE),0) -> 7 | BB32: =IFERROR(VLOOKUP($A32,'2017'!$B$2:$J$163,9,FALSE),0) -> 0.5740740741 | BC32: =IFERROR(VLOOKUP($A32,'2016'!$B$2:$K$165,3,FALSE),0) -> 93 | BD32: =IFERROR(VLOOKUP($A32,'2016'!$B$2:$K$165,4,FALSE),0) -> 65 | BE32: =IFERROR(VLOOKUP($A32,'2016'!$B$2:$K$165,5,FALSE),0) -> 70 | BF32: =IFERROR(VLOOKUP($A32,'2016'!$B$2:$K$165,8,FALSE),0) -> 20 | BG32: =IFERROR(VLOOKUP($A32,'2016'!$B$2:$K$165,10,FALSE),0) -> 0.753 | BH32: =IFERROR(VLOOKUP($A32,'2015'!$B$2:$K$165,3,FALSE),0) -> 70 | BI32: =IFERROR(VLOOKUP($A32,'2015'!$B$2:$K$165,4,FALSE),0) -> 32 | BJ32: =IFERROR(VLOOKUP($A32,'2015'!$B$2:$K$165,5,FALSE),0) -> 42 | BK32: =IFERROR(VLOOKUP($A32,'2015'!$B$2:$K$165,8,FALSE),0) -> 10 | BL32: =IFERROR(VLOOKUP($A32,'2015'!$B$2:$K$165,10,FALSE),0) -> 0.6 | BM32: =IFERROR(VLOOKUP($A32,'2014'!$B$2:$K$157,3,FALSE),0) -> 0 | BN32: =IFERROR(VLOOKUP($A32,'2014'!$B$2:$K$157,4,FALSE),0) -> 0 | BO32: =IFERROR(VLOOKUP($A32,'2014'!$B$2:$K$157,5,FALSE),0) -> 0 | BP32: =IFERROR(VLOOKUP($A32,'2014'!$B$2:$K$157,8,FALSE),0) -> 0 | BQ32: =IFERROR(VLOOKUP($A32,'2014'!$B$2:$K$157,10,FALSE),0) -> 0 | BR32: =IFERROR(VLOOKUP($A32,'2013'!$D$4:$I$249,2,FALSE),0) -> 85 | BS32: =IFERROR(VLOOKUP($A32,'2013'!$D$4:$I$249,3,FALSE),0) -> 40 | BT32: =IFERROR(VLOOKUP($A32,'2013'!$D$4:$I$249,4,FALSE),0) -> 53 | BU32: =IFERROR(VLOOKUP($A32,'2013'!$D$4:$I$249,5,FALSE),0) -> 14 | BV32: =IFERROR(VLOOKUP($A32,'2013'!$D$4:$I$249,6,FALSE),0) -> 0.6235294118 | BW32: =IFERROR(VLOOKUP($A32,'2012'!$D$3:$O$172,2,FALSE),0) -> 227 | BX32: =IFERROR(VLOOKUP($A32,'2012'!$D$3:$O$172,3,FALSE),0) -> 135 | BY32: =IFERROR(VLOOKUP($A32,'2012'!$D$3:$O$172,4,FALSE),0) -> 15 | BZ32: =IFERROR(VLOOKUP($A32,'2012'!$D$3:$O$172,5,FALSE),0) -> 67 | CA32: =IFERROR(VLOOKUP($A32,'2012'!$D$3:$O$172,6,FALSE),0) -> 31 | CB32: =IFERROR(VLOOKUP($A32,'2012'!$D$3:$O$172,7,FALSE),0) -> 38 | CC32: =IFERROR(VLOOKUP($A32,'2012'!$D$3:$O$172,8,FALSE),0) -> 5 | CD32: =IFERROR(VLOOKUP($A32,'2012'!$D$3:$O$172,9,FALSE),0) -> 0.5671641791 | CE32: =IFERROR(VLOOKUP($A32,'2012'!$D$3:$O$172,10,FALSE),0) -> 160 | CF32: =IFERROR(VLOOKUP($A32,'2012'!$D$3:$O$172,11,FALSE),0) -> 97 | CG32: =IFERROR(VLOOKUP($A32,'2012'!$D$3:$O$172,12,FALSE),0) -> 10 | CH32: =IFERROR(VLOOKUP($A32,'2011'!$D$4:$I$251,2,FALSE),0) -> 85 | CI32: =IFERROR(VLOOKUP($A32,'2011'!$D$4:$I$251,3,FALSE),0) -> 33 | CJ32: =IFERROR(VLOOKUP($A32,'2011'!$D$4:$I$251,4,FALSE),0) -> 57 | CK32: =IFERROR(VLOOKUP($A32,'2011'!$D$4:$I$251,5,FALSE),0) -> 9 | CL32: =IFERROR(VLOOKUP($A32,'2011'!$D$4:$I$251,6,FALSE),0) -> 0.6705882353 | CM32: =IFERROR(VLOOKUP($A32,'2010'!$C$3:$H$234,2,FALSE),0) -> 0 | CN32: =IFERROR(VLOOKUP($A32,'2010'!$C$3:$H$234,3,FALSE),0) -> 0 | CO32: =IFERROR(VLOOKUP($A32,'2010'!$C$3:$H$234,4,FALSE),0) -> 0 | CP32: =IFERROR(VLOOKUP($A32,'2010'!$C$3:$H$234,5,FALSE),0) -> 0 | CQ32: =IFERROR(VLOOKUP($A32,'2010'!$C$3:$H$234,6,FALSE),0) -> 0 | CR32: =IFERROR(VLOOKUP($A32,'2009'!$C$3:$H$242,2,FALSE),0) -> 75 | CS32: =IFERROR(VLOOKUP($A32,'2009'!$C$3:$H$242,3,FALSE),0) -> 23 | CT32: =IFERROR(VLOOKUP($A32,'2009'!$C$3:$H$242,4,FALSE),0) -> 40 | CU32: =IFERROR(VLOOKUP($A32,'2009'!$C$3:$H$242,5,FALSE),0) -> 1 | CV32: =IFERROR(VLOOKUP($A32,'2009'!$C$3:$H$242,6,FALSE),0) -> 0.5333333333 | CW32: =IFERROR(VLOOKUP($A32,'2008'!$C$3:$H$229,2,FALSE),0) -> 0 | CX32: =IFERROR(VLOOKUP($A32,'2008'!$C$3:$H$229,3,FALSE),0) -> 0 | CY32: =IFERROR(VLOOKUP($A32,'2008'!$C$3:$H$229,4,FALSE),0) -> 0 | CZ32: =IFERROR(VLOOKUP($A32,'2008'!$C$3:$H$229,5,FALSE),0) -> 0 | DA32: =IFERROR(VLOOKUP($A32,'2008'!$C$3:$H$229,6,FALSE),0) -> 0 | DB32: =IFERROR(VLOOKUP($A32,'2007'!$C$3:$M$238,7,FALSE),0) -> 0 | DC32: =IFERROR(VLOOKUP($A32,'2007'!$C$3:$M$238,8,FALSE),0) -> 0 | DD32: =IFERROR(VLOOKUP($A32,'2007'!$C$3:$M$238,9,FALSE),0) -> 0 | DE32: =IFERROR(VLOOKUP($A32,'2007'!$C$3:$M$238,10,FALSE),0) -> 0 | DF32: =IFERROR(VLOOKUP($A32,'2007'!$C$3:$M$238,11,FALSE),0) -> 0 | DG32: =IFERROR(VLOOKUP($A32,'2006'!$A$2:$F$200,2,FALSE),0) -> 0 | DH32: =IFERROR(VLOOKUP($A32,'2006'!$A$2:$F$200,4,FALSE),0) -> 0 | DI32: =IFERROR(VLOOKUP($A32,'2006'!$A$2:$F$200,5,FALSE),0) -> 0 | DJ32: =IFERROR(VLOOKUP($A32,'2006'!$A$2:$F$200,6,FALSE),0) -> 0 | DK32: =IFERROR(VLOOKUP($A32,'2005'!$C$3:$M$205,8,FALSE),0) -> 0 | DL32: =IFERROR(VLOOKUP($A32,'2005'!$C$3:$M$205,9,FALSE),0) -> 0 | DM32: =IFERROR(VLOOKUP($A32,'2005'!$C$3:$M$205,10,FALSE),0) -> 0 | DN32: =IFERROR(VLOOKUP($A32,'2005'!$C$3:$M$205,11,FALSE),0) -> 0 | DO32: =IFERROR(VLOOKUP($A32,'2004'!$C$3:$M$213,8,FALSE),0) -> 0 | DP32: =IFERROR(VLOOKUP($A32,'2004'!$C$3:$M$213,9,FALSE),0) -> 0 | DQ32: =IFERROR(VLOOKUP($A32,'2004'!$C$3:$M$213,10,FALSE),0) -> 0 | DR32: =IFERROR(VLOOKUP($A32,'2004'!$C$3:$M$213,11,FALSE),0) -> 0 | DS32: =IFERROR(VLOOKUP($A32,'2003'!$C$3:$Q$214,12,FALSE),0) -> 0 | DT32: =IFERROR(VLOOKUP($A32,'2003'!$C$3:$Q$214,13,FALSE),0) -> 0 | DU32: =IFERROR(VLOOKUP($A32,'2003'!$C$3:$Q$214,14,FALSE),0) -> 0 | DV32: =IFERROR(VLOOKUP($A32,'2003'!$C$3:$Q$214,15,FALSE),0) -> 0 | DW32: =IFERROR(VLOOKUP($A32,'2002'!$D$3:$R$214,12,FALSE),0) -> 0 | DX32: =IFERROR(VLOOKUP($A32,'2002'!$D$3:$R$214,13,FALSE),0) -> 0 | DY32: =IFERROR(VLOOKUP($A32,'2002'!$D$3:$R$214,14,FALSE),0) -> 0 | DZ32: =IFERROR(VLOOKUP($A32,'2002'!$D$3:$R$214,15,FALSE),0) -> 0 | EA32: =IFERROR(VLOOKUP($A32,'Pre 2002'!$C$3:$CK$382,84,FALSE),0) -> 0 | EB32: =IFERROR(VLOOKUP($A32,'Pre 2002'!$C$3:$CK$382,85,FALSE),0) -> 0 | EC32: =IFERROR(VLOOKUP($A32,'Pre 2002'!$C$3:$CK$382,86,FALSE),0) -> 0 | ED32: =IFERROR(VLOOKUP($A32,'Pre 2002'!$C$3:$CK$382,87,FALSE),0) -> 0 | EE32: =IFERROR(VLOOKUP(A32,'Pre 2002'!$C$3:$CG$382,83,FALSE),0) -> 0
A33: Will Thomas | B33: =SUM(O33,T33,Y33,AD33,AI33,AN33,AS33,AX33,BC33,BH33,BM33,BR33,BZ33,CH33,CM33,CR33,CW33,DB33,DG33,DK33,DO33,DS33,DW33,EA33) -> 597 | C33: =SUM(Q33,V33,AA33,AF33,AK33,AP33,AU33,AZ33,BE33,BJ33,BO33,BT33,CB33,CJ33,CO33,CT33,CY33,DD33,DH33,DL33,DP33,DT33,DX33,EB33) -> 387 | D33: =SUM(R33,W33,AB33,AG33,AL33,AQ33,AV33,BA33,BF33,BK33,BP33,BU33,CC33,CK33,CP33,CU33,CZ33,DE33,DI33,DM33,DQ33,DU33,DY33,EC33) -> 79 | E33: =IF(B33=0,0,C33/B33) -> 0.648241206 | F33: =IF(O33>0,1,0)+IF(T33>0,1,0)+IF(Y33>0,1,0)+IF(AD33>0,1,0)+IF(AI33>0,1,0)+IF(AN33>0,1,0)+IF(AS33>0,1,0)+IF(AX33>0,1,0)+IF(BC33>0,1,0)+IF(BH33>0,1,0)+IF(BM33>0,1,0)+IF(BR33>0,1,0)+IF(BZ33>0,1,0)+IF(CH33>0,1,0)+IF(CM33>0,1,0)+IF(CR33>0,1,0)+IF(CW33>0,1,0)+IF(DB33>0,1,0)+IF(DG33>0,1,0)+IF(DK33>0,1,0)+IF(DO33>0,1,0)+IF(DS33>0,1,0)+IF(DW33>0,1,0)+EE33 -> 9 | G33: 2011 | H33: =IF(BM33>0,1,0)+IF(BR33>0,1,0)+IF(BZ33>0,1,0)+IF(CH33>0,1,0)+IF(CM33>0,1,0)+IF(CR33>0,1,0)+IF(CW33>0,1,0)+IF(DB33>0,1,0)+IF(DG33>0,1,0)+IF(DK33>0,1,0)+IF(DO33>0,1,0)+IF(DS33>0,1,0)+IF(DW33>0,1,0)+EE33 -> 3 | I33: =SUM(BM33,BR33,BZ33,CH33,CM33,CR33,CW33,DB33,DG33,DK33,DO33,DS33,DW33,EA33) -> 153 | J33: =SUM(BO33,BT33,CB33,CJ33,CO33,CT33,CY33,DD33,DH33,DL33,DP33,DT33,DX33,EB33) -> 104 | K33: =SUM(BP33,BU33,CC33,CK33,CP33,CU33,CZ33,DE33,DI33,DM33,DQ33,DU33,DY33,EC33) -> 18 | L33: =IF(I33=0,0,J33/I33) -> 0.6797385621 | O33: =IFERROR(VLOOKUP($A33,'2024'!$A$2:$M$220,6,FALSE),0) -> 68 | P33: =IFERROR(VLOOKUP($A33,'2024'!$A$2:$M$220,7,FALSE),0) -> 26 | Q33: =IFERROR(VLOOKUP($A33,'2024'!$A$2:$M$220,8,FALSE),0) -> 39 | R33: =IFERROR(VLOOKUP($A33,'2024'!$A$2:$M$220,11,FALSE),0) -> 10 | S33: =IFERROR(VLOOKUP($A33,'2024'!$A$2:$M$220,13,FALSE),0) -> 0.574 | T33: =IFERROR(VLOOKUP($A33,'2023'!$A$2:$M$170,6,FALSE),0) -> 75 | U33: =IFERROR(VLOOKUP($A33,'2023'!$A$2:$M$170,7,FALSE),0) -> 32 | V33: =IFERROR(VLOOKUP($A33,'2023'!$A$2:$M$170,8,FALSE),0) -> 47 | W33: =IFERROR(VLOOKUP($A33,'2023'!$A$2:$M$170,11,FALSE),0) -> 6 | X33: =IFERROR(VLOOKUP($A33,'2023'!$A$2:$M$170,13,FALSE),0) -> 0.627 | Y33: =IFERROR(VLOOKUP($A33,'2022'!$B$2:$K$174,3,FALSE),0) -> 68 | Z33: =IFERROR(VLOOKUP($A33,'2022'!$B$2:$K$174,4,FALSE),0) -> 21 | AA33: =IFERROR(VLOOKUP($A33,'2022'!$B$2:$K$174,5,FALSE),0) -> 39 | AB33: =IFERROR(VLOOKUP($A33,'2022'!$B$2:$K$174,8,FALSE),0) -> 4 | AC33: =IFERROR(VLOOKUP($A33,'2022'!$B$2:$K$174,10,FALSE),0) -> 0.574 | AD33: =IFERROR(VLOOKUP($A33,'2021'!$B$2:$K$174,3,FALSE),0) -> 0 | AE33: =IFERROR(VLOOKUP($A33,'2021'!$B$2:$K$174,4,FALSE),0) -> 0 | AF33: =IFERROR(VLOOKUP($A33,'2021'!$B$2:$K$174,5,FALSE),0) -> 0 | AG33: =IFERROR(VLOOKUP($A33,'2021'!$B$2:$K$174,8,FALSE),0) -> 0 | AH33: =IFERROR(VLOOKUP($A33,'2021'!$B$2:$K$174,10,FALSE),0) -> 0 | AI33: =IFERROR(VLOOKUP($A33,'2020'!$B$2:$K$170,3,FALSE),0) -> 82 | AJ33: =IFERROR(VLOOKUP($A33,'2020'!$B$2:$K$170,4,FALSE),0) -> 35 | AK33: =IFERROR(VLOOKUP($A33,'2020'!$B$2:$K$170,5,FALSE),0) -> 51 | AL33: =IFERROR(VLOOKUP($A33,'2020'!$B$2:$K$170,8,FALSE),0) -> 18 | AM33: =IFERROR(VLOOKUP($A33,'2020'!$B$2:$K$170,10,FALSE),0) -> 0.622 | AN33: =IFERROR(VLOOKUP($A33,'2019'!$B$2:$K$170,3,FALSE),0) -> 86 | AO33: =IFERROR(VLOOKUP($A33,'2019'!$B$2:$K$170,4,FALSE),0) -> 42 | AP33: =IFERROR(VLOOKUP($A33,'2019'!$B$2:$K$170,5,FALSE),0) -> 59 | AQ33: =IFERROR(VLOOKUP($A33,'2019'!$B$2:$K$170,8,FALSE),0) -> 15 | AR33: =IFERROR(VLOOKUP($A33,'2019'!$B$2:$K$170,10,FALSE),0) -> 0.686 | AS33: =IFERROR(VLOOKUP($A33,'2018'!$B$2:$K$170,3,FALSE),0) -> 0 | AT33: =IFERROR(VLOOKUP($A33,'2018'!$B$2:$K$170,4,FALSE),0) -> 0 | AU33: =IFERROR(VLOOKUP($A33,'2018'!$B$2:$K$170,5,FALSE),0) -> 0 | AV33: =IFERROR(VLOOKUP($A33,'2018'!$B$2:$K$170,8,FALSE),0) -> 0 | AW33: =IFERROR(VLOOKUP($A33,'2018'!$B$2:$K$170,10,FALSE),0) -> 0 | AX33: =IFERROR(VLOOKUP($A33,'2017'!$B$2:$J$163,2,FALSE),0) -> 0 | AY33: =IFERROR(VLOOKUP($A33,'2017'!$B$2:$J$163,3,FALSE),0) -> 0 | AZ33: =IFERROR(VLOOKUP($A33,'2017'!$B$2:$J$163,4,FALSE),0) -> 0 | BA33: =IFERROR(VLOOKUP($A33,'2017'!$B$2:$J$163,7,FALSE),0) -> 0 | BB33: =IFERROR(VLOOKUP($A33,'2017'!$B$2:$J$163,9,FALSE),0) -> 0 | BC33: =IFERROR(VLOOKUP($A33,'2016'!$B$2:$K$165,3,FALSE),0) -> 65 | BD33: =IFERROR(VLOOKUP($A33,'2016'!$B$2:$K$165,4,FALSE),0) -> 44 | BE33: =IFERROR(VLOOKUP($A33,'2016'!$B$2:$K$165,5,FALSE),0) -> 48 | BF33: =IFERROR(VLOOKUP($A33,'2016'!$B$2:$K$165,8,FALSE),0) -> 8 | BG33: =IFERROR(VLOOKUP($A33,'2016'!$B$2:$K$165,10,FALSE),0) -> 0.738 | BH33: =IFERROR(VLOOKUP($A33,'2015'!$B$2:$K$165,3,FALSE),0) -> 0 | BI33: =IFERROR(VLOOKUP($A33,'2015'!$B$2:$K$165,4,FALSE),0) -> 0 | BJ33: =IFERROR(VLOOKUP($A33,'2015'!$B$2:$K$165,5,FALSE),0) -> 0 | BK33: =IFERROR(VLOOKUP($A33,'2015'!$B$2:$K$165,8,FALSE),0) -> 0 | BL33: =IFERROR(VLOOKUP($A33,'2015'!$B$2:$K$165,10,FALSE),0) -> 0 | BM33: =IFERROR(VLOOKUP($A33,'2014'!$B$2:$K$157,3,FALSE),0) -> 0 | BN33: =IFERROR(VLOOKUP($A33,'2014'!$B$2:$K$157,4,FALSE),0) -> 0 | BO33: =IFERROR(VLOOKUP($A33,'2014'!$B$2:$K$157,5,FALSE),0) -> 0 | BP33: =IFERROR(VLOOKUP($A33,'2014'!$B$2:$K$157,8,FALSE),0) -> 0 | BQ33: =IFERROR(VLOOKUP($A33,'2014'!$B$2:$K$157,10,FALSE),0) -> 0 | BR33: =IFERROR(VLOOKUP($A33,'2013'!$D$4:$I$249,2,FALSE),0) -> 68 | BS33: =IFERROR(VLOOKUP($A33,'2013'!$D$4:$I$249,3,FALSE),0) -> 35 | BT33: =IFERROR(VLOOKUP($A33,'2013'!$D$4:$I$249,4,FALSE),0) -> 45 | BU33: =IFERROR(VLOOKUP($A33,'2013'!$D$4:$I$249,5,FALSE),0) -> 9 | BV33: =IFERROR(VLOOKUP($A33,'2013'!$D$4:$I$249,6,FALSE),0) -> 0.6617647059 | BW33: =IFERROR(VLOOKUP($A33,'2012'!$D$3:$O$172,2,FALSE),0) -> 85 | BX33: =IFERROR(VLOOKUP($A33,'2012'!$D$3:$O$172,3,FALSE),0) -> 59 | BY33: =IFERROR(VLOOKUP($A33,'2012'!$D$3:$O$172,4,FALSE),0) -> 9 | BZ33: =IFERROR(VLOOKUP($A33,'2012'!$D$3:$O$172,5,FALSE),0) -> 68 | CA33: =IFERROR(VLOOKUP($A33,'2012'!$D$3:$O$172,6,FALSE),0) -> 40 | CB33: =IFERROR(VLOOKUP($A33,'2012'!$D$3:$O$172,7,FALSE),0) -> 50 | CC33: =IFERROR(VLOOKUP($A33,'2012'!$D$3:$O$172,8,FALSE),0) -> 9 | CD33: =IFERROR(VLOOKUP($A33,'2012'!$D$3:$O$172,9,FALSE),0) -> 0.7352941176 | CE33: =IFERROR(VLOOKUP($A33,'2012'!$D$3:$O$172,10,FALSE),0) -> 17 | CF33: =IFERROR(VLOOKUP($A33,'2012'!$D$3:$O$172,11,FALSE),0) -> 9 | CG33: =IFERROR(VLOOKUP($A33,'2012'!$D$3:$O$172,12,FALSE),0) -> 0 | CH33: =IFERROR(VLOOKUP($A33,'2011'!$D$4:$I$251,2,FALSE),0) -> 17 | CI33: =IFERROR(VLOOKUP($A33,'2011'!$D$4:$I$251,3,FALSE),0) -> 6 | CJ33: =IFERROR(VLOOKUP($A33,'2011'!$D$4:$I$251,4,FALSE),0) -> 9 | CK33: =IFERROR(VLOOKUP($A33,'2011'!$D$4:$I$251,5,FALSE),0) -> 0 | CL33: =IFERROR(VLOOKUP($A33,'2011'!$D$4:$I$251,6,FALSE),0) -> 0.5294117647 | CM33: =IFERROR(VLOOKUP($A33,'2010'!$C$3:$H$234,2,FALSE),0) -> 0 | CN33: =IFERROR(VLOOKUP($A33,'2010'!$C$3:$H$234,3,FALSE),0) -> 0 | CO33: =IFERROR(VLOOKUP($A33,'2010'!$C$3:$H$234,4,FALSE),0) -> 0 | CP33: =IFERROR(VLOOKUP($A33,'2010'!$C$3:$H$234,5,FALSE),0) -> 0 | CQ33: =IFERROR(VLOOKUP($A33,'2010'!$C$3:$H$234,6,FALSE),0) -> 0 | CR33: =IFERROR(VLOOKUP($A33,'2009'!$C$3:$H$242,2,FALSE),0) -> 0 | CS33: =IFERROR(VLOOKUP($A33,'2009'!$C$3:$H$242,3,FALSE),0) -> 0 | CT33: =IFERROR(VLOOKUP($A33,'2009'!$C$3:$H$242,4,FALSE),0) -> 0 | CU33: =IFERROR(VLOOKUP($A33,'2009'!$C$3:$H$242,5,FALSE),0) -> 0 | CV33: =IFERROR(VLOOKUP($A33,'2009'!$C$3:$H$242,6,FALSE),0) -> 0 | CW33: =IFERROR(VLOOKUP($A33,'2008'!$C$3:$H$229,2,FALSE),0) -> 0 | CX33: =IFERROR(VLOOKUP($A33,'2008'!$C$3:$H$229,3,FALSE),0) -> 0 | CY33: =IFERROR(VLOOKUP($A33,'2008'!$C$3:$H$229,4,FALSE),0) -> 0 | CZ33: =IFERROR(VLOOKUP($A33,'2008'!$C$3:$H$229,5,FALSE),0) -> 0 | DA33: =IFERROR(VLOOKUP($A33,'2008'!$C$3:$H$229,6,FALSE),0) -> 0 | DB33: =IFERROR(VLOOKUP($A33,'2007'!$C$3:$M$238,7,FALSE),0) -> 0 | DC33: =IFERROR(VLOOKUP($A33,'2007'!$C$3:$M$238,8,FALSE),0) -> 0 | DD33: =IFERROR(VLOOKUP($A33,'2007'!$C$3:$M$238,9,FALSE),0) -> 0 | DE33: =IFERROR(VLOOKUP($A33,'2007'!$C$3:$M$238,10,FALSE),0) -> 0 | DF33: =IFERROR(VLOOKUP($A33,'2007'!$C$3:$M$238,11,FALSE),0) -> 0 | DG33: =IFERROR(VLOOKUP($A33,'2006'!$A$2:$F$200,2,FALSE),0) -> 0 | DH33: =IFERROR(VLOOKUP($A33,'2006'!$A$2:$F$200,4,FALSE),0) -> 0 | DI33: =IFERROR(VLOOKUP($A33,'2006'!$A$2:$F$200,5,FALSE),0) -> 0 | DJ33: =IFERROR(VLOOKUP($A33,'2006'!$A$2:$F$200,6,FALSE),0) -> 0 | DK33: =IFERROR(VLOOKUP($A33,'2005'!$C$3:$M$205,8,FALSE),0) -> 0 | DL33: =IFERROR(VLOOKUP($A33,'2005'!$C$3:$M$205,9,FALSE),0) -> 0 | DM33: =IFERROR(VLOOKUP($A33,'2005'!$C$3:$M$205,10,FALSE),0) -> 0 | DN33: =IFERROR(VLOOKUP($A33,'2005'!$C$3:$M$205,11,FALSE),0) -> 0 | DO33: =IFERROR(VLOOKUP($A33,'2004'!$C$3:$M$213,8,FALSE),0) -> 0 | DP33: =IFERROR(VLOOKUP($A33,'2004'!$C$3:$M$213,9,FALSE),0) -> 0 | DQ33: =IFERROR(VLOOKUP($A33,'2004'!$C$3:$M$213,10,FALSE),0) -> 0 | DR33: =IFERROR(VLOOKUP($A33,'2004'!$C$3:$M$213,11,FALSE),0) -> 0 | DS33: =IFERROR(VLOOKUP($A33,'2003'!$C$3:$Q$214,12,FALSE),0) -> 0 | DT33: =IFERROR(VLOOKUP($A33,'2003'!$C$3:$Q$214,13,FALSE),0) -> 0 | DU33: =IFERROR(VLOOKUP($A33,'2003'!$C$3:$Q$214,14,FALSE),0) -> 0 | DV33: =IFERROR(VLOOKUP($A33,'2003'!$C$3:$Q$214,15,FALSE),0) -> 0 | DW33: =IFERROR(VLOOKUP($A33,'2002'!$D$3:$R$214,12,FALSE),0) -> 0 | DX33: =IFERROR(VLOOKUP($A33,'2002'!$D$3:$R$214,13,FALSE),0) -> 0 | DY33: =IFERROR(VLOOKUP($A33,'2002'!$D$3:$R$214,14,FALSE),0) -> 0 | DZ33: =IFERROR(VLOOKUP($A33,'2002'!$D$3:$R$214,15,FALSE),0) -> 0 | EA33: =IFERROR(VLOOKUP($A33,'Pre 2002'!$C$3:$CK$382,84,FALSE),0) -> 0 | EB33: =IFERROR(VLOOKUP($A33,'Pre 2002'!$C$3:$CK$382,85,FALSE),0) -> 0 | EC33: =IFERROR(VLOOKUP($A33,'Pre 2002'!$C$3:$CK$382,86,FALSE),0) -> 0 | ED33: =IFERROR(VLOOKUP($A33,'Pre 2002'!$C$3:$CK$382,87,FALSE),0) -> 0 | EE33: =IFERROR(VLOOKUP(A33,'Pre 2002'!$C$3:$CG$382,83,FALSE),0) -> 0
A34: Denny Mahan | B34: =SUM(O34,T34,Y34,AD34,AI34,AN34,AS34,AX34,BC34,BH34,BM34,BR34,BZ34,CH34,CM34,CR34,CW34,DB34,DG34,DK34,DO34,DS34,DW34,EA34) -> 703 | C34: =SUM(Q34,V34,AA34,AF34,AK34,AP34,AU34,AZ34,BE34,BJ34,BO34,BT34,CB34,CJ34,CO34,CT34,CY34,DD34,DH34,DL34,DP34,DT34,DX34,EB34) -> 474 | D34: =SUM(R34,W34,AB34,AG34,AL34,AQ34,AV34,BA34,BF34,BK34,BP34,BU34,CC34,CK34,CP34,CU34,CZ34,DE34,DI34,DM34,DQ34,DU34,DY34,EC34) -> 78 | E34: =IF(B34=0,0,C34/B34) -> 0.6742532006 | F34: =IF(O34>0,1,0)+IF(T34>0,1,0)+IF(Y34>0,1,0)+IF(AD34>0,1,0)+IF(AI34>0,1,0)+IF(AN34>0,1,0)+IF(AS34>0,1,0)+IF(AX34>0,1,0)+IF(BC34>0,1,0)+IF(BH34>0,1,0)+IF(BM34>0,1,0)+IF(BR34>0,1,0)+IF(BZ34>0,1,0)+IF(CH34>0,1,0)+IF(CM34>0,1,0)+IF(CR34>0,1,0)+IF(CW34>0,1,0)+IF(DB34>0,1,0)+IF(DG34>0,1,0)+IF(DK34>0,1,0)+IF(DO34>0,1,0)+IF(DS34>0,1,0)+IF(DW34>0,1,0)+EE34 -> 11 | G34: 2005 | H34: =IF(BM34>0,1,0)+IF(BR34>0,1,0)+IF(BZ34>0,1,0)+IF(CH34>0,1,0)+IF(CM34>0,1,0)+IF(CR34>0,1,0)+IF(CW34>0,1,0)+IF(DB34>0,1,0)+IF(DG34>0,1,0)+IF(DK34>0,1,0)+IF(DO34>0,1,0)+IF(DS34>0,1,0)+IF(DW34>0,1,0)+EE34 -> 9 | I34: =SUM(BM34,BR34,BZ34,CH34,CM34,CR34,CW34,DB34,DG34,DK34,DO34,DS34,DW34,EA34) -> 547 | J34: =SUM(BO34,BT34,CB34,CJ34,CO34,CT34,CY34,DD34,DH34,DL34,DP34,DT34,DX34,EB34) -> 364 | K34: =SUM(BP34,BU34,CC34,CK34,CP34,CU34,CZ34,DE34,DI34,DM34,DQ34,DU34,DY34,EC34) -> 59 | L34: =IF(I34=0,0,J34/I34) -> 0.6654478976 | O34: =IFERROR(VLOOKUP($A34,'2024'!$A$2:$M$220,6,FALSE),0) -> 0 | P34: =IFERROR(VLOOKUP($A34,'2024'!$A$2:$M$220,7,FALSE),0) -> 0 | Q34: =IFERROR(VLOOKUP($A34,'2024'!$A$2:$M$220,8,FALSE),0) -> 0 | R34: =IFERROR(VLOOKUP($A34,'2024'!$A$2:$M$220,11,FALSE),0) -> 0 | S34: =IFERROR(VLOOKUP($A34,'2024'!$A$2:$M$220,13,FALSE),0) -> 0 | T34: =IFERROR(VLOOKUP($A34,'2023'!$A$2:$M$170,6,FALSE),0) -> 0 | U34: =IFERROR(VLOOKUP($A34,'2023'!$A$2:$M$170,7,FALSE),0) -> 0 | V34: =IFERROR(VLOOKUP($A34,'2023'!$A$2:$M$170,8,FALSE),0) -> 0 | W34: =IFERROR(VLOOKUP($A34,'2023'!$A$2:$M$170,11,FALSE),0) -> 0 | X34: =IFERROR(VLOOKUP($A34,'2023'!$A$2:$M$170,13,FALSE),0) -> 0 | Y34: =IFERROR(VLOOKUP($A34,'2022'!$B$2:$K$174,3,FALSE),0) -> 0 | Z34: =IFERROR(VLOOKUP($A34,'2022'!$B$2:$K$174,4,FALSE),0) -> 0 | AA34: =IFERROR(VLOOKUP($A34,'2022'!$B$2:$K$174,5,FALSE),0) -> 0 | AB34: =IFERROR(VLOOKUP($A34,'2022'!$B$2:$K$174,8,FALSE),0) -> 0 | AC34: =IFERROR(VLOOKUP($A34,'2022'!$B$2:$K$174,10,FALSE),0) -> 0 | AD34: =IFERROR(VLOOKUP($A34,'2021'!$B$2:$K$174,3,FALSE),0) -> 0 | AE34: =IFERROR(VLOOKUP($A34,'2021'!$B$2:$K$174,4,FALSE),0) -> 0 | AF34: =IFERROR(VLOOKUP($A34,'2021'!$B$2:$K$174,5,FALSE),0) -> 0 | AG34: =IFERROR(VLOOKUP($A34,'2021'!$B$2:$K$174,8,FALSE),0) -> 0 | AH34: =IFERROR(VLOOKUP($A34,'2021'!$B$2:$K$174,10,FALSE),0) -> 0 | AI34: =IFERROR(VLOOKUP($A34,'2020'!$B$2:$K$170,3,FALSE),0) -> 0 | AJ34: =IFERROR(VLOOKUP($A34,'2020'!$B$2:$K$170,4,FALSE),0) -> 0 | AK34: =IFERROR(VLOOKUP($A34,'2020'!$B$2:$K$170,5,FALSE),0) -> 0 | AL34: =IFERROR(VLOOKUP($A34,'2020'!$B$2:$K$170,8,FALSE),0) -> 0 | AM34: =IFERROR(VLOOKUP($A34,'2020'!$B$2:$K$170,10,FALSE),0) -> 0 | AN34: =IFERROR(VLOOKUP($A34,'2019'!$B$2:$K$170,3,FALSE),0) -> 0 | AO34: =IFERROR(VLOOKUP($A34,'2019'!$B$2:$K$170,4,FALSE),0) -> 0 | AP34: =IFERROR(VLOOKUP($A34,'2019'!$B$2:$K$170,5,FALSE),0) -> 0 | AQ34: =IFERROR(VLOOKUP($A34,'2019'!$B$2:$K$170,8,FALSE),0) -> 0 | AR34: =IFERROR(VLOOKUP($A34,'2019'!$B$2:$K$170,10,FALSE),0) -> 0 | AS34: =IFERROR(VLOOKUP($A34,'2018'!$B$2:$K$170,3,FALSE),0) -> 0 | AT34: =IFERROR(VLOOKUP($A34,'2018'!$B$2:$K$170,4,FALSE),0) -> 0 | AU34: =IFERROR(VLOOKUP($A34,'2018'!$B$2:$K$170,5,FALSE),0) -> 0 | AV34: =IFERROR(VLOOKUP($A34,'2018'!$B$2:$K$170,8,FALSE),0) -> 0 | AW34: =IFERROR(VLOOKUP($A34,'2018'!$B$2:$K$170,10,FALSE),0) -> 0 | AX34: =IFERROR(VLOOKUP($A34,'2017'!$B$2:$J$163,2,FALSE),0) -> 0 | AY34: =IFERROR(VLOOKUP($A34,'2017'!$B$2:$J$163,3,FALSE),0) -> 0 | AZ34: =IFERROR(VLOOKUP($A34,'2017'!$B$2:$J$163,4,FALSE),0) -> 0 | BA34: =IFERROR(VLOOKUP($A34,'2017'!$B$2:$J$163,7,FALSE),0) -> 0 | BB34: =IFERROR(VLOOKUP($A34,'2017'!$B$2:$J$163,9,FALSE),0) -> 0 | BC34: =IFERROR(VLOOKUP($A34,'2016'!$B$2:$K$165,3,FALSE),0) -> 72 | BD34: =IFERROR(VLOOKUP($A34,'2016'!$B$2:$K$165,4,FALSE),0) -> 48 | BE34: =IFERROR(VLOOKUP($A34,'2016'!$B$2:$K$165,5,FALSE),0) -> 47 | BF34: =IFERROR(VLOOKUP($A34,'2016'!$B$2:$K$165,8,FALSE),0) -> 14 | BG34: =IFERROR(VLOOKUP($A34,'2016'!$B$2:$K$165,10,FALSE),0) -> 0.653 | BH34: =IFERROR(VLOOKUP($A34,'2015'!$B$2:$K$165,3,FALSE),0) -> 84 | BI34: =IFERROR(VLOOKUP($A34,'2015'!$B$2:$K$165,4,FALSE),0) -> 41 | BJ34: =IFERROR(VLOOKUP($A34,'2015'!$B$2:$K$165,5,FALSE),0) -> 63 | BK34: =IFERROR(VLOOKUP($A34,'2015'!$B$2:$K$165,8,FALSE),0) -> 5 | BL34: =IFERROR(VLOOKUP($A34,'2015'!$B$2:$K$165,10,FALSE),0) -> 0.75 | BM34: =IFERROR(VLOOKUP($A34,'2014'!$B$2:$K$157,3,FALSE),0) -> 0 | BN34: =IFERROR(VLOOKUP($A34,'2014'!$B$2:$K$157,4,FALSE),0) -> 0 | BO34: =IFERROR(VLOOKUP($A34,'2014'!$B$2:$K$157,5,FALSE),0) -> 0 | BP34: =IFERROR(VLOOKUP($A34,'2014'!$B$2:$K$157,8,FALSE),0) -> 0 | BQ34: =IFERROR(VLOOKUP($A34,'2014'!$B$2:$K$157,10,FALSE),0) -> 0 | BR34: =IFERROR(VLOOKUP($A34,'2013'!$D$4:$I$249,2,FALSE),0) -> 81 | BS34: =IFERROR(VLOOKUP($A34,'2013'!$D$4:$I$249,3,FALSE),0) -> 52 | BT34: =IFERROR(VLOOKUP($A34,'2013'!$D$4:$I$249,4,FALSE),0) -> 57 | BU34: =IFERROR(VLOOKUP($A34,'2013'!$D$4:$I$249,5,FALSE),0) -> 13 | BV34: =IFERROR(VLOOKUP($A34,'2013'!$D$4:$I$249,6,FALSE),0) -> 0.7037037037 | BW34: =IFERROR(VLOOKUP($A34,'2012'!$D$3:$O$172,2,FALSE),0) -> 466 | BX34: =IFERROR(VLOOKUP($A34,'2012'!$D$3:$O$172,3,FALSE),0) -> 307 | BY34: =IFERROR(VLOOKUP($A34,'2012'!$D$3:$O$172,4,FALSE),0) -> 46 | BZ34: =IFERROR(VLOOKUP($A34,'2012'!$D$3:$O$172,5,FALSE),0) -> 76 | CA34: =IFERROR(VLOOKUP($A34,'2012'!$D$3:$O$172,6,FALSE),0) -> 48 | CB34: =IFERROR(VLOOKUP($A34,'2012'!$D$3:$O$172,7,FALSE),0) -> 53 | CC34: =IFERROR(VLOOKUP($A34,'2012'!$D$3:$O$172,8,FALSE),0) -> 7 | CD34: =IFERROR(VLOOKUP($A34,'2012'!$D$3:$O$172,9,FALSE),0) -> 0.6973684211 | CE34: =IFERROR(VLOOKUP($A34,'2012'!$D$3:$O$172,10,FALSE),0) -> 390 | CF34: =IFERROR(VLOOKUP($A34,'2012'!$D$3:$O$172,11,FALSE),0) -> 254 | CG34: =IFERROR(VLOOKUP($A34,'2012'!$D$3:$O$172,12,FALSE),0) -> 39 | CH34: =IFERROR(VLOOKUP($A34,'2011'!$D$4:$I$251,2,FALSE),0) -> 74 | CI34: =IFERROR(VLOOKUP($A34,'2011'!$D$4:$I$251,3,FALSE),0) -> 53 | CJ34: =IFERROR(VLOOKUP($A34,'2011'!$D$4:$I$251,4,FALSE),0) -> 58 | CK34: =IFERROR(VLOOKUP($A34,'2011'!$D$4:$I$251,5,FALSE),0) -> 13 | CL34: =IFERROR(VLOOKUP($A34,'2011'!$D$4:$I$251,6,FALSE),0) -> 0.7837837838 | CM34: =IFERROR(VLOOKUP($A34,'2010'!$C$3:$H$234,2,FALSE),0) -> 75 | CN34: =IFERROR(VLOOKUP($A34,'2010'!$C$3:$H$234,3,FALSE),0) -> 40 | CO34: =IFERROR(VLOOKUP($A34,'2010'!$C$3:$H$234,4,FALSE),0) -> 50 | CP34: =IFERROR(VLOOKUP($A34,'2010'!$C$3:$H$234,5,FALSE),0) -> 4 | CQ34: =IFERROR(VLOOKUP($A34,'2010'!$C$3:$H$234,6,FALSE),0) -> 0.6666666667 | CR34: =IFERROR(VLOOKUP($A34,'2009'!$C$3:$H$242,2,FALSE),0) -> 85 | CS34: =IFERROR(VLOOKUP($A34,'2009'!$C$3:$H$242,3,FALSE),0) -> 42 | CT34: =IFERROR(VLOOKUP($A34,'2009'!$C$3:$H$242,4,FALSE),0) -> 51 | CU34: =IFERROR(VLOOKUP($A34,'2009'!$C$3:$H$242,5,FALSE),0) -> 15 | CV34: =IFERROR(VLOOKUP($A34,'2009'!$C$3:$H$242,6,FALSE),0) -> 0.6 | CW34: =IFERROR(VLOOKUP($A34,'2008'!$C$3:$H$229,2,FALSE),0) -> 56 | CX34: =IFERROR(VLOOKUP($A34,'2008'!$C$3:$H$229,3,FALSE),0) -> 31 | CY34: =IFERROR(VLOOKUP($A34,'2008'!$C$3:$H$229,4,FALSE),0) -> 33 | CZ34: =IFERROR(VLOOKUP($A34,'2008'!$C$3:$H$229,5,FALSE),0) -> 4 | DA34: =IFERROR(VLOOKUP($A34,'2008'!$C$3:$H$229,6,FALSE),0) -> 0.5892857143 | DB34: =IFERROR(VLOOKUP($A34,'2007'!$C$3:$M$238,7,FALSE),0) -> 53 | DC34: =IFERROR(VLOOKUP($A34,'2007'!$C$3:$M$238,8,FALSE),0) -> 20 | DD34: =IFERROR(VLOOKUP($A34,'2007'!$C$3:$M$238,9,FALSE),0) -> 30 | DE34: =IFERROR(VLOOKUP($A34,'2007'!$C$3:$M$238,10,FALSE),0) -> 2 | DF34: =IFERROR(VLOOKUP($A34,'2007'!$C$3:$M$238,11,FALSE),0) -> 0.5660377358 | DG34: =IFERROR(VLOOKUP($A34,'2006'!$A$2:$F$200,2,FALSE),0) -> 0 | DH34: =IFERROR(VLOOKUP($A34,'2006'!$A$2:$F$200,4,FALSE),0) -> 0 | DI34: =IFERROR(VLOOKUP($A34,'2006'!$A$2:$F$200,5,FALSE),0) -> 0 | DJ34: =IFERROR(VLOOKUP($A34,'2006'!$A$2:$F$200,6,FALSE),0) -> --- | DK34: =IFERROR(VLOOKUP($A34,'2005'!$C$3:$M$205,8,FALSE),0) -> 0 | DL34: =IFERROR(VLOOKUP($A34,'2005'!$C$3:$M$205,9,FALSE),0) -> 0 | DM34: =IFERROR(VLOOKUP($A34,'2005'!$C$3:$M$205,10,FALSE),0) -> 0 | DN34: =IFERROR(VLOOKUP($A34,'2005'!$C$3:$M$205,11,FALSE),0) -> 0 | DO34: =IFERROR(VLOOKUP($A34,'2004'!$C$3:$M$213,8,FALSE),0) -> 0 | DP34: =IFERROR(VLOOKUP($A34,'2004'!$C$3:$M$213,9,FALSE),0) -> 0 | DQ34: =IFERROR(VLOOKUP($A34,'2004'!$C$3:$M$213,10,FALSE),0) -> 0 | DR34: =IFERROR(VLOOKUP($A34,'2004'!$C$3:$M$213,11,FALSE),0) -> 0 | DS34: =IFERROR(VLOOKUP($A34,'2003'!$C$3:$Q$214,12,FALSE),0) -> 0 | DT34: =IFERROR(VLOOKUP($A34,'2003'!$C$3:$Q$214,13,FALSE),0) -> 0 | DU34: =IFERROR(VLOOKUP($A34,'2003'!$C$3:$Q$214,14,FALSE),0) -> 0 | DV34: =IFERROR(VLOOKUP($A34,'2003'!$C$3:$Q$214,15,FALSE),0) -> 0 | DW34: =IFERROR(VLOOKUP($A34,'2002'!$D$3:$R$214,12,FALSE),0) -> 0 | DX34: =IFERROR(VLOOKUP($A34,'2002'!$D$3:$R$214,13,FALSE),0) -> 0 | DY34: =IFERROR(VLOOKUP($A34,'2002'!$D$3:$R$214,14,FALSE),0) -> 0 | DZ34: =IFERROR(VLOOKUP($A34,'2002'!$D$3:$R$214,15,FALSE),0) -> 0 | EA34: =IFERROR(VLOOKUP($A34,'Pre 2002'!$C$3:$CK$382,84,FALSE),0) -> 47 | EB34: =IFERROR(VLOOKUP($A34,'Pre 2002'!$C$3:$CK$382,85,FALSE),0) -> 32 | EC34: =IFERROR(VLOOKUP($A34,'Pre 2002'!$C$3:$CK$382,86,FALSE),0) -> 1 | ED34: =IFERROR(VLOOKUP($A34,'Pre 2002'!$C$3:$CK$382,87,FALSE),0) -> 0.6808510638 | EE34: =IFERROR(VLOOKUP(A34,'Pre 2002'!$C$3:$CG$382,83,FALSE),0) -> 2
A35: Nate Johanson | B35: =SUM(O35,T35,Y35,AD35,AI35,AN35,AS35,AX35,BC35,BH35,BM35,BR35,BZ35,CH35,CM35,CR35,CW35,DB35,DG35,DK35,DO35,DS35,DW35,EA35) -> 1076 | C35: =SUM(Q35,V35,AA35,AF35,AK35,AP35,AU35,AZ35,BE35,BJ35,BO35,BT35,CB35,CJ35,CO35,CT35,CY35,DD35,DH35,DL35,DP35,DT35,DX35,EB35) -> 671 | D35: =SUM(R35,W35,AB35,AG35,AL35,AQ35,AV35,BA35,BF35,BK35,BP35,BU35,CC35,CK35,CP35,CU35,CZ35,DE35,DI35,DM35,DQ35,DU35,DY35,EC35) -> 76 | E35: =IF(B35=0,0,C35/B35) -> 0.623605948 | F35: =IF(O35>0,1,0)+IF(T35>0,1,0)+IF(Y35>0,1,0)+IF(AD35>0,1,0)+IF(AI35>0,1,0)+IF(AN35>0,1,0)+IF(AS35>0,1,0)+IF(AX35>0,1,0)+IF(BC35>0,1,0)+IF(BH35>0,1,0)+IF(BM35>0,1,0)+IF(BR35>0,1,0)+IF(BZ35>0,1,0)+IF(CH35>0,1,0)+IF(CM35>0,1,0)+IF(CR35>0,1,0)+IF(CW35>0,1,0)+IF(DB35>0,1,0)+IF(DG35>0,1,0)+IF(DK35>0,1,0)+IF(DO35>0,1,0)+IF(DS35>0,1,0)+IF(DW35>0,1,0)+EE35 -> 14 | G35: 2008 | H35: =IF(BM35>0,1,0)+IF(BR35>0,1,0)+IF(BZ35>0,1,0)+IF(CH35>0,1,0)+IF(CM35>0,1,0)+IF(CR35>0,1,0)+IF(CW35>0,1,0)+IF(DB35>0,1,0)+IF(DG35>0,1,0)+IF(DK35>0,1,0)+IF(DO35>0,1,0)+IF(DS35>0,1,0)+IF(DW35>0,1,0)+EE35 -> 6 | I35: =SUM(BM35,BR35,BZ35,CH35,CM35,CR35,CW35,DB35,DG35,DK35,DO35,DS35,DW35,EA35) -> 445 | J35: =SUM(BO35,BT35,CB35,CJ35,CO35,CT35,CY35,DD35,DH35,DL35,DP35,DT35,DX35,EB35) -> 276 | K35: =SUM(BP35,BU35,CC35,CK35,CP35,CU35,CZ35,DE35,DI35,DM35,DQ35,DU35,DY35,EC35) -> 36 | L35: =IF(I35=0,0,J35/I35) -> 0.6202247191 | O35: =IFERROR(VLOOKUP($A35,'2024'!$A$2:$M$220,6,FALSE),0) -> 0 | P35: =IFERROR(VLOOKUP($A35,'2024'!$A$2:$M$220,7,FALSE),0) -> 0 | Q35: =IFERROR(VLOOKUP($A35,'2024'!$A$2:$M$220,8,FALSE),0) -> 0 | R35: =IFERROR(VLOOKUP($A35,'2024'!$A$2:$M$220,11,FALSE),0) -> 0 | S35: =IFERROR(VLOOKUP($A35,'2024'!$A$2:$M$220,13,FALSE),0) -> 0 | T35: =IFERROR(VLOOKUP($A35,'2023'!$A$2:$M$170,6,FALSE),0) -> 77 | U35: =IFERROR(VLOOKUP($A35,'2023'!$A$2:$M$170,7,FALSE),0) -> 35 | V35: =IFERROR(VLOOKUP($A35,'2023'!$A$2:$M$170,8,FALSE),0) -> 44 | W35: =IFERROR(VLOOKUP($A35,'2023'!$A$2:$M$170,11,FALSE),0) -> 3 | X35: =IFERROR(VLOOKUP($A35,'2023'!$A$2:$M$170,13,FALSE),0) -> 0.571 | Y35: =IFERROR(VLOOKUP($A35,'2022'!$B$2:$K$174,3,FALSE),0) -> 81 | Z35: =IFERROR(VLOOKUP($A35,'2022'!$B$2:$K$174,4,FALSE),0) -> 46 | AA35: =IFERROR(VLOOKUP($A35,'2022'!$B$2:$K$174,5,FALSE),0) -> 54 | AB35: =IFERROR(VLOOKUP($A35,'2022'!$B$2:$K$174,8,FALSE),0) -> 2 | AC35: =IFERROR(VLOOKUP($A35,'2022'!$B$2:$K$174,10,FALSE),0) -> 0.667 | AD35: =IFERROR(VLOOKUP($A35,'2021'!$B$2:$K$174,3,FALSE),0) -> 87 | AE35: =IFERROR(VLOOKUP($A35,'2021'!$B$2:$K$174,4,FALSE),0) -> 47 | AF35: =IFERROR(VLOOKUP($A35,'2021'!$B$2:$K$174,5,FALSE),0) -> 52 | AG35: =IFERROR(VLOOKUP($A35,'2021'!$B$2:$K$174,8,FALSE),0) -> 7 | AH35: =IFERROR(VLOOKUP($A35,'2021'!$B$2:$K$174,10,FALSE),0) -> 0.598 | AI35: =IFERROR(VLOOKUP($A35,'2020'!$B$2:$K$170,3,FALSE),0) -> 90 | AJ35: =IFERROR(VLOOKUP($A35,'2020'!$B$2:$K$170,4,FALSE),0) -> 48 | AK35: =IFERROR(VLOOKUP($A35,'2020'!$B$2:$K$170,5,FALSE),0) -> 54 | AL35: =IFERROR(VLOOKUP($A35,'2020'!$B$2:$K$170,8,FALSE),0) -> 9 | AM35: =IFERROR(VLOOKUP($A35,'2020'!$B$2:$K$170,10,FALSE),0) -> 0.6 | AN35: =IFERROR(VLOOKUP($A35,'2019'!$B$2:$K$170,3,FALSE),0) -> 68 | AO35: =IFERROR(VLOOKUP($A35,'2019'!$B$2:$K$170,4,FALSE),0) -> 36 | AP35: =IFERROR(VLOOKUP($A35,'2019'!$B$2:$K$170,5,FALSE),0) -> 46 | AQ35: =IFERROR(VLOOKUP($A35,'2019'!$B$2:$K$170,8,FALSE),0) -> 2 | AR35: =IFERROR(VLOOKUP($A35,'2019'!$B$2:$K$170,10,FALSE),0) -> 0.676 | AS35: =IFERROR(VLOOKUP($A35,'2018'!$B$2:$K$170,3,FALSE),0) -> 79 | AT35: =IFERROR(VLOOKUP($A35,'2018'!$B$2:$K$170,4,FALSE),0) -> 33 | AU35: =IFERROR(VLOOKUP($A35,'2018'!$B$2:$K$170,5,FALSE),0) -> 43 | AV35: =IFERROR(VLOOKUP($A35,'2018'!$B$2:$K$170,8,FALSE),0) -> 4 | AW35: =IFERROR(VLOOKUP($A35,'2018'!$B$2:$K$170,10,FALSE),0) -> 0.544 | AX35: =IFERROR(VLOOKUP($A35,'2017'!$B$2:$J$163,2,FALSE),0) -> 76 | AY35: =IFERROR(VLOOKUP($A35,'2017'!$B$2:$J$163,3,FALSE),0) -> 30 | AZ35: =IFERROR(VLOOKUP($A35,'2017'!$B$2:$J$163,4,FALSE),0) -> 42 | BA35: =IFERROR(VLOOKUP($A35,'2017'!$B$2:$J$163,7,FALSE),0) -> 6 | BB35: =IFERROR(VLOOKUP($A35,'2017'!$B$2:$J$163,9,FALSE),0) -> 0.5526315789 | BC35: =IFERROR(VLOOKUP($A35,'2016'!$B$2:$K$165,3,FALSE),0) -> 73 | BD35: =IFERROR(VLOOKUP($A35,'2016'!$B$2:$K$165,4,FALSE),0) -> 52 | BE35: =IFERROR(VLOOKUP($A35,'2016'!$B$2:$K$165,5,FALSE),0) -> 60 | BF35: =IFERROR(VLOOKUP($A35,'2016'!$B$2:$K$165,8,FALSE),0) -> 7 | BG35: =IFERROR(VLOOKUP($A35,'2016'!$B$2:$K$165,10,FALSE),0) -> 0.822 | BH35: =IFERROR(VLOOKUP($A35,'2015'!$B$2:$K$165,3,FALSE),0) -> 0 | BI35: =IFERROR(VLOOKUP($A35,'2015'!$B$2:$K$165,4,FALSE),0) -> 0 | BJ35: =IFERROR(VLOOKUP($A35,'2015'!$B$2:$K$165,5,FALSE),0) -> 0 | BK35: =IFERROR(VLOOKUP($A35,'2015'!$B$2:$K$165,8,FALSE),0) -> 0 | BL35: =IFERROR(VLOOKUP($A35,'2015'!$B$2:$K$165,10,FALSE),0) -> 0 | BM35: =IFERROR(VLOOKUP($A35,'2014'!$B$2:$K$157,3,FALSE),0) -> 0 | BN35: =IFERROR(VLOOKUP($A35,'2014'!$B$2:$K$157,4,FALSE),0) -> 0 | BO35: =IFERROR(VLOOKUP($A35,'2014'!$B$2:$K$157,5,FALSE),0) -> 0 | BP35: =IFERROR(VLOOKUP($A35,'2014'!$B$2:$K$157,8,FALSE),0) -> 0 | BQ35: =IFERROR(VLOOKUP($A35,'2014'!$B$2:$K$157,10,FALSE),0) -> 0 | BR35: =IFERROR(VLOOKUP($A35,'2013'!$D$4:$I$249,2,FALSE),0) -> 73 | BS35: =IFERROR(VLOOKUP($A35,'2013'!$D$4:$I$249,3,FALSE),0) -> 40 | BT35: =IFERROR(VLOOKUP($A35,'2013'!$D$4:$I$249,4,FALSE),0) -> 46 | BU35: =IFERROR(VLOOKUP($A35,'2013'!$D$4:$I$249,5,FALSE),0) -> 4 | BV35: =IFERROR(VLOOKUP($A35,'2013'!$D$4:$I$249,6,FALSE),0) -> 0.6301369863 | BW35: =IFERROR(VLOOKUP($A35,'2012'!$D$3:$O$172,2,FALSE),0) -> 372 | BX35: =IFERROR(VLOOKUP($A35,'2012'!$D$3:$O$172,3,FALSE),0) -> 230 | BY35: =IFERROR(VLOOKUP($A35,'2012'!$D$3:$O$172,4,FALSE),0) -> 32 | BZ35: =IFERROR(VLOOKUP($A35,'2012'!$D$3:$O$172,5,FALSE),0) -> 77 | CA35: =IFERROR(VLOOKUP($A35,'2012'!$D$3:$O$172,6,FALSE),0) -> 44 | CB35: =IFERROR(VLOOKUP($A35,'2012'!$D$3:$O$172,7,FALSE),0) -> 54 | CC35: =IFERROR(VLOOKUP($A35,'2012'!$D$3:$O$172,8,FALSE),0) -> 15 | CD35: =IFERROR(VLOOKUP($A35,'2012'!$D$3:$O$172,9,FALSE),0) -> 0.7012987013 | CE35: =IFERROR(VLOOKUP($A35,'2012'!$D$3:$O$172,10,FALSE),0) -> 295 | CF35: =IFERROR(VLOOKUP($A35,'2012'!$D$3:$O$172,11,FALSE),0) -> 176 | CG35: =IFERROR(VLOOKUP($A35,'2012'!$D$3:$O$172,12,FALSE),0) -> 17 | CH35: =IFERROR(VLOOKUP($A35,'2011'!$D$4:$I$251,2,FALSE),0) -> 88 | CI35: =IFERROR(VLOOKUP($A35,'2011'!$D$4:$I$251,3,FALSE),0) -> 45 | CJ35: =IFERROR(VLOOKUP($A35,'2011'!$D$4:$I$251,4,FALSE),0) -> 55 | CK35: =IFERROR(VLOOKUP($A35,'2011'!$D$4:$I$251,5,FALSE),0) -> 7 | CL35: =IFERROR(VLOOKUP($A35,'2011'!$D$4:$I$251,6,FALSE),0) -> 0.625 | CM35: =IFERROR(VLOOKUP($A35,'2010'!$C$3:$H$234,2,FALSE),0) -> 63 | CN35: =IFERROR(VLOOKUP($A35,'2010'!$C$3:$H$234,3,FALSE),0) -> 28 | CO35: =IFERROR(VLOOKUP($A35,'2010'!$C$3:$H$234,4,FALSE),0) -> 37 | CP35: =IFERROR(VLOOKUP($A35,'2010'!$C$3:$H$234,5,FALSE),0) -> 3 | CQ35: =IFERROR(VLOOKUP($A35,'2010'!$C$3:$H$234,6,FALSE),0) -> 0.5873015873 | CR35: =IFERROR(VLOOKUP($A35,'2009'!$C$3:$H$242,2,FALSE),0) -> 84 | CS35: =IFERROR(VLOOKUP($A35,'2009'!$C$3:$H$242,3,FALSE),0) -> 36 | CT35: =IFERROR(VLOOKUP($A35,'2009'!$C$3:$H$242,4,FALSE),0) -> 48 | CU35: =IFERROR(VLOOKUP($A35,'2009'!$C$3:$H$242,5,FALSE),0) -> 1 | CV35: =IFERROR(VLOOKUP($A35,'2009'!$C$3:$H$242,6,FALSE),0) -> 0.5714285714 | CW35: =IFERROR(VLOOKUP($A35,'2008'!$C$3:$H$229,2,FALSE),0) -> 60 | CX35: =IFERROR(VLOOKUP($A35,'2008'!$C$3:$H$229,3,FALSE),0) -> 35 | CY35: =IFERROR(VLOOKUP($A35,'2008'!$C$3:$H$229,4,FALSE),0) -> 36 | CZ35: =IFERROR(VLOOKUP($A35,'2008'!$C$3:$H$229,5,FALSE),0) -> 6 | DA35: =IFERROR(VLOOKUP($A35,'2008'!$C$3:$H$229,6,FALSE),0) -> 0.6 | DB35: =IFERROR(VLOOKUP($A35,'2007'!$C$3:$M$238,7,FALSE),0) -> 0 | DC35: =IFERROR(VLOOKUP($A35,'2007'!$C$3:$M$238,8,FALSE),0) -> 0 | DD35: =IFERROR(VLOOKUP($A35,'2007'!$C$3:$M$238,9,FALSE),0) -> 0 | DE35: =IFERROR(VLOOKUP($A35,'2007'!$C$3:$M$238,10,FALSE),0) -> 0 | DF35: =IFERROR(VLOOKUP($A35,'2007'!$C$3:$M$238,11,FALSE),0) -> 0 | DG35: =IFERROR(VLOOKUP($A35,'2006'!$A$2:$F$200,2,FALSE),0) -> 0 | DH35: =IFERROR(VLOOKUP($A35,'2006'!$A$2:$F$200,4,FALSE),0) -> 0 | DI35: =IFERROR(VLOOKUP($A35,'2006'!$A$2:$F$200,5,FALSE),0) -> 0 | DJ35: =IFERROR(VLOOKUP($A35,'2006'!$A$2:$F$200,6,FALSE),0) -> 0 | DK35: =IFERROR(VLOOKUP($A35,'2005'!$C$3:$M$205,8,FALSE),0) -> 0 | DL35: =IFERROR(VLOOKUP($A35,'2005'!$C$3:$M$205,9,FALSE),0) -> 0 | DM35: =IFERROR(VLOOKUP($A35,'2005'!$C$3:$M$205,10,FALSE),0) -> 0 | DN35: =IFERROR(VLOOKUP($A35,'2005'!$C$3:$M$205,11,FALSE),0) -> 0 | DO35: =IFERROR(VLOOKUP($A35,'2004'!$C$3:$M$213,8,FALSE),0) -> 0 | DP35: =IFERROR(VLOOKUP($A35,'2004'!$C$3:$M$213,9,FALSE),0) -> 0 | DQ35: =IFERROR(VLOOKUP($A35,'2004'!$C$3:$M$213,10,FALSE),0) -> 0 | DR35: =IFERROR(VLOOKUP($A35,'2004'!$C$3:$M$213,11,FALSE),0) -> 0 | DS35: =IFERROR(VLOOKUP($A35,'2003'!$C$3:$Q$214,12,FALSE),0) -> 0 | DT35: =IFERROR(VLOOKUP($A35,'2003'!$C$3:$Q$214,13,FALSE),0) -> 0 | DU35: =IFERROR(VLOOKUP($A35,'2003'!$C$3:$Q$214,14,FALSE),0) -> 0 | DV35: =IFERROR(VLOOKUP($A35,'2003'!$C$3:$Q$214,15,FALSE),0) -> 0 | DW35: =IFERROR(VLOOKUP($A35,'2002'!$D$3:$R$214,12,FALSE),0) -> 0 | DX35: =IFERROR(VLOOKUP($A35,'2002'!$D$3:$R$214,13,FALSE),0) -> 0 | DY35: =IFERROR(VLOOKUP($A35,'2002'!$D$3:$R$214,14,FALSE),0) -> 0 | DZ35: =IFERROR(VLOOKUP($A35,'2002'!$D$3:$R$214,15,FALSE),0) -> 0 | EA35: =IFERROR(VLOOKUP($A35,'Pre 2002'!$C$3:$CK$382,84,FALSE),0) -> 0 | EB35: =IFERROR(VLOOKUP($A35,'Pre 2002'!$C$3:$CK$382,85,FALSE),0) -> 0 | EC35: =IFERROR(VLOOKUP($A35,'Pre 2002'!$C$3:$CK$382,86,FALSE),0) -> 0 | ED35: =IFERROR(VLOOKUP($A35,'Pre 2002'!$C$3:$CK$382,87,FALSE),0) -> 0 | EE35: =IFERROR(VLOOKUP(A35,'Pre 2002'!$C$3:$CG$382,83,FALSE),0) -> 0
